Workbook

Sheet ProjectInformation
A1: CPN DATA | D1: INDEX OF TABULATIONS
A2: INFORMATION ADDED BY DESIGNER | D2: INFORMATION ADDED BY AUTOMATION
A3: Design Team | B3: Flattery\Bell\Luong
A4: County | B4: LINN
A5: Project Number | B5: STP-013-1(53)--2C-57
A6: English or Metric | B6: English
A7: Revised

Sheet PrintSheets
B94: =UPPER(ProjectInformation!B6) -> ENGLISH | P94: IOWA DOT | W94: DESIGN TEAM | AF94: =ProjectInformation!B3 -> Flattery\Bell\Luong | BN94: =ProjectInformation!B4 -> LINN | CX94: COUNTY | DD94: PROJECT NUMBER | DP94: =ProjectInformation!B5 -> STP-013-1(53)--2C-57 | ET94: SHEET NUMBER | FD94: C.1 | FJ94: =IF(FP94<>0,"REVISED","") ->  | FP94: =ProjectInformation!B7 -> 00:00:00
B95: 7/27/2012 8:27:13 AM cpicker C:\Users\cpicker\Desktop\NewExcelTabulations.xlsm

Sheet DE100_1A
A1: TabTitle | B1: =C15 -> ESTIMATED PROJECT QUANTITIES (1 DIVISION PROJECT)
A2: Number of Tab Columns | B2: 6
A3: DE Starter Row Number | B3: 22
A4: TabSheet Starter Row Number | B4: 9
A5: TabSheet Header Row Count | B5: 8
A6: Top Header Cell | B6: J15
A7: Bottom Header Cell | B7: O22
A8: DESheet Row Count | B8: 0
A9: Fixed Empty Rows | B9: 2
A10: Usable Empty Rows | B10: 0
A11: Total Rows Placed | B11: 2 | C11: xlCenter | D11: xlCenter | E11: xlLeft(1) | F11: xlLeft(1) | G11: xlRight(1) | H11: xlRight(1) | J11: =C11 -> xlCenter | K11: =D11 -> xlCenter | L11: xlLeft(1) | M11: xlLeft(1) | N11: xlRight(1) | O11: xlRight(1)
A12: Total Rows Needed | B12: =SUM(B8:B10) -> 2 | C12: General | D12: General | E12: General | F12: General | G12: General | H12: General | J12: =C12 -> General | K12: General | L12: General | M12: General | N12: General | O12: General
A13: Last Tab DE Starter Row | B13: 22 | C13: =CELL("width",C13) -> 12 | D13: 16 | E13: 83 | F13: 11 | G13: 16 | H13: 16 | J13: =CELL("width",J13) -> 0 | K13: 0 | L13: 0 | M13: 0 | N13: 0 | O13: 0
A14: Last Tab Tabsheet Starter Row | B14: 9 | C14: A | D14: B | E14: C | F14: D | G14: E | H14: F | J14: =LOWER(C14) -> a | K14: =LOWER(D14) -> b | L14: c | M14: d | N14: e | O14: f
A15: Last Copy Starter Row | B15: 1 | C15: ESTIMATED PROJECT QUANTITIES (1 DIVISION PROJECT) | J15: 100-1A
A16: Tab Loop Number | B16: 2 | J16: =B17 -> 1997-07-15
A17: Revision Date | B17: 1997-07-15 | J17: =C15 -> ESTIMATED PROJECT QUANTITIES (1 DIVISION PROJECT)
A18: Tabulation Width | B18: 2
A19: Horizontal Grid Lines | B19: Yes | C19: ="This Data Entry Sheet fills Tab "&J15&" effective "&TEXT(B17,"mm-dd-yy") -> This Data Entry Sheet fills Tab 100-1A effective 07-15-97
C20: Item No. | D20: Item Code | E20: Item | F20: Unit | G20: Total | H20: As Built Qty.
J21: =C20 -> Item No. | K21: =D20 -> Item Code | L21: =E20 -> Item | M21: Unit | N21: =G20 -> Total | O21: =H20 -> As Built Qty.

Sheet DE100_1D
A1: TabTitle | B1: =C15 -> PROJECT DESCRIPTION
A2: Number of Tab Columns | B2: 1
A3: DE Starter Row Number | B3: 18
A4: TabSheet Starter Row Number | B4: 5
A5: TabSheet Header Row Count | B5: 4
A6: Top Header Cell | B6: E15
A7: Bottom Header Cell | B7: E18
A8: DESheet Row Count | B8: 0
A9: Fixed Empty Rows | B9: 2
A10: Usable Empty Rows | B10: 0
A11: Total Rows Placed | B11: 2 | C11: xlLeft(1) | E11: =C11 -> xlLeft(1)
A12: Total Rows Needed | B12: =SUM(B8:B10) -> 2 | C12: General | E12: =C12 -> General
A13: Last Tab DE Starter Row | B13: 18 | C13: =CELL("width",C13) -> 159 | E13: =CELL("width",E13) -> 0
A14: Last Tab Tabsheet Starter Row | B14: 5 | C14: A | E14: a
A15: Last Copy Starter Row | B15: 1 | C15: PROJECT DESCRIPTION | E15: 100-1D
A16: Tab Loop Number | B16: 2 | E16: =B17 -> 2005-10-18
A17: Revision Date | B17: 2005-10-18 | C17: ="This Data Entry Sheet fills Tab "&E15&" effective "&TEXT(B17,"mm-dd-yy") -> This Data Entry Sheet fills Tab 100-1D effective 10-18-05 | E17: =C15 -> PROJECT DESCRIPTION
A18: Tabulation Width | B18: 2
A19: Horizontal Grid Lines | B19: No

Sheet DE100_4A
A1: TabTitle | B1: =C15 -> ESTIMATE REFERENCE INFORMATION
A2: Number of Tab Columns | B2: 3
A3: DE Starter Row Number | B3: 20
A4: TabSheet Starter Row Number | B4: 7
A5: TabSheet Header Row Count | B5: 6
A6: Top Header Cell | B6: G15
A7: Bottom Header Cell | B7: I20
A8: DESheet Row Count | B8: 0
A9: Fixed Empty Rows | B9: 2
A10: Usable Empty Rows | B10: 0
A11: Total Rows Placed | B11: 2 | C11: xlCenter | D11: xlCenter | E11: xlLeft(1) | G11: =C11 -> xlCenter | H11: xlCenter | I11: xlLeft(1)
A12: Total Rows Needed | B12: =SUM(B8:B10) -> 2 | C12: General | D12: General | E12: General | G12: General | H12: General | I12: General
A13: Last Tab DE Starter Row | B13: 20 | C13: =CELL("width",C13) -> 12 | D13: 16 | E13: 129 | G13: =CELL("width",G13) -> 0 | H13: 0 | I13: 0
A14: Last Tab Tabsheet Starter Row | B14: 7 | C14: A | D14: B | E14: C | G14: =LOWER(C14) -> a | H14: =LOWER(D14) -> b | I14: =LOWER(E14) -> c
A15: Last Copy Starter Row | B15: 1 | C15: ESTIMATE REFERENCE INFORMATION | G15: 100-4A
A16: Tab Loop Number | B16: 2 | G16: =B17 -> 2002-10-29
A17: Revision Date | B17: 2002-10-29 | C17: ="This Data Entry Sheet fills Tab "&G15&" effective "&TEXT(B17,"mm-dd-yy") -> This Data Entry Sheet fills Tab 100-4A effective 10-29-02 | G17: =C15 -> ESTIMATE REFERENCE INFORMATION
A18: Tabulation Width | B18: 2 | C18: Item No. | D18: Item Code | E18: Description
A19: Horizontal Grid Lines | B19: Yes | G19: =C18 -> Item No. | H19: =D18 -> Item Code | I19: =E18 -> Description

Sheet DE100_7
A1: TabTitle | B1: =C16 -> FENCING
A2: Number of Tab Columns | B2: 20 | AT2: Possible Contract Items | AW2: Drop Down Lists
A3: DE Starter Row Number | B3: 27 | AS3: 2519-1001000 | AT3: FENCE, CHAIN LINK, VINYL COATED | AU3: =SUMIF(I27:I2000,"Vinyl Coated",H27:H2000) -> 0 | AW3: Side | AX3: Chain Link Height | AY3: Chain Link Gate Assembly | AZ3: Deer Fence Gate Type | BA3: Field Fence Gate Type | BB3: Field Fence Channel Crossing
A4: TabSheet Starter Row Number | B4: 13 | AS4: 2519-1002042 | AT4: FENCE, CHAIN LINK, 42 IN. HEIGHT | AU4: =SUMIF(I27:I2000,"42 in.",H27:H2000) -> 0 | AW4: LT | AX4: 42 IN. | AY4: 16 FT. | AZ4: Deer, As Per Plan | BA4: 12 FT. | BB4: A
A5: TabSheet Header Row Count | B5: 12 | AS5: 2519-1002048 | AT5: FENCE, CHAIN LINK, 48 IN. HEIGHT | AU5: =SUMIF(I27:I2000,"48 in.",H27:H2000) -> 0 | AW5: RT | AX5: 48 IN. | AY5: SEE REMARKS | AZ5: As Per Plan | BA5: 16 FT. | BB5: B
A6: Top Header Cell | B6: X15 | AS6: 2519-1002060 | AT6: FENCE, CHAIN LINK, 60 IN. HEIGHT | AU6: =SUMIF(I27:I2000,"60 in.",H27:H2000) -> 0 | AX6: 60 IN. | BA6: 18 FT. | BB6: FLOOD PLAIN
A7: Bottom Header Cell | B7: AQ26 | AS7: 2519-1002072 | AT7: FENCE, CHAIN LINK, 72 IN. HEIGHT | AU7: =SUMIF(I27:I2000,"72 in.",H27:H2000) -> 0 | AX7: 72 IN. | BA7: 20 FT. | BB7: AS PER PLAN
A8: DESheet Row Count | B8: 0 | AS8: 2519-1002084 | AT8: FENCE, CHAIN LINK, 84 IN. HEIGHT | AU8: =SUMIF(I27:I2000,"84 in.",H27:H2000) -> 0 | AX8: 84 IN. | BA8: 22 FT.
A9: Fixed Empty Rows | B9: 2 | AS9: 2519-1002096 | AT9: FENCE, CHAIN LINK, 96 IN. HEIGHT | AU9: =SUMIF(I27:I2000,"96 in.",H27:H2000) -> 0 | AX9: 96 IN. | BA9: 24 FT.
A10: Usable Empty Rows | B10: 0 | AS10: 2519-1002120 | AT10: FENCE, CHAIN LINK, 120 IN. HEIGHT | AU10: =SUMIF(I27:I2000,"120 in.",H27:H2000) -> 0 | AX10: 120 IN.
A11: Total Rows Placed | B11: 2 | C11: xlRight(1) | D11: xlRight(1) | E11: xlRight(1) | F11: xlRight(1) | G11: xlLeft(1) | H11: xlRight(1) | I11: xlLeft(1) | J11: xlRight(1) | K11: xlLeft(1) | L11: xlRight(1) | M11: xlRight(1) | N11: xlRight(1) | O11: xlLeft(1) | P11: xlRight(1) | Q11: xlRight(1) | R11: xlRight(1) | S11: xlLeft(1) | T11: xlRight(1) | U11: xlLeft(1) | V11: xlLeft(1) | X11: =C11 -> xlRight(1) | Y11: xlRight(1) | Z11: xlRight(1) | AA11: xlRight(1) | AB11: xlLeft(1) | AC11: xlRight(1) | AD11: xlLeft(1) | AE11: xlRight(1) | AF11: xlLeft(1) | AG11: xlRight(1) | AH11: xlRight(1) | AI11: xlRight(1) | AJ11: xlLeft(1) | AK11: xlRight(1) | AL11: xlRight(1) | AM11: xlRight(1) | AN11: =S11 -> xlLeft(1) | AO11: xlRight(1) | AP11: xlLeft(1) | AQ11: xlLeft(1) | AS11: 2519-1003072 | AT11: FENCE, CHAIN LINK WITH SECURITY TOP, 72 IN. HEIGHT | AU11: =SUMIF(I27:I2000,"72 in., Security Top",H27:H2000) -> 0 | AX11: 72 IN., SECURITY TOP
A12: Total Rows Needed | B12: =SUM(B8:B10) -> 2 | C12: #+00.00 | D12: 0.0 | E12: #+00.00 | F12: 0.0 | G12: General | H12: 0.0 | I12: General | J12: 0 | K12: General | L12: 0.0 | M12: 0 | N12: 0 | O12: General | P12: 0.0 | Q12: 0 | R12: 0 | S12: General | T12: 0.0 | U12: General | V12: General | X12: #+00.00 | Y12: 0.0 | Z12: #+00.00 | AA12: 0.0 | AB12: General | AC12: 0.0 | AD12: General | AE12: 0 | AF12: General | AG12: 0.0 | AH12: 0 | AI12: 0 | AJ12: General | AK12: 0.0 | AL12: 0 | AM12: 0 | AN12: General | AO12: 0.0 | AP12: General | AQ12: General | AS12: 2519-1004072 | AT12: FENCE, CHAIN LINK, 72 IN. HEIGHT, ON WALL | AU12: =SUMIF(I27:I2000,"72 in., On Wall",H27:H2000) -> 0 | AX12: 72 IN., ON WALL
A13: Last Tab DE Starter Row | B13: 27 | C13: =CELL("width",C13) -> 16 | D13: 9 | E13: 16 | F13: 9 | G13: 7 | H13: 11 | I13: 30 | J13: 11 | K13: 25 | L13: 11 | M13: 11 | N13: 11 | O13: 25 | P13: 11 | Q13: 11 | R13: 11 | S13: 11 | T13: 11 | U13: 25 | V13: 38 | X13: =CELL("width",X13) -> 0 | Y13: 0 | Z13: 0 | AA13: 0 | AB13: 0 | AC13: 0 | AD13: 0 | AE13: 0 | AF13: 0 | AG13: 0 | AH13: 0 | AI13: 0 | AJ13: 0 | AK13: 0 | AL13: 0 | AM13: 0 | AN13: 0 | AO13: 0 | AP13: 0 | AQ13: 0 | AS13: 2519-3710000 | AT13: GATE ASSEMBLY, CHAIN LINK, | AU13: =COUNTIF(K27:K2000,"SEE REMARKS") -> 0 | AX13: VINYL COATED
A14: Last Tab TabSheet Starter Row | B14: 13 | C14: A | D14: B | E14: C | F14: D | G14: E | H14: F | I14: G | J14: H | K14: I | L14: J | M14: K | N14: L | O14: M | P14: N | Q14: O | R14: P | S14: Q | T14: R | U14: S | V14: T | X14: =LOWER(C14) -> a | Y14: b | Z14: c | AA14: d | AB14: e | AC14: f | AD14: g | AE14: h | AF14: i | AG14: j | AH14: k | AI14: l | AJ14: m | AK14: n | AL14: o | AM14: p | AN14: q | AO14: r | AP14: s | AQ14: t | AS14: 2519-3711600 | AT14: GATE ASSEMBLY, CHAIN LINK, 16 FT. | AU14: =COUNTIF(K27:K2000,"16 FT.") -> 0
A15: Last Copy Starter Row | B15: 1 | G15: Totals: | H15: =SUBTOTAL(9,H27:H2000) -> 0 | J15: =SUBTOTAL(9,J27:J2000) -> 0 | L15: =SUBTOTAL(9,L27:L2000) -> 0 | M15: =SUBTOTAL(9,M27:M2000) -> 0 | N15: =SUBTOTAL(9,N27:N2000) -> 0 | P15: =SUBTOTAL(9,P27:P2000) -> 0 | Q15: =SUBTOTAL(9,Q27:Q2000) -> 0 | R15: =SUBTOTAL(9,R27:R2000) -> 0 | T15: =SUBTOTAL(9,T27:T2000) -> 0 | X15: 100-7 | AS15: 2519-2000100 | AT15: FENCE, CHANNEL CROSSING, CHAIN LINK, AS PER PLAN | AU15: =SUMIF(#REF!,"As Per Plan",#REF!) -> 
A16: Tab Loop Number | B16: 2 | C16: FENCING | X16: =B17 -> 2012-10-16 | AS16: 2519-3500096 | AT16: DEER FENCE, 96 IN. | AU16: =SUM(L27:L2000) -> 0
A17: Revision Date | B17: 2012-10-16 | X17: =C16 -> FENCING | AS17: 2519-3600221 | AT17: DEER FENCE BRACE PANELS | AU17: =SUM(M27:M2000) -> 0
A18: Tabulation Width | B18: 4 | C18: Refer to MI-101, MI-102, MI-103, MI-104, 510-3, and 510-5 | AS18: 2519-3700000 | AT18: GATE, AS PER PLAN | AU18: =SUMIF(O27:O2000,"As Per Plan",N27:N2000) -> 0
A19: Horizontal Grid Lines | B19: Yes | C19: * Bid Item | X19: =C19 -> * Bid Item | AS19: 2519-3700001 | AT19: GATE, DEER, AS PER PLAN | AU19: =SUMIF(O27:O2000,"Deer, As Per Plan",N27:N2000) -> 0
C20: ="This Data Entry Sheet fills Tab "&X15&" effective "&TEXT(B17,"mm-dd-yy") -> This Data Entry Sheet fills Tab 100-7 effective 10-16-12 | X20: =C18 -> Refer to MI-101, MI-102, MI-103, MI-104, 510-3, and 510-5 | AS20: 2519-3600201 | AT20: CHANNEL CROSSING, DEER FENCE, TYPE A | AU20: =SUMIF(#REF!,"A",#REF!) -> 
C21: Location | G21: Side | H21: Chain Link | L21: Deer | P21: Field | T21: Channel Crossing | V21: Remarks | X21: =C21 -> Location | AB21: =G21 -> Side | AC21: =H21 -> Chain Link | AG21: =L21 -> Deer | AK21: =P21 -> Field | AO21: =T21 -> Channel Crossing | AQ21: =V21 -> Remarks | AS21: 2519-3280000 | AT21: FENCE, FIELD | AU21: =SUM(P27:P2000) -> 0
C22: From | E22: To | X22: =C22 -> From | Z22: =E22 -> To | AS22: 2519-3300400 | AT22: FIELD FENCE BRACE PANELS | AU22: =SUM(Q27:Q2000) -> 0
C23: Station | D23: Offset | E23: Station | F23: Offset | H23: Fence | J23: Gate | L23: Fence Length* | M23: Brace Panels* | N23: Gate | P23: Fence Length* | Q23: Brace Panels* | R23: Gate | X23: =C23 -> Station | Y23: =D23 -> Offset | Z23: =E23 -> Station | AA23: =F23 -> Offset | AC23: =H23 -> Fence | AE23: =J23 -> Gate | AG23: =L23 -> Fence Length* | AH23: =M23 -> Brace Panels* | AI23: =N23 -> Gate | AK23: =P23 -> Fence Length* | AL23: =Q23 -> Brace Panels* | AM23: =R23 -> Gate | AS23: 2519-3750012 | AT23: GATE, FIELD FENCE, 12 FT. | AU23: =SUMIF(S27:S2000,"12 FT.",R27:R2000) -> 0
H24: Length* | I24: Type | J24: No.* | K24: Type | N24: No.* | O24: Type | R24: No.* | S24: Type | T24: Length* | U24: Type | AC24: =H24 -> Length* | AD24: =I24 -> Type | AE24: =J24 -> No.* | AF24: =K24 -> Type | AI24: =N24 -> No.* | AJ24: =O24 -> Type | AM24: =R24 -> No.* | AN24: =S24 -> Type | AO24: =T24 -> Length* | AP24: =U24 -> Type | AS24: 2519-3750017 | AT24: GATE, FIELD FENCE, 16 FT. | AU24: =SUMIF(S27:S2000,"16 FT.",R27:R2000) -> 0
AS25: 2519-3750018 | AT25: GATE, FIELD FENCE, 18 FT. | AU25: =SUMIF(S27:S2000,"18 FT.",R27:R2000) -> 0
H26: LF | J26: EACH | L26: LF | M26: EACH | N26: EACH | P26: LF | Q26: EACH | R26: EACH | T26: LF | AC26: =H26 -> LF | AE26: =J26 -> EACH | AG26: =L26 -> LF | AH26: =M26 -> EACH | AI26: =N26 -> EACH | AK26: =P26 -> LF | AL26: =Q26 -> EACH | AM26: =R26 -> EACH | AO26: =T26 -> LF | AS26: 2519-3750020 | AT26: GATE, FIELD FENCE, 20 FT. | AU26: =SUMIF(S27:S2000,"20 FT.",R27:R2000) -> 0
AS27: 2519-3750022 | AT27: GATE, FIELD FENCE, 22 FT. | AU27: =SUMIF(S27:S2000,"22 FT.",R27:R2000) -> 0
AS28: 2519-3750024 | AT28: GATE, FIELD FENCE, 24 FT. | AU28: =SUMIF(S27:S2000,"24 FT.",R27:R2000) -> 0
AS29: 2519-2000010 | AT29: FENCE, CHANNEL CROSSING, TYPE A | AU29: =SUMIF(U27:U2000,"A",T27:T2000) -> 0
AS30: 2519-2000020 | AT30: FENCE, CHANNEL CROSSING, TYPE B | AU30: =SUMIF(U27:U2000,"B",T27:T2000) -> 0
AS31: 2519-3000000 | AT31: FLOOD PLAIN FENCE | AU31: =SUMIF(U27:U2000,"FLOOD PLAIN",T27:T2000) -> 0

Sheet DE100_10
A1: TabTitle | B1: =C16 -> FLOATING SILT CURTAINS
A2: Number of Tab Columns | B2: 5
A3: DE Starter Row Number | B3: 25
A4: TabSheet Starter Row Number | B4: 11
A5: TabSheet Header Row Count | B5: 10
A6: Top Header Cell | B6: I15
A7: Bottom Header Cell | B7: M24
A8: DESheet Row Count | B8: 0
A9: Fixed Empty Rows | B9: 2
A10: Usable Empty Rows | B10: 0
A11: Total Rows Placed | B11: 2 | C11: xlRight(1) | D11: xlRight(1) | E11: xlRight(1) | F11: xlRight(1) | G11: xlLeft(1) | I11: =C11 -> xlRight(1) | J11: xlRight(1) | K11: xlRight(1) | L11: xlRight(1) | M11: =F11 -> xlRight(1)
A12: Total Rows Needed | B12: =SUM(B8:B10) -> 2 | C12: #+00.00 | D12: 0.0 | E12: 0.0 | F12: 0.0 | G12: General | I12: #+00.00 | J12: 0.0 | K12: 0.0 | L12: 0.0 | M12: =F12 -> 0.0
A13: Last Tab DE Starter Row | B13: 25 | C13: =CELL("width",C13) -> 16 | D13: =CELL("width",D13) -> 13 | E13: =CELL("width",E13) -> 13 | F13: =CELL("width",F13) -> 15 | G13: =CELL("width",G13) -> 17 | I13: =CELL("width",I13) -> 0 | J13: =CELL("width",J13) -> 0 | K13: =CELL("width",K13) -> 0 | L13: =CELL("width",L13) -> 0 | M13: =CELL("width",M13) -> 0
A14: Last Tab TabSheet Starter Row | B14: 11 | C14: A | D14: B | E14: C | F14: D | G14: E | I14: =LOWER(C14) -> a | J14: =LOWER(D14) -> b | K14: =LOWER(E14) -> c | L14: =LOWER(F14) -> d | M14: =LOWER(G14) -> e
A15: Last Copy Starter Row | B15: 1 | C15: Totals: | D15: =SUBTOTAL(9,D25:D2000) -> 0 | E15: =SUBTOTAL(9,E25:E2000) -> 0 | F15: =SUBTOTAL(9,F25:F2000) -> 0 | I15: 100-10
A16: Tab Loop Number | B16: 2 | C16: FLOATING SILT CURTAINS | I16: =B17 -> 2011-10-18
A17: Revision Date | B17: 2011-10-18 | I17: =C16 -> FLOATING SILT CURTAINS
A18: Tabulation Width | B18: 1
A19: Horizontal Grid Lines | B19: Yes | C19: Refer to EC-202 | I19: =C19 -> Refer to EC-202
C20: ="This Data Entry Sheet fills Tab "&I15&" effective "&TEXT(B17,"mm-dd-yy") -> This Data Entry Sheet fills Tab 100-10 effective 10-18-11 | I20: =C21 -> Station | J20: =D21 -> Hanging | K20: =E21 -> Containment | L20: =F21 -> Clean-out (Containment) | M20: =G21 -> Remarks
C21: Station | D21: Hanging | E21: Containment | F21: Clean-out (Containment) | G21: Remarks
D24: LF | E24: LF | F24: LF | J24: =D24 -> LF | K24: =E24 -> LF | L24: =F24 -> LF
D25: =IF(E25<>"","Must Add","") ->  | F25: =IF(E25<>"",(E25*(1+1)),"") -> 
D89: =IF(E89<>"","Must Add","") ->  | F89: =IF(E89<>"",(E89*(1+1)),"") -> 
D153: =IF(E153<>"","Must Add","") ->  | F153: =IF(E153<>"",(E153*(1+1)),"") -> 
D217: =IF(E217<>"","Must Add","") ->  | F217: =IF(E217<>"",(E217*(1+1)),"") -> 
D281: =IF(E281<>"","Must Add","") ->  | F281: =IF(E281<>"",(E281*(1+1)),"") -> 
D345: =IF(E345<>"","Must Add","") ->  | F345: =IF(E345<>"",(E345*(1+1)),"") -> 
D409: =IF(E409<>"","Must Add","") ->  | F409: =IF(E409<>"",(E409*(1+1)),"") -> 
D473: =IF(E473<>"","Must Add","") ->  | F473: =IF(E473<>"",(E473*(1+1)),"") -> 
D537: =IF(E537<>"","Must Add","") ->  | F537: =IF(E537<>"",(E537*(1+1)),"") -> 
D601: =IF(E601<>"","Must Add","") ->  | F601: =IF(E601<>"",(E601*(1+1)),"") -> 
D665: =IF(E665<>"","Must Add","") ->  | F665: =IF(E665<>"",(E665*(1+1)),"") -> 
D729: =IF(E729<>"","Must Add","") ->  | F729: =IF(E729<>"",(E729*(1+1)),"") -> 
D793: =IF(E793<>"","Must Add","") ->  | F793: =IF(E793<>"",(E793*(1+1)),"") -> 
D857: =IF(E857<>"","Must Add","") ->  | F857: =IF(E857<>"",(E857*(1+1)),"") -> 
D921: =IF(E921<>"","Must Add","") ->  | F921: =IF(E921<>"",(E921*(1+1)),"") -> 
D985: =IF(E985<>"","Must Add","") ->  | F985: =IF(E985<>"",(E985*(1+1)),"") -> 
D1049: =IF(E1049<>"","Must Add","") ->  | F1049: =IF(E1049<>"",(E1049*(1+1)),"") -> 
D1113: =IF(E1113<>"","Must Add","") ->  | F1113: =IF(E1113<>"",(E1113*(1+1)),"") -> 
D1177: =IF(E1177<>"","Must Add","") ->  | F1177: =IF(E1177<>"",(E1177*(1+1)),"") -> 
D1241: =IF(E1241<>"","Must Add","") ->  | F1241: =IF(E1241<>"",(E1241*(1+1)),"") -> 
D1305: =IF(E1305<>"","Must Add","") ->  | F1305: =IF(E1305<>"",(E1305*(1+1)),"") -> 
D1369: =IF(E1369<>"","Must Add","") ->  | F1369: =IF(E1369<>"",(E1369*(1+1)),"") -> 
D1433: =IF(E1433<>"","Must Add","") ->  | F1433: =IF(E1433<>"",(E1433*(1+1)),"") -> 
D1497: =IF(E1497<>"","Must Add","") ->  | F1497: =IF(E1497<>"",(E1497*(1+1)),"") -> 
D1561: =IF(E1561<>"","Must Add","") ->  | F1561: =IF(E1561<>"",(E1561*(1+1)),"") -> 
D1625: =IF(E1625<>"","Must Add","") ->  | F1625: =IF(E1625<>"",(E1625*(1+1)),"") -> 
D1689: =IF(E1689<>"","Must Add","") ->  | F1689: =IF(E1689<>"",(E1689*(1+1)),"") -> 
D1753: =IF(E1753<>"","Must Add","") ->  | F1753: =IF(E1753<>"",(E1753*(1+1)),"") -> 
D1817: =IF(E1817<>"","Must Add","") ->  | F1817: =IF(E1817<>"",(E1817*(1+1)),"") -> 
D1881: =IF(E1881<>"","Must Add","") ->  | F1881: =IF(E1881<>"",(E1881*(1+1)),"") -> 
D1945: =IF(E1945<>"","Must Add","") ->  | F1945: =IF(E1945<>"",(E1945*(1+1)),"") -> 

Sheet DE100_14
A1: TabTitle | B1: =C15 -> SILT BASINS
A2: Number of Tab Columns | B2: 3
A3: DE Starter Row Number | B3: 22
A4: TabSheet Starter Row Number | B4: 9
A5: TabSheet Header Row Count | B5: 8
A6: Top Header Cell | B6: G15
A7: Bottom Header Cell | B7: I22
A8: DESheet Row Count | B8: 0
A9: Fixed Empty Rows | B9: 2
A10: Usable Empty Rows | B10: 0
A11: Total Rows Placed | B11: 2 | C11: xlRight(1) | D11: xlLeft(1) | E11: xlLeft(1) | G11: =C11 -> xlRight(1) | H11: xlLeft(1) | I11: xlLeft(1)
A12: Total Rows Needed | B12: =SUM(B8:B10) -> 2 | C12: #+00.00 | D12: General | E12: General | G12: #+00.00 | H12: General | I12: General
A13: Last Tab DE Starter Row | B13: 22 | C13: =CELL("width",C13) -> 16 | D13: =CELL("width",D13) -> 10 | E13: =CELL("width",E13) -> 50 | G13: =CELL("width",G13) -> 0 | H13: =CELL("width",H13) -> 0 | I13: =CELL("width",I13) -> 0
A14: Last Tab TabSheet Starter Row | B14: 9 | C14: A | D14: B | E14: C | G14: =LOWER(C14) -> a | H14: =LOWER(D14) -> b | I14: =LOWER(E14) -> c
A15: Last Copy Starter Row | B15: 1 | C15: SILT BASINS | G15: 100-14
A16: Tab Loop Number | B16: 2 | G16: =B17 -> 2013-10-15
A17: Revision Date | B17: 2013-10-15 | C17: Refer to EW-403 | G17: =C15 -> SILT BASINS
A18: Tabulation Width | B18: 1 | C18: ="This Data Entry Sheet fills Tab "&G15&" effective "&TEXT(B17,"mm-dd-yy") -> This Data Entry Sheet fills Tab 100-14 effective 10-15-13
A19: Horizontal Grid Lines | B19: Yes | C19: Location Station | D19: Side | E19: Remarks | G19: =C17 -> Refer to EW-403
G20: =C19 -> Location Station | H20: =D19 -> Side | I20: =E19 -> Remarks

Sheet DE100_17
A1: TabTitle | B1: =C16 -> TABULATION OF SILT FENCES
A2: Number of Tab Columns | B2: 5 | P2: Possible Contract Item
A3: DE Starter Row Number | B3: 23 | O3: 2602-0000020 | P3: SILT FENCE | Q3: =F15 -> 0
A4: TabSheet Starter Row Number | B4: 9
A5: TabSheet Header Row Count | B5: 8
A6: Top Header Cell | B6: I15
A7: Bottom Header Cell | B7: M22
A8: DESheet Row Count | B8: 0
A9: Fixed Empty Rows | B9: 2
A10: Usable Empty Rows | B10: 0
A11: Total Rows Placed | B11: 2 | C11: xlRight(1) | D11: xlRight(1) | E11: xlLeft(1) | F11: xlRight(1) | G11: xlLeft(1) | I11: =C11 -> xlRight(1) | J11: xlRight(1) | K11: xlLeft(1) | L11: xlRight(1) | M11: xlLeft(1)
A12: Total Rows Needed | B12: =SUM(B8:B10) -> 2 | C12: #+00.00 | D12: #+00.00 | E12: General | F12: 0.0 | G12: General | I12: #+00.00 | J12: #+00.00 | K12: General | L12: 0.0 | M12: General
A13: Last Tab DE Starter Row | B13: 23 | C13: =CELL("width",C13) -> 16 | D13: =CELL("width",D13) -> 16 | E13: =CELL("width",E13) -> 6 | F13: =CELL("width",F13) -> 10 | G13: =CELL("width",G13) -> 26 | I13: =CELL("width",I13) -> 0 | J13: =CELL("width",J13) -> 0 | K13: =CELL("width",K13) -> 0 | L13: =CELL("width",L13) -> 0 | M13: =CELL("width",M13) -> 0
A14: Last Tab Tabsheet Starter Row | B14: 9 | C14: A | D14: B | E14: C | F14: D | G14: E | I14: =LOWER(C14) -> a | J14: =LOWER(D14) -> b | K14: =LOWER(E14) -> c | L14: =LOWER(F14) -> d | M14: =LOWER(G14) -> e
A15: Last Copy Starter Row | B15: 1 | E15: Totals: | F15: =SUBTOTAL(9,F23:F2000) -> 0 | I15: 100-17
A16: Tab Loop Number | B16: 2 | C16: TABULATION OF SILT FENCES | I16: =B17 -> 2010-04-20
A17: Revision Date | B17: 2010-04-20 | I17: =C16 -> TABULATION OF SILT FENCES
A18: Tabulation Width | B18: 1 | C18: Refer to EC-201
A19: Horizontal Grid Lines | B19: Yes | C19: ="This Data Entry Sheet fills Tab "&I15&" effective "&TEXT(B17,"mm-dd-yy") -> This Data Entry Sheet fills Tab 100-17 effective 04-20-10 | I19: =C18 -> Refer to EC-201
C20: Location | F20: Length | G20: Remarks | I20: =C20 -> Location | L20: =F20 -> Length | M20: =G20 -> Remarks
C21: Begin Station | D21: End Station | E21: Side | I21: =C21 -> Begin Station | J21: =D21 -> End Station | K21: =E21 -> Side
F22: LF | L22: =F22 -> LF

Sheet DE100_18
A1: TabTitle | B1: =C16 -> TABULATION OF SILT FENCES FOR DITCH CHECKS
A2: Number of Tab Columns | B2: 4 | N2: Possible Contract Item
A3: DE Starter Row Number | B3: 25 | M3: 2602-0000030 | N3: SILT FENCE FOR DITCH CHECKS | O3: =E15 -> 0
A4: TabSheet Starter Row Number | B4: 11
A5: TabSheet Header Row Count | B5: 10
A6: Top Header Cell | B6: H15
A7: Bottom Header Cell | B7: K24
A8: DESheet Row Count | B8: 0
A9: Fixed Empty Rows | B9: 2
A10: Usable Empty Rows | B10: 0
A11: Total Rows Placed | B11: 2 | C11: xlRight(1) | D11: xlLeft(1) | E11: xlRight(1) | F11: xlLeft(1) | H11: =C11 -> xlRight(1) | I11: xlLeft(1) | J11: xlRight(1) | K11: xlLeft(1)
A12: Total Rows Needed | B12: =SUM(B8:B10) -> 2 | C12: #+00.00 | D12: General | E12: 0.0 | F12: General | H12: #+00.00 | I12: General | J12: 0.0 | K12: General
A13: Last Tab DE Starter Row | B13: 25 | C13: =CELL("width",C13) -> 16 | D13: =CELL("width",D13) -> 6 | E13: =CELL("width",E13) -> 8 | F13: =CELL("width",F13) -> 46 | H13: =CELL("width",H13) -> 0 | I13: =CELL("width",I13) -> 0 | J13: =CELL("width",J13) -> 0 | K13: =CELL("width",K13) -> 0
A14: Last Tab Tabsheet Starter Row | B14: 11 | C14: A | D14: B | E14: C | F14: D | H14: =LOWER(C14) -> a | I14: =LOWER(D14) -> b | J14: =LOWER(E14) -> c | K14: =LOWER(F14) -> d
A15: Last Copy Starter Row | B15: 1 | C15: Totals: | E15: =SUBTOTAL(9,E25:E2000) -> 0 | H15: 100-18
A16: Tab Loop Number | B16: 2 | C16: TABULATION OF SILT FENCES FOR DITCH CHECKS | H16: =B17 -> 2010-04-20
A17: Revision Date | B17: 2010-04-20 | H17: =C16 -> TABULATION OF SILT FENCES FOR DITCH CHECKS
A18: Tabulation Width | B18: 1
A19: Horizontal Grid Lines | B19: Yes
C20: Refer to EC-201
C21: ="This Data Entry Sheet fills Tab "&H15&" effective "&TEXT(B17,"mm-dd-yy") -> This Data Entry Sheet fills Tab 100-18 effective 04-20-10 | H21: =C20 -> Refer to EC-201
C22: Location Station | D22: Side | E22: Length | F22: Remarks | H22: =C22 -> Location Station | I22: =D22 -> Side | J22: =E22 -> Length | K22: =F22 -> Remarks
E24: LF | J24: =E24 -> LF

Sheet DE100_19
A1: TabTitle | B1: =C16 -> PERIMETER AND SLOPE SEDIMENT CONTROL DEVICE
A2: Number of Tab Columns | B2: 8
A3: DE Starter Row Number | B3: 24
A4: TabSheet Starter Row Number | B4: 10
A5: TabSheet Header Row Count | B5: 9
A6: Top Header Cell | B6: L15
A7: Bottom Header Cell | B7: S23
A8: DESheet Row Count | B8: 0
A9: Fixed Empty Rows | B9: 2
A10: Usable Empty Rows | B10: 0
A11: Total Rows Placed | B11: 2 | C11: xlRight(1) | D11: xlRight(1) | E11: xlLeft(1) | F11: xlRight(1) | G11: xlRight(1) | H11: xlRight(1) | I11: xlRight(1) | J11: xlLeft(1) | L11: =C11 -> xlRight(1) | M11: xlRight(1) | N11: xlLeft(1) | O11: xlRight(1) | P11: xlRight(1) | Q11: xlRight(1) | R11: xlRight(1) | S11: xlLeft(1)
A12: Total Rows Needed | B12: =SUM(B8:B10) -> 2 | C12: #+00.00 | D12: #+00.00 | E12: General | F12: 0.0 | G12: 0.0 | H12: 0.0 | I12: 0.0 | J12: General | L12: #+00.00 | M12: #+00.00 | N12: General | O12: 0.0 | P12: 0.0 | Q12: 0.0 | R12: 0.0 | S12: General
A13: Last Tab DE Starter Row | B13: 24 | C13: =CELL("width",C13) -> 17 | D13: 17 | E13: 6 | F13: 14 | G13: 14 | H13: 14 | I13: 14 | J13: 57 | L13: =CELL("width",L13) -> 0 | M13: =CELL("width",M13) -> 0 | N13: =CELL("width",N13) -> 0 | O13: =CELL("width",O13) -> 0 | P13: =CELL("width",P13) -> 0 | Q13: 0 | R13: 0 | S13: =CELL("width",S13) -> 0
A14: Last Tab Tabsheet Starter Row | B14: 10 | C14: A | D14: B | E14: C | F14: D | G14: E | H14: F | I14: G | J14: H | L14: =LOWER(C14) -> a | M14: b | N14: c | O14: d | P14: e | Q14: f | R14: g | S14: h
A15: Last Copy Starter Row | B15: 1 | E15: Totals: | F15: =SUBTOTAL(9,F24:F2000) -> 0 | G15: =SUBTOTAL(9,G24:G2000) -> 0 | H15: =SUBTOTAL(9,H24:H2000) -> 0 | I15: =SUBTOTAL(9,I24:I2000) -> 0 | L15: 100-19
A16: Tab Loop Number | B16: 2 | C16: PERIMETER AND SLOPE SEDIMENT CONTROL DEVICE | L16: =B17 -> 2012-10-16
A17: Revision Date | B17: 2012-10-16 | L17: =C16 -> PERIMETER AND SLOPE SEDIMENT CONTROL DEVICE
A18: Tabulation Width | B18: 2 | C18: Refer to EC-204
A19: Horizontal Grid Lines | B19: Yes | C19: ="This Data Entry Sheet fills Tab "&L15&" effective "&TEXT(B17,"mm-dd-yy") -> This Data Entry Sheet fills Tab 100-19 effective 10-16-12 | L19: =C18 -> Refer to EC-204
C20: Location | F20: Length of Installation | J20: Remarks | L20: =C20 -> Location | O20: =F20 -> Length of Installation | S20: =J20 -> Remarks
C21: Begin Station | D21: End Station | E21: Side | F21: 6 inch Dia | G21: 9 inch Dia | H21: 12 inch Dia | I21: 20 inch Dia | L21: =C21 -> Begin Station | M21: =D21 -> End Station | N21: =E21 -> Side | O21: =F21 -> 6 inch Dia | P21: =G21 -> 9 inch Dia | Q21: 12 inch Dia | R21: 20 inch Dia
F23: LF | G23: LF | H23: LF | I23: LF | O23: =F23 -> LF | P23: =G23 -> LF | Q23: =H23 -> LF | R23: =I23 -> LF

Sheet DE100_24
A1: TabTitle | B1: =C16 -> PCC PAVEMENT
A2: Number of Tab Columns | B2: 21
A3: DE Starter Row Number | B3: 55
A4: TabSheet Starter Row Number | B4: 41
A5: TabSheet Header Row Count | B5: 40
A6: Top Header Cell | B6: Y15
A7: Bottom Header Cell | B7: AS54
A8: DESheet Row Count | B8: 11
A9: Fixed Empty Rows | B9: 2
A10: Usable Empty Rows | B10: 0
A11: Total Rows Placed | B11: 2 | C11: xlLeft(1) | D11: xlLeft(1) | E11: xlRight(1) | F11: xlRight(1) | G11: xlRight(1) | H11: xlRight(1) | I11: xlRight(1) | J11: xlRight(1) | K11: xlRight(1) | L11: xlRight(1) | M11: xlRight(1) | N11: xlRight(1) | O11: xlRight(1) | P11: xlRight(1) | Q11: xlRight(1) | R11: xlRight(1) | S11: xlRight(1) | T11: xlRight(1) | U11: xlRight(1) | V11: xlRight(1) | W11: xlLeft(1) | Y11: =C11 -> xlLeft(1) | Z11: xlLeft(1) | AA11: xlRight(1) | AB11: xlRight(1) | AC11: xlRight(1) | AD11: xlRight(1) | AE11: xlRight(1) | AF11: xlRight(1) | AG11: xlRight(1) | AH11: xlRight(1) | AI11: xlRight(1) | AJ11: xlRight(1) | AK11: xlRight(1) | AL11: xlRight(1) | AM11: xlRight(1) | AN11: xlRight(1) | AO11: =S11 -> xlRight(1) | AP11: xlRight(1) | AQ11: xlRight(1) | AR11: xlRight(1) | AS11: xlLeft(1)
A12: Total Rows Needed | B12: =SUM(B8:B10) -> 13 | C12: General | D12: General | E12: #+00.00 | F12: #+00.00 | G12: 0.0 | H12: 0.0 | I12: 0.0 | J12: 0.0 | K12: 0.0 | L12: 0.0 | M12: 0.0 | N12: 0.0 | O12: 0.0 | P12: 0.0 | Q12: 0.0 | R12: 0.0 | S12: 0.0 | T12: 0.0 | U12: 0.0 | V12: 0.0 | W12: General | Y12: General | Z12: General | AA12: #+00.00 | AB12: #+00.00 | AC12: 0.0 | AD12: 0.0 | AE12: 0.0 | AF12: 0.0 | AG12: 0.0 | AH12: 0.0 | AI12: 0.0 | AJ12: 0.0 | AK12: 0.0 | AL12: 0.0 | AM12: 0.0 | AN12: 0.0 | AO12: 0.0 | AP12: 0.0 | AQ12: 0.0 | AR12: 0.0 | AS12: General
A13: Last Tab DE Starter Row | B13: 55 | C13: =CELL("width",C13) -> 34 | D13: 11 | E13: 16 | F13: 16 | G13: 9 | H13: 9 | I13: 9 | J13: 10 | K13: 10 | L13: 10 | M13: 10 | N13: 10 | O13: 10 | P13: 10 | Q13: 10 | R13: 10 | S13: 10 | T13: 10 | U13: 10 | V13: 10 | W13: 44 | Y13: =CELL("width",Y13) -> 0 | Z13: 0 | AA13: 0 | AB13: 0 | AC13: 0 | AD13: 0 | AE13: 0 | AF13: 0 | AG13: 0 | AH13: 0 | AI13: 0 | AJ13: 0 | AK13: 0 | AL13: 0 | AM13: 0 | AN13: 0 | AO13: 0 | AP13: 0 | AQ13: 0 | AR13: 0 | AS13: 0
A14: Last Tab TabSheet Starter Row | B14: 41 | C14: A | D14: B | E14: C | F14: D | G14: E | H14: F | I14: G | J14: H | K14: I | L14: J | M14: K | N14: L | O14: M | P14: N | Q14: O | R14: P | S14: Q | T14: R | U14: S | V14: T | W14: U | Y14: =LOWER(C14) -> a | Z14: b | AA14: c | AB14: d | AC14: e | AD14: f | AE14: g | AF14: h | AG14: i | AH14: j | AI14: k | AJ14: l | AK14: m | AL14: n | AM14: o | AN14: p | AO14: q | AP14: r | AQ14: s | AR14: t | AS14: u
A15: Last Copy Starter Row | B15: 1 | R15: =SUBTOTAL(9,R55:R2002) -> 186778.1688 | S15: =SUBTOTAL(9,S55:S2002) -> 0 | U15: =SUBTOTAL(9,U54:U2002) -> 0 | V15: =SUBTOTAL(9,V54:V2002) -> 225254.1554 | Y15: 100-24
A16: Tab Loop Number | B16: 2 | C16: PCC PAVEMENT | Y16: =B17 -> 2013-10-15
A17: Revision Date | B17: 2013-10-15 | Y17: =C16 -> PCC PAVEMENT
A18: Tabulation Width | B18: 4 | C18: ="This Data Entry Sheet fills Tab "&Y15&" effective "&TEXT(B17,"mm-dd-yy") -> This Data Entry Sheet fills Tab 100-24 effective 10-15-13
A19: Horizontal Grid Lines | B19: Yes
V38: Does not include island area or curb. Refer to tabulation 112-4 for quantities. | AR38: =V38 -> Does not include island area or curb. Refer to tabulation 112-4 for quantities.
V41: Refer to PV-410, PV-411, PV-412, and PV-414. | AR41: =V41 -> Refer to PV-410, PV-411, PV-412, and PV-414.
V43: Quantity includes Pavement Header. | AR43: =V43 -> Quantity includes Pavement Header.
C49: Location | G49: Mainline | J49: Area | R49: Total Area By Pavement Thickness | T49: Special Backfill | U49: Modified Subbase | V49: Granular Subbase | W49: Remarks | Y49: =C49 -> Location | AC49: =G49 -> Mainline | AF49: =J49 -> Area | AN49: =R49 -> Total Area By Pavement Thickness | AP49: =T49 -> Special Backfill | AQ49: =U49 -> Modified Subbase | AR49: =V49 -> Granular Subbase | AS49: =W49 -> Remarks
C50: Road Identification | D50: Direction of Travel | E50: Station to Station | G50: Width | H50: Length | I50: Area | Y50: =C50 -> Road Identification | Z50: =D50 -> Direction of Travel | AA50: =E50 -> Station to Station | AC50: =G50 -> Width | AD50: =H50 -> Length | AE50: =I50 -> Area
R53: SY | AN53: =R53 -> SY
G54: FT | H54: FT | I54: SY | J54: SY | K54: SY | L54: SY | M54: SY | N54: SY | O54: SY | P54: SY | Q54: SY | R54: 10 IN | S54: 10½ IN | T54: TONS | U54: CY | V54: SY | AC54: =G54 -> FT | AD54: FT | AE54: SY | AF54: SY | AG54: SY | AH54: SY | AI54: SY | AJ54: SY | AK54: SY | AL54: SY | AM54: SY | AN54: =R54 -> 10 IN | AO54: =S54 -> 10½ IN | AP54: =T54 -> TONS | AQ54: =U54 -> CY | AR54: =V54 -> SY
E55: 128300 | F55: 137302.4 | G55: =12+14 -> 26 | H55: =IF(AND($E55<>"",$F55<>""),$F55-$E55,"") -> 9002.4 | I55: =IF(AND($G55<>"",$H55<>""),$G55*$H55/9,"") -> 26006.93333 | R55: =SUM(I55:Q55) -> 26006.93333 | V55: =H55*(3+3)/9+R55 -> 32008.53333
E56: 137549.65 | F56: 156825 | G56: =12+14 -> 26 | H56: 19275.35 | I56: 55684.34444 | R56: =SUM(I56:Q56) -> 55684.34444 | V56: =H56*(3+3)/9+R56 -> 68534.57778
C57: Prairie Chapel Rd | N57: =11249.9226/9 -> 1249.9914 | R57: 1249.9914 | V57: =+R57 -> 1249.9914
C58: Austin Rd | N58: =13036.09/9 -> 1448.454444 | R58: 1448.454444 | V58: =+R58 -> 1448.454444
C59: Indian Bridge Rd | N59: =11455.1316/9 -> 1272.7924 | R59: 1272.7924 | V59: 1272.7924
C60: Turner Rd | N60: =7971.6663/9 -> 885.7407 | R60: 885.7407 | V60: 885.7407
C61: Burnett Station Rd | E61: 6147200 | F61: 6147779.24 | G61: 24 | H61: 579.24 | I61: 1544.64 | J61: =3137.8066/9 -> 348.6451778 | K61: =3321.5152/9 -> 369.0572444 | N61: =11763.3078/9 -> 1307.0342 | R61: 3569.376622 | V61: 3955.536622
C62: Scotland Rd | N62: =11134.7219/9 -> 1237.191322 | R62: =SUM(I62:Q62) -> 1237.191322 | V62: 1237.191322
C63: Round Grove Rd | N63: =18308.3375/9 -> 2034.259722 | R63: =SUM(I63:Q63) -> 2034.259722 | V63: 2034.259722
R65: =SUM(R55:R64) -> 93389.08439 | V65: =SUM(V55:V64) -> 112627.0777
H121: =IF(AND($E121<>"",$F121<>""),$F121-$E121,"") ->  | I121: =IF(AND($G121<>"",$H121<>""),$G121*$H121/9,"") -> 
H185: =IF(AND($E185<>"",$F185<>""),$F185-$E185,"") ->  | I185: =IF(AND($G185<>"",$H185<>""),$G185*$H185/9,"") -> 
H249: =IF(AND($E249<>"",$F249<>""),$F249-$E249,"") ->  | I249: =IF(AND($G249<>"",$H249<>""),$G249*$H249/9,"") -> 
H313: =IF(AND($E313<>"",$F313<>""),$F313-$E313,"") ->  | I313: =IF(AND($G313<>"",$H313<>""),$G313*$H313/9,"") -> 
H377: =IF(AND($E377<>"",$F377<>""),$F377-$E377,"") ->  | I377: =IF(AND($G377<>"",$H377<>""),$G377*$H377/9,"") -> 
H441: =IF(AND($E441<>"",$F441<>""),$F441-$E441,"") ->  | I441: =IF(AND($G441<>"",$H441<>""),$G441*$H441/9,"") -> 
H505: =IF(AND($E505<>"",$F505<>""),$F505-$E505,"") ->  | I505: =IF(AND($G505<>"",$H505<>""),$G505*$H505/9,"") -> 
H569: =IF(AND($E569<>"",$F569<>""),$F569-$E569,"") ->  | I569: =IF(AND($G569<>"",$H569<>""),$G569*$H569/9,"") -> 
H633: =IF(AND($E633<>"",$F633<>""),$F633-$E633,"") ->  | I633: =IF(AND($G633<>"",$H633<>""),$G633*$H633/9,"") -> 
H697: =IF(AND($E697<>"",$F697<>""),$F697-$E697,"") ->  | I697: =IF(AND($G697<>"",$H697<>""),$G697*$H697/9,"") -> 
H761: =IF(AND($E761<>"",$F761<>""),$F761-$E761,"") ->  | I761: =IF(AND($G761<>"",$H761<>""),$G761*$H761/9,"") -> 
H825: =IF(AND($E825<>"",$F825<>""),$F825-$E825,"") ->  | I825: =IF(AND($G825<>"",$H825<>""),$G825*$H825/9,"") -> 
H889: =IF(AND($E889<>"",$F889<>""),$F889-$E889,"") ->  | I889: =IF(AND($G889<>"",$H889<>""),$G889*$H889/9,"") -> 
H953: =IF(AND($E953<>"",$F953<>""),$F953-$E953,"") ->  | I953: =IF(AND($G953<>"",$H953<>""),$G953*$H953/9,"") -> 
H1017: =IF(AND($E1017<>"",$F1017<>""),$F1017-$E1017,"") ->  | I1017: =IF(AND($G1017<>"",$H1017<>""),$G1017*$H1017/9,"") -> 
H1081: =IF(AND($E1081<>"",$F1081<>""),$F1081-$E1081,"") ->  | I1081: =IF(AND($G1081<>"",$H1081<>""),$G1081*$H1081/9,"") -> 
H1145: =IF(AND($E1145<>"",$F1145<>""),$F1145-$E1145,"") ->  | I1145: =IF(AND($G1145<>"",$H1145<>""),$G1145*$H1145/9,"") -> 
H1209: =IF(AND($E1209<>"",$F1209<>""),$F1209-$E1209,"") ->  | I1209: =IF(AND($G1209<>"",$H1209<>""),$G1209*$H1209/9,"") -> 
H1273: =IF(AND($E1273<>"",$F1273<>""),$F1273-$E1273,"") ->  | I1273: =IF(AND($G1273<>"",$H1273<>""),$G1273*$H1273/9,"") -> 
H1337: =IF(AND($E1337<>"",$F1337<>""),$F1337-$E1337,"") ->  | I1337: =IF(AND($G1337<>"",$H1337<>""),$G1337*$H1337/9,"") -> 
H1401: =IF(AND($E1401<>"",$F1401<>""),$F1401-$E1401,"") ->  | I1401: =IF(AND($G1401<>"",$H1401<>""),$G1401*$H1401/9,"") -> 
H1465: =IF(AND($E1465<>"",$F1465<>""),$F1465-$E1465,"") ->  | I1465: =IF(AND($G1465<>"",$H1465<>""),$G1465*$H1465/9,"") -> 
H1529: =IF(AND($E1529<>"",$F1529<>""),$F1529-$E1529,"") ->  | I1529: =IF(AND($G1529<>"",$H1529<>""),$G1529*$H1529/9,"") -> 
H1593: =IF(AND($E1593<>"",$F1593<>""),$F1593-$E1593,"") ->  | I1593: =IF(AND($G1593<>"",$H1593<>""),$G1593*$H1593/9,"") -> 
H1657: =IF(AND($E1657<>"",$F1657<>""),$F1657-$E1657,"") ->  | I1657: =IF(AND($G1657<>"",$H1657<>""),$G1657*$H1657/9,"") -> 
H1721: =IF(AND($E1721<>"",$F1721<>""),$F1721-$E1721,"") ->  | I1721: =IF(AND($G1721<>"",$H1721<>""),$G1721*$H1721/9,"") -> 
H1785: =IF(AND($E1785<>"",$F1785<>""),$F1785-$E1785,"") ->  | I1785: =IF(AND($G1785<>"",$H1785<>""),$G1785*$H1785/9,"") -> 
H1849: =IF(AND($E1849<>"",$F1849<>""),$F1849-$E1849,"") ->  | I1849: =IF(AND($G1849<>"",$H1849<>""),$G1849*$H1849/9,"") -> 
H1913: =IF(AND($E1913<>"",$F1913<>""),$F1913-$E1913,"") ->  | I1913: =IF(AND($G1913<>"",$H1913<>""),$G1913*$H1913/9,"") -> 
H1977: =IF(AND($E1977<>"",$F1977<>""),$F1977-$E1977,"") ->  | I1977: =IF(AND($G1977<>"",$H1977<>""),$G1977*$H1977/9,"") -> 

Sheet DE100_26
A1: TabTitle | B1: =C15 -> INCIDENTAL ITEMS
A2: Number of Tab Columns | B2: 7
A3: DE Starter Row Number | B3: 22
A4: TabSheet Starter Row Number | B4: 10
A5: TabSheet Header Row Count | B5: 9
A6: Top Header Cell | B6: K15
A7: Bottom Header Cell | B7: Q23
A8: DESheet Row Count | B8: 0
A9: Fixed Empty Rows | B9: 2
A10: Usable Empty Rows | B10: 0
A11: Total Rows Placed | B11: 2 | C11: xlRight(1) | D11: xlLeft(1) | E11: xlLeft(1) | F11: xlRight(1) | G11: xlCenter | H11: xlLeft(1) | I11: xlLeft(1) | K11: =C11 -> xlRight(1) | L11: xlLeft(1) | M11: xlLeft(1) | N11: xlRight(1) | O11: xlCenter | P11: xlLeft(1) | Q11: xlLeft(1)
A12: Total Rows Needed | B12: =SUM(B8:B10) -> 2 | C12: General | D12: General | E12: General | F12: General | G12: General | H12: General | I12: General | K12: General | L12: General | M12: General | N12: General | O12: General | P12: General | Q12: General
A13: Last Tab DE Starter Row | B13: 22 | C13: =CELL("width",C13) -> 6 | D13: 49 | E13: 10 | F13: 10 | G13: 18 | H13: 49 | I13: 12 | K13: =CELL("width",K13) -> 0 | L13: 0 | M13: 0 | N13: 0 | O13: 0 | P13: 0 | Q13: 0
A14: Last Tab Tabsheet Starter Row | B14: 10 | C14: A | D14: B | E14: C | F14: D | G14: E | H14: F | I14: G | K14: =LOWER(C14) -> a | L14: b | M14: c | N14: d | O14: e | P14: f | Q14: g
A15: Last Copy Starter Row | B15: 1 | C15: INCIDENTAL ITEMS | K15: 100-26
A16: Tab Loop Number | B16: 2 | K16: =B17 -> 2013-10-15
A17: Revision Date | B17: 2013-10-15 | C17: Special or unique items where method of measurement / basis of payment is not indicated in the specifications or other contract documents. | K17: =C15 -> INCIDENTAL ITEMS
A18: Tabulation Width | B18: 2
A19: Horizontal Grid Lines | B19: Yes | C19: ="This Data Entry Sheet fills Tab "&K15&" effective "&TEXT(B17,"mm-dd-yy") -> This Data Entry Sheet fills Tab 100-26 effective 10-15-13 | K19: =C17 -> Special or unique items where method of measurement / basis of payment is not indicated in the specifications or other contract documents.
C20: No. | D20: Incidental Item | E20: Unit | F20: Quantity | G20: Incidental To | I20: Remarks
G21: Item Code | H21: Item
K22: =C20 -> No. | L22: =D20 -> Incidental Item | M22: =E20 -> Unit | N22: =F20 -> Quantity | O22: =G20 -> Incidental To | Q22: =I20 -> Remarks
O23: =G21 -> Item Code | P23: =H21 -> Item

Sheet DE100_27
A1: TabTitle | B1: =C15 -> PAVEMENT SMOOTHNESS + PCC TEXTURE
A2: Number of Tab Columns | B2: 7
A3: DE Starter Row Number | B3: 21
A4: TabSheet Starter Row Number | B4: 8
A5: TabSheet Header Row Count | B5: 7
A6: Top Header Cell | B6: K15
A7: Bottom Header Cell | B7: Q21
A8: DESheet Row Count | B8: 0
A9: Fixed Empty Rows | B9: 2
A10: Usable Empty Rows | B10: 0
A11: Total Rows Placed | B11: 2 | C11: xlLeft(1) | D11: xlRight(1) | E11: xlRight(1) | F11: xlLeft(1) | G11: xlLeft(1) | H11: xlLeft(1) | I11: xlLeft(1) | K11: =C11 -> xlLeft(1) | L11: xlRight(1) | M11: xlRight(1) | N11: xlLeft(1) | O11: xlLeft(1) | P11: xlLeft(1) | Q11: xlLeft(1)
A12: Total Rows Needed | B12: =SUM(B8:B10) -> 2 | C12: General | D12: #+00.00 | E12: #+00.00 | F12: General | G12: General | H12: General | I12: General | K12: General | L12: #+00.00 | M12: #+00.00 | N12: General | O12: General | P12: General | Q12: General
A13: Last Tab DE Starter Row | B13: 21 | C13: =CELL("width",C13) -> 30 | D13: 16 | E13: 16 | F13: 14 | G13: 14 | H13: 14 | I13: 50 | K13: =CELL("width",K13) -> 0 | L13: 0 | M13: 0 | N13: 0 | O13: 0 | P13: 0 | Q13: 0
A14: Last Tab Tabsheet Starter Row | B14: 8 | C14: A | D14: B | E14: C | F14: D | G14: E | H14: F | I14: G | K14: =LOWER(C14) -> a | L14: b | M14: c | N14: d | O14: e | P14: f | Q14: g
A15: Last Copy Starter Row | B15: 1 | C15: PAVEMENT SMOOTHNESS + PCC TEXTURE | K15: 100-27
A16: Tab Loop Number | B16: 2 | K16: =B17 -> 2009-10-20
A17: Revision Date | B17: 2009-10-20 | C17: ="This Data Entry Sheet fills Tab "&K15&" effective "&TEXT(B17,"mm-dd-yy") -> This Data Entry Sheet fills Tab 100-27 effective 10-20-09 | K17: =C15 -> PAVEMENT SMOOTHNESS + PCC TEXTURE
A18: Tabulation Width | B18: 2 | C18: Road Identification | D18: Begin Station | E18: End Station | F18: Proposed Posted Speed | I18: Remarks
A19: Horizontal Grid Lines | B19: Yes | K19: =C18 -> Road Identification | L19: =D18 -> Begin Station | M19: =E18 -> End Station | N19: =F18 -> Proposed Posted Speed | Q19: =I18 -> Remarks
F20: 35 or less | G20: 40 - 45 | H20: over 45
N21: =F20 -> 35 or less | O21: =G20 -> 40 - 45 | P21: =H20 -> over 45

Sheet DE100_28
A1: TabTitle | B1: =C16 -> LONGITUDINAL GROOVING
A2: Number of Tab Columns | B2: 3 | O2: Possible Contract Items
A3: DE Starter Row Number | B3: 22 | N3: 2412-0000100 | O3: LONGITUDINAL GROOVING IN CONCRETE | P3: =G15 -> 0
A4: TabSheet Starter Row Number | B4: 8
A5: TabSheet Header Row Count | B5: 7
A6: Top Header Cell | B6: J15
A7: Bottom Header Cell | B7: L21
A8: DESheet Row Count | B8: 0
A9: Fixed Empty Rows | B9: 2
A10: Usable Empty Rows | B10: 0
A11: Total Rows Placed | B11: 2 | C11: xlRight(1) | G11: xlRight(1) | H11: xlLeft(1) | J11: =C11 -> xlRight(1) | K11: =G11 -> xlRight(1) | L11: =H11 -> xlLeft(1)
A12: Total Rows Needed | B12: =SUM(B8:B10) -> 2 | C12: #+00.00 | G12: 0.0 | H12: General | J12: =C12 -> #+00.00 | K12: =G12 -> 0.0 | L12: =H12 -> General
A13: Last Tab DE Starter Row | B13: 22 | C13: =CELL("width",C13) -> 16 | G13: =CELL("width",G13) -> 12 | H13: =CELL("width",H13) -> 47 | J13: =CELL("width",J13) -> 0 | K13: =CELL("width",K13) -> 0 | L13: =CELL("width",L13) -> 0
A14: Last Tab Tabsheet Starter Row | B14: 8 | C14: A | G14: B | H14: C | J14: =LOWER(C14) -> a | K14: =LOWER(G14) -> b | L14: =LOWER(H14) -> c
A15: Last Copy Starter Row | B15: 1 | F15: Totals: | G15: =SUBTOTAL(9,G22:G2000) -> 0 | J15: 100-28
A16: Tab Loop Number | B16: 2 | C16: LONGITUDINAL GROOVING | J16: =B17 -> 2010-10-19
A17: Revision Date | B17: 2010-10-19 | J17: =C16 -> LONGITUDINAL GROOVING
A18: Tabulation Width | B18: 1 | C18: ="This Data Entry Sheet fills Tab "&J15&" effective "&TEXT(B17,"mm-dd-yy") -> This Data Entry Sheet fills Tab 100-28 effective 10-19-10
A19: Horizontal Grid Lines | B19: Yes | C19: Location | D19: Length | E19: Width | F19: Area | G19: Total | H19: Remarks | J19: =C19 -> Location | K19: =G19 -> Total | L19: =H19 -> Remarks
D21: FT | E21: FT | F21: SF | G21: SY | K21: =G21 -> SY
F22: =IF(D22<>"",D22*E22,"") ->  | G22: =IF(F22<>"",F22/9,"") -> 
F86: =IF(D86<>"",D86*E86,"") ->  | G86: =IF(F86<>"",F86/9,"") -> 
F150: =IF(D150<>"",D150*E150,"") ->  | G150: =IF(F150<>"",F150/9,"") -> 
F214: =IF(D214<>"",D214*E214,"") ->  | G214: =IF(F214<>"",F214/9,"") -> 
F278: =IF(D278<>"",D278*E278,"") ->  | G278: =IF(F278<>"",F278/9,"") -> 
F342: =IF(D342<>"",D342*E342,"") ->  | G342: =IF(F342<>"",F342/9,"") -> 
F406: =IF(D406<>"",D406*E406,"") ->  | G406: =IF(F406<>"",F406/9,"") -> 
F470: =IF(D470<>"",D470*E470,"") ->  | G470: =IF(F470<>"",F470/9,"") -> 
F534: =IF(D534<>"",D534*E534,"") ->  | G534: =IF(F534<>"",F534/9,"") -> 
F598: =IF(D598<>"",D598*E598,"") ->  | G598: =IF(F598<>"",F598/9,"") -> 
F662: =IF(D662<>"",D662*E662,"") ->  | G662: =IF(F662<>"",F662/9,"") -> 
F726: =IF(D726<>"",D726*E726,"") ->  | G726: =IF(F726<>"",F726/9,"") -> 
F790: =IF(D790<>"",D790*E790,"") ->  | G790: =IF(F790<>"",F790/9,"") -> 
F854: =IF(D854<>"",D854*E854,"") ->  | G854: =IF(F854<>"",F854/9,"") -> 
F918: =IF(D918<>"",D918*E918,"") ->  | G918: =IF(F918<>"",F918/9,"") -> 
F982: =IF(D982<>"",D982*E982,"") ->  | G982: =IF(F982<>"",F982/9,"") -> 
F1046: =IF(D1046<>"",D1046*E1046,"") ->  | G1046: =IF(F1046<>"",F1046/9,"") -> 
F1110: =IF(D1110<>"",D1110*E1110,"") ->  | G1110: =IF(F1110<>"",F1110/9,"") -> 
F1174: =IF(D1174<>"",D1174*E1174,"") ->  | G1174: =IF(F1174<>"",F1174/9,"") -> 
F1238: =IF(D1238<>"",D1238*E1238,"") ->  | G1238: =IF(F1238<>"",F1238/9,"") -> 
F1302: =IF(D1302<>"",D1302*E1302,"") ->  | G1302: =IF(F1302<>"",F1302/9,"") -> 
F1366: =IF(D1366<>"",D1366*E1366,"") ->  | G1366: =IF(F1366<>"",F1366/9,"") -> 
F1430: =IF(D1430<>"",D1430*E1430,"") ->  | G1430: =IF(F1430<>"",F1430/9,"") -> 
F1494: =IF(D1494<>"",D1494*E1494,"") ->  | G1494: =IF(F1494<>"",F1494/9,"") -> 
F1558: =IF(D1558<>"",D1558*E1558,"") ->  | G1558: =IF(F1558<>"",F1558/9,"") -> 
F1622: =IF(D1622<>"",D1622*E1622,"") ->  | G1622: =IF(F1622<>"",F1622/9,"") -> 
F1686: =IF(D1686<>"",D1686*E1686,"") ->  | G1686: =IF(F1686<>"",F1686/9,"") -> 
F1750: =IF(D1750<>"",D1750*E1750,"") ->  | G1750: =IF(F1750<>"",F1750/9,"") -> 
F1814: =IF(D1814<>"",D1814*E1814,"") ->  | G1814: =IF(F1814<>"",F1814/9,"") -> 
F1878: =IF(D1878<>"",D1878*E1878,"") ->  | G1878: =IF(F1878<>"",F1878/9,"") -> 
F1942: =IF(D1942<>"",D1942*E1942,"") ->  | G1942: =IF(F1942<>"",F1942/9,"") -> 

Sheet DE102_3
A1: TabTitle | B1: =C16 -> ACCESS POINTS AND SAFETY RAMPS
A2: Number of Tab Columns | B2: 19
A3: DE Starter Row Number | B3: 33
A4: TabSheet Starter Row Number | B4: 19
A5: TabSheet Header Row Count | B5: 18
A6: Top Header Cell | B6: Y15
A7: Bottom Header Cell | B7: AQ32
A8: DESheet Row Count | B8: 0
A9: Fixed Empty Rows | B9: 2
A10: Usable Empty Rows | B10: 0
A11: Total Rows Placed | B11: 2 | C11: xlRight(1) | D11: xlLeft(1) | E11: xlLeft(1) | F11: xlLeft(1) | G11: xlRight(1) | H11: xlRight(1) | I11: xlRight(1) | J11: xlRight(1) | K11: xlRight(1) | L11: xlRight(1) | M11: xlRight(1) | N11: xlRight(1) | O11: xlRight(1) | P11: xlRight(1) | Q11: xlRight(1) | S11: xlRight(1) | U11: xlRight(1) | V11: xlRight(1) | W11: xlLeft(1) | Y11: =C11 -> xlRight(1) | Z11: xlLeft(1) | AA11: xlLeft(1) | AB11: xlLeft(1) | AC11: xlRight(1) | AD11: xlRight(1) | AE11: xlRight(1) | AF11: xlRight(1) | AG11: xlRight(1) | AH11: xlRight(1) | AI11: xlRight(1) | AJ11: xlRight(1) | AK11: xlRight(1) | AL11: xlRight(1) | AM11: xlRight(1) | AN11: =S11 -> xlRight(1) | AO11: =U11 -> xlRight(1) | AP11: xlRight(1) | AQ11: xlLeft(1)
A12: Total Rows Needed | B12: =SUM(B8:B10) -> 2 | C12: #+00.00 | D12: General | E12: General | F12: General | G12: 0.0 | H12: 0.0 | I12: 0.0 | J12: 0.0 | K12: 0.0 | L12: 0.0 | M12: 0.0 | N12: 0.0 | O12: 0.0 | P12: 0.0 | Q12: 0 | S12: 0.0 | U12: 0.0 | V12: 0.000 | W12: General | Y12: #+00.00 | Z12: General | AA12: General | AB12: General | AC12: 0.0 | AD12: 0.0 | AE12: 0.0 | AF12: 0.0 | AG12: 0.0 | AH12: 0.0 | AI12: 0.0 | AJ12: 0.0 | AK12: 0.0 | AL12: 0.0 | AM12: 0 | AN12: =S12 -> 0.0 | AO12: 0.0 | AP12: 0.000 | AQ12: General
A13: Last Tab DE Starter Row | B13: 33 | C13: =CELL("width",C13) -> 16 | D13: 6 | E13: 20 | F13: 12 | G13: 12 | H13: 12 | I13: 8 | J13: 8 | K13: 8 | L13: 8 | M13: 10 | N13: 10 | O13: 10 | P13: 10 | Q13: 10 | S13: =CELL("width",S13) -> 10 | U13: =CELL("width",U13) -> 10 | V13: =CELL("width",V13) -> 12 | W13: =CELL("width",W13) -> 34 | Y13: =CELL("width",Y13) -> 0 | Z13: 0 | AA13: 0 | AB13: 0 | AC13: 0 | AD13: 0 | AE13: 0 | AF13: 0 | AG13: 0 | AH13: 0 | AI13: 0 | AJ13: 0 | AK13: 0 | AL13: 0 | AM13: 0 | AN13: 0 | AO13: 0 | AP13: 0 | AQ13: 0
A14: Last Tab Tabsheet Starter Row | B14: 19 | C14: A | D14: B | E14: C | F14: D | G14: E | H14: F | I14: G | J14: H | K14: I | L14: J | M14: K | N14: L | O14: M | P14: N | Q14: O | S14: P | U14: Q | V14: R | W14: S | Y14: =LOWER(C14) -> a | Z14: b | AA14: c | AB14: d | AC14: e | AD14: f | AE14: g | AF14: h | AG14: i | AH14: j | AI14: k | AJ14: l | AK14: m | AL14: n | AM14: o | AN14: =LOWER(S14) -> p | AO14: =LOWER(U14) -> q | AP14: =LOWER(V14) -> r | AQ14: =LOWER(W14) -> s
A15: Last Copy Starter Row | B15: 1 | M15: Totals: | N15: =SUBTOTAL(9,N33:N2004) -> 0 | Q15: =SUBTOTAL(9,Q33:Q2004) -> 0 | S15: =SUBTOTAL(9,S33:S2004) -> 0 | U15: =SUBTOTAL(9,U33:U2004) -> 0 | V15: =SUBTOTAL(9,V33:V2004) -> 0 | Y15: 102-3 | AS15: Pipe Type | AT15: =E26 -> Type
A16: Tab Loop Number | B16: 2 | C16: ACCESS POINTS AND SAFETY RAMPS | Y16: =B17 -> 2013-10-15 | AS16: Reinforced Concrete Pipe. | AT16: A
A17: Revision Date | B17: 2013-10-15 | Y17: =C16 -> ACCESS POINTS AND SAFETY RAMPS | AS17: Corrugated Metal Pipe. | AT17: B
A18: Tabulation Width | B18: 3 | AT18: C
A19: Horizontal Grid Lines | B19: Yes | C19: Refer to Cross-Sections | AT19: Safety Ramp
C20: Length of unclassified pipe calculated is based on using | H20: Reinforced Concrete Pipe. | Y20: =C19 -> Refer to Cross-Sections | AT20: Predetermined
C21: Refer to MI-210 | Y21: =C20&H20 -> Length of unclassified pipe calculated is based on using Reinforced Concrete Pipe.
C22: Refer to EW-501. | Y22: =C21 -> Refer to MI-210
C23: Refer to EW-501 or EW-502. | Y23: =C22 -> Refer to EW-501.
C24: *Predetermined for access point not constructed with this project. | Y24: =C23 -> Refer to EW-501 or EW-502.
C25: ="This Data Entry Sheet fills Tab "&Y15&" effective "&TEXT(B17,"mm-dd-yy") -> This Data Entry Sheet fills Tab 102-3 effective 10-15-13 | Y25: =C24 -> *Predetermined for access point not constructed with this project.
C26: Location | E26: Type | F26: Length of Opening | L26: Pipe Culvert | Q26: Aprons | R26: Driveway Surface Area | V26: Driveway Surfacing Material | W26: Remarks | Y26: =C26 -> Location | AA26: =E26 -> Type | AB26: =F26 -> Length of Opening | AE26: =I26 ->  | AF26: =J26 ->  | AG26: =K26 ->  | AH26: =L26 -> Pipe Culvert | AM26: Aprons | AN26: =R26 -> Driveway Surface Area | AP26: =V26 -> Driveway Surfacing Material | AQ26: =W26 -> Remarks
C28: Station | D28: Side | E28: A, B, C, Safety Ramp, or Predetermined* | F28: Case | G28: 1½" Dropped Curb | H28: 3" Dropped Curb | R28: HMA Sq. Ft. from Microstation | S28: HMA | T28: PCC Sq. Ft. from Microstation | U28: PCC | Y28: =C28 -> Station | Z28: Side | AA28: A, B, C, Safety Ramp, or Predetermined* | AB28: Case | AC28: 1½" Dropped Curb | AD28: 3" Dropped Curb
M29: Size | N29: Pipe Length | O29: Lt. | P29: Rt. | AH29: =L28 -> 0 | AI29: =M29 -> Size | AJ29: =N29 -> Pipe Length | AK29: =O29 -> Lt. | AL29: =P29 -> Rt. | AN29: =S28 -> HMA | AO29: =U28 -> PCC
F32: 1 or 2 | G32: LF | H32: LF | I32: FT | J32: FT | K32: FT | L32: FT | M32: IN | N32: LF | O32: LF | P32: LF | Q32: No. | R32: SF | S32: SY | T32: SF | U32: SY | V32: TON | AB32: =F32 -> 1 or 2 | AC32: LF | AD32: LF | AE32: FT | AF32: FT | AG32: FT | AH32: FT | AI32: IN | AJ32: LF | AK32: LF | AL32: LF | AM32: No. | AN32: =S32 -> SY | AO32: =U32 -> SY | AP32: =V32 -> TON
Q33: =IF(M33<>"",2,"") ->  | S33: =IF(R33<>"",R33/9,"") ->  | U33: =IF(T33<>"",T33/9,"") -> 
Q97: =IF(M97<>"",2,"") ->  | S97: =IF(R97<>"",R97/9,"") ->  | U97: =IF(T97<>"",T97/9,"") -> 
Q161: =IF(M161<>"",2,"") ->  | S161: =IF(R161<>"",R161/9,"") ->  | U161: =IF(T161<>"",T161/9,"") -> 
Q225: =IF(M225<>"",2,"") ->  | S225: =IF(R225<>"",R225/9,"") ->  | U225: =IF(T225<>"",T225/9,"") -> 
Q289: =IF(M289<>"",2,"") ->  | S289: =IF(R289<>"",R289/9,"") ->  | U289: =IF(T289<>"",T289/9,"") -> 
Q353: =IF(M353<>"",2,"") ->  | S353: =IF(R353<>"",R353/9,"") ->  | U353: =IF(T353<>"",T353/9,"") -> 
Q417: =IF(M417<>"",2,"") ->  | S417: =IF(R417<>"",R417/9,"") ->  | U417: =IF(T417<>"",T417/9,"") -> 
Q481: =IF(M481<>"",2,"") ->  | S481: =IF(R481<>"",R481/9,"") ->  | U481: =IF(T481<>"",T481/9,"") -> 
Q545: =IF(M545<>"",2,"") ->  | S545: =IF(R545<>"",R545/9,"") ->  | U545: =IF(T545<>"",T545/9,"") -> 
Q609: =IF(M609<>"",2,"") ->  | S609: =IF(R609<>"",R609/9,"") ->  | U609: =IF(T609<>"",T609/9,"") -> 
Q673: =IF(M673<>"",2,"") ->  | S673: =IF(R673<>"",R673/9,"") ->  | U673: =IF(T673<>"",T673/9,"") -> 
Q737: =IF(M737<>"",2,"") ->  | S737: =IF(R737<>"",R737/9,"") ->  | U737: =IF(T737<>"",T737/9,"") -> 
Q801: =IF(M801<>"",2,"") ->  | S801: =IF(R801<>"",R801/9,"") ->  | U801: =IF(T801<>"",T801/9,"") -> 
Q865: =IF(M865<>"",2,"") ->  | S865: =IF(R865<>"",R865/9,"") ->  | U865: =IF(T865<>"",T865/9,"") -> 
Q929: =IF(M929<>"",2,"") ->  | S929: =IF(R929<>"",R929/9,"") ->  | U929: =IF(T929<>"",T929/9,"") -> 
Q993: =IF(M993<>"",2,"") ->  | S993: =IF(R993<>"",R993/9,"") ->  | U993: =IF(T993<>"",T993/9,"") -> 
Q1057: =IF(M1057<>"",2,"") ->  | S1057: =IF(R1057<>"",R1057/9,"") ->  | U1057: =IF(T1057<>"",T1057/9,"") -> 
Q1121: =IF(M1121<>"",2,"") ->  | S1121: =IF(R1121<>"",R1121/9,"") ->  | U1121: =IF(T1121<>"",T1121/9,"") -> 
Q1185: =IF(M1185<>"",2,"") ->  | S1185: =IF(R1185<>"",R1185/9,"") ->  | U1185: =IF(T1185<>"",T1185/9,"") -> 
Q1249: =IF(M1249<>"",2,"") ->  | S1249: =IF(R1249<>"",R1249/9,"") ->  | U1249: =IF(T1249<>"",T1249/9,"") -> 
Q1313: =IF(M1313<>"",2,"") ->  | S1313: =IF(R1313<>"",R1313/9,"") ->  | U1313: =IF(T1313<>"",T1313/9,"") -> 
Q1377: =IF(M1377<>"",2,"") ->  | S1377: =IF(R1377<>"",R1377/9,"") ->  | U1377: =IF(T1377<>"",T1377/9,"") -> 
Q1441: =IF(M1441<>"",2,"") ->  | S1441: =IF(R1441<>"",R1441/9,"") ->  | U1441: =IF(T1441<>"",T1441/9,"") -> 
Q1505: =IF(M1505<>"",2,"") ->  | S1505: =IF(R1505<>"",R1505/9,"") ->  | U1505: =IF(T1505<>"",T1505/9,"") -> 
Q1569: =IF(M1569<>"",2,"") ->  | S1569: =IF(R1569<>"",R1569/9,"") ->  | U1569: =IF(T1569<>"",T1569/9,"") -> 
Q1633: =IF(M1633<>"",2,"") ->  | S1633: =IF(R1633<>"",R1633/9,"") ->  | U1633: =IF(T1633<>"",T1633/9,"") -> 
Q1697: =IF(M1697<>"",2,"") ->  | S1697: =IF(R1697<>"",R1697/9,"") ->  | U1697: =IF(T1697<>"",T1697/9,"") -> 
Q1761: =IF(M1761<>"",2,"") ->  | S1761: =IF(R1761<>"",R1761/9,"") ->  | U1761: =IF(T1761<>"",T1761/9,"") -> 
Q1825: =IF(M1825<>"",2,"") ->  | S1825: =IF(R1825<>"",R1825/9,"") ->  | U1825: =IF(T1825<>"",T1825/9,"") -> 
Q1889: =IF(M1889<>"",2,"") ->  | S1889: =IF(R1889<>"",R1889/9,"") ->  | U1889: =IF(T1889<>"",T1889/9,"") -> 
Q1953: =IF(M1953<>"",2,"") ->  | S1953: =IF(R1953<>"",R1953/9,"") ->  | U1953: =IF(T1953<>"",T1953/9,"") -> 

Sheet DE102_5
A1: TabTitle | B1: =C15 -> EXISTING PAVEMENT
A2: Number of Tab Columns | B2: 22
A3: DE Starter Row Number | B3: 23
A4: TabSheet Starter Row Number | B4: 10
A5: TabSheet Header Row Count | B5: 9
A6: Top Header Cell | B6: Z15
A7: Bottom Header Cell | B7: AU23
A8: DESheet Row Count | B8: 0
A9: Fixed Empty Rows | B9: 2
A10: Usable Empty Rows | B10: 0
A11: Total Rows Placed | B11: 2 | C11: xlRight(1) | D11: xlRight(1) | E11: xlRight(1) | F11: xlRight(1) | G11: xlRight(1) | H11: xlRight(1) | I11: xlRight(1) | J11: xlRight(1) | K11: xlLeft(1) | L11: xlLeft(1) | M11: xlRight(1) | N11: xlLeft(1) | O11: xlRight(1) | P11: xlLeft(1) | Q11: xlRight(1) | R11: xlLeft(1) | S11: xlRight(1) | T11: xlLeft(1) | U11: xlLeft(1) | V11: xlRight(1) | W11: xlRight(1) | X11: xlLeft(1) | Z11: =C11 -> xlRight(1) | AA11: xlRight(1) | AB11: xlRight(1) | AC11: xlRight(1) | AD11: xlRight(1) | AE11: xlRight(1) | AF11: xlRight(1) | AG11: xlRight(1) | AH11: xlLeft(1) | AI11: xlLeft(1) | AJ11: xlRight(1) | AK11: xlLeft(1) | AL11: xlRight(1) | AM11: xlLeft(1) | AN11: xlRight(1) | AO11: xlLeft(1) | AP11: =S11 -> xlRight(1) | AQ11: xlLeft(1) | AR11: xlLeft(1) | AS11: xlRight(1) | AT11: xlRight(1) | AU11: xlLeft(1)
A12: Total Rows Needed | B12: =SUM(B8:B10) -> 2 | C12: General | D12: General | E12: General | F12: General | G12: General | H12: General | I12: General | J12: General | K12: General | L12: General | M12: General | N12: General | O12: General | P12: General | Q12: General | R12: General | S12: General | T12: General | U12: General | V12: General | W12: General | X12: General | Z12: General | AA12: General | AB12: General | AC12: General | AD12: General | AE12: General | AF12: General | AG12: General | AH12: General | AI12: General | AJ12: General | AK12: General | AL12: General | AM12: General | AN12: General | AO12: General | AP12: General | AQ12: General | AR12: General | AS12: General | AT12: General | AU12: General
A13: Last Tab DE Starter Row | B13: 23 | C13: =CELL("width",C13) -> 8 | D13: 10 | E13: 10 | F13: 10 | G13: 11 | H13: 11 | I13: 10 | J13: 9 | K13: 30 | L13: 10 | M13: 10 | N13: 10 | O13: 10 | P13: 10 | Q13: 10 | R13: 10 | S13: 10 | T13: 35 | U13: 12 | V13: 12 | W13: 16 | X13: 44 | Z13: =CELL("width",Z13) -> 0 | AA13: 0 | AB13: 0 | AC13: 0 | AD13: 0 | AE13: 0 | AF13: 0 | AG13: 0 | AH13: 0 | AI13: 0 | AJ13: 0 | AK13: 0 | AL13: 0 | AM13: 0 | AN13: 0 | AO13: 0 | AP13: 0 | AQ13: 0 | AR13: 0 | AS13: 0 | AT13: 0 | AU13: 0
A14: Last Tab Tabsheet Starter Row | B14: 10 | C14: A | D14: B | E14: C | F14: D | G14: E | H14: F | I14: G | J14: H | K14: I | L14: J | M14: K | N14: L | O14: M | P14: N | Q14: O | R14: P | S14: Q | T14: R | U14: S | V14: T | W14: U | X14: V | Z14: =LOWER(C14) -> a | AA14: b | AB14: c | AC14: d | AD14: e | AE14: f | AF14: g | AG14: h | AH14: =LOWER(J14) -> h | AI14: i | AJ14: j | AK14: k | AL14: l | AM14: m | AN14: n | AO14: o | AP14: p | AQ14: q | AR14: r | AS14: s | AT14: t | AU14: u | AV14: =LOWER(Y14) -> 
A15: Last Copy Starter Row | B15: 1 | C15: EXISTING PAVEMENT | Z15: 102-5
A16: Tab Loop Number | B16: 2 | Z16: =B17 -> 2012-10-16
A17: Revision Date | B17: 2012-10-16 | C17: ="This Data Entry Sheet fills Tab "&Z15&" effective "&TEXT(B17,"mm-dd-yy") -> This Data Entry Sheet fills Tab 102-5 effective 10-16-12 | Z17: =C15 -> EXISTING PAVEMENT
A18: Tabulation Width | B18: 4 | C18: No. | D18: Location | I18: Year | J18: Type | K18: Project Number | L18: Surface | N18: Base | P18: Subbase | R18: Removal | T18: Coarse Aggregate | W18: Reinforcement | X18: Remarks
A19: Horizontal Grid Lines | B19: Yes | Z19: =C18 -> No. | AA19: =D18 -> Location | AF19: =I18 -> Year | AG19: =J18 -> Type | AH19: =K18 -> Project Number | AI19: =L18 -> Surface | AK19: =N18 -> Base | AM19: =P18 -> Subbase | AO19: =R18 -> Removal | AQ19: =T18 -> Coarse Aggregate | AT19: =W18 -> Reinforcement | AU19: =X18 -> Remarks
D20: County | E20: Route | F20: Dir. of Travel | G20: Begin Milepost | H20: End Milepost | L20: Type | M20: Depth | N20: Type | O20: Depth | P20: Type | Q20: Depth | R20: Type | S20: Depth | T20: Source | U20: Type | V20: Durability Class | W20: Type
AA21: =D20 -> County | AB21: =E20 -> Route | AC21: =F20 -> Dir. of Travel | AD21: =G20 -> Begin Milepost | AE21: =H20 -> End Milepost | AI21: =L20 -> Type | AJ21: Depth | AK21: Type | AL21: Depth | AM21: Type | AN21: Depth | AO21: Type | AP21: Depth | AQ21: Source | AR21: Type | AS21: Durability Class | AT21: =W20 -> Type
M22: IN | O22: IN | Q22: IN | S22: IN
AJ23: =M22 -> IN | AL23: =O22 -> IN | AN23: =Q22 -> IN | AP23: =S22 -> IN

Sheet DE103_4
A1: TabTitle | B1: =C15 -> TABULATION OF SPREADING TOPSOIL
A2: Number of Tab Columns | B2: 13
A3: DE Starter Row Number | B3: 35
A4: TabSheet Starter Row Number | B4: 21
A5: TabSheet Header Row Count | B5: 20
A6: Top Header Cell | B6: U15
A7: Bottom Header Cell | B7: AG34
A8: DESheet Row Count | B8: 0
A9: Fixed Empty Rows | B9: 2
A10: Usable Empty Rows | B10: 0
A11: Total Rows Placed | B11: 2 | C11: xlRight(1) | H11: xlRight(1) | I11: xlRight(1) | J11: xlRight(1) | K11: xlCenter | L11: xlCenter | M11: xlRight(1) | N11: xlRight(1) | O11: xlCenter | P11: xlRight(1) | Q11: xlRight(1) | R11: xlRight(1) | S11: xlLeft(1) | U11: =C11 -> xlRight(1) | V11: =H11 -> xlRight(1) | W11: xlRight(1) | X11: xlRight(1) | Y11: xlCenter | Z11: xlCenter | AA11: xlRight(1) | AB11: xlRight(1) | AC11: xlCenter | AD11: =P11 -> xlRight(1) | AE11: xlRight(1) | AF11: xlRight(1) | AG11: xlLeft(1)
A12: Total Rows Needed | B12: =SUM(B8:B10) -> 2 | C12: General | H12: 0.0 | I12: #+00.00 | J12: #+00.00 | K12: General | L12: General | M12: 0.0 | N12: General | O12: General | P12: 0.0 | Q12: #+00.00 | R12: #+00.00 | S12: General | U12: =C12 -> General | V12: 0.0 | W12: #+00.00 | X12: #+00.00 | Y12: General | Z12: General | AA12: 0.0 | AB12: General | AC12: General | AD12: 0.0 | AE12: #+00.00 | AF12: #+00.00 | AG12: General
A13: Last Tab DE Starter Row | B13: 35 | C13: =CELL("width",C13) -> 7 | H13: =CELL("width",H13) -> 13 | I13: 16 | J13: 16 | K13: 10 | L13: 10 | M13: 10 | N13: 52 | O13: 3 | P13: 11 | Q13: 16 | R13: 16 | S13: 52 | U13: =CELL("width",U13) -> 0 | V13: 0 | W13: 0 | X13: 0 | Y13: 0 | Z13: 0 | AA13: 0 | AB13: 0 | AC13: 0 | AD13: 0 | AE13: 0 | AF13: 0 | AG13: 0
A14: Last Tab Tabsheet Starter Row | B14: 21 | C14: A | H14: B | I14: C | J14: D | K14: E | L14: F | M14: G | N14: H | O14: I | P14: J | Q14: K | R14: L | S14: M | U14: =LOWER(C14) -> a | V14: =LOWER(H14) -> b | W14: c | X14: d | Y14: e | Z14: f | AA14: g | AB14: h | AC14: i | AD14: j | AE14: k | AF14: l | AG14: m
A15: Last Copy Starter Row | B15: 1 | C15: TABULATION OF SPREADING TOPSOIL | U15: 103-4
A16: Tab Loop Number | B16: 2 | U16: =B17 -> 2011-04-19
A17: Revision Date | B17: 2011-04-19 | C17: ="This Data Entry Sheet fills Tab "&U15&" effective "&TEXT(B17,"mm-dd-yy") -> This Data Entry Sheet fills Tab 103-4 effective 04-19-11 | U17: =C15 -> TABULATION OF SPREADING TOPSOIL
A18: Tabulation Width | B18: 3 | Q18: Perform this work according to Section 2105. Prior to placing topsoil on any cohesive soil, scarify the area to be covered to a minimum depth of 3 inches. Appropriate adjustments have been made in the template quantities to reflect the placement of topsoil on foreslope, backslope and ditch bottom as detailed hereon.
A19: Horizontal Grid Lines | B19: Yes | AE19: =Q18 -> Perform this work according to Section 2105. Prior to placing topsoil on any cohesive soil, scarify the area to be covered to a minimum depth of 3 inches. Appropriate adjustments have been made in the template quantities to reflect the placement of topsoil on foreslope, backslope and ditch bottom as detailed hereon.
G29: Totals: | H29: =H2001 -> 0
C30: Placement Description | N30: Remarks | P30: Topsoil Excavation Available From | S30: Remarks | U30: =C30 -> Placement Description | AB30: =N30 -> Remarks | AD30: =P30 -> Topsoil Excavation Available From | AG30: =S30 -> Remarks
C31: Area | D31: Length | E31: Width | F31: Depth | G31: Volume | H31: Quantity | I31: Location | K31: Side | L31: Slope | P31: Amount Reserved | Q31: Station to Station | U31: =C31 -> Area | V31: =H31 -> Quantity | W31: =I31 -> Location | Y31: =K31 -> Side | Z31: =L31 -> Slope | AD31: =P31 -> Amount Reserved | AE31: =Q31 -> Station to Station
C34: No. | D34: FT | E34: FT | F34: FT | G34: CF | H34: CY | I34: Station to Station | K34: L. or R. | L34: B. or F. | M34: IN | P34: CY | U34: =C34 -> No. | V34: =H34 -> CY | W34: =I34 -> Station to Station | Y34: =K34 -> L. or R. | Z34: =L34 -> B. or F. | AA34: =M34 -> IN | AD34: =P34 -> CY
D35: =ABS(ABS(J35-I35)) -> 0 | G35: =D35*E35*F35 -> 0 | H35: =IF(G35<>0,G35/27,"") -> 
D36: 0 | G36: 0
D37: 0 | G37: 0
D38: 0 | G38: 0
D39: 0 | G39: 0
D40: 0 | G40: 0
D41: 0 | G41: 0
D42: 0 | G42: 0
D43: 0 | G43: 0
D44: 0 | G44: 0
D45: 0 | G45: 0
D46: 0 | G46: 0
D47: 0 | G47: 0
D48: 0 | G48: 0
D49: 0 | G49: 0
D50: 0 | G50: 0
D51: 0 | G51: 0
D52: 0 | G52: 0
D53: 0 | G53: 0
D54: 0 | G54: 0
D55: 0 | G55: 0
D56: 0 | G56: 0
D57: 0 | G57: 0
D58: 0 | G58: 0
D59: 0 | G59: 0
D60: 0 | G60: 0
D61: 0 | G61: 0
D62: 0 | G62: 0
D63: 0 | G63: 0
D64: 0 | G64: 0
D65: 0 | G65: 0
D66: 0 | G66: 0
D67: 0 | G67: 0
D68: 0 | G68: 0
D69: 0 | G69: 0
D70: 0 | G70: 0
D71: 0 | G71: 0
D72: 0 | G72: 0
D73: 0 | G73: 0
D74: 0 | G74: 0
D75: 0 | G75: 0
D76: 0 | G76: 0
D77: 0 | G77: 0
D78: 0 | G78: 0
D79: 0 | G79: 0
D80: 0 | G80: 0
D81: 0 | G81: 0
D82: 0 | G82: 0
D83: 0 | G83: 0
D84: 0 | G84: 0
D85: 0 | G85: 0
D86: 0 | G86: 0
D87: 0 | G87: 0
D88: 0 | G88: 0
D89: 0 | G89: 0
D90: 0 | G90: 0
D91: 0 | G91: 0
D92: 0 | G92: 0
D93: 0 | G93: 0
D94: 0 | G94: 0
D95: 0 | G95: 0
D96: 0 | G96: 0
D97: 0 | G97: 0
D98: 0 | G98: 0
D99: =ABS(ABS(J99-I99)) -> 0 | G99: =D99*E99*F99 -> 0 | H99: =IF(G99<>0,G99/27,"") -> 
D100: 0 | G100: 0
D101: 0 | G101: 0
D102: 0 | G102: 0
D103: 0 | G103: 0
D104: 0 | G104: 0
D105: 0 | G105: 0
D106: 0 | G106: 0
D107: 0 | G107: 0
D108: 0 | G108: 0
D109: 0 | G109: 0
D110: 0 | G110: 0
D111: 0 | G111: 0
D112: 0 | G112: 0
D113: 0 | G113: 0
D114: 0 | G114: 0
D115: 0 | G115: 0
D116: 0 | G116: 0
D117: 0 | G117: 0
D118: 0 | G118: 0
D119: 0 | G119: 0
D120: 0 | G120: 0
D121: 0 | G121: 0
D122: 0 | G122: 0
D123: 0 | G123: 0
D124: 0 | G124: 0
D125: 0 | G125: 0
D126: 0 | G126: 0
D127: 0 | G127: 0
D128: 0 | G128: 0
D129: 0 | G129: 0
D130: 0 | G130: 0
D131: 0 | G131: 0
D132: 0 | G132: 0
D133: 0 | G133: 0
D134: 0 | G134: 0
D135: 0 | G135: 0
D136: 0 | G136: 0
D137: 0 | G137: 0
D138: 0 | G138: 0
D139: 0 | G139: 0
D140: 0 | G140: 0
D141: 0 | G141: 0
D142: 0 | G142: 0
D143: 0 | G143: 0
D144: 0 | G144: 0
D145: 0 | G145: 0
D146: 0 | G146: 0
D147: 0 | G147: 0
D148: 0 | G148: 0
D149: 0 | G149: 0
D150: 0 | G150: 0
D151: 0 | G151: 0
D152: 0 | G152: 0
D153: 0 | G153: 0
D154: 0 | G154: 0
D155: 0 | G155: 0
D156: 0 | G156: 0
D157: 0 | G157: 0
D158: 0 | G158: 0
D159: 0 | G159: 0
D160: 0 | G160: 0
D161: 0 | G161: 0
D162: 0 | G162: 0
D163: =ABS(ABS(J163-I163)) -> 0 | G163: =D163*E163*F163 -> 0 | H163: =IF(G163<>0,G163/27,"") -> 
D164: 0 | G164: 0
D165: 0 | G165: 0
D166: 0 | G166: 0
D167: 0 | G167: 0
D168: 0 | G168: 0
D169: 0 | G169: 0
D170: 0 | G170: 0
D171: 0 | G171: 0
D172: 0 | G172: 0
D173: 0 | G173: 0
D174: 0 | G174: 0
D175: 0 | G175: 0
D176: 0 | G176: 0
D177: 0 | G177: 0
D178: 0 | G178: 0
D179: 0 | G179: 0
D180: 0 | G180: 0
D181: 0 | G181: 0
D182: 0 | G182: 0
D183: 0 | G183: 0
D184: 0 | G184: 0
D185: 0 | G185: 0
D186: 0 | G186: 0
D187: 0 | G187: 0
D188: 0 | G188: 0
D189: 0 | G189: 0
D190: 0 | G190: 0
D191: 0 | G191: 0
D192: 0 | G192: 0
D193: 0 | G193: 0
D194: 0 | G194: 0
D195: 0 | G195: 0
D196: 0 | G196: 0
D197: 0 | G197: 0
D198: 0 | G198: 0
D199: 0 | G199: 0
D200: 0 | G200: 0
D201: 0 | G201: 0
D202: 0 | G202: 0
D203: 0 | G203: 0
D204: 0 | G204: 0
D205: 0 | G205: 0
D206: 0 | G206: 0
D207: 0 | G207: 0
D208: 0 | G208: 0
D209: 0 | G209: 0
D210: 0 | G210: 0
D211: 0 | G211: 0
... 1790 more rows

Sheet DE104_3
A1: TabTitle | B1: =C16 -> DRAINAGE STRUCTURE BY ROAD CONTRACTOR
A2: Number of Tab Columns | B2: 41
A3: DE Starter Row Number | B3: 34
A4: TabSheet Starter Row Number | B4: 20
A5: TabSheet Header Row Count | B5: 19
A6: Top Header Cell | B6: AS15
A7: Bottom Header Cell | B7: CG33
A8: DESheet Row Count | B8: 0
A9: Fixed Empty Rows | B9: 2
A10: Usable Empty Rows | B10: 0
A11: Total Rows Placed | B11: 2 | C11: xlRight | D11: xlRight | E11: xlRight | F11: xlRight | G11: xlRight | H11: xlRight | I11: xlRight | J11: xlRight | K11: xlRight | L11: xlRight | M11: xlRight | N11: xlRight | O11: xlRight | P11: xlRight | Q11: xlRight | R11: xlRight | S11: xlRight | T11: xlRight | U11: xlRight | V11: xlRight | W11: xlRight | X11: xlRight | Y11: xlRight | Z11: xlRight | AA11: xlRight | AB11: xlRight | AC11: xlRight | AD11: xlRight | AE11: xlRight | AF11: xlRight | AG11: xlRight | AH11: xlCenter | AI11: xlRight | AJ11: xlRight | AK11: xlRight | AL11: xlRight | AM11: xlRight | AN11: xlRight | AO11: xlRight | AP11: xlRight | AQ11: xlLeft | AS11: =C11 -> xlRight | AT11: xlRight | AU11: xlRight | AV11: xlRight | AW11: xlRight | AX11: xlRight | AY11: xlRight | AZ11: xlRight | BA11: xlRight | BB11: xlRight | BC11: xlRight | BD11: xlRight | BE11: xlRight | BF11: xlRight | BG11: xlRight | BH11: xlRight | BI11: =S11 -> xlRight | BJ11: xlRight | BK11: xlRight | BL11: xlRight | BM11: xlRight | BN11: xlRight | BO11: xlRight | BP11: xlRight | BQ11: xlRight | BR11: xlRight | BS11: xlRight | BT11: xlRight | BU11: xlRight | BV11: xlRight | BW11: xlRight | BX11: xlCenter | BY11: =AI11 -> xlRight | BZ11: xlRight | CA11: xlRight | CB11: xlRight | CC11: xlRight | CD11: xlRight | CE11: xlRight | CF11: xlRight | CG11: xlLeft
A12: Total Rows Needed | B12: =SUM(B8:B10) -> 2 | C12: 0.0 | D12: #+00.00 | E12: General | F12: 0 | G12: General | H12: 0 | I12: General | J12: 0.0 | K12: 0.00 | L12: General | M12: General | N12: 0 | O12: 0 | P12: 0 | Q12: 0 | R12: 0 | S12: 0 | T12: General | U12: 0 | V12: General | W12: 0 | X12: 0.00 | Y12: 0.00 | Z12: 0.00 | AA12: 0.00 | AB12: 0.0 | AC12: 0.0 | AD12: 0.0 | AE12: 0.0 | AF12: 0 | AG12: 0 | AH12: General | AI12: #+00.00 | AJ12: 0.00 | AK12: General | AL12: 0.0 | AM12: 0.0 | AN12: 0.0 | AO12: 0.0 | AP12: 0.0 | AQ12: General | AS12: 0.0 | AT12: #+00.00 | AU12: General | AV12: 0 | AW12: General | AX12: 0 | AY12: General | AZ12: 0.0 | BA12: 0.00 | BB12: General | BC12: General | BD12: 0 | BE12: 0 | BF12: 0 | BG12: 0 | BH12: 0 | BI12: 0 | BJ12: General | BK12: 0 | BL12: General | BM12: 0 | BN12: 0.00 | BO12: 0.00 | BP12: 0.00 | BQ12: 0.00 | BR12: 0.0 | BS12: 0.0 | BT12: 0.0 | BU12: 0.0 | BV12: 0 | BW12: 0 | BX12: General | BY12: #+00.00 | BZ12: 0.00 | CA12: General | CB12: 0.0 | CC12: 0.0 | CD12: 0.0 | CE12: 0.0 | CF12: 0.0 | CG12: General
A13: Last Tab DE Starter Row | B13: 34 | C13: =CELL("width",C13) -> 6 | D13: 16 | E13: 6 | F13: 5 | G13: 6 | H13: 6 | I13: 5 | J13: 6 | K13: 6 | L13: 5 | M13: 5 | N13: 5 | O13: 5 | P13: 5 | Q13: 5 | R13: 5 | S13: 5 | T13: 5 | U13: 5 | V13: 7 | W13: 7 | X13: 10 | Y13: 10 | Z13: 10 | AA13: 10 | AB13: 7 | AC13: 7 | AD13: 7 | AE13: 7 | AF13: 5 | AG13: 5 | AH13: 5 | AI13: 16 | AJ13: 12 | AK13: 5 | AL13: 7 | AM13: 7 | AN13: 7 | AO13: 7 | AP13: 7 | AQ13: 18 | AS13: =CELL("width",AS13) -> 0 | AT13: 0 | AU13: 0 | AV13: 0 | AW13: 0 | AX13: 0 | AY13: 0 | AZ13: 0 | BA13: 0 | BB13: 0 | BC13: 0 | BD13: 0 | BE13: 0 | BF13: 0 | BG13: 0 | BH13: 0 | BI13: 0 | BJ13: 0 | BK13: 0 | BL13: 0 | BM13: 0 | BN13: 0 | BO13: 0 | BP13: 0 | BQ13: 0 | BR13: 0 | BS13: 0 | BT13: 0 | BU13: 0 | BV13: 0 | BW13: 0 | BX13: 0 | BY13: 0 | BZ13: 0 | CA13: 0 | CB13: 0 | CC13: 0 | CD13: 0 | CE13: 0 | CF13: 0 | CG13: 0
A14: Last Tab Tabsheet Starter Row | B14: 20 | C14: A | D14: B | E14: C | F14: D | G14: E | H14: F | I14: G | J14: H | K14: I | L14: J | M14: K | N14: L | O14: M | P14: N | Q14: O | R14: P | S14: Q | T14: R | U14: S | V14: T | W14: U | X14: V | Y14: W | Z14: X | AA14: Y | AB14: Z | AC14: AA | AD14: AB | AE14: AC | AF14: AD | AG14: AE | AH14: AF | AI14: AG | AJ14: AH | AK14: AI | AL14: AJ | AM14: AK | AN14: AL | AO14: AM | AP14: AN | AQ14: AO | AS14: =LOWER(C14) -> a | AT14: b | AU14: c | AV14: d | AW14: e | AX14: f | AY14: g | AZ14: h | BA14: i | BB14: j | BC14: k | BD14: l | BE14: m | BF14: n | BG14: o | BH14: p | BI14: q | BJ14: r | BK14: s | BL14: t | BM14: u | BN14: v | BO14: w | BP14: x | BQ14: y | BR14: z | BS14: aa | BT14: ab | BU14: ac | BV14: ad | BW14: ae | BX14: af | BY14: ag | BZ14: ah | CA14: ai | CB14: aj | CC14: ak | CD14: al | CE14: am | CF14: an | CG14: ao
A15: Last Copy Starter Row | B15: 1 | AK15: Totals: | AL15: =SUBTOTAL(9,AL34:AL2000) -> 0 | AM15: =SUBTOTAL(9,AM34:AM2000) -> 0 | AN15: =SUBTOTAL(9,AN34:AN2000) -> 0 | AO15: =SUBTOTAL(9,AO34:AO2000) -> 0 | AP15: =SUBTOTAL(9,AP34:AP2000) -> 0 | AS15: 104-3 | CI15: =G24 -> Kind Of Pipe | CJ15: Pipe Type
A16: Tab Loop Number | B16: 2 | C16: DRAINAGE STRUCTURE BY ROAD CONTRACTOR | AS16: =B17 -> 2014-04-15 | CI16: CMP | CJ16: Reinforced Concrete Pipe.
A17: Revision Date | B17: 2014-04-15 | AS17: =C16 -> DRAINAGE STRUCTURE BY ROAD CONTRACTOR | CI17: LCP | CJ17: Corrugated Metal Pipe.
A18: Tabulation Width | B18: 4 | CI18: RCP
A19: Horizontal Grid Lines | B19: Yes | C19: Length of unclassified pipe calculated is based on using | L19: Reinforced Concrete Pipe. | CI19: SARC
C20: * Not a bid item | AS20: =C19 -> Length of unclassified pipe calculated is based on using | BB20: =L19 -> Reinforced Concrete Pipe. | CI20: UNCL
C21: Diameter or equivalent diameter | AS21: =C20 -> * Not a bid item
C22: UNCL = Unclassified Pipe CMP = Corrugated Metal Pipe RCP = Reinforced Concrete Pipe LCP = Arch or Elliptical Low Clearance Pipe SARC = Steel Arch Pipe | AS22: =C21 -> Diameter or equivalent diameter
C23: ="This Data Entry Sheet fills Tab "&AS15&" effective "&TEXT(B17,"mm-dd-yy") -> This Data Entry Sheet fills Tab 104-3 effective 04-15-14 | AS23: =C22 -> UNCL = Unclassified Pipe CMP = Corrugated Metal Pipe RCP = Reinforced Concrete Pipe LCP = Arch or Elliptical Low Clearance Pipe SARC = Steel Arch Pipe
C24: Drainage Area | D24: Location | E24: Type | F24: Size | G24: Kind Of Pipe | H24: Length New Const. | I24: Bedding Class | J24: Design Cover (H) | K24: Camber* (RF-30B) | L24: Apron No. | N24: Apron Guard* (RF-26) | O24: Elbow* (RF-13) | P24: Diaphragm* (RF-7) | Q24: Tee Section* (RF-21) | R24: "D" Section* (RF-13) | S24: Reducer* | T24: Adaptors* (RF-2) | V24: Connected Pipe Joint* (RF-14) | W24: 4" Perforated Subdrain* | X24: Flow Line Elevations | AB24: Dimensions Lin. Ft. | AF24: Skew Ahead Degrees | AH24: Dike | AL24: Class 20 | AM24: Flowable Mortar | AN24: Floodable* Backfill | AO24: Porous* Backfill | AP24: Flooded Backfill | AQ24: Remarks | AS24: =C24 -> Drainage Area | AT24: Location | AU24: Type | AV24: Size | AW24: Kind Of Pipe | AX24: Length New Const. | AY24: Bedding Class | AZ24: Design Cover (H) | BA24: Camber* (RF-30B) | BB24: =L24 -> Apron No. | BD24: =N24 -> Apron Guard* (RF-26) | BE24: Elbow* (RF-13) | BF24: Diaphragm* (RF-7) | BG24: Tee Section* (RF-21) | BH24: "D" Section* (RF-13) | BI24: Reducer* | BJ24: Adaptors* (RF-2) | BL24: =V24 -> Connected Pipe Joint* (RF-14) | BM24: =W24 -> 4" Perforated Subdrain* | BN24: =X24 -> Flow Line Elevations | BR24: =AB24 -> Dimensions Lin. Ft. | BV24: =AF24 -> Skew Ahead Degrees | BX24: =AH24 -> Dike | CB24: =AL24 -> Class 20 | CC24: Flowable Mortar | CD24: Floodable* Backfill | CE24: Porous* Backfill | CF24: Flooded Backfill | CG24: Remarks
AH31: Rt. | AI31: Location Station | AJ31: Top Elevation | AK31: Type | BX31: =AH31 -> Rt. | BY31: =AI31 -> Location Station | BZ31: =AJ31 -> Top Elevation | CA31: =AK31 -> Type
AB32: Total | AD32: Extensions | AN32: (A) | AO32: (B) | AP32: (A+B) | BR32: =AB32 -> Total | BT32: =AD32 -> Extensions | CD32: =AN32 -> (A) | CE32: (B) | CF32: (A+B)
C33: ACRE | F33: IN | H33: LF | J33: FT | K33: FT | L33: IN | M33: OUT | N33: No. | O33: No. | P33: No. | Q33: No. | R33: No. | S33: No. | T33: Type | U33: No. | V33: Type | W33: FT | X33: Lt. | Y33: Rt. | Z33: Other | AA33: Other | AB33: Lt. | AC33: Rt. | AD33: Lt. | AE33: Rt. | AF33: Lt. | AG33: Rt. | AH33: Lt. | AL33: CY | AM33: CY | AN33: CY | AO33: CY | AP33: CY | AS33: =C33 -> ACRE | AV33: =F33 -> IN | AX33: =H33 -> LF | AZ33: =J33 -> FT | BA33: FT | BB33: IN | BC33: OUT | BD33: No. | BE33: No. | BF33: No. | BG33: No. | BH33: No. | BI33: No. | BJ33: Type | BK33: No. | BL33: Type | BM33: FT | BN33: Lt. | BO33: Rt. | BP33: Other | BQ33: Other | BR33: =AB33 -> Lt. | BS33: =AC33 -> Rt. | BT33: =AD33 -> Lt. | BU33: =AE33 -> Rt. | BV33: =AF33 -> Lt. | BW33: =AG33 -> Rt. | BX33: =AH33 -> Lt. | CB33: =AL33 -> CY | CC33: =AM33 -> CY | CD33: CY | CE33: CY | CF33: CY

Sheet DE104_8
A1: TabTitle | B1: =C15 -> BRIDGE END DRAINS
A2: Number of Tab Columns | B2: 14
A3: DE Starter Row Number | B3: 25
A4: TabSheet Starter Row Number | B4: 12
A5: TabSheet Header Row Count | B5: 11
A6: Top Header Cell | B6: R15
A7: Bottom Header Cell | B7: AE25
A8: DESheet Row Count | B8: 0
A9: Fixed Empty Rows | B9: 2
A10: Usable Empty Rows | B10: 0
A11: Total Rows Placed | B11: 2 | C11: xlRight(1) | D11: xlCenter | E11: xlRight(1) | F11: xlCenter | G11: xlRight(1) | H11: xlRight(1) | I11: xlRight(1) | J11: xlRight(1) | K11: xlRight(1) | L11: xlRight(1) | M11: xlRight(1) | N11: xlRight(1) | O11: xlRight(1) | P11: xlLeft(1) | R11: =C11 -> xlRight(1) | S11: =D11 -> xlCenter | T11: xlRight(1) | U11: xlCenter | V11: xlRight(1) | W11: xlRight(1) | X11: xlRight(1) | Y11: xlRight(1) | Z11: xlRight(1) | AA11: xlRight(1) | AB11: xlRight(1) | AC11: xlRight(1) | AD11: xlRight(1) | AE11: xlLeft(1)
A12: Total Rows Needed | B12: =SUM(B8:B10) -> 2 | C12: #+00.00 | D12: General | E12: 0.0 | F12: General | G12: 0.0 | H12: 0.0 | I12: 0.0 | J12: 0.0 | K12: 0.0 | L12: 0.0 | M12: 0.0 | N12: 0.0 | O12: 0.000 | P12: General | R12: =C12 -> #+00.00 | S12: General | T12: 0.0 | U12: General | V12: 0.0 | W12: 0.0 | X12: 0.0 | Y12: 0.0 | Z12: 0.0 | AA12: 0.0 | AB12: 0.0 | AC12: 0.0 | AD12: 0.000 | AE12: General
A13: Last Tab DE Starter Row | B13: 25 | C13: =CELL("width",C13) -> 16 | D13: =CELL("width",D13) -> 9 | E13: 12 | F13: 13 | G13: 10 | H13: 11 | I13: 9 | J13: 9 | K13: 9 | L13: 9 | M13: 9 | N13: 9 | O13: 11 | P13: 14 | R13: 0 | S13: 0 | T13: 0 | U13: 0 | V13: 0 | W13: 0 | X13: 0 | Y13: 0 | Z13: 0 | AA13: 0 | AB13: 0 | AC13: 0 | AD13: 0 | AE13: 0
A14: Last Tab TabSheet Starter Row | B14: 12 | C14: A | D14: B | E14: C | F14: D | G14: E | H14: F | I14: G | J14: H | K14: I | L14: J | M14: K | N14: L | O14: M | P14: N | R14: a | S14: b | T14: c | U14: d | V14: e | W14: f | X14: g | Y14: h | Z14: i | AA14: j | AB14: k | AC14: l | AD14: m | AE14: n
A15: Last Copy Starter Row | B15: 1 | C15: BRIDGE END DRAINS | R15: 104-8
A16: Tab Loop Number | B16: 2 | R16: =B17 -> 2008-08-01
A17: Revision Date | B17: 2008-08-01 | C17: Refer to Standard Road Plan RF-38 | R17: BRIDGE END DRAINS
A18: Tabulation Width | B18: 2 | C18: Not a Bid Item
A19: Horizontal Grid Lines | B19: Yes | C19: ="This Data Entry Sheet fills Tab "&R15&" effective "&TEXT(B17,"mm-dd-yy") -> This Data Entry Sheet fills Tab 104-8 effective 08-01-08 | R19: =C17 -> Refer to Standard Road Plan RF-38
C20: Location | F20: Shoulder | H20: Polymer Grid | I20: Installation Information | O20: Modified Subbase | P20: Remarks | R20: =C18 -> Not a Bid Item
C21: Bridge Station | D21: Bridge Corner | E21: Distance DI-1 or DI-2 | F21: Panels Required | G21: PCC | I21: Elevation | M21: Length | R21: =C20 -> Location | U21: =F20 -> Shoulder | W21: =H20 -> Polymer Grid | X21: =I20 -> Installation Information | AD21: =O20 -> Modified Subbase | AE21: =P20 -> Remarks
I22: Form Grade | R22: =C21 -> Bridge Station | S22: =D21 -> Bridge Corner | T22: =E21 -> Distance DI-1 or DI-2 | U22: =F21 -> Panels Required | V22: =G21 -> PCC | X22: =I21 -> Elevation | AB22: =M21 -> Length
X23: =I22 -> Form Grade | Y23: =J22 -> 0 | Z23: =K22 -> 0 | AA23: =L22 -> 0 | AB23: =M22 -> 0 | AC23: =N22 -> 0
F24: A B C or D | G24: Sq.Yds. | H24: Sq.Yds. | O24: Tons
U25: =F24 -> A B C or D | V25: =G24 -> Sq.Yds. | W25: =H24 -> Sq.Yds. | AD25: =O24 -> Tons

Sheet DE105_4
A1: TabTitle | B1: =C15 -> STANDARD ROAD PLANS
A2: Number of Tab Columns | B2: 3
A3: DE Starter Row Number | B3: 20
A4: TabSheet Starter Row Number | B4: 7
A5: TabSheet Header Row Count | B5: 6
A6: Top Header Cell | B6: G15
A7: Bottom Header Cell | B7: I20
A8: DESheet Row Count | B8: 1
A9: Fixed Empty Rows | B9: 10
A10: Usable Empty Rows | B10: 0
A11: Total Rows Placed | B11: 0 | C11: xlLeft | D11: xlCenter | E11: xlLeft | G11: =C11 -> xlLeft | H11: =D11 -> xlCenter | I11: =E11 -> xlLeft
A12: Total Rows Needed | B12: =SUM(B8:B10) -> 11 | C12: General | D12: Text | E12: General | G12: =C12 -> General | H12: =D12 -> Text | I12: General
A13: Last Tab DE Starter Row | B13: 0 | C13: =CELL("width",C13) -> 12 | D13: =CELL("width",D13) -> 12 | E13: 134 | G13: =CELL("width",G13) -> 0 | H13: =CELL("width",H13) -> 0 | I13: 0
A14: Last Tab Tabsheet Starter Row | B14: 0 | C14: A | D14: B | E14: C | G14: =LOWER(C14) -> a | H14: =LOWER(D14) -> b | I14: c
A15: Last Copy Starter Row | B15: 0 | C15: STANDARD ROAD PLANS | G15: 105-4
A16: Tab Loop Number | B16: 0 | G16: =B17 -> 2011-10-18
A17: Revision Date | B17: 2011-10-18 | C17: The following Standard Road Plans apply to construction work on this project. | G17: =C15 -> STANDARD ROAD PLANS
A18: Tabulation Width | B18: 1900-01-02 | C18: ="This Data Entry Sheet fills Tab "&G15&" effective "&TEXT(B17,"mm-dd-yy") -> This Data Entry Sheet fills Tab 105-4 effective 10-18-11
A19: Horizontal Grid Lines | B19: Yes | C19: Number | D19: Date | E19: Title | G19: =C17 -> The following Standard Road Plans apply to construction work on this project.
C20: TC-1 | E20: Work Not Affecting Traffic (Two-Lane or Multi-Lane) | G20: =C19 -> Number | H20: =D19 -> Date | I20: =E19 -> Title

Sheet DE107_23
A1: TabTitle | B1: =C16 -> GRADING FOR GUARDRAIL INSTALLATIONS
A2: Number of Tab Columns | B2: 17
A3: DE Starter Row Number | B3: 29
A4: TabSheet Starter Row Number | B4: 15
A5: TabSheet Header Row Count | B5: 14
A6: Top Header Cell | B6: U15
A7: Bottom Header Cell | B7: AK28
A8: DESheet Row Count | B8: 0
A9: Fixed Empty Rows | B9: 2
A10: Usable Empty Rows | B10: 0
A11: Total Rows Placed | B11: 2 | C11: xlRight(1) | D11: xlCenter | E11: xlRight(1) | F11: xlCenter | G11: xlRight(1) | H11: xlRight(1) | I11: xlRight(1) | J11: xlRight(1) | K11: xlRight(1) | L11: xlRight(1) | M11: xlRight(1) | N11: xlRight(1) | O11: xlRight(1) | P11: xlRight(1) | Q11: xlRight(1) | R11: xlRight(1) | S11: xlLeft(1) | U11: =C11 -> xlRight(1) | V11: xlCenter | W11: xlRight(1) | X11: xlCenter | Y11: xlRight(1) | Z11: xlRight(1) | AA11: xlRight(1) | AB11: xlRight(1) | AC11: xlRight(1) | AD11: xlRight(1) | AE11: xlRight(1) | AF11: xlRight(1) | AG11: xlRight(1) | AH11: xlRight(1) | AI11: xlRight(1) | AJ11: xlRight(1) | AK11: =S11 -> xlLeft(1)
A12: Total Rows Needed | B12: =SUM(B8:B10) -> 2 | C12: General | D12: General | E12: #+00.00 | F12: General | G12: General | H12: 0.0 | I12: 0.0 | J12: 0.0 | K12: 0.0 | L12: 0.0 | M12: 0.0 | N12: 0.0 | O12: 0.0 | P12: 0.0 | Q12: 0.0 | R12: 0.0 | S12: General | U12: General | V12: General | W12: #+00.00 | X12: General | Y12: General | Z12: 0.0 | AA12: 0.0 | AB12: 0.0 | AC12: 0.0 | AD12: 0.0 | AE12: 0.0 | AF12: 0.0 | AG12: 0.0 | AH12: 0.0 | AI12: 0.0 | AJ12: 0.0 | AK12: General
A13: Last Tab DE Starter Row | B13: 29 | C13: =CELL("width",C13) -> 7 | D13: 7 | E13: 18 | F13: 7 | G13: 15 | H13: 9 | I13: 9 | J13: 9 | K13: 9 | L13: 9 | M13: 9 | N13: 9 | O13: 9 | P13: 9 | Q13: 16 | R13: 16 | S13: 60 | U13: =CELL("width",U13) -> 0 | V13: 0 | W13: 0 | X13: 0 | Y13: 0 | Z13: 0 | AA13: 0 | AB13: 0 | AC13: 0 | AD13: 0 | AE13: 0 | AF13: 0 | AG13: 0 | AH13: 0 | AI13: 0 | AJ13: 0 | AK13: 0
A14: Last Tab Tabsheet Starter Row | B14: 15 | C14: A | D14: B | E14: C | F14: D | G14: E | H14: F | I14: G | J14: H | K14: I | L14: J | M14: K | N14: L | O14: M | P14: N | Q14: O | R14: P | S14: Q | U14: =LOWER(C14) -> a | V14: b | W14: c | X14: d | Y14: e | Z14: f | AA14: g | AB14: h | AC14: i | AD14: j | AE14: k | AF14: l | AG14: m | AH14: n | AI14: o | AJ14: p | AK14: q
A15: Last Copy Starter Row | B15: 1 | O15: Totals: | Q15: =SUBTOTAL(9,Q29:Q2000) -> 0 | R15: =SUBTOTAL(9,R29:R2000) -> 0 | U15: 107-23
A16: Tab Loop Number | B16: 2 | C16: GRADING FOR GUARDRAIL INSTALLATIONS | U16: =B17 -> 2011-10-18
A17: Revision Date | B17: 2011-10-18 | U17: =C16 -> GRADING FOR GUARDRAIL INSTALLATIONS
A18: Tabulation Width | B18: 3 | D18: Lane(s) to which the installation is adjacent. | K18: Refer to EW-301
A19: Horizontal Grid Lines | B19: Yes | C19: ="This Data Entry Sheet fills Tab "&U15&" effective "&TEXT(B17,"mm-dd-yy") -> This Data Entry Sheet fills Tab 107-23 effective 10-18-11 | V19: =D18 -> Lane(s) to which the installation is adjacent. | AC19: =K18 -> Refer to EW-301
C20: Location | G20: Foreslope at Guardrail | H20: Dimensions (Feet) | Q20: Earthwork | S20: Remarks | U20: =C20 -> Location | Y20: =G20 -> Foreslope at Guardrail | Z20: =H20 -> Dimensions (Feet) | AI20: =Q20 -> Earthwork | AK20: =S20 -> Remarks
C22: No. | D22: Direction of Traffic | E22: Station | F22: Side | Q22: Excavation Class 10 | R22: Embankment In Place | U22: =C22 -> No. | V22: =D22 -> Direction of Traffic | W22: =E22 -> Station | X22: =F22 -> Side | AI22: =Q22 -> Excavation Class 10 | AJ22: =R22 -> Embankment In Place
Q28: CY | R28: CY | AI28: =Q28 -> CY | AJ28: =R28 -> CY

Sheet DE107_31
A1: TabTitle | B1: =C15 -> PLOWING AND SHAPING
A2: Number of Tab Columns | B2: 4
A3: DE Starter Row Number | B3: 22
A4: TabSheet Starter Row Number | B4: 9
A5: TabSheet Header Row Count | B5: 8
A6: Top Header Cell | B6: H15
A7: Bottom Header Cell | B7: K22
A8: DESheet Row Count | B8: 0
A9: Fixed Empty Rows | B9: 2
A10: Usable Empty Rows | B10: 0
A11: Total Rows Placed | B11: 2 | C11: xlRight(1) | D11: xlRight(1) | E11: xlRight(1) | F11: xlLeft(1) | H11: =C11 -> xlRight(1) | I11: xlRight(1) | J11: xlRight(1) | K11: xlLeft(1)
A12: Total Rows Needed | B12: =SUM(B8:B10) -> 2 | C12: #+00.00 | D12: #+00.00 | E12: 0.0 | F12: General | H12: #+00.00 | I12: #+00.00 | J12: 0.0 | K12: General
A13: Last Tab DE Starter Row | B13: 22 | C13: =CELL("width",C13) -> 16 | D13: =CELL("width",D13) -> 16 | E13: =CELL("width",E13) -> 10 | F13: =CELL("width",F13) -> 33 | H13: =CELL("width",H13) -> 0 | I13: =CELL("width",I13) -> 0 | J13: =CELL("width",J13) -> 0 | K13: =CELL("width",K13) -> 0
A14: Last Tab Tabsheet Starter Row | B14: 9 | C14: A | D14: B | E14: C | F14: D | H14: =LOWER(C14) -> a | I14: =LOWER(D14) -> b | J14: =LOWER(E14) -> c | K14: =LOWER(F14) -> d | L14: =LOWER(G14) -> 
A15: Last Copy Starter Row | B15: 1 | C15: PLOWING AND SHAPING | H15: 107-31
A16: Tab Loop Number | B16: 2 | H16: =B17 -> 2011-04-19
A17: Revision Date | B17: 2011-04-19 | C17: Refer to Standard Road Plan EW-101 | H17: =C15 -> PLOWING AND SHAPING
A18: Tabulation Width | B18: 1 | C18: ="This Data Entry Sheet fills Tab "&H15&" effective "&TEXT(B17,"mm-dd-yy") -> This Data Entry Sheet fills Tab 107-31 effective 04-19-11
A19: Horizontal Grid Lines | B19: Yes | C19: Station to Station | E19: D | F19: Remarks | H19: =C17 -> Refer to Standard Road Plan EW-101
H20: =C19 -> Station to Station | J20: =E19 -> D | K20: =F19 -> Remarks
E21: FT
J22: =E21 -> FT

Sheet DE108_8A
A1: TabTitle | B1: =C16 -> STEEL BEAM GUARDRAIL AT CONCRETE BARRIER OR BRIDGE END POST
A2: Number of Tab Columns | B2: 19
A3: DE Starter Row Number | B3: 29
A4: TabSheet Starter Row Number | B4: 15
A5: TabSheet Header Row Count | B5: 14
A6: Top Header Cell | B6: W15
A7: Bottom Header Cell | B7: AO28
A8: DESheet Row Count | B8: 0
A9: Fixed Empty Rows | B9: 2
A10: Usable Empty Rows | B10: 0
A11: Total Rows Placed | B11: 2 | C11: xlRight(1) | D11: xlRight(1) | E11: xlRight(1) | F11: xlRight(1) | G11: xlRight(1) | H11: xlRight(1) | I11: xlRight(1) | J11: xlRight(1) | K11: xlRight(1) | L11: xlRight(1) | M11: xlRight(1) | N11: xlRight(1) | O11: xlRight(1) | P11: xlRight(1) | Q11: xlRight(1) | R11: xlRight(1) | S11: xlRight(1) | T11: xlRight(1) | U11: xlLeft(1) | W11: =C11 -> xlRight(1) | X11: xlRight(1) | Y11: xlRight(1) | Z11: xlRight(1) | AA11: xlRight(1) | AB11: xlRight(1) | AC11: xlRight(1) | AD11: xlRight(1) | AE11: xlRight(1) | AF11: xlRight(1) | AG11: xlRight(1) | AH11: xlRight(1) | AI11: xlRight(1) | AJ11: xlRight(1) | AK11: xlRight(1) | AL11: xlRight(1) | AM11: =S11 -> xlRight(1) | AN11: xlRight(1) | AO11: xlLeft(1)
A12: Total Rows Needed | B12: =SUM(B8:B10) -> 2 | C12: General | D12: #+00.00 | E12: General | F12: 0.000 | G12: 0.00 | H12: 0.00 | I12: 0.0 | J12: General | K12: General | L12: General | M12: General | N12: General | O12: General | P12: General | Q12: 0.0 | R12: General | S12: General | T12: General | U12: General | W12: General | X12: #+00.00 | Y12: General | Z12: 0.000 | AA12: 0.00 | AB12: 0.00 | AC12: 0.0 | AD12: General | AE12: General | AF12: General | AG12: General | AH12: General | AI12: General | AJ12: General | AK12: 0.0 | AL12: General | AM12: General | AN12: General | AO12: General
A13: Last Tab DE Starter Row | B13: 29 | C13: =CELL("width",C13) -> 6 | D13: 16 | E13: 10 | F13: 10 | G13: 10 | H13: 10 | I13: 11 | J13: 6 | K13: 14 | L13: 10 | M13: 8 | N13: 8 | O13: 13 | P13: 14 | Q13: 13 | R13: 11 | S13: 14 | T13: 13 | U13: 31 | W13: =CELL("width",W13) -> 0 | X13: 0 | Y13: 0 | Z13: 0 | AA13: 0 | AB13: 0 | AC13: 0 | AD13: 0 | AE13: 0 | AF13: 0 | AG13: 0 | AH13: 0 | AI13: 0 | AJ13: 0 | AK13: 0 | AL13: 0 | AM13: 0 | AN13: 0 | AO13: 0
A14: Last Tab TabSheet Starter Row | B14: 15 | C14: A | D14: B | E14: C | F14: D | G14: E | H14: F | I14: G | J14: H | K14: I | L14: J | M14: K | N14: L | O14: M | P14: N | Q14: O | R14: P | S14: Q | T14: R | U14: S | W14: =LOWER(C14) -> a | X14: b | Y14: c | Z14: d | AA14: e | AB14: f | AC14: g | AD14: h | AE14: i | AF14: j | AG14: k | AH14: l | AI14: m | AJ14: n | AK14: o | AL14: p | AM14: q | AN14: r | AO14: s
A15: Last Copy Starter Row | B15: 1 | N15: Totals: | O15: =SUBTOTAL(3,O29:O2000) -> 0 | P15: =SUBTOTAL(9,P29:P2000) -> 0 | Q15: =SUBTOTAL(9,Q29:Q2000) -> 0 | R15: =SUBTOTAL(9,R29:R2000) -> 0 | S15: =SUBTOTAL(9,S29:S2000) -> 0 | T15: =SUBTOTAL(9,T29:T2000) -> 0 | W15: 108-8A
A16: Tab Loop Number | B16: 2 | C16: STEEL BEAM GUARDRAIL AT CONCRETE BARRIER OR BRIDGE END POST | W16: =B17 -> 2010-10-19
A17: Revision Date | B17: 2010-10-19 | W17: =C16 -> STEEL BEAM GUARDRAIL AT CONCRETE BARRIER OR BRIDGE END POST
A18: Tabulation Width | B18: 3 | C18: Refer to BA-200, BA-201, BA-202, BA-205, BA-250, SI-172, SI-173 and SI-211.
A19: Horizontal Grid Lines | B19: Yes | C19: ="This Data Entry Sheet fills Tab "&W15&" effective "&TEXT(B17,"mm-dd-yy") -> This Data Entry Sheet fills Tab 108-8A effective 10-19-10 | S19: See Standards for list of materials. | W19: =C18 -> Refer to BA-200, BA-201, BA-202, BA-205, BA-250, SI-172, SI-173 and SI-211. | AM19: =S19 -> See Standards for list of materials.
C20: Location Station | F20: Layout Lengths | J20: Delineators and Object Markers | O20: Bid Items | U20: Remarks | W20: =C20 -> Location Station | Z20: =F20 -> Layout Lengths | AD20: =J20 -> Delineators and Object Markers | AI20: =O20 -> Bid Items | AO20: =U20 -> Remarks
I22: Terminal | J22: Type | K22: Delineator | L22: Object Marker | O22: End Anchor Bolted | P22: Barrier Transition Section | Q22: Steel Beam Guardrail | R22: End Terminal | T22: Adapter | AC22: =I22 -> Terminal | AD22: =J22 -> Type | AE22: =K22 -> Delineator | AF22: =L22 -> Object Marker | AI22: =O22 -> End Anchor Bolted | AJ22: =P22 -> Barrier Transition Section | AK22: =Q22 -> Steel Beam Guardrail | AL22: =R22 -> End Terminal | AN22: =T22 -> Adapter
R23: Standard | S23: Flared for Cable Connection | AL23: =R23 -> Standard | AM23: =S23 -> Flared for Cable Connection
K24: Type 1 | L24: Type 2 | M24: Type 3 | AE24: =K24 -> Type 1 | AF24: =L24 -> Type 2 | AG24: =M24 -> Type 3
K27: White | M27: OM-3L | N27: OM-3R | O27: BA-202 | P27: BA-201 | Q27: BA-200 | R27: BA-205 | S27: BA-206 | T27: BA-210 | AE27: =K27 -> White | AG27: =M27 -> OM-3L | AH27: OM-3R | AI27: BA-202 | AJ27: BA-201 | AK27: BA-200 | AL27: BA-205 | AM27: BA-206 | AN27: BA-210
C28: No. | D28: Station | E28: Offset | F28: LF | G28: LF | H28: LF | I28: LF | K28: No. | L28: No. | M28: No. | N28: No. | O28: Type | P28: No. | Q28: LF | R28: No. | S28: No. | T28: No. | W28: =C28 -> No. | X28: Station | Y28: Offset | Z28: LF | AA28: LF | AB28: LF | AC28: LF | AE28: =K28 -> No. | AF28: =L28 -> No. | AG28: No. | AH28: No. | AI28: Type | AJ28: No. | AK28: LF | AL28: No. | AM28: =T28 -> No. | AN28: =T28 -> No.
Q29: =IF($F29<>"",IF((SUM($F29:$H29)-28.125)/12.5=INT((SUM($F29:$H29)-28.125)/12.5),SUM($F29:$H29)-28.125,"Error"),"") -> 
Q93: =IF($F93<>"",IF((SUM($F93:$H93)-28.125)/12.5=INT((SUM($F93:$H93)-28.125)/12.5),SUM($F93:$H93)-28.125,"Error"),"") -> 
Q157: =IF($F157<>"",IF((SUM($F157:$H157)-28.125)/12.5=INT((SUM($F157:$H157)-28.125)/12.5),SUM($F157:$H157)-28.125,"Error"),"") -> 
Q221: =IF($F221<>"",IF((SUM($F221:$H221)-28.125)/12.5=INT((SUM($F221:$H221)-28.125)/12.5),SUM($F221:$H221)-28.125,"Error"),"") -> 
Q285: =IF($F285<>"",IF((SUM($F285:$H285)-28.125)/12.5=INT((SUM($F285:$H285)-28.125)/12.5),SUM($F285:$H285)-28.125,"Error"),"") -> 
Q349: =IF($F349<>"",IF((SUM($F349:$H349)-28.125)/12.5=INT((SUM($F349:$H349)-28.125)/12.5),SUM($F349:$H349)-28.125,"Error"),"") -> 
Q413: =IF($F413<>"",IF((SUM($F413:$H413)-28.125)/12.5=INT((SUM($F413:$H413)-28.125)/12.5),SUM($F413:$H413)-28.125,"Error"),"") -> 
Q477: =IF($F477<>"",IF((SUM($F477:$H477)-28.125)/12.5=INT((SUM($F477:$H477)-28.125)/12.5),SUM($F477:$H477)-28.125,"Error"),"") -> 
Q541: =IF($F541<>"",IF((SUM($F541:$H541)-28.125)/12.5=INT((SUM($F541:$H541)-28.125)/12.5),SUM($F541:$H541)-28.125,"Error"),"") -> 
Q605: =IF($F605<>"",IF((SUM($F605:$H605)-28.125)/12.5=INT((SUM($F605:$H605)-28.125)/12.5),SUM($F605:$H605)-28.125,"Error"),"") -> 
Q669: =IF($F669<>"",IF((SUM($F669:$H669)-28.125)/12.5=INT((SUM($F669:$H669)-28.125)/12.5),SUM($F669:$H669)-28.125,"Error"),"") -> 
Q733: =IF($F733<>"",IF((SUM($F733:$H733)-28.125)/12.5=INT((SUM($F733:$H733)-28.125)/12.5),SUM($F733:$H733)-28.125,"Error"),"") -> 
Q797: =IF($F797<>"",IF((SUM($F797:$H797)-28.125)/12.5=INT((SUM($F797:$H797)-28.125)/12.5),SUM($F797:$H797)-28.125,"Error"),"") -> 
Q861: =IF($F861<>"",IF((SUM($F861:$H861)-28.125)/12.5=INT((SUM($F861:$H861)-28.125)/12.5),SUM($F861:$H861)-28.125,"Error"),"") -> 
Q925: =IF($F925<>"",IF((SUM($F925:$H925)-28.125)/12.5=INT((SUM($F925:$H925)-28.125)/12.5),SUM($F925:$H925)-28.125,"Error"),"") -> 
Q989: =IF($F989<>"",IF((SUM($F989:$H989)-28.125)/12.5=INT((SUM($F989:$H989)-28.125)/12.5),SUM($F989:$H989)-28.125,"Error"),"") -> 
Q1053: =IF($F1053<>"",IF((SUM($F1053:$H1053)-28.125)/12.5=INT((SUM($F1053:$H1053)-28.125)/12.5),SUM($F1053:$H1053)-28.125,"Error"),"") -> 
Q1117: =IF($F1117<>"",IF((SUM($F1117:$H1117)-28.125)/12.5=INT((SUM($F1117:$H1117)-28.125)/12.5),SUM($F1117:$H1117)-28.125,"Error"),"") -> 
Q1181: =IF($F1181<>"",IF((SUM($F1181:$H1181)-28.125)/12.5=INT((SUM($F1181:$H1181)-28.125)/12.5),SUM($F1181:$H1181)-28.125,"Error"),"") -> 
Q1245: =IF($F1245<>"",IF((SUM($F1245:$H1245)-28.125)/12.5=INT((SUM($F1245:$H1245)-28.125)/12.5),SUM($F1245:$H1245)-28.125,"Error"),"") -> 
Q1309: =IF($F1309<>"",IF((SUM($F1309:$H1309)-28.125)/12.5=INT((SUM($F1309:$H1309)-28.125)/12.5),SUM($F1309:$H1309)-28.125,"Error"),"") -> 
Q1373: =IF($F1373<>"",IF((SUM($F1373:$H1373)-28.125)/12.5=INT((SUM($F1373:$H1373)-28.125)/12.5),SUM($F1373:$H1373)-28.125,"Error"),"") -> 
Q1437: =IF($F1437<>"",IF((SUM($F1437:$H1437)-28.125)/12.5=INT((SUM($F1437:$H1437)-28.125)/12.5),SUM($F1437:$H1437)-28.125,"Error"),"") -> 
Q1501: =IF($F1501<>"",IF((SUM($F1501:$H1501)-28.125)/12.5=INT((SUM($F1501:$H1501)-28.125)/12.5),SUM($F1501:$H1501)-28.125,"Error"),"") -> 
Q1565: =IF($F1565<>"",IF((SUM($F1565:$H1565)-28.125)/12.5=INT((SUM($F1565:$H1565)-28.125)/12.5),SUM($F1565:$H1565)-28.125,"Error"),"") -> 
Q1629: =IF($F1629<>"",IF((SUM($F1629:$H1629)-28.125)/12.5=INT((SUM($F1629:$H1629)-28.125)/12.5),SUM($F1629:$H1629)-28.125,"Error"),"") -> 
Q1693: =IF($F1693<>"",IF((SUM($F1693:$H1693)-28.125)/12.5=INT((SUM($F1693:$H1693)-28.125)/12.5),SUM($F1693:$H1693)-28.125,"Error"),"") -> 
Q1757: =IF($F1757<>"",IF((SUM($F1757:$H1757)-28.125)/12.5=INT((SUM($F1757:$H1757)-28.125)/12.5),SUM($F1757:$H1757)-28.125,"Error"),"") -> 
Q1821: =IF($F1821<>"",IF((SUM($F1821:$H1821)-28.125)/12.5=INT((SUM($F1821:$H1821)-28.125)/12.5),SUM($F1821:$H1821)-28.125,"Error"),"") -> 
Q1885: =IF($F1885<>"",IF((SUM($F1885:$H1885)-28.125)/12.5=INT((SUM($F1885:$H1885)-28.125)/12.5),SUM($F1885:$H1885)-28.125,"Error"),"") -> 
Q1949: =IF($F1949<>"",IF((SUM($F1949:$H1949)-28.125)/12.5=INT((SUM($F1949:$H1949)-28.125)/12.5),SUM($F1949:$H1949)-28.125,"Error"),"") -> 

Sheet DE108_13A
A1: TabTitle | B1: =C16 -> SAFETY CLOSURES
A2: Number of Tab Columns | B2: 4
A3: DE Starter Row Number | B3: 22
A4: TabSheet Starter Row Number | B4: 8
A5: TabSheet Header Row Count | B5: 7
A6: Top Header Cell | B6: H15
A7: Bottom Header Cell | B7: K21
A8: DESheet Row Count | B8: 0
A9: Fixed Empty Rows | B9: 2
A10: Usable Empty Rows | B10: 0
A11: Total Rows Placed | B11: 2 | C11: xlRight(1) | D11: xlRight(1) | E11: xlRight(1) | F11: xlLeft(1) | H11: =C11 -> xlRight(1) | I11: =D11 -> xlRight(1) | J11: xlRight(1) | K11: xlLeft(1)
A12: Total Rows Needed | B12: =SUM(B8:B10) -> 2 | C12: #+00.00 | D12: General | E12: General | F12: General | H12: =C12 -> #+00.00 | I12: General | J12: General | K12: General
A13: Last Tab DE Starter Row | B13: 22 | C13: =CELL("width",C13) -> 16 | D13: =CELL("width",D13) -> 14 | E13: =CELL("width",E13) -> 14 | F13: =CELL("width",F13) -> 31 | H13: =CELL("width",H13) -> 0 | I13: =CELL("width",I13) -> 0 | J13: =CELL("width",J13) -> 0 | K13: =CELL("width",K13) -> 0
A14: Last Tab Tabsheet Starter Row | B14: 8 | C14: A | D14: B | E14: C | F14: D | H14: =LOWER(C14) -> a | I14: =LOWER(D14) -> b | J14: =LOWER(E14) -> c | K14: =LOWER(F14) -> d
A15: Last Copy Starter Row | B15: 1 | D15: =SUBTOTAL(9,D22:D2000) -> 0 | E15: =SUBTOTAL(9,E22:E2000) -> 0 | H15: 108-13A
A16: Tab Loop Number | B16: 2 | C16: SAFETY CLOSURES | H16: =B17 -> 2008-08-01
A17: Revision Date | B17: 2008-08-01 | H17: =C16 -> SAFETY CLOSURES
A18: Tabulation Width | B18: 1 | C18: Refer to Section 2518 of the Standard Specifications
A19: Horizontal Grid Lines | B19: Yes | C19: ="This Data Entry Sheet fills Tab "&H15&" effective "&TEXT(B17,"mm-dd-yy") -> This Data Entry Sheet fills Tab 108-13A effective 08-01-08 | H19: =C18 -> Refer to Section 2518 of the Standard Specifications
C20: Station | D20: Closure Type | F20: Remarks | H20: =C20 -> Station | I20: =D20 -> Closure Type | K20: =F20 -> Remarks
D21: Road Qty. | E21: Hazard Qty. | I21: =D21 -> Road Qty. | J21: =E21 -> Hazard Qty.

Sheet DE108_22
A1: TabTitle | B1: =C44 -> PAVEMENT MARKING LINE TYPES
A2: Number of Tab Columns | B2: 24 | BB2: Old 9001 | BC2: Line Types (See PM-110) | BG2: Marking Type | BH2: =L54 -> BCY4* | BI2: DCY4 | BJ2: NPY4** | BK2: BLW4 | BL2: ELW4 | BM2: ELY4 | BN2: 0 | BO2: 0 | BP2: 0 | BQ2: 0 | BR2: 0 | BS2: 0 | BT2: 0 | BU2: 0 | BV2: 0 | BX2: Direction of Travel
A3: DE Starter Row Number | B3: 57 | BB3: Detail Number | BC3: Key | BD3: Description | BE3: Factor | BG3: Waterborne/Solvent Paint | BX3: NB
A4: TabSheet Starter Row Number | B4: 15 | BB4: 2 | BC4: BCY4* | BD4: BCY4: Broken Centerline (Yellow) @ 0.25 | BE4: 0.25 | BG4: Highbuild Waterborne Paint | BX4: EB
A5: TabSheet Header Row Count | B5: 14 | BB5: 6 | BC5: BLW4 | BD5: BLW4: Broken Lane Line (White) @ 0.25 | BE5: 0.25 | BG5: Durable Paint | BX5: SB
A6: Top Header Cell | B6: AC15 | BB6: new | BC6: CBW6 | BD6: CBW6: Crosswalk Bar (White) @ 15.00 | BE6: 15 | BG6: Permanent Regular Tape | BX6: WB
A7: Bottom Header Cell | B7: AZ28 | BB7: 11 | BC7: CHW8 | BD7: CHW8: Channelizing Line (White) @ 2.00 | BE7: 2 | BG7: Permanent Preform Polymer Tape | BX7: BOTH
A8: DESheet Row Count | B8: 0 | BB8: 12 | BC8: CHY8 | BD8: CHY8: Channelizing Line (Yellow) @ 2.00 | BE8: 2 | BG8: Permanent Profiled Tape
A9: Fixed Empty Rows | B9: 2 | BB9: 14 | BC9: CLW6 | BD9: CLW6: Crosswalk Line (White) @ 3.00 | BE9: 3 | BG9: Permanent Intersection Tape
A10: Usable Empty Rows | B10: 0 | BB10: 3 | BC10: DCY4 | BD10: DCY4: Double Centerline (Yellow) @ 2.00 | BE10: 2 | BG10: Grooves Cut for Pavement Markings
A11: Total Rows Placed | B11: 2 | C11: xlLeft(1) | D11: xlRight(1) | E11: xlRight(1) | G11: xlCenter | H11: xlCenter | I11: xlCenter | J11: xlCenter | K11: xlCenter | L11: xlRight(1) | M11: xlRight(1) | N11: xlRight(1) | O11: xlRight(1) | P11: xlRight(1) | Q11: xlRight(1) | R11: xlRight(1) | S11: xlRight(1) | T11: xlRight(1) | U11: xlRight(1) | V11: xlRight(1) | W11: xlRight(1) | X11: xlRight(1) | Y11: xlRight(1) | Z11: xlRight(1) | AA11: xlLeft(1) | AC11: =C11 -> xlLeft(1) | AD11: xlRight(1) | AE11: xlRight(1) | AF11: =G11 -> xlCenter | AG11: xlCenter | AH11: xlCenter | AI11: xlCenter | AJ11: xlCenter | AK11: xlRight(1) | AL11: xlRight(1) | AM11: xlRight(1) | AN11: xlRight(1) | AO11: xlRight(1) | AP11: xlRight(1) | AQ11: xlRight(1) | AR11: xlRight(1) | AS11: xlRight(1) | AT11: xlRight(1) | AU11: xlRight(1) | AV11: =W11 -> xlRight(1) | AW11: xlRight(1) | AX11: xlRight(1) | AY11: xlRight(1) | AZ11: xlLeft(1) | BB11: 18 | BC11: DDY4 | BD11: DDY4: Double Dotted Line (Yellow) @ 0.67 | BE11: =2/3 -> 0.6666666667 | BG11: Wet Retroreflective Removable Tape
A12: Total Rows Needed | B12: =SUM(B8:B10) -> 2 | C12: General | D12: #+00.00 | E12: #+00.00 | G12: General | H12: General | I12: General | J12: General | K12: General | L12: 0.00 | M12: 0.00 | N12: 0.00 | O12: 0.00 | P12: 0.00 | Q12: 0.00 | R12: 0.00 | S12: 0.00 | T12: 0.00 | U12: 0.00 | V12: 0.00 | W12: 0.00 | X12: 0.00 | Y12: 0.00 | Z12: 0.00 | AA12: General | AC12: General | AD12: #+00.00 | AE12: #+00.00 | AF12: General | AG12: General | AH12: General | AI12: General | AJ12: General | AK12: 0.00 | AL12: 0.00 | AM12: 0.00 | AN12: 0.00 | AO12: 0.00 | AP12: 0.00 | AQ12: 0.00 | AR12: 0.00 | AS12: 0.00 | AT12: 0.00 | AU12: 0.00 | AV12: 0.00 | AW12: 0.00 | AX12: 0.00 | AY12: 0.00 | AZ12: General | BB12: 9 | BC12: DLW4 | BD12: DLW4: Dotted Line (White) @ 0.33 | BE12: =1/3 -> 0.3333333333 | BG12: Nonreflective, Preformed Removable Tape
A13: Last Tab DE Starter Row | B13: 57 | C13: =CELL("width",C13) -> 15 | D13: =CELL("width",D13) -> 16 | E13: =CELL("width",E13) -> 16 | G13: =CELL("width",G13) -> 10 | H13: 54 | I13: 4 | J13: 4 | K13: 4 | L13: 10 | M13: 10 | N13: 10 | O13: 10 | P13: 10 | Q13: 10 | R13: 10 | S13: 10 | T13: 10 | U13: 10 | V13: 10 | W13: 10 | X13: 10 | Y13: 10 | Z13: 10 | AA13: 34 | AC13: =CELL("width",AC13) -> 0 | AD13: 0 | AE13: 0 | AF13: 0 | AG13: 0 | AH13: 0 | AI13: 0 | AJ13: 0 | AK13: 0 | AL13: 0 | AM13: 0 | AN13: 0 | AO13: 0 | AP13: 0 | AQ13: 0 | AR13: 0 | AS13: 0 | AT13: 0 | AU13: 0 | AV13: 0 | AW13: 0 | AX13: 0 | AY13: 0 | AZ13: 0 | BB13: new | BC13: DLY4 | BD13: DLY4: Dotted Line (Yellow) @ 0.33 | BE13: =1/3 -> 0.3333333333 | BG13: Removal of Paint
A14: Last Tab TabSheet Starter Row | B14: 15 | C14: A | D14: B | E14: C | G14: D | H14: E | I14: F | J14: G | K14: H | L14: I | M14: J | N14: K | O14: L | P14: M | Q14: N | R14: O | S14: P | T14: Q | U14: R | V14: S | W14: T | X14: U | Y14: V | Z14: W | AA14: X | AC14: =LOWER(C14) -> a | AD14: =LOWER(D14) -> b | AE14: =LOWER(E14) -> c | AF14: =LOWER(G14) -> d | AG14: e | AH14: f | AI14: g | AJ14: h | AK14: i | AL14: j | AM14: k | AN14: l | AO14: m | AP14: n | AQ14: o | AR14: p | AS14: q | AT14: r | AU14: s | AV14: t | AW14: u | AX14: v | AY14: w | AZ14: x | BB14: 7 | BC14: ELW4 | BD14: ELW4: Edge Line Right (White) @ 1.00 | BE14: 1 | BG14: Removal of Permanent Tape
A15: Last Copy Starter Row | B15: 1 | F15: =BB2 -> Old 9001 | H15: =BC2 -> Line Types (See PM-110) | AC15: 108-22 | BB15: 8 | BC15: ELY4 | BD15: ELY4: Edge Line Left (Yellow) @ 1.00 | BE15: 1 | BG15: Removal of Removable Tape
A16: Tab Loop Number | B16: 2 | F16: Detail Number | G16: Key | H16: Description | I16: Factor | J16: 0 | AC16: =B17 -> 2013-04-16 | BB16: new | BC16: LDW8 | BD16: LDW8: Lane Drop (White) @ 0.50 | BE16: 0.5 | BG16: ="Factored Total: "&BG3 -> Factored Total: Waterborne/Solvent Paint | BH16: =SUMIF($H$57:$H$2000,$BG3,L$57:L$2000)*L$43 -> 0 | BI16: 0 | BJ16: 0 | BK16: 0 | BL16: 0 | BM16: 0 | BN16: 0 | BO16: 0 | BP16: 0 | BQ16: 0 | BR16: 0 | BS16: 0 | BT16: 0 | BU16: 0 | BV16: 0
A17: Revision Date | B17: 2013-04-16 | F17: 2 | G17: BCY4* | H17: BCY4: Broken Centerline (Yellow) @ 0.25 | I17: 0.25 | J17: 0 | AC17: =C44 -> PAVEMENT MARKING LINE TYPES | BB17: new | BC17: MNY4*** | BD17: MNY4: Median Nose (Yellow) @ 1.00 | BE17: 1 | BG17: Factored Total: Highbuild Waterborne Paint | BH17: 0 | BI17: 0 | BJ17: 0 | BK17: 0 | BL17: 0 | BM17: 0 | BN17: 0 | BO17: 0 | BP17: 0 | BQ17: 0 | BR17: 0 | BS17: 0 | BT17: 0 | BU17: 0 | BV17: 0
A18: Tabulation Width | B18: 4 | F18: 6 | G18: BLW4 | H18: BLW4: Broken Lane Line (White) @ 0.25 | I18: 0.25 | J18: 0 | BB18: 5 | BC18: NPY4** | BD18: NPY4: No Passing Zone Line (Yellow) @ 1.25 | BE18: 1.25 | BG18: Factored Total: Durable Paint | BH18: 0 | BI18: 0 | BJ18: 0 | BK18: 0 | BL18: 0 | BM18: 0 | BN18: 0 | BO18: 0 | BP18: 0 | BQ18: 0 | BR18: 0 | BS18: 0 | BT18: 0 | BU18: 0 | BV18: 0
A19: Horizontal Grid Lines | B19: Yes | F19: new | G19: CBW6 | H19: CBW6: Crosswalk Bar (White) @ 15.00 | I19: 15 | J19: 0 | AC19: =C46 -> See PM-110 | BB19: new | BC19: RLW4 | BD19: RLW4: Ramp Edge Line Right (White) @ 1.00 | BE19: 1 | BG19: Factored Total: Permanent Regular Tape | BH19: 0 | BI19: 0 | BJ19: 0 | BK19: 0 | BL19: 0 | BM19: 0 | BN19: 0 | BO19: 0 | BP19: 0 | BQ19: 0 | BR19: 0 | BS19: 0 | BT19: 0 | BU19: 0 | BV19: 0
F20: 11 | G20: CHW8 | H20: CHW8: Channelizing Line (White) @ 2.00 | I20: 2 | J20: 0 | AC20: =C47 -> *BCY4 - Place on the same side of the roadway to match existing markings near the project. | AH20: =I47 -> ***MNY4 - Factor of 1.00 as value includes number of 4-inch passes to cover median nose area. | BB20: new | BC20: RLY4 | BD20: RLY4: Ramp Edge Line Left (Yellow) @ 1.00 | BE20: 1 | BG20: Factored Total: Permanent Preform Polymer Tape | BH20: 0 | BI20: 0 | BJ20: 0 | BK20: 0 | BL20: 0 | BM20: 0 | BN20: 0 | BO20: 0 | BP20: 0 | BQ20: 0 | BR20: 0 | BS20: 0 | BT20: 0 | BU20: 0 | BV20: 0
F21: 12 | G21: CHY8 | H21: CHY8: Channelizing Line (Yellow) @ 2.00 | I21: 2 | J21: 0 | AC21: =C48 -> **NPY4 - For estimating purposes only. No Passing Zone Lines will be located in the field. | BB21: 13 | BC21: SLW2 | BD21: SLW2: Stop Line (White) @ 6.00 | BE21: 6 | BG21: Factored Total: Permanent Profiled Tape | BH21: 0 | BI21: 0 | BJ21: 0 | BK21: 0 | BL21: 0 | BM21: 0 | BN21: 0 | BO21: 0 | BP21: 0 | BQ21: 0 | BR21: 0 | BS21: 0 | BT21: 0 | BU21: 0 | BV21: 0
F22: 14 | G22: CLW6 | H22: CLW6: Crosswalk Line (White) @ 3.00 | I22: 3 | J22: 0 | AC22: =C50 -> BCY4: Broken Centerline (Yellow) @ 0.25 | AG22: =H50 -> DCY4: Double Centerline (Yellow) @ 2.00 | AL22: =L50 -> NPY4: No Passing Zone Line (Yellow) @ 1.25 | AR22: =R50 -> BLW4: Broken Lane Line (White) @ 0.25 | AX22: =X50 -> ELW4: Edge Line Right (White) @ 1.00 | BB22: 13 | BC22: SLW4 | BD22: SLW4: Solid Lane Line (White) @ 1.00 | BE22: 1 | BG22: Factored Total: Permanent Intersection Tape | BH22: 0 | BI22: 0 | BJ22: 0 | BK22: 0 | BL22: 0 | BM22: 0 | BN22: 0 | BO22: 0 | BP22: 0 | BQ22: 0 | BR22: 0 | BS22: 0 | BT22: 0 | BU22: 0 | BV22: 0
F23: 3 | G23: DCY4 | H23: DCY4: Double Centerline (Yellow) @ 2.00 | I23: 2 | J23: 0 | AC23: =C51 -> ELY4: Edge Line Left (Yellow) @ 1.00 | AG23: =H51 ->  | AL23: =L51 ->  | AR23: =R51 ->  | AX23: =X51 ->  | BB23: new | BC23: SPW4 | BD23: SPW4: Sloped Curb 4" (White) @ 3.23 | BE23: 3.23 | BG23: Factored Total: Grooves Cut for Pavement Markings | BH23: 0 | BI23: 0 | BJ23: 0 | BK23: 0 | BL23: 0 | BM23: 0 | BN23: 0 | BO23: 0 | BP23: 0 | BQ23: 0 | BR23: 0 | BS23: 0 | BT23: 0 | BU23: 0 | BV23: 0
F24: 18 | G24: DDY4 | H24: DDY4: Double Dotted Line (Yellow) @ 0.67 | I24: 0.6666666667 | J24: 0 | AC24: =C52 ->  | AG24: =H52 ->  | AL24: =L52 ->  | AR24: =R52 ->  | AX24: =X52 ->  | BB24: 16B | BC24: SPW6 | BD24: SPW6: Sloped Curb 6" (White) @ 3.40 | BE24: 3.4 | BG24: Factored Total: Wet Retroreflective Removable Tape | BH24: 0 | BI24: 0 | BJ24: 0 | BK24: 0 | BL24: 0 | BM24: 0 | BN24: 0 | BO24: 0 | BP24: 0 | BQ24: 0 | BR24: 0 | BS24: 0 | BT24: 0 | BU24: 0 | BV24: 0
F25: 9 | G25: DLW4 | H25: DLW4: Dotted Line (White) @ 0.33 | I25: 0.3333333333 | J25: 0 | AC25: =C53 -> Location | AK25: =L53 -> Length by Line Type (Unfactored) | AZ25: =AA53 -> Remarks | BB25: new | BC25: SPY4 | BD25: SPY4: Sloped Curb 4" (Yellow) @ 3.23 | BE25: 3.23 | BG25: Factored Total: Nonreflective, Preformed Removable Tape | BH25: 0 | BI25: 0 | BJ25: 0 | BK25: 0 | BL25: 0 | BM25: 0 | BN25: 0 | BO25: 0 | BP25: 0 | BQ25: 0 | BR25: 0 | BS25: 0 | BT25: 0 | BU25: 0 | BV25: 0
F26: new | G26: DLY4 | H26: DLY4: Dotted Line (Yellow) @ 0.33 | I26: 0.3333333333 | J26: 0 | AC26: =C54 -> Road ID | AD26: =D54 -> Station to Station | AF26: =G54 -> Dir. of Travel | AG26: =H54 -> Marking Type | AH26: =I54 -> Side | AK26: =IF(L54<>"",L54,"") -> BCY4* | AL26: DCY4 | AM26: NPY4** | AN26: BLW4 | AO26: ELW4 | AP26: ELY4 | BB26: 15B | BC26: SPY6 | BD26: SPY6: Sloped Curb 6" (Yellow) @ 3.40 | BE26: 3.4 | BG26: Factored Total: Removal of Paint | BH26: 0 | BI26: 0 | BJ26: 0 | BK26: 0 | BL26: 0 | BM26: 0 | BN26: 0 | BO26: 0 | BP26: 0 | BQ26: 0 | BR26: 0 | BS26: 0 | BT26: 0 | BU26: 0 | BV26: 0
F27: 7 | G27: ELW4 | H27: ELW4: Edge Line Right (White) @ 1.00 | I27: 1 | J27: 0 | BB27: 16A | BC27: STW6 | BD27: STW6: Standard Curb 6" (White) @ 3.03 | BE27: 3.03 | BG27: Factored Total: Removal of Permanent Tape | BH27: 0 | BI27: 0 | BJ27: 0 | BK27: 0 | BL27: 0 | BM27: 0 | BN27: 0 | BO27: 0 | BP27: 0 | BQ27: 0 | BR27: 0 | BS27: 0 | BT27: 0 | BU27: 0 | BV27: 0
F28: 8 | G28: ELY4 | H28: ELY4: Edge Line Left (Yellow) @ 1.00 | I28: 1 | J28: 0 | AH28: =I56 -> L | AI28: C | AJ28: R | AK28: STA | AL28: STA | AM28: STA | AN28: STA | AO28: STA | AP28: STA | AQ28: STA | AR28: STA | AS28: STA | AT28: STA | AU28: STA | AV28: STA | AW28: STA | AX28: STA | AY28: STA | BB28: 15A | BC28: STY6 | BD28: STY6: Standard Curb 6" (Yellow) @ 3.03 | BE28: 3.03 | BG28: Factored Total: Removal of Removable Tape | BH28: 0 | BI28: 0 | BJ28: 0 | BK28: 0 | BL28: 0 | BM28: 0 | BN28: 0 | BO28: 0 | BP28: 0 | BQ28: 0 | BR28: 0 | BS28: 0 | BT28: 0 | BU28: 0 | BV28: 0
F29: new | G29: LDW8 | H29: LDW8: Lane Drop (White) @ 0.50 | I29: 0.5 | J29: 0 | BB29: 17 | BC29: YLW2 | BD29: YLW2: Yield Line (White) @ 1.71 | BE29: 1.71 | BG29: Bid Quantity: Painted Pavement Markings, Waterborne or Solvent-Based | BH29: =SUMIF(BH16:BV16,">0",BH16:BV16) -> 0
F30: new | G30: MNY4*** | H30: MNY4: Median Nose (Yellow) @ 1.00 | I30: 1 | J30: 0 | BG30: Bid Quantity: Painted Pavement Markings, Highbuild Waterborne | BH30: 0
F31: =BB18 -> 5 | G31: NPY4** | H31: NPY4: No Passing Zone Line (Yellow) @ 1.25 | I31: 1.25 | J31: 0 | BG31: Bid Quantity: Painted Pavement Markings, Durable | BH31: 0
F32: new | G32: RLW4 | H32: RLW4: Ramp Edge Line Right (White) @ 1.00 | I32: 1 | J32: 0 | BG32: Bid Quantity: Permanent Tape Markings, Regular Marking Tape | BH32: 0
F33: new | G33: RLY4 | H33: RLY4: Ramp Edge Line Left (Yellow) @ 1.00 | I33: 1 | J33: 0 | BG33: Bid Quantity: Permanent Tape Markings, Preformed Polymer Marking Material | BH33: 0
F34: 13 | G34: SLW2 | H34: SLW2: Stop Line (White) @ 6.00 | I34: 6 | J34: 0 | BG34: Bid Quantity: Permanent Tape Markings, Profiled Pavement Marking Tape | BH34: 0
F35: 13 | G35: SLW4 | H35: SLW4: Solid Lane Line (White) @ 1.00 | I35: 1 | J35: 0 | BG35: Bid Quantity: Permanent Tape Markings, Intersection Marking Tape | BH35: 0
F36: new | G36: SPW4 | H36: SPW4: Sloped Curb 4" (White) @ 3.23 | I36: 3.23 | J36: 0 | BG36: Bid Quantity: Grooves Cut for Pavement Markings | BH36: 0
F37: 16B | G37: SPW6 | H37: SPW6: Sloped Curb 6" (White) @ 3.40 | I37: 3.4 | J37: 0 | BG37: Bid Quantity: Wet Retroreflective Removable Tape Markings | BH37: 0
F38: new | G38: SPY4 | H38: SPY4: Sloped Curb 4" (Yellow) @ 3.23 | I38: 3.23 | J38: 0 | BG38: Bid Quantity: Removable, Nonreflective, Preformed Tape | BH38: 0
F39: 15B | G39: SPY6 | H39: SPY6: Sloped Curb 6" (Yellow) @ 3.40 | I39: 3.4 | J39: 0 | BG39: Bid Quantity: Pavement Markings Removed | BH39: =SUMIF(BH26:BV26,">0",BH26:BV26)+SUMIF(BH27:BV27,">0",BH27:BV27) -> 0
F40: 16A | G40: STW6 | H40: STW6: Standard Curb 6" (White) @ 3.03 | I40: 3.03 | J40: 0 | BG40: Incidental Removal of Removable Tape | BH40: =SUMIF(BH28:BV28,">0",BH28:BV28) -> 0
F41: 15A | G41: STY6 | H41: STY6: Standard Curb 6" (Yellow) @ 3.03 | I41: 3.03 | J41: 0
F42: 17 | G42: YLW2 | H42: YLW2: Yield Line (White) @ 1.71 | I42: 1.71 | J42: 0
K43: Factors: | L43: =IF(L$54<>"",VLOOKUP(L$54,$BC$4:$BE$29,3,FALSE),0) -> 0.25 | M43: 2 | N43: 1.25 | O43: 0.25 | P43: 1 | Q43: 1 | R43: 0 | S43: 0 | T43: 0 | U43: 0 | V43: 0 | W43: 0 | X43: 0 | Y43: 0 | Z43: 0
C44: PAVEMENT MARKING LINE TYPES
C46: See PM-110
C47: *BCY4 - Place on the same side of the roadway to match existing markings near the project. | I47: ***MNY4 - Factor of 1.00 as value includes number of 4-inch passes to cover median nose area.
C48: **NPY4 - For estimating purposes only. No Passing Zone Lines will be located in the field.
C49: ="This Data Entry Sheet fills Tab "&AC15&" effective "&TEXT(B17,"mm-dd-yy") -> This Data Entry Sheet fills Tab 108-22 effective 04-16-13
C50: =IF(L54<>"",VLOOKUP(L54,BC4:BE29,2,FALSE),"") -> BCY4: Broken Centerline (Yellow) @ 0.25 | H50: =IF(M54<>"",VLOOKUP(M54,BC4:BE29,2,FALSE),"") -> DCY4: Double Centerline (Yellow) @ 2.00 | L50: =IF(N54<>"",VLOOKUP(N54,BC4:BE29,2,FALSE),"") -> NPY4: No Passing Zone Line (Yellow) @ 1.25 | R50: =IF(O54<>"",VLOOKUP(O54,BC4:BE29,2,FALSE),"") -> BLW4: Broken Lane Line (White) @ 0.25 | X50: =IF(P54<>"",VLOOKUP(P54,BC4:BE29,2,FALSE),"") -> ELW4: Edge Line Right (White) @ 1.00
C51: =IF(Q54<>"",VLOOKUP(Q54,BC4:BE29,2,FALSE),"") -> ELY4: Edge Line Left (Yellow) @ 1.00 | H51: =IF(R54<>"",VLOOKUP(R54,BC4:BE29,2,FALSE),"") ->  | L51: =IF(S54<>"",VLOOKUP(S54,BC4:BE29,2,FALSE),"") ->  | R51: =IF(T54<>"",VLOOKUP(T54,BC4:BE29,2,FALSE),"") ->  | X51: =IF(U54<>"",VLOOKUP(U54,BC4:BE29,2,FALSE),"") -> 
C52: =IF(V54<>"",VLOOKUP(V54,BC4:BE29,2,FALSE),"") ->  | H52: =IF(W54<>"",VLOOKUP(W54,BC4:BE29,2,FALSE),"") ->  | L52: =IF(X54<>"",VLOOKUP(X54,BC4:BE29,2,FALSE),"") ->  | R52: =IF(Y54<>"",VLOOKUP(Y54,BC4:BE29,2,FALSE),"") ->  | X52: =IF(Z54<>"",VLOOKUP(Z54,BC4:BE29,2,FALSE),"") -> 
C53: Location | L53: Length by Line Type (Unfactored) | AA53: Remarks
C54: Road ID | D54: Station to Station | F54: Length (STA) | G54: Dir. of Travel | H54: Marking Type | I54: Side | L54: BCY4* | M54: DCY4 | N54: NPY4** | O54: BLW4 | P54: ELW4 | Q54: ELY4
I56: L | J56: C | K56: R | L56: STA | M56: STA | N56: STA | O56: STA | P56: STA | Q56: STA | R56: STA | S56: STA | T56: STA | U56: STA | V56: STA | W56: STA | X56: STA | Y56: STA | Z56: STA
F57: =(ABS(E57-D57))/100 -> 0
F58: 0
F59: 0
F60: 0
F61: 0
F62: 0
F63: 0
F64: 0
F65: 0
F66: 0
F67: 0
F68: 0
F69: 0
F70: 0
F71: 0
F72: 0
F73: 0
F74: 0
F75: 0
F76: 0
F77: 0
F78: 0
F79: 0
F80: 0
F81: 0
F82: 0
F83: 0
F84: 0
F85: 0
F86: 0
F87: 0
F88: 0
F89: 0
F90: 0
F91: 0
F92: 0
F93: 0
F94: 0
F95: 0
F96: 0
F97: 0
F98: 0
F99: 0
F100: 0
F101: 0
F102: 0
F103: 0
F104: 0
F105: 0
F106: 0
F107: 0
F108: 0
F109: 0
F110: 0
F111: 0
F112: 0
F113: 0
F114: 0
F115: 0
F116: 0
F117: 0
F118: 0
F119: 0
F120: 0
F121: =(ABS(E121-D121))/100 -> 0
F122: 0
F123: 0
F124: 0
F125: 0
F126: 0
F127: 0
F128: 0
F129: 0
F130: 0
F131: 0
F132: 0
F133: 0
F134: 0
F135: 0
F136: 0
F137: 0
F138: 0
F139: 0
F140: 0
F141: 0
F142: 0
F143: 0
F144: 0
F145: 0
F146: 0
F147: 0
F148: 0
F149: 0
F150: 0
F151: 0
F152: 0
F153: 0
F154: 0
F155: 0
F156: 0
F157: 0
F158: 0
F159: 0
F160: 0
F161: 0
F162: 0
F163: 0
F164: 0
F165: 0
F166: 0
F167: 0
F168: 0
F169: 0
F170: 0
F171: 0
F172: 0
F173: 0
F174: 0
F175: 0
F176: 0
F177: 0
F178: 0
F179: 0
F180: 0
F181: 0
F182: 0
F183: 0
F184: 0
F185: =(ABS(E185-D185))/100 -> 0
F186: 0
F187: 0
F188: 0
F189: 0
F190: 0
F191: 0
F192: 0
F193: 0
F194: 0
F195: 0
F196: 0
F197: 0
F198: 0
F199: 0
F200: 0
F201: 0
F202: 0
... 1798 more rows

Sheet DE108_27
A1: TabTitle | B1: =C16 -> TEMPORARY FLOODLIGHTING LUMINAIRES
A2: Number of Tab Columns | B2: 5
A3: DE Starter Row Number | B3: 22
A4: TabSheet Starter Row Number | B4: 8
A5: TabSheet Header Row Count | B5: 7
A6: Top Header Cell | B6: I15
A7: Bottom Header Cell | B7: M22
A8: DESheet Row Count | B8: 0
A9: Fixed Empty Rows | B9: 2
A10: Usable Empty Rows | B10: 0
A11: Total Rows Placed | B11: 2 | C11: xlRight(1) | D11: xlRight(1) | E11: xlRight(1) | F11: xlRight(1) | G11: xlLeft(1) | I11: =C11 -> xlRight(1) | J11: xlRight(1) | K11: xlRight(1) | L11: xlRight(1) | M11: xlLeft(1)
A12: Total Rows Needed | B12: =SUM(B8:B10) -> 2 | C12: General | D12: #+00.00 | E12: General | F12: 0 | G12: General | I12: General | J12: #+00.00 | K12: General | L12: 0 | M12: General
A13: Last Tab DE Starter Row | B13: 22 | C13: =CELL("width",C13) -> 5 | D13: =CELL("width",D13) -> 16 | E13: =CELL("width",E13) -> 10 | F13: =CELL("width",F13) -> 8 | G13: =CELL("width",G13) -> 35 | I13: =CELL("width",I13) -> 0 | J13: =CELL("width",J13) -> 0 | K13: =CELL("width",K13) -> 0 | L13: =CELL("width",L13) -> 0 | M13: =CELL("width",M13) -> 0
A14: Last Tab Tabsheet Starter Row | B14: 8 | C14: A | D14: B | E14: C | F14: D | G14: E | I14: =LOWER(C14) -> a | J14: =LOWER(D14) -> b | K14: =LOWER(E14) -> c | L14: =LOWER(F14) -> d | M14: =LOWER(G14) -> e
A15: Last Copy Starter Row | B15: 1 | F15: =SUBTOTAL(9,F22:F2000) -> 0 | I15: 108-27
A16: Tab Loop Number | B16: 2 | C16: TEMPORARY FLOODLIGHTING LUMINAIRES | I16: =B17 -> 2012-10-16
A17: Revision Date | B17: 2012-10-16 | I17: =C16 -> TEMPORARY FLOODLIGHTING LUMINAIRES
A18: Tabulation Width | B18: 1 | C18: ="This Data Entry Sheet fills Tab "&I15&" effective "&TEXT(B17,"mm-dd-yy") -> This Data Entry Sheet fills Tab 108-27 effective 10-16-12
A19: Horizontal Grid Lines | B19: Yes | C19: No. | D19: Location Station | E19: Offset | F19: Number Lumin. | G19: Remarks | I19: =C19 -> No. | J19: =D19 -> Location Station | K19: =E19 -> Offset | L19: =F19 -> Number Lumin. | M19: =G19 -> Remarks

Sheet DE108_29
A1: TabTitle | B1: =C16 -> PAVEMENT MARKING SYMBOLS AND LEGENDS
A2: Number of Tab Columns | B2: 27
A3: DE Starter Row Number | B3: 24
A4: TabSheet Starter Row Number | B4: 10
A5: TabSheet Header Row Count | B5: 9
A6: Top Header Cell | B6: AE15
A7: Bottom Header Cell | B7: BE23
A8: DESheet Row Count | B8: 0
A9: Fixed Empty Rows | B9: 2
A10: Usable Empty Rows | B10: 0
A11: Total Rows Placed | B11: 2 | C11: xlLeft(1) | D11: xlRight(1) | E11: xlRight(1) | F11: xlRight(1) | G11: xlRight(1) | H11: xlRight(1) | I11: xlRight(1) | J11: xlRight(1) | K11: xlRight(1) | L11: xlRight(1) | M11: xlRight(1) | N11: xlRight(1) | O11: xlRight(1) | P11: xlRight(1) | Q11: xlRight(1) | R11: xlRight(1) | S11: xlRight(1) | T11: xlRight(1) | U11: xlRight(1) | V11: xlRight(1) | W11: xlRight(1) | X11: xlRight(1) | Y11: xlRight(1) | Z11: xlRight(1) | AA11: xlRight(1) | AB11: xlRight(1) | AC11: xlLeft(1) | AE11: =C11 -> xlLeft(1) | AF11: xlRight(1) | AG11: xlRight(1) | AH11: xlRight(1) | AI11: xlRight(1) | AJ11: xlRight(1) | AK11: xlRight(1) | AL11: xlRight(1) | AM11: xlRight(1) | AN11: xlRight(1) | AO11: xlRight(1) | AP11: xlRight(1) | AQ11: =G11 -> xlRight(1) | AR11: =K11 -> xlRight(1) | AS11: xlRight(1) | AT11: xlRight(1) | AU11: xlRight(1) | AV11: xlRight(1) | AW11: xlRight(1) | AX11: xlRight(1) | AY11: xlRight(1) | AZ11: =X11 -> xlRight(1) | BA11: xlRight(1) | BB11: xlRight(1) | BC11: xlRight(1) | BD11: xlRight(1) | BE11: xlLeft(1)
A12: Total Rows Needed | B12: =SUM(B8:B10) -> 2 | C12: General | D12: #+00.00 | E12: General | F12: 0 | G12: 0 | H12: 0 | I12: 0 | J12: 0 | K12: 0 | L12: 0 | M12: 0 | N12: 0 | O12: 0 | P12: 0 | Q12: 0 | R12: 0 | S12: 0 | T12: 0 | U12: 0 | V12: 0 | W12: 0 | X12: 0 | Y12: 0 | Z12: 0 | AA12: 0 | AB12: 0 | AC12: General | AE12: General | AF12: #+00.00 | AG12: General | AH12: 0 | AI12: 0 | AJ12: 0 | AK12: 0 | AL12: 0 | AM12: 0 | AN12: 0 | AO12: 0 | AP12: 0 | AQ12: =G12 -> 0 | AR12: 0 | AS12: 0 | AT12: 0 | AU12: 0 | AV12: 0 | AW12: 0 | AX12: 0 | AY12: 0 | AZ12: 0 | BA12: 0 | BB12: 0 | BC12: 0 | BD12: 0 | BE12: General
A13: Last Tab DE Starter Row | B13: 24 | C13: =CELL("width", C13) -> 21 | D13: 16 | E13: 5 | F13: 10 | G13: 10 | H13: 10 | I13: 10 | J13: 10 | K13: 10 | L13: 10 | M13: 10 | N13: 10 | O13: 10 | P13: 10 | Q13: 10 | R13: 10 | S13: 10 | T13: 10 | U13: 10 | V13: 10 | W13: 10 | X13: 10 | Y13: 10 | Z13: 10 | AA13: 10 | AB13: 10 | AC13: 33 | AE13: =CELL("width", AE13) -> 0 | AF13: 0 | AG13: 0 | AH13: 0 | AI13: 0 | AJ13: 0 | AK13: 0 | AL13: 0 | AM13: 0 | AN13: 0 | AO13: 0 | AP13: 0 | AQ13: 0 | AR13: 0 | AS13: 0 | AT13: 0 | AU13: 0 | AV13: 0 | AW13: 0 | AX13: 0 | AY13: 0 | AZ13: 0 | BA13: 0 | BB13: 0 | BC13: 0 | BD13: 0 | BE13: 0
A14: Last Tab Tabsheet Starter Row | B14: 10 | C14: A | D14: B | E14: C | F14: D | G14: E | H14: F | I14: G | J14: H | K14: I | L14: J | M14: K | N14: L | O14: M | P14: N | Q14: O | R14: P | S14: Q | T14: R | U14: S | V14: T | W14: U | X14: V | Y14: W | Z14: X | AA14: Y | AB14: Z | AC14: AA | AE14: =LOWER(C14) -> a | AF14: b | AG14: c | AH14: d | AI14: e | AJ14: f | AK14: g | AL14: h | AM14: i | AN14: j | AO14: k | AP14: l | AQ14: m | AR14: n | AS14: o | AT14: p | AU14: q | AV14: r | AW14: s | AX14: t | AY14: u | AZ14: v | BA14: w | BB14: x | BC14: y | BD14: z | BE14: aa
A15: Last Copy Starter Row | B15: 1 | E15: Totals: | F15: =SUBTOTAL(9,F24:F2000) -> 0 | G15: 0 | H15: 0 | I15: 0 | J15: 0 | K15: 0 | L15: 0 | M15: 0 | N15: 0 | O15: 0 | P15: 0 | Q15: 0 | R15: 0 | S15: 0 | T15: 0 | U15: 0 | V15: 0 | W15: 0 | X15: 0 | Y15: 0 | Z15: 0 | AA15: 0 | AB15: 0 | AE15: 108-29
A16: Tab Loop Number | B16: 2 | C16: PAVEMENT MARKING SYMBOLS AND LEGENDS | AE16: =B17 -> 2014-04-15
A17: Revision Date | B17: 2014-04-15 | AE17: =$C$16 -> PAVEMENT MARKING SYMBOLS AND LEGENDS
A18: Tabulation Width | B18: 4 | C18: Refer to PM-111
A19: Horizontal Grid Lines | B19: Yes | C19: ="This Data Entry Sheet fills Tab "&AE15&" effective "&TEXT(B17,"mm-dd-yy") -> This Data Entry Sheet fills Tab 108-29 effective 04-15-14 | AE19: =C18 -> Refer to PM-111
C20: Road Identification | D20: Location | AB20: Groove Cuts | AC20: Remarks | AE20: =C20 -> Road Identification | AF20: =D20 -> Location | BD20: =AB20 -> Groove Cuts | BE20: =$AC$20 -> Remarks
D21: Station | E21: Side | AF21: =D21 -> Station | AG21: =E21 -> Side
F23: STAW | G23: RTAW | H23: LTAW | I23: CSRW | J23: CSLW | K23: CSTW | L23: CRLW | M23: FERW | N23: LLRW | O23: RLRW | P23: RRCW | Q23: BLSW | R23: WCSW | S23: WPSB | T23: SCLW | U23: XNGW | V23: STPW | W23: AHDW | X23: ONLW | Y23: BIKW | Z23: LANW | AA23: XITW | AB23: EACH | AH23: =F23 -> STAW | AI23: RTAW | AJ23: LTAW | AK23: CSRW | AL23: CSLW | AM23: CSTW | AN23: CRLW | AO23: FERW | AP23: LLRW | AQ23: RLRW | AR23: RRCW | AS23: BLSW | AT23: WCSW | AU23: WPSB | AV23: SCLW | AW23: XNGW | AX23: STPW | AY23: AHDW | AZ23: ONLW | BA23: BIKW | BB23: LANW | BC23: XITW | BD23: EACH

Sheet DE108_30
A1: TabTitle | B1: =C16 -> CRASH CUSHIONS
A2: Number of Tab Columns | B2: 21
A3: DE Starter Row Number | B3: 32
A4: TabSheet Starter Row Number | B4: 18
A5: TabSheet Header Row Count | B5: 17
A6: Top Header Cell | B6: Y15
A7: Bottom Header Cell | B7: AS31
A8: DESheet Row Count | B8: 0
A9: Fixed Empty Rows | B9: 2
A10: Usable Empty Rows | B10: 0
A11: Total Rows Placed | B11: 2 | C11: xlRight(1) | D11: xlCenter | E11: xlRight(1) | F11: xlCenter | G11: xlRight(1) | H11: xlCenter | I11: xlCenter | J11: xlCenter | K11: xlCenter | L11: xlCenter | M11: xlRight(1) | N11: xlRight(1) | O11: xlRight(1) | P11: xlRight(1) | Q11: xlRight(1) | R11: xlRight(1) | S11: xlRight(1) | T11: xlRight(1) | U11: xlRight(1) | V11: xlLeft(1) | W11: xlLeft(1) | Y11: =C11 -> xlRight(1) | Z11: xlCenter | AA11: xlRight(1) | AB11: xlCenter | AC11: xlRight(1) | AD11: xlCenter | AE11: xlCenter | AF11: xlCenter | AG11: xlCenter | AH11: xlCenter | AI11: xlRight(1) | AJ11: xlRight(1) | AK11: xlRight(1) | AL11: xlRight(1) | AM11: xlRight(1) | AN11: xlRight(1) | AO11: =S11 -> xlRight(1) | AP11: xlRight(1) | AQ11: xlRight(1) | AR11: xlLeft(1) | AS11: xlLeft(1)
A12: Total Rows Needed | B12: =SUM(B8:B10) -> 2 | C12: General | D12: General | E12: #+00.00 | F12: General | G12: 0.00 | H12: General | I12: General | J12: General | K12: General | L12: General | M12: 0.00 | N12: 0.00 | O12: 0.00 | P12: 0.00 | Q12: 0.00 | R12: 0.0 | S12: 0.0 | T12: 0 | U12: 0 | V12: General | W12: General | Y12: General | Z12: General | AA12: #+00.00 | AB12: General | AC12: 0.00 | AD12: General | AE12: General | AF12: General | AG12: General | AH12: General | AI12: 0.00 | AJ12: 0.00 | AK12: 0.00 | AL12: 0.00 | AM12: 0.00 | AN12: 0.0 | AO12: 0.0 | AP12: 0 | AQ12: 0 | AR12: General | AS12: General
A13: Last Tab DE Starter Row | B13: 32 | C13: =CELL("width", C13) -> 6 | D13: 6 | E13: 18 | F13: 6 | G13: 9 | H13: 9 | I13: 9 | J13: 9 | K13: 9 | L13: 9 | M13: 9 | N13: 9 | O13: 9 | P13: 9 | Q13: 9 | R13: 9 | S13: 9 | T13: 9 | U13: 9 | V13: 40 | W13: 13 | Y13: =CELL("width", Y13) -> 0 | Z13: 0 | AA13: 0 | AB13: 0 | AC13: 0 | AD13: 0 | AE13: 0 | AF13: 0 | AG13: 0 | AH13: 0 | AI13: 0 | AJ13: 0 | AK13: 0 | AL13: 0 | AM13: 0 | AN13: 0 | AO13: 0 | AP13: 0 | AQ13: 0 | AR13: 0 | AS13: 0
A14: Last Tab Tabsheet Starter Row | B14: 18 | C14: A | D14: B | E14: C | F14: D | G14: E | H14: F | I14: G | J14: H | K14: I | L14: J | M14: K | N14: L | O14: M | P14: N | Q14: O | R14: P | S14: Q | T14: R | U14: S | V14: T | W14: U | Y14: =LOWER(C14) -> a | Z14: b | AA14: c | AB14: d | AC14: e | AD14: f | AE14: g | AF14: h | AG14: i | AH14: j | AI14: k | AJ14: l | AK14: m | AL14: n | AM14: o | AN14: p | AO14: q | AP14: r | AQ14: s | AR14: t | AS14: u
A15: Last Copy Starter Row | B15: 1 | G15: Totals: | H15: =COUNTA(H32:H2000) -> 0 | I15: =COUNTA(I32:I2000) -> 0 | J15: =COUNTA(J32:J2000) -> 0 | K15: =COUNTA(K32:K2000) -> 0 | L15: =COUNTA(L32:L2000) -> 0 | R15: =SUBTOTAL(9,R31:R2000) -> 0 | S15: =SUBTOTAL(9,S31:S2000) -> 0 | T15: =SUBTOTAL(9,T31:T2000,U31:U2000) -> 0 | Y15: 108-30
A16: Tab Loop Number | B16: 2 | C16: CRASH CUSHIONS | Y16: =B17 -> 2013-04-16
A17: Revision Date | B17: 2013-04-16 | Y17: =C16 -> CRASH CUSHIONS
A18: Tabulation Width | B18: 3
A19: Horizontal Grid Lines | B19: Yes | C19: * Bid Item
C20: Lane(s) to which the installation is adjacent. | Y20: =C19 -> * Bid Item
C21: Complete this section when using the Temporary Crash Cushion bid item and Earthwork is needed for Sand Barrel placement. Refer to BA-500 | Y21: =C20 -> Lane(s) to which the installation is adjacent.
C22: ="This Data Entry Sheet fills Tab "&Y15&" effective "&TEXT(B17,"mm-dd-yy") -> This Data Entry Sheet fills Tab 108-30 effective 04-16-13 | Y22: =C21 -> Complete this section when using the Temporary Crash Cushion bid item and Earthwork is needed for Sand Barrel placement. Refer to BA-500
C23: No. | D23: Direction of Traffic | E23: Location Station | F23: Side | G23: Obstacle Width | H23: Crash Cushion (Select One)* | M23: Sand Barrel Details | R23: Earthwork* | T23: Spare Parts Kit (Select One)* | V23: Obstacle Description | W23: Remarks | Y23: =C23 -> No. | Z23: Direction of Traffic | AA23: Location Station | AB23: Side | AC23: Obstacle Width | AD23: Crash Cushion (Select One)* | AI23: =M23 -> Sand Barrel Details | AN23: =R23 -> Earthwork* | AP23: =T23 -> Spare Parts Kit (Select One)* | AR23: =V23 -> Obstacle Description | AS23: =W23 -> Remarks
H25: Temporary | I25: Temporary Redirective | J25: Temporary Severe Use | K25: Permanent | L25: Permanent Severe Use | R25: Excavation Class 10 | S25: Embankment in Place | AD25: =H25 -> Temporary | AE25: =I25 -> Temporary Redirective | AF25: =J25 -> Temporary Severe Use | AG25: =K25 -> Permanent | AH25: =L25 -> Permanent Severe Use | AN25: =R25 -> Excavation Class 10 | AO25: =S25 -> Embankment in Place
T26: Permanent | U26: Permanent Severe Use | AP26: =T26 -> Permanent | AQ26: =U26 -> Permanent Severe Use
M28: Length | N28: Length | O28: Length | P28: Length | Q28: Length | AI28: =M28 -> Length | AJ28: =N28 -> Length | AK28: =O28 -> Length | AL28: =P28 -> Length | AM28: =Q28 -> Length
G31: FT | H31: EACH | I31: EACH | J31: EACH | K31: EACH | L31: EACH | M31: FT | N31: FT | O31: FT | P31: FT | Q31: FT | R31: CY | S31: CY | T31: EACH | U31: EACH | AC31: =G31 -> FT | AI31: =M31 -> FT | AJ31: FT | AK31: FT | AL31: FT | AM31: FT | AN31: CY | AO31: CY | AP31: EACH | AQ31: EACH
N32: =IF(AND(G32<>"",H32<>""),IF(G32<=3.5,24.25,IF(AND(G32>3.5,G32<=10.58),25,IF(AND(G32>10.58,G32<=17.75),25.75,26.6))),"") ->  | O32: =IF(N32<>"",IF(N32=24.25,M32+5.25,IF(N32=25,M32+12.25,IF(N32=25.75,M32+19.25,M32+26.25))),"") ->  | P32: =IF(N32<>"",IF(N32=24.25,M32+3.25,IF(N32=25,M32+10,IF(N32=25.75,M32+17,M32+24))),"") ->  | Q32: =IF(N32<>"",IF(N32=24.25,(0.268*M32)+12,IF(N32=25,(0.268*M32)+38,IF(N32=25.75,(0.268*M32)+64,(0.268*M32)+89))),"") -> 
N96: =IF(AND(G96<>"",H96<>""),IF(G96<=3.5,24.25,IF(AND(G96>3.5,G96<=10.58),25,IF(AND(G96>10.58,G96<=17.75),25.75,26.6))),"") ->  | O96: =IF(N96<>"",IF(N96=24.25,M96+5.25,IF(N96=25,M96+12.25,IF(N96=25.75,M96+19.25,M96+26.25))),"") ->  | P96: =IF(N96<>"",IF(N96=24.25,M96+3.25,IF(N96=25,M96+10,IF(N96=25.75,M96+17,M96+24))),"") ->  | Q96: =IF(N96<>"",IF(N96=24.25,(0.268*M96)+12,IF(N96=25,(0.268*M96)+38,IF(N96=25.75,(0.268*M96)+64,(0.268*M96)+89))),"") -> 
N160: =IF(AND(G160<>"",H160<>""),IF(G160<=3.5,24.25,IF(AND(G160>3.5,G160<=10.58),25,IF(AND(G160>10.58,G160<=17.75),25.75,26.6))),"") ->  | O160: =IF(N160<>"",IF(N160=24.25,M160+5.25,IF(N160=25,M160+12.25,IF(N160=25.75,M160+19.25,M160+26.25))),"") ->  | P160: =IF(N160<>"",IF(N160=24.25,M160+3.25,IF(N160=25,M160+10,IF(N160=25.75,M160+17,M160+24))),"") ->  | Q160: =IF(N160<>"",IF(N160=24.25,(0.268*M160)+12,IF(N160=25,(0.268*M160)+38,IF(N160=25.75,(0.268*M160)+64,(0.268*M160)+89))),"") -> 
N224: =IF(AND(G224<>"",H224<>""),IF(G224<=3.5,24.25,IF(AND(G224>3.5,G224<=10.58),25,IF(AND(G224>10.58,G224<=17.75),25.75,26.6))),"") ->  | O224: =IF(N224<>"",IF(N224=24.25,M224+5.25,IF(N224=25,M224+12.25,IF(N224=25.75,M224+19.25,M224+26.25))),"") ->  | P224: =IF(N224<>"",IF(N224=24.25,M224+3.25,IF(N224=25,M224+10,IF(N224=25.75,M224+17,M224+24))),"") ->  | Q224: =IF(N224<>"",IF(N224=24.25,(0.268*M224)+12,IF(N224=25,(0.268*M224)+38,IF(N224=25.75,(0.268*M224)+64,(0.268*M224)+89))),"") -> 
N288: =IF(AND(G288<>"",H288<>""),IF(G288<=3.5,24.25,IF(AND(G288>3.5,G288<=10.58),25,IF(AND(G288>10.58,G288<=17.75),25.75,26.6))),"") ->  | O288: =IF(N288<>"",IF(N288=24.25,M288+5.25,IF(N288=25,M288+12.25,IF(N288=25.75,M288+19.25,M288+26.25))),"") ->  | P288: =IF(N288<>"",IF(N288=24.25,M288+3.25,IF(N288=25,M288+10,IF(N288=25.75,M288+17,M288+24))),"") ->  | Q288: =IF(N288<>"",IF(N288=24.25,(0.268*M288)+12,IF(N288=25,(0.268*M288)+38,IF(N288=25.75,(0.268*M288)+64,(0.268*M288)+89))),"") -> 
N352: =IF(AND(G352<>"",H352<>""),IF(G352<=3.5,24.25,IF(AND(G352>3.5,G352<=10.58),25,IF(AND(G352>10.58,G352<=17.75),25.75,26.6))),"") ->  | O352: =IF(N352<>"",IF(N352=24.25,M352+5.25,IF(N352=25,M352+12.25,IF(N352=25.75,M352+19.25,M352+26.25))),"") ->  | P352: =IF(N352<>"",IF(N352=24.25,M352+3.25,IF(N352=25,M352+10,IF(N352=25.75,M352+17,M352+24))),"") ->  | Q352: =IF(N352<>"",IF(N352=24.25,(0.268*M352)+12,IF(N352=25,(0.268*M352)+38,IF(N352=25.75,(0.268*M352)+64,(0.268*M352)+89))),"") -> 
N416: =IF(AND(G416<>"",H416<>""),IF(G416<=3.5,24.25,IF(AND(G416>3.5,G416<=10.58),25,IF(AND(G416>10.58,G416<=17.75),25.75,26.6))),"") ->  | O416: =IF(N416<>"",IF(N416=24.25,M416+5.25,IF(N416=25,M416+12.25,IF(N416=25.75,M416+19.25,M416+26.25))),"") ->  | P416: =IF(N416<>"",IF(N416=24.25,M416+3.25,IF(N416=25,M416+10,IF(N416=25.75,M416+17,M416+24))),"") ->  | Q416: =IF(N416<>"",IF(N416=24.25,(0.268*M416)+12,IF(N416=25,(0.268*M416)+38,IF(N416=25.75,(0.268*M416)+64,(0.268*M416)+89))),"") -> 
N480: =IF(AND(G480<>"",H480<>""),IF(G480<=3.5,24.25,IF(AND(G480>3.5,G480<=10.58),25,IF(AND(G480>10.58,G480<=17.75),25.75,26.6))),"") ->  | O480: =IF(N480<>"",IF(N480=24.25,M480+5.25,IF(N480=25,M480+12.25,IF(N480=25.75,M480+19.25,M480+26.25))),"") ->  | P480: =IF(N480<>"",IF(N480=24.25,M480+3.25,IF(N480=25,M480+10,IF(N480=25.75,M480+17,M480+24))),"") ->  | Q480: =IF(N480<>"",IF(N480=24.25,(0.268*M480)+12,IF(N480=25,(0.268*M480)+38,IF(N480=25.75,(0.268*M480)+64,(0.268*M480)+89))),"") -> 
N544: =IF(AND(G544<>"",H544<>""),IF(G544<=3.5,24.25,IF(AND(G544>3.5,G544<=10.58),25,IF(AND(G544>10.58,G544<=17.75),25.75,26.6))),"") ->  | O544: =IF(N544<>"",IF(N544=24.25,M544+5.25,IF(N544=25,M544+12.25,IF(N544=25.75,M544+19.25,M544+26.25))),"") ->  | P544: =IF(N544<>"",IF(N544=24.25,M544+3.25,IF(N544=25,M544+10,IF(N544=25.75,M544+17,M544+24))),"") ->  | Q544: =IF(N544<>"",IF(N544=24.25,(0.268*M544)+12,IF(N544=25,(0.268*M544)+38,IF(N544=25.75,(0.268*M544)+64,(0.268*M544)+89))),"") -> 
N608: =IF(AND(G608<>"",H608<>""),IF(G608<=3.5,24.25,IF(AND(G608>3.5,G608<=10.58),25,IF(AND(G608>10.58,G608<=17.75),25.75,26.6))),"") ->  | O608: =IF(N608<>"",IF(N608=24.25,M608+5.25,IF(N608=25,M608+12.25,IF(N608=25.75,M608+19.25,M608+26.25))),"") ->  | P608: =IF(N608<>"",IF(N608=24.25,M608+3.25,IF(N608=25,M608+10,IF(N608=25.75,M608+17,M608+24))),"") ->  | Q608: =IF(N608<>"",IF(N608=24.25,(0.268*M608)+12,IF(N608=25,(0.268*M608)+38,IF(N608=25.75,(0.268*M608)+64,(0.268*M608)+89))),"") -> 
N672: =IF(AND(G672<>"",H672<>""),IF(G672<=3.5,24.25,IF(AND(G672>3.5,G672<=10.58),25,IF(AND(G672>10.58,G672<=17.75),25.75,26.6))),"") ->  | O672: =IF(N672<>"",IF(N672=24.25,M672+5.25,IF(N672=25,M672+12.25,IF(N672=25.75,M672+19.25,M672+26.25))),"") ->  | P672: =IF(N672<>"",IF(N672=24.25,M672+3.25,IF(N672=25,M672+10,IF(N672=25.75,M672+17,M672+24))),"") ->  | Q672: =IF(N672<>"",IF(N672=24.25,(0.268*M672)+12,IF(N672=25,(0.268*M672)+38,IF(N672=25.75,(0.268*M672)+64,(0.268*M672)+89))),"") -> 
N736: =IF(AND(G736<>"",H736<>""),IF(G736<=3.5,24.25,IF(AND(G736>3.5,G736<=10.58),25,IF(AND(G736>10.58,G736<=17.75),25.75,26.6))),"") ->  | O736: =IF(N736<>"",IF(N736=24.25,M736+5.25,IF(N736=25,M736+12.25,IF(N736=25.75,M736+19.25,M736+26.25))),"") ->  | P736: =IF(N736<>"",IF(N736=24.25,M736+3.25,IF(N736=25,M736+10,IF(N736=25.75,M736+17,M736+24))),"") ->  | Q736: =IF(N736<>"",IF(N736=24.25,(0.268*M736)+12,IF(N736=25,(0.268*M736)+38,IF(N736=25.75,(0.268*M736)+64,(0.268*M736)+89))),"") -> 
N800: =IF(AND(G800<>"",H800<>""),IF(G800<=3.5,24.25,IF(AND(G800>3.5,G800<=10.58),25,IF(AND(G800>10.58,G800<=17.75),25.75,26.6))),"") ->  | O800: =IF(N800<>"",IF(N800=24.25,M800+5.25,IF(N800=25,M800+12.25,IF(N800=25.75,M800+19.25,M800+26.25))),"") ->  | P800: =IF(N800<>"",IF(N800=24.25,M800+3.25,IF(N800=25,M800+10,IF(N800=25.75,M800+17,M800+24))),"") ->  | Q800: =IF(N800<>"",IF(N800=24.25,(0.268*M800)+12,IF(N800=25,(0.268*M800)+38,IF(N800=25.75,(0.268*M800)+64,(0.268*M800)+89))),"") -> 
N864: =IF(AND(G864<>"",H864<>""),IF(G864<=3.5,24.25,IF(AND(G864>3.5,G864<=10.58),25,IF(AND(G864>10.58,G864<=17.75),25.75,26.6))),"") ->  | O864: =IF(N864<>"",IF(N864=24.25,M864+5.25,IF(N864=25,M864+12.25,IF(N864=25.75,M864+19.25,M864+26.25))),"") ->  | P864: =IF(N864<>"",IF(N864=24.25,M864+3.25,IF(N864=25,M864+10,IF(N864=25.75,M864+17,M864+24))),"") ->  | Q864: =IF(N864<>"",IF(N864=24.25,(0.268*M864)+12,IF(N864=25,(0.268*M864)+38,IF(N864=25.75,(0.268*M864)+64,(0.268*M864)+89))),"") -> 
N928: =IF(AND(G928<>"",H928<>""),IF(G928<=3.5,24.25,IF(AND(G928>3.5,G928<=10.58),25,IF(AND(G928>10.58,G928<=17.75),25.75,26.6))),"") ->  | O928: =IF(N928<>"",IF(N928=24.25,M928+5.25,IF(N928=25,M928+12.25,IF(N928=25.75,M928+19.25,M928+26.25))),"") ->  | P928: =IF(N928<>"",IF(N928=24.25,M928+3.25,IF(N928=25,M928+10,IF(N928=25.75,M928+17,M928+24))),"") ->  | Q928: =IF(N928<>"",IF(N928=24.25,(0.268*M928)+12,IF(N928=25,(0.268*M928)+38,IF(N928=25.75,(0.268*M928)+64,(0.268*M928)+89))),"") -> 
N992: =IF(AND(G992<>"",H992<>""),IF(G992<=3.5,24.25,IF(AND(G992>3.5,G992<=10.58),25,IF(AND(G992>10.58,G992<=17.75),25.75,26.6))),"") ->  | O992: =IF(N992<>"",IF(N992=24.25,M992+5.25,IF(N992=25,M992+12.25,IF(N992=25.75,M992+19.25,M992+26.25))),"") ->  | P992: =IF(N992<>"",IF(N992=24.25,M992+3.25,IF(N992=25,M992+10,IF(N992=25.75,M992+17,M992+24))),"") ->  | Q992: =IF(N992<>"",IF(N992=24.25,(0.268*M992)+12,IF(N992=25,(0.268*M992)+38,IF(N992=25.75,(0.268*M992)+64,(0.268*M992)+89))),"") -> 
N1056: =IF(AND(G1056<>"",H1056<>""),IF(G1056<=3.5,24.25,IF(AND(G1056>3.5,G1056<=10.58),25,IF(AND(G1056>10.58,G1056<=17.75),25.75,26.6))),"") ->  | O1056: =IF(N1056<>"",IF(N1056=24.25,M1056+5.25,IF(N1056=25,M1056+12.25,IF(N1056=25.75,M1056+19.25,M1056+26.25))),"") ->  | P1056: =IF(N1056<>"",IF(N1056=24.25,M1056+3.25,IF(N1056=25,M1056+10,IF(N1056=25.75,M1056+17,M1056+24))),"") ->  | Q1056: =IF(N1056<>"",IF(N1056=24.25,(0.268*M1056)+12,IF(N1056=25,(0.268*M1056)+38,IF(N1056=25.75,(0.268*M1056)+64,(0.268*M1056)+89))),"") -> 
N1120: =IF(AND(G1120<>"",H1120<>""),IF(G1120<=3.5,24.25,IF(AND(G1120>3.5,G1120<=10.58),25,IF(AND(G1120>10.58,G1120<=17.75),25.75,26.6))),"") ->  | O1120: =IF(N1120<>"",IF(N1120=24.25,M1120+5.25,IF(N1120=25,M1120+12.25,IF(N1120=25.75,M1120+19.25,M1120+26.25))),"") ->  | P1120: =IF(N1120<>"",IF(N1120=24.25,M1120+3.25,IF(N1120=25,M1120+10,IF(N1120=25.75,M1120+17,M1120+24))),"") ->  | Q1120: =IF(N1120<>"",IF(N1120=24.25,(0.268*M1120)+12,IF(N1120=25,(0.268*M1120)+38,IF(N1120=25.75,(0.268*M1120)+64,(0.268*M1120)+89))),"") -> 
N1184: =IF(AND(G1184<>"",H1184<>""),IF(G1184<=3.5,24.25,IF(AND(G1184>3.5,G1184<=10.58),25,IF(AND(G1184>10.58,G1184<=17.75),25.75,26.6))),"") ->  | O1184: =IF(N1184<>"",IF(N1184=24.25,M1184+5.25,IF(N1184=25,M1184+12.25,IF(N1184=25.75,M1184+19.25,M1184+26.25))),"") ->  | P1184: =IF(N1184<>"",IF(N1184=24.25,M1184+3.25,IF(N1184=25,M1184+10,IF(N1184=25.75,M1184+17,M1184+24))),"") ->  | Q1184: =IF(N1184<>"",IF(N1184=24.25,(0.268*M1184)+12,IF(N1184=25,(0.268*M1184)+38,IF(N1184=25.75,(0.268*M1184)+64,(0.268*M1184)+89))),"") -> 
N1248: =IF(AND(G1248<>"",H1248<>""),IF(G1248<=3.5,24.25,IF(AND(G1248>3.5,G1248<=10.58),25,IF(AND(G1248>10.58,G1248<=17.75),25.75,26.6))),"") ->  | O1248: =IF(N1248<>"",IF(N1248=24.25,M1248+5.25,IF(N1248=25,M1248+12.25,IF(N1248=25.75,M1248+19.25,M1248+26.25))),"") ->  | P1248: =IF(N1248<>"",IF(N1248=24.25,M1248+3.25,IF(N1248=25,M1248+10,IF(N1248=25.75,M1248+17,M1248+24))),"") ->  | Q1248: =IF(N1248<>"",IF(N1248=24.25,(0.268*M1248)+12,IF(N1248=25,(0.268*M1248)+38,IF(N1248=25.75,(0.268*M1248)+64,(0.268*M1248)+89))),"") -> 
N1312: =IF(AND(G1312<>"",H1312<>""),IF(G1312<=3.5,24.25,IF(AND(G1312>3.5,G1312<=10.58),25,IF(AND(G1312>10.58,G1312<=17.75),25.75,26.6))),"") ->  | O1312: =IF(N1312<>"",IF(N1312=24.25,M1312+5.25,IF(N1312=25,M1312+12.25,IF(N1312=25.75,M1312+19.25,M1312+26.25))),"") ->  | P1312: =IF(N1312<>"",IF(N1312=24.25,M1312+3.25,IF(N1312=25,M1312+10,IF(N1312=25.75,M1312+17,M1312+24))),"") ->  | Q1312: =IF(N1312<>"",IF(N1312=24.25,(0.268*M1312)+12,IF(N1312=25,(0.268*M1312)+38,IF(N1312=25.75,(0.268*M1312)+64,(0.268*M1312)+89))),"") -> 
N1376: =IF(AND(G1376<>"",H1376<>""),IF(G1376<=3.5,24.25,IF(AND(G1376>3.5,G1376<=10.58),25,IF(AND(G1376>10.58,G1376<=17.75),25.75,26.6))),"") ->  | O1376: =IF(N1376<>"",IF(N1376=24.25,M1376+5.25,IF(N1376=25,M1376+12.25,IF(N1376=25.75,M1376+19.25,M1376+26.25))),"") ->  | P1376: =IF(N1376<>"",IF(N1376=24.25,M1376+3.25,IF(N1376=25,M1376+10,IF(N1376=25.75,M1376+17,M1376+24))),"") ->  | Q1376: =IF(N1376<>"",IF(N1376=24.25,(0.268*M1376)+12,IF(N1376=25,(0.268*M1376)+38,IF(N1376=25.75,(0.268*M1376)+64,(0.268*M1376)+89))),"") -> 
N1440: =IF(AND(G1440<>"",H1440<>""),IF(G1440<=3.5,24.25,IF(AND(G1440>3.5,G1440<=10.58),25,IF(AND(G1440>10.58,G1440<=17.75),25.75,26.6))),"") ->  | O1440: =IF(N1440<>"",IF(N1440=24.25,M1440+5.25,IF(N1440=25,M1440+12.25,IF(N1440=25.75,M1440+19.25,M1440+26.25))),"") ->  | P1440: =IF(N1440<>"",IF(N1440=24.25,M1440+3.25,IF(N1440=25,M1440+10,IF(N1440=25.75,M1440+17,M1440+24))),"") ->  | Q1440: =IF(N1440<>"",IF(N1440=24.25,(0.268*M1440)+12,IF(N1440=25,(0.268*M1440)+38,IF(N1440=25.75,(0.268*M1440)+64,(0.268*M1440)+89))),"") -> 
N1504: =IF(AND(G1504<>"",H1504<>""),IF(G1504<=3.5,24.25,IF(AND(G1504>3.5,G1504<=10.58),25,IF(AND(G1504>10.58,G1504<=17.75),25.75,26.6))),"") ->  | O1504: =IF(N1504<>"",IF(N1504=24.25,M1504+5.25,IF(N1504=25,M1504+12.25,IF(N1504=25.75,M1504+19.25,M1504+26.25))),"") ->  | P1504: =IF(N1504<>"",IF(N1504=24.25,M1504+3.25,IF(N1504=25,M1504+10,IF(N1504=25.75,M1504+17,M1504+24))),"") ->  | Q1504: =IF(N1504<>"",IF(N1504=24.25,(0.268*M1504)+12,IF(N1504=25,(0.268*M1504)+38,IF(N1504=25.75,(0.268*M1504)+64,(0.268*M1504)+89))),"") -> 
N1568: =IF(AND(G1568<>"",H1568<>""),IF(G1568<=3.5,24.25,IF(AND(G1568>3.5,G1568<=10.58),25,IF(AND(G1568>10.58,G1568<=17.75),25.75,26.6))),"") ->  | O1568: =IF(N1568<>"",IF(N1568=24.25,M1568+5.25,IF(N1568=25,M1568+12.25,IF(N1568=25.75,M1568+19.25,M1568+26.25))),"") ->  | P1568: =IF(N1568<>"",IF(N1568=24.25,M1568+3.25,IF(N1568=25,M1568+10,IF(N1568=25.75,M1568+17,M1568+24))),"") ->  | Q1568: =IF(N1568<>"",IF(N1568=24.25,(0.268*M1568)+12,IF(N1568=25,(0.268*M1568)+38,IF(N1568=25.75,(0.268*M1568)+64,(0.268*M1568)+89))),"") -> 
N1632: =IF(AND(G1632<>"",H1632<>""),IF(G1632<=3.5,24.25,IF(AND(G1632>3.5,G1632<=10.58),25,IF(AND(G1632>10.58,G1632<=17.75),25.75,26.6))),"") ->  | O1632: =IF(N1632<>"",IF(N1632=24.25,M1632+5.25,IF(N1632=25,M1632+12.25,IF(N1632=25.75,M1632+19.25,M1632+26.25))),"") ->  | P1632: =IF(N1632<>"",IF(N1632=24.25,M1632+3.25,IF(N1632=25,M1632+10,IF(N1632=25.75,M1632+17,M1632+24))),"") ->  | Q1632: =IF(N1632<>"",IF(N1632=24.25,(0.268*M1632)+12,IF(N1632=25,(0.268*M1632)+38,IF(N1632=25.75,(0.268*M1632)+64,(0.268*M1632)+89))),"") -> 
N1696: =IF(AND(G1696<>"",H1696<>""),IF(G1696<=3.5,24.25,IF(AND(G1696>3.5,G1696<=10.58),25,IF(AND(G1696>10.58,G1696<=17.75),25.75,26.6))),"") ->  | O1696: =IF(N1696<>"",IF(N1696=24.25,M1696+5.25,IF(N1696=25,M1696+12.25,IF(N1696=25.75,M1696+19.25,M1696+26.25))),"") ->  | P1696: =IF(N1696<>"",IF(N1696=24.25,M1696+3.25,IF(N1696=25,M1696+10,IF(N1696=25.75,M1696+17,M1696+24))),"") ->  | Q1696: =IF(N1696<>"",IF(N1696=24.25,(0.268*M1696)+12,IF(N1696=25,(0.268*M1696)+38,IF(N1696=25.75,(0.268*M1696)+64,(0.268*M1696)+89))),"") -> 
N1760: =IF(AND(G1760<>"",H1760<>""),IF(G1760<=3.5,24.25,IF(AND(G1760>3.5,G1760<=10.58),25,IF(AND(G1760>10.58,G1760<=17.75),25.75,26.6))),"") ->  | O1760: =IF(N1760<>"",IF(N1760=24.25,M1760+5.25,IF(N1760=25,M1760+12.25,IF(N1760=25.75,M1760+19.25,M1760+26.25))),"") ->  | P1760: =IF(N1760<>"",IF(N1760=24.25,M1760+3.25,IF(N1760=25,M1760+10,IF(N1760=25.75,M1760+17,M1760+24))),"") ->  | Q1760: =IF(N1760<>"",IF(N1760=24.25,(0.268*M1760)+12,IF(N1760=25,(0.268*M1760)+38,IF(N1760=25.75,(0.268*M1760)+64,(0.268*M1760)+89))),"") -> 
N1824: =IF(AND(G1824<>"",H1824<>""),IF(G1824<=3.5,24.25,IF(AND(G1824>3.5,G1824<=10.58),25,IF(AND(G1824>10.58,G1824<=17.75),25.75,26.6))),"") ->  | O1824: =IF(N1824<>"",IF(N1824=24.25,M1824+5.25,IF(N1824=25,M1824+12.25,IF(N1824=25.75,M1824+19.25,M1824+26.25))),"") ->  | P1824: =IF(N1824<>"",IF(N1824=24.25,M1824+3.25,IF(N1824=25,M1824+10,IF(N1824=25.75,M1824+17,M1824+24))),"") ->  | Q1824: =IF(N1824<>"",IF(N1824=24.25,(0.268*M1824)+12,IF(N1824=25,(0.268*M1824)+38,IF(N1824=25.75,(0.268*M1824)+64,(0.268*M1824)+89))),"") -> 
N1888: =IF(AND(G1888<>"",H1888<>""),IF(G1888<=3.5,24.25,IF(AND(G1888>3.5,G1888<=10.58),25,IF(AND(G1888>10.58,G1888<=17.75),25.75,26.6))),"") ->  | O1888: =IF(N1888<>"",IF(N1888=24.25,M1888+5.25,IF(N1888=25,M1888+12.25,IF(N1888=25.75,M1888+19.25,M1888+26.25))),"") ->  | P1888: =IF(N1888<>"",IF(N1888=24.25,M1888+3.25,IF(N1888=25,M1888+10,IF(N1888=25.75,M1888+17,M1888+24))),"") ->  | Q1888: =IF(N1888<>"",IF(N1888=24.25,(0.268*M1888)+12,IF(N1888=25,(0.268*M1888)+38,IF(N1888=25.75,(0.268*M1888)+64,(0.268*M1888)+89))),"") -> 
N1952: =IF(AND(G1952<>"",H1952<>""),IF(G1952<=3.5,24.25,IF(AND(G1952>3.5,G1952<=10.58),25,IF(AND(G1952>10.58,G1952<=17.75),25.75,26.6))),"") ->  | O1952: =IF(N1952<>"",IF(N1952=24.25,M1952+5.25,IF(N1952=25,M1952+12.25,IF(N1952=25.75,M1952+19.25,M1952+26.25))),"") ->  | P1952: =IF(N1952<>"",IF(N1952=24.25,M1952+3.25,IF(N1952=25,M1952+10,IF(N1952=25.75,M1952+17,M1952+24))),"") ->  | Q1952: =IF(N1952<>"",IF(N1952=24.25,(0.268*M1952)+12,IF(N1952=25,(0.268*M1952)+38,IF(N1952=25.75,(0.268*M1952)+64,(0.268*M1952)+89))),"") -> 

Sheet DE108_33
A1: TabTitle | B1: =C16 -> TEMPORARY BARRIER RAIL
A2: Number of Tab Columns | B2: 8
A3: DE Starter Row Number | B3: 26
A4: TabSheet Starter Row Number | B4: 12
A5: TabSheet Header Row Count | B5: 11
A6: Top Header Cell | B6: L15
A7: Bottom Header Cell | B7: S25
A8: DESheet Row Count | B8: 0
A9: Fixed Empty Rows | B9: 2
A10: Usable Empty Rows | B10: 0
A11: Total Rows Placed | B11: 2 | C11: xlRight(1) | D11: xlRight(1) | E11: xlRight(1) | F11: xlRight(1) | G11: xlCenter | H11: xlCenter | I11: xlCenter | J11: xlLeft(1) | L11: =C11 -> xlRight(1) | M11: xlRight(1) | N11: xlRight(1) | O11: xlRight(1) | P11: xlCenter | Q11: xlCenter | R11: xlCenter | S11: xlLeft(1)
A12: Total Rows Needed | B12: =SUM(B8:B10) -> 2 | C12: General | D12: #+00.00 | E12: #+00.00 | F12: 0.0 | G12: General | H12: General | I12: General | J12: General | L12: General | M12: #+00.00 | N12: #+00.00 | O12: 0.0 | P12: General | Q12: General | R12: General | S12: General
A13: Last Tab DE Starter Row | B13: 26 | C13: =CELL("width", C13) -> 6 | D13: 16 | E13: 16 | F13: 10 | G13: 14 | H13: 14 | I13: 14 | J13: 63 | L13: =CELL("width", L13) -> 0 | M13: 0 | N13: 0 | O13: 0 | P13: 0 | Q13: 0 | R13: 0 | S13: 0
A14: Last Tab Tabsheet Starter Row | B14: 12 | C14: A | D14: B | E14: C | F14: D | G14: E | H14: F | I14: G | J14: H | L14: =LOWER(C14) -> a | M14: b | N14: c | O14: d | P14: e | Q14: f | R14: g | S14: h
A15: Last Copy Starter Row | B15: 1 | E15: Totals: | F15: =SUBTOTAL(9,F26:F2000) -> 0 | L15: 108-33 | U15: =I23 -> Anchored*
A16: Tab Loop Number | B16: 2 | C16: TEMPORARY BARRIER RAIL | L16: =B17 -> 2013-04-16 | U16: Yes
A17: Revision Date | B17: 2013-04-16 | L17: =C16 -> TEMPORARY BARRIER RAIL | U17: No
A18: Tabulation Width | B18: 2 | C18: Refer to BA-400 and BA-401
A19: Horizontal Grid Lines | B19: Yes | C19: * Not a bid item. Anchorage requirements are based on TBR locations shown in the plans. TBR alignments that vary from what is shown in the plans may result in additional TBR sections requiring anchorage. | L19: =C18 -> Refer to BA-400 and BA-401
L20: =C19 -> * Not a bid item. Anchorage requirements are based on TBR locations shown in the plans. TBR alignments that vary from what is shown in the plans may result in additional TBR sections requiring anchorage.
C22: ="This Data Entry Sheet fills Tab "&L15&" effective "&TEXT(B17,"mm-dd-yy") -> This Data Entry Sheet fills Tab 108-33 effective 04-16-13
C23: No. | D23: Station to Station | F23: Length | G23: (Select One) | I23: Anchored* | J23: Remarks | L23: =C23 -> No. | M23: =D23 -> Station to Station | O23: =F23 -> Length | P23: =G23 -> (Select One) | R23: =I23 -> Anchored* | S23: =J23 -> Remarks
G24: Steel | H24: Concrete | P24: =G24 -> Steel | Q24: =H24 -> Concrete
F25: LF | G25: BA-400 | H25: BA-401 | I25: (Y/N) | O25: =F25 -> LF | P25: =G25 -> BA-400 | Q25: =H25 -> BA-401 | R25: =I25 -> (Y/N)

Sheet DE108_35
A1: TabTitle | B1: =C16 -> TEMPORARY LANE SEPARATOR SYSTEM
A2: Number of Tab Columns | B2: 4
A3: DE Starter Row Number | B3: 22
A4: TabSheet Starter Row Number | B4: 8
A5: TabSheet Header Row Count | B5: 7
A6: Top Header Cell | B6: H15
A7: Bottom Header Cell | B7: K21
A8: DESheet Row Count | B8: 0
A9: Fixed Empty Rows | B9: 2
A10: Usable Empty Rows | B10: 0
A11: Total Rows Placed | B11: 0 | C11: xlRight(1) | D11: xlRight(1) | E11: xlRight(1) | F11: xlLeft(1) | H11: =C11 -> xlRight(1) | I11: xlRight(1) | J11: xlRight(1) | K11: xlLeft(1)
A12: Total Rows Needed | B12: =SUM(B8:B10) -> 2 | C12: #+00.00 | D12: #+00.00 | E12: 0 | F12: General | H12: #+00.00 | I12: #+00.00 | J12: 0 | K12: General
A13: Last Tab DE Starter Row | B13: 22 | C13: =CELL("width",C13) -> 16 | D13: 16 | E13: 12 | F13: 31 | H13: =CELL("width",H13) -> 0 | I13: 0 | J13: 0 | K13: 0
A14: Last Tab Tabsheet Starter Row | B14: 8 | C14: A | D14: B | E14: C | F14: D | H14: =LOWER(C14) -> a | I14: =LOWER(D14) -> b | J14: =LOWER(E14) -> c | K14: =LOWER(F14) -> d
A15: Last Copy Starter Row | B15: 1 | D15: Total: | E15: =SUBTOTAL(9,E22:E2000) -> 0 | H15: 108-35
A16: Tab Loop Number | B16: 1 | C16: TEMPORARY LANE SEPARATOR SYSTEM | H16: =B17 -> 2012-04-17
A17: Revision Date | B17: 2012-04-17 | H17: =C16 -> TEMPORARY LANE SEPARATOR SYSTEM
A18: Tabulation Width | B18: 1 | C18: See TC-61
A19: Horizontal Grid Lines | B19: Yes | C19: ="This Data Entry Sheet fills Tab "&H15&" effective "&TEXT(B17,"mm-dd-yy") -> This Data Entry Sheet fills Tab 108-35 effective 04-17-12 | H19: =C18 -> See TC-61
C20: Station to Station | E20: Length | F20: Remarks | H20: =C20 -> Station to Station | J20: =E20 -> Length | K20: =F20 -> Remarks
E21: LF | J21: =E21 -> LF

Sheet DE110_1
A1: TabTitle | B1: =C16 -> REMOVAL OF PAVEMENT
A2: Number of Tab Columns | B2: 7
A3: DE Starter Row Number | B3: 26
A4: TabSheet Starter Row Number | B4: 12
A5: TabSheet Header Row Count | B5: 11
A6: Top Header Cell | B6: N15
A7: Bottom Header Cell | B7: T25
A8: DESheet Row Count | B8: 0
A9: Fixed Empty Rows | B9: 2
A10: Usable Empty Rows | B10: 0
A11: Total Rows Placed | B11: 2 | C11: xlRight(1) | D11: xlRight(1) | E11: xlCenter | F11: xlCenter | J11: xlRight(1) | K11: xlRight(1) | L11: xlLeft(1) | N11: =C11 -> xlRight(1) | O11: xlRight(1) | P11: xlCenter | Q11: xlCenter | R11: =J11 -> xlRight(1) | S11: xlRight(1) | T11: xlLeft(1)
A12: Total Rows Needed | B12: =SUM(B8:B10) -> 2 | C12: #+00.00 | D12: #+00.00 | E12: General | F12: General | J12: 0.0 | K12: 0.0 | L12: General | N12: #+00.00 | O12: #+00.00 | P12: General | Q12: General | R12: 0.0 | S12: 0.0 | T12: General
A13: Last Tab DE Starter Row | B13: 26 | C13: =CELL("width",C13) -> 16 | D13: =CELL("width",D13) -> 16 | E13: =CELL("width",E13) -> 14 | F13: =CELL("width",F13) -> 14 | J13: =CELL("width",J13) -> 14 | K13: =CELL("width",K13) -> 14 | L13: =CELL("width",L13) -> 65 | N13: =CELL("width",N13) -> 0 | O13: 0 | P13: 0 | Q13: 0 | R13: 0 | S13: 0 | T13: 0
A14: Last Tab Tabsheet Starter Row | B14: 12 | C14: A | D14: B | E14: C | F14: D | J14: E | K14: F | L14: G | N14: =LOWER(C14) -> a | O14: =LOWER(D14) -> b | P14: =LOWER(E14) -> c | Q14: =LOWER(F14) -> d | R14: =LOWER(J14) -> e | S14: =LOWER(K14) -> f | T14: =LOWER(L14) -> g
A15: Last Copy Starter Row | B15: 1 | I15: Totals: | J15: =SUBTOTAL(9,J26:J2000) -> 0 | N15: 110-1
A16: Tab Loop Number | B16: 2 | C16: REMOVAL OF PAVEMENT | N16: =B17 -> 2013-04-16
A17: Revision Date | B17: 2013-04-16 | N17: =C16 -> REMOVAL OF PAVEMENT
A18: Tabulation Width | B18: 2 | C18: Refer to Tabulation 102-5
A19: Horizontal Grid Lines | B19: Yes | C19: * Not a Bid Item | N19: =C18 -> Refer to Tabulation 102-5
C20: ="This Data Entry Sheet fills Tab "&N15&" effective "&TEXT(B17,"mm-dd-yy") -> This Data Entry Sheet fills Tab 110-1 effective 04-16-13 | N20: =C19 -> * Not a Bid Item
C21: Begin Station | D21: End Station | E21: Side | F21: Pavement Type | G21: Length | H21: Width | I21: Area | J21: Area | K21: Saw Cut* | L21: Remarks | N21: =C21 -> Begin Station | O21: =D21 -> End Station | P21: =E21 -> Side | Q21: =F21 -> Pavement Type | R21: =J21 -> Area | S21: =K21 -> Saw Cut* | T21: =L21 -> Remarks
G25: FT | H25: FT | I25: FT | J25: SY | K25: LF | R25: =J25 -> SY | S25: =K25 -> LF
G26: =ABS(D26-C26) -> 0 | I26: =G26*H26 -> 0 | J26: =IF(I26<>0,I26/9,"") -> 
G27: 0 | I27: 0
G28: 0 | I28: 0
G29: 0 | I29: 0
G30: 0 | I30: 0
G31: 0 | I31: 0
G32: 0 | I32: 0
G33: 0 | I33: 0
G34: 0 | I34: 0
G35: 0 | I35: 0
G36: 0 | I36: 0
G37: 0 | I37: 0
G38: 0 | I38: 0
G39: 0 | I39: 0
G40: 0 | I40: 0
G41: 0 | I41: 0
G42: 0 | I42: 0
G43: 0 | I43: 0
G44: 0 | I44: 0
G45: 0 | I45: 0
G46: 0 | I46: 0
G47: 0 | I47: 0
G48: 0 | I48: 0
G49: 0 | I49: 0
G50: 0 | I50: 0
G51: 0 | I51: 0
G52: 0 | I52: 0
G53: 0 | I53: 0
G54: 0 | I54: 0
G55: 0 | I55: 0
G56: 0 | I56: 0
G57: 0 | I57: 0
G58: 0 | I58: 0
G59: 0 | I59: 0
G60: 0 | I60: 0
G61: 0 | I61: 0
G62: 0 | I62: 0
G63: 0 | I63: 0
G64: 0 | I64: 0
G65: 0 | I65: 0
G66: 0 | I66: 0
G67: 0 | I67: 0
G68: 0 | I68: 0
G69: 0 | I69: 0
G70: 0 | I70: 0
G71: 0 | I71: 0
G72: 0 | I72: 0
G73: 0 | I73: 0
G74: 0 | I74: 0
G75: 0 | I75: 0
G76: 0 | I76: 0
G77: 0 | I77: 0
G78: 0 | I78: 0
G79: 0 | I79: 0
G80: 0 | I80: 0
G81: 0 | I81: 0
G82: 0 | I82: 0
G83: 0 | I83: 0
G84: 0 | I84: 0
G85: 0 | I85: 0
G86: 0 | I86: 0
G87: 0 | I87: 0
G88: 0 | I88: 0
G89: 0 | I89: 0
G90: =ABS(D90-C90) -> 0 | I90: =G90*H90 -> 0 | J90: =IF(I90<>0,I90/9,"") -> 
G91: 0 | I91: 0
G92: 0 | I92: 0
G93: 0 | I93: 0
G94: 0 | I94: 0
G95: 0 | I95: 0
G96: 0 | I96: 0
G97: 0 | I97: 0
G98: 0 | I98: 0
G99: 0 | I99: 0
G100: 0 | I100: 0
G101: 0 | I101: 0
G102: 0 | I102: 0
G103: 0 | I103: 0
G104: 0 | I104: 0
G105: 0 | I105: 0
G106: 0 | I106: 0
G107: 0 | I107: 0
G108: 0 | I108: 0
G109: 0 | I109: 0
G110: 0 | I110: 0
G111: 0 | I111: 0
G112: 0 | I112: 0
G113: 0 | I113: 0
G114: 0 | I114: 0
G115: 0 | I115: 0
G116: 0 | I116: 0
G117: 0 | I117: 0
G118: 0 | I118: 0
G119: 0 | I119: 0
G120: 0 | I120: 0
G121: 0 | I121: 0
G122: 0 | I122: 0
G123: 0 | I123: 0
G124: 0 | I124: 0
G125: 0 | I125: 0
G126: 0 | I126: 0
G127: 0 | I127: 0
G128: 0 | I128: 0
G129: 0 | I129: 0
G130: 0 | I130: 0
G131: 0 | I131: 0
G132: 0 | I132: 0
G133: 0 | I133: 0
G134: 0 | I134: 0
G135: 0 | I135: 0
G136: 0 | I136: 0
G137: 0 | I137: 0
G138: 0 | I138: 0
G139: 0 | I139: 0
G140: 0 | I140: 0
G141: 0 | I141: 0
G142: 0 | I142: 0
G143: 0 | I143: 0
G144: 0 | I144: 0
G145: 0 | I145: 0
G146: 0 | I146: 0
G147: 0 | I147: 0
G148: 0 | I148: 0
G149: 0 | I149: 0
G150: 0 | I150: 0
G151: 0 | I151: 0
G152: 0 | I152: 0
G153: 0 | I153: 0
G154: =ABS(D154-C154) -> 0 | I154: =G154*H154 -> 0 | J154: =IF(I154<>0,I154/9,"") -> 
G155: 0 | I155: 0
G156: 0 | I156: 0
G157: 0 | I157: 0
G158: 0 | I158: 0
G159: 0 | I159: 0
G160: 0 | I160: 0
G161: 0 | I161: 0
G162: 0 | I162: 0
G163: 0 | I163: 0
G164: 0 | I164: 0
G165: 0 | I165: 0
G166: 0 | I166: 0
G167: 0 | I167: 0
G168: 0 | I168: 0
G169: 0 | I169: 0
G170: 0 | I170: 0
G171: 0 | I171: 0
G172: 0 | I172: 0
G173: 0 | I173: 0
G174: 0 | I174: 0
G175: 0 | I175: 0
G176: 0 | I176: 0
G177: 0 | I177: 0
G178: 0 | I178: 0
G179: 0 | I179: 0
G180: 0 | I180: 0
G181: 0 | I181: 0
G182: 0 | I182: 0
G183: 0 | I183: 0
G184: 0 | I184: 0
G185: 0 | I185: 0
G186: 0 | I186: 0
G187: 0 | I187: 0
G188: 0 | I188: 0
G189: 0 | I189: 0
G190: 0 | I190: 0
G191: 0 | I191: 0
G192: 0 | I192: 0
G193: 0 | I193: 0
G194: 0 | I194: 0
G195: 0 | I195: 0
G196: 0 | I196: 0
G197: 0 | I197: 0
G198: 0 | I198: 0
G199: 0 | I199: 0
G200: 0 | I200: 0
G201: 0 | I201: 0
G202: 0 | I202: 0
G203: 0 | I203: 0
... 1797 more rows

Sheet DE110_7A
A1: TabTitle | B1: =C16 -> REMOVAL OF STEEL BEAM GUARDRAIL
A2: Number of Tab Columns | B2: 6
A3: DE Starter Row Number | B3: 29
A4: TabSheet Starter Row Number | B4: 15
A5: TabSheet Header Row Count | B5: 14
A6: Top Header Cell | B6: J15
A7: Bottom Header Cell | B7: O28
A8: DESheet Row Count | B8: 0
A9: Fixed Empty Rows | B9: 2
A10: Usable Empty Rows | B10: 0
A11: Total Rows Placed | B11: 2 | C11: xlCenter | D11: xlCenter | E11: xlRight(1) | F11: xlRight(1) | G11: xlCenter | H11: xlRight(1) | J11: =C11 -> xlCenter | K11: xlCenter | L11: xlRight(1) | M11: xlRight(1) | N11: xlCenter | O11: xlRight(1)
A12: Total Rows Needed | B12: =SUM(B8:B10) -> 2 | C12: General | D12: General | E12: #+00.00 | F12: #+00.00 | G12: General | H12: 0.0 | J12: General | K12: General | L12: #+00.00 | M12: #+00.00 | N12: General | O12: 0.0
A13: Last Tab DE Starter Row | B13: 29 | C13: =CELL("width",C13) -> 6 | D13: 7 | E13: 16 | F13: 16 | G13: 7 | H13: 21 | J13: =CELL("width",J13) -> 0 | K13: 0 | L13: 0 | M13: 0 | N13: 0 | O13: 0
A14: Last Tab Tabsheet Starter Row | B14: 15 | C14: A | D14: B | E14: C | F14: D | G14: E | H14: F | J14: =LOWER(C14) -> a | K14: b | L14: c | M14: d | N14: e | O14: f
A15: Last Copy Starter Row | B15: 1 | G15: Totals: | H15: =SUBTOTAL(9,H29:H2000) -> 0 | J15: 110-7A
A16: Tab Loop Number | B16: 2 | C16: REMOVAL OF STEEL BEAM GUARDRAIL | J16: =B17 -> 2012-04-17
A17: Revision Date | B17: 2012-04-17 | J17: =C16 -> REMOVAL OF STEEL BEAM GUARDRAIL
A18: Tabulation Width | B18: 1
A19: Horizontal Grid Lines | B19: Yes | C19: Lane(s) to which the installation is adjacent.
C20: Includes length of End Terminals and End Anchors. | J20: =C19 -> Lane(s) to which the installation is adjacent.
C21: ="This Data Entry Sheet fills Tab "&J15&" effective "&TEXT(B17,"mm-dd-yy") -> This Data Entry Sheet fills Tab 110-7A effective 04-17-12 | J21: =C20 -> Includes length of End Terminals and End Anchors.
C22: Location | H22: Removal of Guardrail | J22: =C22 -> Location | O22: =H22 -> Removal of Guardrail
C23: No. | D23: Direction of Traffic | E23: Station to Station | G23: Side | J23: =C23 -> No. | K23: =D23 -> Direction of Traffic | L23: =E23 -> Station to Station | N23: =G23 -> Side
H28: LF | O28: =H28 -> LF

Sheet DE110_9
A1: TabTitle | B1: =C16 -> CULVERT ABANDONMENT
A2: Number of Tab Columns | B2: 6
A3: DE Starter Row Number | B3: 26
A4: TabSheet Starter Row Number | B4: 12
A5: TabSheet Header Row Count | B5: 11
A6: Top Header Cell | B6: J15
A7: Bottom Header Cell | B7: O25
A8: DESheet Row Count | B8: 0
A9: Fixed Empty Rows | B9: 2
A10: Usable Empty Rows | B10: 0
A11: Total Rows Placed | B11: 2 | C11: xlRight(1) | D11: xlLeft(1) | E11: xlRight(1) | F11: xlRight(1) | G11: xlRight(1) | H11: xlLeft(1) | J11: =C11 -> xlRight(1) | K11: =D11 -> xlLeft(1) | L11: xlRight(1) | M11: xlRight(1) | N11: xlRight(1) | O11: xlLeft(1)
A12: Total Rows Needed | B12: =SUM(B8:B10) -> 2 | C12: #+00.00 | D12: General | E12: 0.0 | F12: 0.0 | G12: 0.0 | H12: General | J12: =C12 -> #+00.00 | K12: General | L12: 0.0 | M12: 0.0 | N12: 0.0 | O12: General
A13: Last Tab DE Starter Row | B13: 26 | C13: =CELL("Width",C13) -> 16 | D13: 30 | E13: 17 | F13: 20 | G13: 14 | H13: 58 | J13: =CELL("Width",J13) -> 0 | K13: 0 | L13: 0 | M13: 0 | N13: 0 | O13: 0
A14: Last Tab TabSheet Starter Row | B14: 12 | C14: A | D14: B | E14: C | F14: D | G14: E | H14: F | J14: a | K14: b | L14: c | M14: d | N14: e | O14: f
A15: Last Copy Starter Row | B15: 1 | D15: Totals: | E15: =SUBTOTAL(9,E26:E2000) -> 0 | F15: =SUBTOTAL(9,F26:F2000) -> 0 | G15: 0 | J15: 110-9
A16: Tab Loop Number | B16: 2 | C16: CULVERT ABANDONMENT | J16: =B17 -> 2011-10-18
A17: Revision Date | B17: 2011-10-18 | J17: =C16 -> CULVERT ABANDONMENT
A18: Tabulation Width | B18: 2 | C18: Refer to Details 4315 and 4316
A19: Horizontal Grid Lines | B19: Yes | C19: * Not a bid item | J19: =C18 -> Refer to Details 4315 and 4316
C20: ="This Data Entry Sheet fills Tab "&J15&" effective "&TEXT(B17,"mm-dd-yy") -> This Data Entry Sheet fills Tab 110-9 effective 10-18-11 | J20: =C19 -> * Not a bid item
C21: Location Station | D21: Description | E21: Fill Material | G21: 4" Perforated Subdrain* | H21: Remarks | J21: =C21 -> Location Station | K21: =D21 -> Description | L21: =E21 -> Fill Material | N21: =G21 -> 4" Perforated Subdrain* | O21: =H21 -> Remarks
E22: Flowable Mortar | F22: Granular Backfill* | L22: =E22 -> Flowable Mortar | M22: =F22 -> Granular Backfill*
E25: CY | F25: TON | G25: LF | L25: =E25 -> CY | M25: =F25 -> TON | N25: =G25 -> LF

Sheet DE110_12A
A1: TabTitle | B1: =C15 -> POLLUTION PREVENTION PLAN
A2: Number of Tab Columns | B2: 1 | K2: Choose Soil Associations | M2: Choose Hydrologic Soil Group
A3: DE Starter Row Number | B3: 18 | K3: Moody - Trent | L3: B - B | M3: A
A4: TabSheet Starter Row Number | B4: 5 | K4: Galva - Primghar | L4: B - B | M4: B
A5: TabSheet Header Row Count | B5: 4 | K5: Everly - Wilmonton - Letri | L5: B - B - B/D | M5: C
A6: Top Header Cell | B6: I15 | K6: Clarion - Nicollet - Webster | L6: B - B - B/D | M6: D
A7: Bottom Header Cell | B7: I18 | K7: Marna - Kossuth - Bode | L7: C/D - B/D - B
A8: DESheet Row Count | B8: 148 | K8: Kenyon - Clyde - Floyd | L8: B - B/D - B
A9: Fixed Empty Rows | B9: 0 | K9: Rockton | L9: B
A10: Usable Empty Rows | B10: 0 | K10: Downs - Fayette - Nordness | L10: B - B - B
A11: Total Rows Placed | B11: 146 | C11: xlLeft(1) | I11: xlLeft(1) | K11: Dinsdale - Klinger | L11: B - B
A12: Total Rows Needed | B12: =SUM(B8:B10) -> 148 | C12: General | I12: General | K12: Tama - Muscatine - Downs | L12: B - B - B
A13: Last Tab DE Starter Row | B13: 104 | C13: =CELL("width",C13) -> 159 | I13: =CELL("width",C13) -> 159 | K13: Mashall - Shelby | L13: B - B
A14: Last Tab TabSheet Starter Row | B14: 95 | C14: A | I14: =LOWER(C14) -> a | K14: Monona - Ida - Napier | L14: B - B - B
A15: Last Copy Starter Row | B15: 91 | C15: POLLUTION PREVENTION PLAN | E15: Instructions: | I15: 110-12A | K15: Ida - Hamburg | L15: B - B
A16: Tab Loop Number | B16: 3 | E16: 1. Choose your Soil Association(s) | I16: =B17 -> 2013-04-16 | K16: Albaton - Luton - Onawa | L16: D - D - D
A17: Revision Date | B17: 2013-04-16 | C17: ="This Data Entry Sheet fills Tab "&I15&" effective "&TEXT(B17,"mm-dd-yy") -> This Data Entry Sheet fills Tab 110-12A effective 04-16-13 | E17: 2. Determine which Hydrologic Soil Group to use and then select the group for SCS Curve Numbers | I17: =C15 -> POLLUTION PREVENTION PLAN | K17: Sharpsburg - Shelby - Adair | L17: B - B - C
A18: Tabulation Width | B18: 2 | C18: This Base Pollution Prevention Plan (PPP) includes information on Roles and Responsibilities, Project Site Description, Controls, | E18: 3. Enter the total acres of the project and all surface areas pertaining to your project. | K18: Pershing - Gosport - Gara | L18: C - C - C
A19: Horizontal Grid Lines | B19: No | C19: Maintenance Procedures, Inspection Requirements, Non-Storm Water Controls, Potential Sources of Off Right-of-Way Pollution, and | E19: 4. The rest of the calculations will be automatically populated. Both Seeding Types are accounted for in calculation. | K19: Otley - Ladoga | L19: B - B
C20: Definitions. This plan references other documents rather than repeating the information contained in the documents. A copy of this Base | K20: Sparta - Chelsea - Dickinson | L20: A - A - B
C21: Pollution Prevention Plan, amended as needed per plan revisions or by contract modification, will be readily available for review. | K21: Fayette | L21: B
E22: Select a Soil Association: | F22: Choose Soil Associations | K22: Colo - Cheguest - Titus | L22: B/D - C - B/D
C23: All contractors shall conduct their operations in a manner that controls pollutants, minimizes erosion, and prevents sediments from | F23: =IF(F22<>"Choose Soil Associations",INDEX($L$3:$L$24,MATCH(F22,$K$3:$K$24,FALSE),1),"") ->  | K23: Grundy - Haig - Arispe - Gara | L23: C - C/D - C - C
C24: entering waters of the state and leaving the highway right-of-way. The prime contractor shall be responsible for compliance and | K24: Seymour - Edina - Clarinda | L24: C - D - D
C25: implementation of the PPP for their entire contract. This responsibility shall be further shared with subcontractors whose work is a | E25: Select a second Soil Association if needed: | F25: Choose Soil Associations
C26: source of potential pollution as defined in this PPP. | F26: =IF(F25<>"Choose Soil Associations",INDEX($L$3:$L$24,MATCH(F25,$K$3:$K$24,FALSE),1),"") -> 
E28: Select Hydrologic Soil Group: | F28: Choose Hydrologic Soil Group
C29: I. ROLES AND RESPONSIBILITES
C30: A. Designer: | E30: SCS Curve Numbers
C31: 1. Prepares Base PPP included in the project plan. | E31: A link to Chapter 10D-01 is provided to use Table 2 for SCS Numbers.
C32: 2. Prepares Notice of Intent (NOI) submitted to Iowa DNR. | E32: Paved Surfaces | F32: =IF($F$28="A",98,IF($F$28="B",98,IF($F$28="C",98,IF($F$28="D",98,"Please select Hydrologic Soil Group")))) -> Please select Hydrologic Soil Group
C33: 3. Signature authority on the Base PPP and NOI. | E33: Granular Shoulder Surfaces | F33: =IF($F$28="A",76,IF($F$28="B",85,IF($F$28="C",89,IF($F$28="D",91,"")))) -> 
C34: B. Contractor/Subcontractor: | E34: Earth Shoulders | F34: =IF($F$28="A",39,IF($F$28="B",61,IF($F$28="C",74,IF($F$28="D",80,"")))) -> 
C35: 1. Affected contractors/subcontractors are co-permittees with the IDOT and will sign a certification statement adhering to the | E35: Urban Seeding | F35: =IF($F$28="A",39,IF($F$28="B",61,IF($F$28="C",74,IF($F$28="D",80,"")))) -> 
C36: requirements of the NPDES permit and this PPP plan. All co-permittees are legally required under the Clean Water Act and the | E36: Rural Seeding | F36: =IF($F$28="A",30,IF($F$28="B",58,IF($F$28="C",71,IF($F$28="D",78,"")))) -> 
C37: Iowa Administrative Code to ensure compliance with the terms and conditions of this PPP.
C38: 2. Submit a detailed schedule according to Article 2602 of the Specifications and any additional plan notes. | G38: ACRES
C39: 3. Install and maintain appropriate controls. | E39: Total Acres = (average ROW width x length of permit limits) + interchange areas
C40: 4. Supervise and implement good housekeeping practices.
C41: 5. Conduct joint required inspections of the site with inspection staff. | E41: Paved Surfaces Acres =
C42: 6. Signature authority on Co-Permittee Certification Statements and storm water inspection reports. | E42: Granular Shoulder Surfaces Acres =
C43: C. RCE/Inspector: | E43: Earth Shoulders Acres =
C44: 1. Update PPP whenever there is a change in design, construction, operation or maintenance, which has a significant effect on the | E44: Urban Seeding Acres =
C45: discharge of pollutants from the project. | E45: Rural Seeding Acres = | G45: =SUM(G39-SUM(G41:G44)) -> 0
C46: 2. Maintain an up-to-date list that identifies contractors and subcontractors as co-permittees.
C47: 3. Make these plans available to the DNR upon their request. | E47: Disturbed Acres = area of new pavt + area of new gran. & earth shoulders + area to be seeded
C48: 4. Conduct joint required inspections of the site with the contractor/subcontractor.
C49: 5. Complete an inspection report after each inspection.
C50: 6. Signature authority on storm water inspection reports and Notice of Discontinuation (NOD). | E50: Percentage Breakdowns Per Surface
E51: % Paved Surfaces = | G51: =IF(AND($G$39<>"",$G$41<>""),$G$41/$G$39,"") -> 
C52: II. PROJECT SITE DESCRIPTION | E52: % Granular Shoulder Surfaces Acres = | G52: =IF(AND($G$39<>"",$G$42<>""),$G$42/$G$39,"") -> 
C53: A. This Pollution Prevention Plan (PPP) is for the construction of a *Describe Type Of Facility*. | E53: % Earth Shoulder Surfaces Acres = | G53: =IF(AND($G$39<>"",$G$43<>""),$G$43/$G$39,"") -> 
C54: B. This PPP covers approximately *Provide # Of Acres* acres with an estimated *Provide # Of Acres* acres being disturbed. The portion | E54: % Urban Seeded Acres = | G54: =IF(AND($G$39<>"",G44<>""),$G$44/$G$39,"") -> 
C55: of the PPP covered by this contract has *Provide # Of Acres* acres disturbed. | E55: % Rural Seeded Acres = | G55: =IF(OR(G51<>"",G52<>"",G53<>"",G54<>""),SUM("100%" - SUM(G51:G54)),"") -> 
C57: C. The PPP is located in an area of *Provide # Of Types Of Soil Association* soil association (*Provide Soil Association Type Or* | E57: Calculate Average SCS Runoff Curve Number
C58: *Types*). The estimated average SCS runoff curve number for this PPP after completion will be *Provide SCS Curve Number*. | E58: Paved Surfaces = | G58: =IF(G51<>"",IF(OR($F$28="A",$F$28="B",$F$28="C",$F$28="D"),F32*G51,""),"") -> 
C59: D. Storm Water Site Map - Multiple sources of information comprise the base storm water site map including: | E59: Granular Shoulder Surfaces = | G59: =IF(G52<>"",IF(OR($F$28="A",$F$28="B",$F$28="C",$F$28="D"),F33*G52,""),"") -> 
C60: 1. Drainage patterns – Plan and Profile sheets and Situation plans. | E60: Earth Shoulder Surfaces = | G60: =IF(G53<>"",IF(OR($F$28="A",$F$28="B",$F$28="C",$F$28="D"),F34*G53,""),"") -> 
C61: 2. Proposed Slopes – Cross Sections. | E61: Urban Seeding Sufaces = | G61: =IF(G54<>"",IF(OR($F$28="A",$F$28="B",$F$28="C",$F$28="D"),F35*G54,""),"") -> 
C62: 3. Areas of Soil Disturbance – construction limits shown on Plan and Profile sheets. | E62: Rural Seeding Surfaces = | G62: =IF(G55<>"",IF(OR($F$28="A",$F$28="B",$F$28="C",$F$28="D"),F36*G55,""),"") -> 
C63: 4. Location of Structural Controls – Tabulations on C sheets.
C64: 5. Locations of Non-structural Controls – Tabulations on C sheets. | E64: Average SCS Runoff Number | G64: =ROUNDUP(SUM(G58:G62),0) -> 0
C65: 6. Locations of Stabilization Practices – generally within construction limits shown on Plan and Profile sheets.
C66: 7. Surface Waters (including wetlands) – Plan and Profile sheets.
C67: 8. Locations where storm water is discharged – Plan and Profile sheets.
C68: E. The base site map is amended by contract modifications and progress payments of completed erosion control work.
C69: F. Runoff from this work will flow into *List Outlets For Runoff*.
C71: III. CONTROLS
C72: A. The contractor’s work plan and sequence of operations specified in Article 2602.03 for accomplishment of storm water controls
C73: should clearly describe the intended sequence of major activities and for each activity define the control measure and the timing
C74: during the construction process that the measure will be implemented.
C75: B. Preserve vegetation in areas not needed for construction.
C76: C. Section 2601 and 2602 of the Standard Specifications define requirements to implement erosion and sediment control measures.
C77: Actual quantities used may vary from the Base PPP and amendment of the plan will be documented via fieldbook entries or by
C78: contract modification. Additional erosion and sediment control items may be required as determined by the inspector and/or
C79: contractor during storm water monitoring inspections. If the work involved is not applicable to any contract items, the work will
C80: be paid for according to Article 1109.03 paragraph B.
C81: 1. EROSION AND SEDIMENT CONTROLS
C82: a. Stabilization Practices
C83: 1) Site plans will ensure that existing vegetation is preserved where attainable and disturbed portions of the site will be
C84: stabilized.
C85: 2) Stabilization measures shall be initiated as soon as practicable in portions of the site where construction activities
C86: have temporarily or permanently ceased.
C87: 3) Temporary stabilizing seeding shall be completed as the disturbed areas are constructed. If construction activity is not
C88: planned to occur in a disturbed area for at least 21 days, the area shall be stabilized by temporary seeding or mulching
C89: within 14 days. Other stabilizing methods shall be used outside the seeding time period.
C90: 4) Stabilization measures to be used for this project are located in the Estimated Project Quantities (100-1A) and Estimate
C91: Reference Information (100-4A) located on the C sheets of the plan. Additional items may be found in the Inspector’s
C92: Daily Reports (IDR) or Contract Modifications.
C93: b. Structural Practices
C94: 1) Structural practices will be implemented to divert flows from exposed soils and detain or otherwise limit runoff and the
C95: discharge of pollutants from exposed areas of the site.
C96: 2) Structural items to be used for this project are located in the Estimated Project Quantities (100-1A) and Estimate
C97: Reference Information (100-4A) located on the C sheets of the plan, as well as all other item specific Tabulations.
C98: Typical drawings detailing construction of the devices to be used on this project can be found on the B sheets of the
C99: plan or are referenced in the Standard Road Plans Tabulation.
C100: c. Storm Water Management
C101: 1) Measures shall be installed during the construction process to control pollutants in storm water discharges that will
C102: occur after construction operations have been completed. The installation of these devices may be subject to Section 404
C103: of the Clean Water Act.
C104: 2. OTHER CONTROLS
C105: a. Contractor disposal of unused construction materials and construction material wastes shall comply with applicable state
C106: and local waste disposal, sanitary sewer, or septic system regulations. In the event of a conflict with other governmental
C107: laws, rules and regulations, the more restrictive laws, rules or regulations shall apply.
C108: 1) Vehicle Entrances and Exits - Construct and maintain entrances and exits to prevent tracking of sediments onto roadways.
C109: 2) Material Delivery, Storage and Use - Implement practices to prevent discharge of construction materials during delivery,
C110: storage, and use.
C111: 3) Stockpile Management - Install controls to reduce or eliminate pollution of storm water from stockpiles of soil and
C112: paving.
C113: 4) Waste Disposal - Do not discharge any materials, including building materials, into waters of the state, except as
C114: authorized by a Section 404 permit.
C115: 5) Spill Prevention and Control - Implement procedures to contain and clean-up spills and prevent material discharges to the
C116: storm drain system and waters of the state.
C117: 6) Concrete Residuals and Washout Wastes - Designate temporary concrete washout facilities for rinsing out concrete trucks.
C118: Provide directions to truck drivers where designated washout facilities are located.
C119: 7) Vehicle and Equipment Cleaning - Employ washing practices that prevent contamination of surface and ground water from
C120: wash water.
C121: 8) Vehicle and Equipment Fueling and Maintenance - Perform on site fueling and maintenance in accordance with all
C122: environment laws such as proper storage of onside fuels and proper disposal of used engine oil or other fluids on site.
C123: 9) Litter Management - Ensure employees properly dispose of litter.
C124: 3. APPROVED STATE OR LOCAL PLANS
C125: During the course of this construction, it is possible that situations will arise where unknown materials will be encountered.
C126: When such situations are encountered, they will be handled according to all federal, state, and local regulations in effect at
C127: the time.
C129: IV. MAINTENANCE PROCEDURES
C130: The contractor is required to maintain all temporary erosion and sediment control measures in proper working order, including
C131: cleaning, repairing, or replacing them throughout the contract period. This shall begin when the features have lost 50% of their
C132: capacity.
C134: V. INSPECTION REQUIREMENTS
C135: A. Inspections shall be made jointly by the contractor and the contracting authority at least once every seven calendar days. Storm
C136: water monitoring inspections will include:
C137: 1. Date of the inspection.
C138: 2. Summary of the scope of the inspection.
C139: 3. Name and qualifications of the personnel making the inspection.
C140: 4. Rainfall amount.
C141: 5. Review erosion and sediment control measures within disturbed areas for the effectiveness in preventing impacts to receiving
C142: waters.
C143: 6. Major observations related to the implementation of the PPP.
C144: 7. Identify corrective actions required to maintain or modify erosion and sediment control measures.
C145: B. Include storm water monitoring inspection reports in the Amended PPP. Incorporate any additional erosion and sediment control
C146: measures determined as a result of the inspection. Immediately begin corrective actions on all deficiencies found and complete all
C147: actions within 3 calendar days of the inspection.
C149: VI. NON-STORM WATER DISCHARGES
C150: This includes subsurface drains (i.e. longitudinal and standard subdrains) and slope drains. The velocity of the discharge from
C151: these features may be controlled by the use of patio blocks, Class A stone, erosion stone or other appropriate materials.
C153: VII. POTENTIAL SOURCES OF OFF RIGHT-OF-WAY (ROW) POLLUTION
C154: Silts, sediment, and other forms of pollution may be transported onto highway right-of-way (ROW) as a result of a storm event.
C155: Potential sources of pollution located outside highway ROW are beyond the control of this PPP. Pollution within highway ROW will
C156: be conveyed and controlled per this PPP.
C158: VIII. DEFINITIONS
C159: A. Base PPP - Initial Pollution Prevention Plan.
C160: B. Amended PPP - May include Plan Revisions or Contract Modifications for new items and fieldbook entries made by the inspector.
C161: C. IDR - Inspector’s Daily Report – this contains the inspector’s daily diary and item postings.
C162: D. Controls - Methods, practices, or measures to minimize or prevent erosion, control sedimentation, control storm water, or
C163: minimize contaminants from other types of waste or materials.
C164: E. Signature Authority - Representative from Designer, Contractor/Subcontractor, or RCE/Inspector authorized to sign various storm
C165: water documents.

Sheet DE110_13
A1: TabTitle | B1: =C15 -> DELIVERY AND STOCKPILING
A2: Number of Tab Columns | B2: 6
A3: DE Starter Row Number | B3: 19
A4: TabSheet Starter Row Number | B4: 6
A5: TabSheet Header Row Count | B5: 5
A6: Top Header Cell | B6: J15
A7: Bottom Header Cell | B7: O19
A8: DESheet Row Count | B8: 0
A9: Fixed Empty Rows | B9: 2
A10: Usable Empty Rows | B10: 0
A11: Total Rows Placed | B11: 3 | C11: xlLeft(1) | D11: xlRight(1) | E11: xlRight(1) | F11: xlLeft(1) | G11: xlLeft(1) | H11: xlLeft(1) | J11: =C11 -> xlLeft(1) | K11: =D11 -> xlRight(1) | L11: xlRight(1) | M11: xlLeft(1) | N11: xlLeft(1) | O11: xlLeft(1)
A12: Total Rows Needed | B12: =SUM(B8:B10) -> 2 | C12: General | D12: General | E12: General | F12: General | G12: General | H12: General | J12: =C12 -> General | K12: General | L12: General | M12: General | N12: General | O12: General
A13: Last Tab DE Starter Row | B13: 19 | C13: =CELL("width",C13) -> 35 | D13: 13 | E13: 11 | F13: 28 | G13: 33 | H13: 35 | J13: 0 | K13: 0 | L13: 0 | M13: 0 | N13: 0 | O13: 0
A14: Last Tab TabSheet Starter Row | B14: 6 | C14: A | D14: B | E14: C | F14: D | G14: E | H14: F | J14: a | K14: b | L14: c | M14: d | N14: e | O14: f
A15: Last Copy Starter Row | B15: 1 | C15: DELIVERY AND STOCKPILING | J15: 110-13
A16: Tab Loop Number | B16: 2 | J16: =B17 -> 2010-04-20
A17: Revision Date | B17: 2010-04-20 | C17: ="This Data Entry Sheet fills Tab "&J15&" effective "&TEXT(B17,"mm-dd-yy") -> This Data Entry Sheet fills Tab 110-13 effective 04-20-10 | J17: =C15 -> DELIVERY AND STOCKPILING
A18: Tabulation Width | B18: 2 | C18: Item Description | D18: Quantity | E18: Units | F18: Delivery Location | G18: Contact Name & Number | H18: Remarks
A19: Horizontal Grid Lines | B19: Yes | J19: =C18 -> Item Description | K19: Quantity | L19: Units | M19: Delivery Location | N19: Contact Name & Number | O19: Remarks

Sheet DE110_17
A1: TabTitle | B1: =C16 -> CLEARING AND GRUBBING
A2: Number of Tab Columns | B2: 22
A3: DE Starter Row Number | B3: 24
A4: TabSheet Starter Row Number | B4: 10
A5: TabSheet Header Row Count | B5: 9
A6: Top Header Cell | B6: AB15
A7: Bottom Header Cell | B7: AW23
A8: DESheet Row Count | B8: 0
A9: Fixed Empty Rows | B9: 2
A10: Usable Empty Rows | B10: 0
A11: Total Rows Placed | B11: 2 | C11: xlCenter | D11: xlCenter | E11: xlLeft(1) | F11: xlRight(1) | G11: xlRight(1) | H11: xlRight(1) | I11: xlRight(1) | J11: xlRight(1) | K11: xlRight(1) | L11: xlRight(1) | M11: xlRight(1) | N11: xlRight(1) | O11: xlRight(1) | P11: xlRight(1) | Q11: xlRight(1) | R11: xlRight(1) | T11: xlRight(1) | U11: xlRight(1) | W11: xlRight(1) | X11: xlRight(1) | Y11: xlRight(1) | Z11: xlLeft(1) | AB11: =C11 -> xlCenter | AC11: xlCenter | AD11: xlLeft(1) | AE11: xlRight(1) | AF11: xlRight(1) | AG11: xlRight(1) | AH11: xlRight(1) | AI11: xlRight(1) | AJ11: xlRight(1) | AK11: xlRight(1) | AL11: xlRight(1) | AM11: xlRight(1) | AN11: xlRight(1) | AO11: xlRight(1) | AP11: xlRight(1) | AQ11: xlRight(1) | AR11: =T11 -> xlRight(1) | AS11: =U11 -> xlRight(1) | AT11: =W11 -> xlRight(1) | AU11: xlRight(1) | AV11: xlRight(1) | AW11: xlLeft(1)
A12: Total Rows Needed | B12: =SUM(B8:B10) -> 2 | C12: General | D12: General | E12: General | F12: 0 | G12: 0 | H12: 0 | I12: 0 | J12: 0 | K12: 0 | L12: 0 | M12: 0 | N12: 0 | O12: 0 | P12: 0 | Q12: 0 | R12: 0 | T12: 0.0 | U12: 0.0 | W12: 0.0 | X12: 0.0 | Y12: 0 | Z12: General | AB12: General | AC12: General | AD12: General | AE12: 0 | AF12: 0 | AG12: 0 | AH12: 0 | AI12: 0 | AJ12: 0 | AK12: 0 | AL12: 0 | AM12: 0 | AN12: 0 | AO12: 0 | AP12: 0 | AQ12: 0 | AR12: =T12 -> 0.0 | AS12: =U12 -> 0.0 | AT12: 0.0 | AU12: 0.0 | AV12: 0 | AW12: General
A13: Last Tab DE Starter Row | B13: 24 | C13: =CELL("width",C13) -> 26 | D13: 11 | E13: 39 | F13: 11 | G13: 11 | H13: 11 | I13: 11 | J13: 11 | K13: 11 | L13: 11 | M13: 11 | N13: 11 | O13: 11 | P13: 11 | Q13: 11 | R13: 11 | T13: =CELL("width",T13) -> 11 | U13: =CELL("width",U13) -> 11 | W13: =CELL("width",W13) -> 11 | X13: =CELL("width",X13) -> 11 | Y13: =CELL("width",Y13) -> 14 | Z13: =CELL("width",Z13) -> 32 | AB13: =CELL("width",AB13) -> 0 | AC13: 0 | AD13: 0 | AE13: 0 | AF13: 0 | AG13: 0 | AH13: 0 | AI13: 0 | AJ13: 0 | AK13: 0 | AL13: 0 | AM13: 0 | AN13: 0 | AO13: 0 | AP13: 0 | AQ13: 0 | AR13: 0 | AS13: 0 | AT13: 0 | AU13: 0 | AV13: 0 | AW13: 0
A14: Last Tab Tabsheet Starter Row | B14: 10 | C14: A | D14: B | E14: C | F14: D | G14: E | H14: F | I14: G | J14: H | K14: I | L14: J | M14: K | N14: L | O14: M | P14: N | Q14: O | R14: P | T14: Q | U14: R | W14: S | X14: T | Y14: U | Z14: V | AB14: =LOWER(C14) -> a | AC14: b | AD14: c | AE14: d | AF14: e | AG14: f | AH14: g | AI14: h | AJ14: i | AK14: j | AL14: k | AM14: l | AN14: m | AO14: n | AP14: o | AQ14: p | AR14: =LOWER(T14) -> q | AS14: =LOWER(U14) -> r | AT14: =LOWER(W14) -> s | AU14: =LOWER(X14) -> t | AV14: =LOWER(Y14) -> u | AW14: =LOWER(Z14) -> v
A15: Last Copy Starter Row | B15: 1 | W15: =SUBTOTAL(9,W24:W2000) -> 0 | X15: =SUBTOTAL(9,X24:X2000) -> 0 | Y15: =SUBTOTAL(9,Y24:Y2000) -> 0 | AB15: 110-17 | AZ15: =E19 -> Work and Material Type | BB15: =F19 -> Trees, Stumps, and Logs and Down Timber Material Diameters
A16: Tab Loop Number | B16: 2 | C16: CLEARING AND GRUBBING | AB16: =B17 -> 2014-04-15 | AZ16: Trees - Clearing | BB16: =F21 -> 3"-6" | BC16: >6"-9" | BD16: >9"-12" | BE16: >12"-15" | BF16: >15"-18" | BG16: >18"-24" | BH16: >24"-30" | BI16: >30"-36" | BJ16: >36"-42" | BK16: >42"-48" | BL16: >48"-60" | BM16: >60"-72" | BN16: >72"
A17: Revision Date | B17: 2014-04-15 | AB17: =C16 -> CLEARING AND GRUBBING | AZ17: Trees - Grubbing | BA17: Clearing | BB17: 0.5 | BC17: 1.1 | BD17: 1.9 | BE17: 2.8 | BF17: 4.7 | BG17: 8.4 | BH17: 11.4 | BI17: 22 | BJ17: 30 | BK17: 40 | BL17: 60 | BM17: 80 | BN17: 120
A18: Tabulation Width | B18: 4 | C18: ="This Data Entry Sheet fills Tab "&AB15&" effective "&TEXT(B17,"mm-dd-yy") -> This Data Entry Sheet fills Tab 110-17 effective 04-15-14 | AZ18: Trees - Clearing and Grubbing | BA18: Grubbing | BB18: 1.1 | BC18: 2.8 | BD18: 4.8 | BE18: 6.6 | BF18: 8.8 | BG18: 13.6 | BH18: 17.6 | BI18: 28 | BJ18: 50 | BK18: 80 | BL18: 100 | BM18: 120 | BN18: 160
A19: Horizontal Grid Lines | B19: Yes | C19: Location | E19: Work and Material Type | F19: Trees, Stumps, and Logs and Down Timber Material Diameters | T19: All Other Materials | W19: Estimated Quantities | Z19: Remarks | AB19: =C19 -> Location | AD19: =E19 -> Work and Material Type | AE19: =F19 -> Trees, Stumps, and Logs and Down Timber Material Diameters | AR19: =T19 -> All Other Materials | AT19: =W19 -> Estimated Quantities | AW19: =Z19 -> Remarks | AZ19: Stumps - Grubbing | BA19: Clearing and Grubbing | BB19: 1.6 | BC19: 3.9 | BD19: 6.7 | BE19: 9.4 | BF19: 13.5 | BG19: 22 | BH19: 29 | BI19: 50 | BJ19: 80 | BK19: 120 | BL19: 160 | BM19: 200 | BN19: 280
C20: Station to Station or Milepost to Milepost or Description | D20: Direction of Travel | W20: Units | X20: Area | Y20: Herbicide Application | AB20: =C20 -> Station to Station or Milepost to Milepost or Description | AC20: =D20 -> Direction of Travel | AT20: =W20 -> Units | AU20: =X20 -> Area | AV20: =Y20 -> Herbicide Application | AZ20: Logs and Down Timber - Clearing
F21: 3"-6" | G21: >6"-9" | H21: >9"-12" | I21: >12"-15" | J21: >15"-18" | K21: >18"-24" | L21: >24"-30" | M21: >30"-36" | N21: >36"-42" | O21: >42"-48" | P21: >48"-60" | Q21: >60"-72" | R21: >72" | S21: Calculated Units | T21: Length | U21: Width | V21: Calculated Units | AE21: =F21 -> 3"-6" | AF21: >6"-9" | AG21: >9"-12" | AH21: >12"-15" | AI21: >15"-18" | AJ21: >18"-24" | AK21: >24"-30" | AL21: >30"-36" | AM21: >36"-42" | AN21: >42"-48" | AO21: >48"-60" | AP21: >60"-72" | AQ21: >72" | AR21: =T21 -> Length | AS21: =U21 -> Width | AZ21: Brush - Clearing
AZ22: Field Fence - Clearing
T23: FT | U23: FT | W23: Units | X23: Acres | Y23: Each | AR23: =T23 -> FT | AS23: =U23 -> FT | AT23: =W23 -> Units | AU23: =X23 -> Acres | AV23: =Y23 -> Each | AZ23: Growing Corn - Clearing
S24: =IF(OR(E24="Trees - Clearing",E24="Logs and Down Timber - Clearing"),(F24*$BB$17)+(G24*$BC$17)+(H24*$BD$17)+(I24*$BE$17)+(J24*$BF$17)+(K24*$BG$17)+(L24*$BH$17)+(M24*$BI$17)+(N24*$BJ$17)+(O24*$BK$17)+(P24*$BL$17)+(Q24*$BM$17)+(R24*$BN$17),IF(OR(E24="Trees - Grubbing",E24="Stumps - Grubbing"),(F24*$BB$18)+(G24*$BC$18)+(H24*$BD$18)+(I24*$BE$18)+(J24*$BF$18)+(K24*$BG$18)+(L24*$BH$18)+(M24*$BI$18)+(N24*$BJ$18)+(O24*$BK$18)+(P24*$BL$18)+(Q24*$BM$18)+(R24*$BN$18),IF(E24="Trees - Clearing and Grubbing",(F24*$BB$19)+(G24*$BC$19)+(H24*$BD$19)+(I24*$BE$19)+(J24*$BF$19)+(K24*$BG$19)+(L24*$BH$19)+(M24*$BI$19)+(N24*$BJ$19)+(O24*$BK$19)+(P24*$BL$19)+(Q24*$BM$19)+(R24*$NM$19),))) -> 0 | V24: =IF(E24="Brush - Clearing",(T24*U24)*0.8/100,IF(E24="Field Fence - Clearing",T24*6/100,IF(E24="Growing Corn - Clearing",(T24*U24)*0.2/100,IF(E24="Hedge Rows - Clearing",T24*30/100,)))) -> 0 | AZ24: Hedge Rows - Clearing
S25: =IF(OR(E25="Trees - Clearing",E25="Logs and Down Timber - Clearing"),(F25*$BB$17)+(G25*$BC$17)+(H25*$BD$17)+(I25*$BE$17)+(J25*$BF$17)+(K25*$BG$17)+(L25*$BH$17)+(M25*$BI$17)+(N25*$BJ$17)+(O25*$BK$17)+(P25*$BL$17)+(Q25*$BM$17)+(R25*$BN$17),IF(OR(E25="Trees - Grubbing",E25="Stumps - Grubbing"),(F25*$BB$18)+(G25*$BC$18)+(H25*$BD$18)+(I25*$BE$18)+(J25*$BF$18)+(K25*$BG$18)+(L25*$BH$18)+(M25*$BI$18)+(N25*$BJ$18)+(O25*$BK$18)+(P25*$BL$18)+(Q25*$BM$18)+(R25*$BN$18),IF(E25="Trees - Clearing and Grubbing",(F25*$BB$19)+(G25*$BC$19)+(H25*$BD$19)+(I25*$BE$19)+(J25*$BF$19)+(K25*$BG$19)+(L25*$BH$19)+(M25*$BI$19)+(N25*$BJ$19)+(O25*$BK$19)+(P25*$BL$19)+(Q25*$BM$19)+(R25*$NM$19),))) -> 0 | V25: =IF(E25="Brush - Clearing",(T25*U25)*0.8/100,IF(E25="Field Fence - Clearing",T25*6/100,IF(E25="Growing Corn - Clearing",(T25*U25)*0.2/100,IF(E25="Hedge Rows - Clearing",T25*30/100,)))) -> 0
S26: =IF(OR(E26="Trees - Clearing",E26="Logs and Down Timber - Clearing"),(F26*$BB$17)+(G26*$BC$17)+(H26*$BD$17)+(I26*$BE$17)+(J26*$BF$17)+(K26*$BG$17)+(L26*$BH$17)+(M26*$BI$17)+(N26*$BJ$17)+(O26*$BK$17)+(P26*$BL$17)+(Q26*$BM$17)+(R26*$BN$17),IF(OR(E26="Trees - Grubbing",E26="Stumps - Grubbing"),(F26*$BB$18)+(G26*$BC$18)+(H26*$BD$18)+(I26*$BE$18)+(J26*$BF$18)+(K26*$BG$18)+(L26*$BH$18)+(M26*$BI$18)+(N26*$BJ$18)+(O26*$BK$18)+(P26*$BL$18)+(Q26*$BM$18)+(R26*$BN$18),IF(E26="Trees - Clearing and Grubbing",(F26*$BB$19)+(G26*$BC$19)+(H26*$BD$19)+(I26*$BE$19)+(J26*$BF$19)+(K26*$BG$19)+(L26*$BH$19)+(M26*$BI$19)+(N26*$BJ$19)+(O26*$BK$19)+(P26*$BL$19)+(Q26*$BM$19)+(R26*$NM$19),))) -> 0 | V26: =IF(E26="Brush - Clearing",(T26*U26)*0.8/100,IF(E26="Field Fence - Clearing",T26*6/100,IF(E26="Growing Corn - Clearing",(T26*U26)*0.2/100,IF(E26="Hedge Rows - Clearing",T26*30/100,)))) -> 0
S27: 0 | V27: 0
S28: 0 | V28: 0
S29: 0 | V29: 0
S30: 0 | V30: 0
S31: 0 | V31: 0
S32: 0 | V32: 0
S33: 0 | V33: 0
S34: 0 | V34: 0
S35: 0 | V35: 0
S36: 0 | V36: 0
S37: 0 | V37: 0
S38: 0 | V38: 0
S39: 0 | V39: 0
S40: 0 | V40: 0
S41: 0 | V41: 0
S42: 0 | V42: 0
S43: 0 | V43: 0
S44: 0 | V44: 0
S45: 0 | V45: 0
S46: 0 | V46: 0
S47: 0 | V47: 0
S48: 0 | V48: 0
S49: 0 | V49: 0
S50: 0 | V50: 0
S51: 0 | V51: 0
S52: 0 | V52: 0
S53: 0 | V53: 0
S54: 0 | V54: 0
S55: 0 | V55: 0
S56: 0 | V56: 0
S57: 0 | V57: 0
S58: 0 | V58: 0
S59: 0 | V59: 0
S60: 0 | V60: 0
S61: 0 | V61: 0
S62: 0 | V62: 0
S63: 0 | V63: 0
S64: 0 | V64: 0
S65: 0 | V65: 0
S66: 0 | V66: 0
S67: 0 | V67: 0
S68: 0 | V68: 0
S69: 0 | V69: 0
S70: 0 | V70: 0
S71: 0 | V71: 0
S72: 0 | V72: 0
S73: 0 | V73: 0
S74: 0 | V74: 0
S75: 0 | V75: 0
S76: 0 | V76: 0
S77: 0 | V77: 0
S78: 0 | V78: 0
S79: 0 | V79: 0
S80: 0 | V80: 0
S81: 0 | V81: 0
S82: 0 | V82: 0
S83: 0 | V83: 0
S84: 0 | V84: 0
S85: 0 | V85: 0
S86: 0 | V86: 0
S87: 0 | V87: 0
S88: 0 | V88: 0
S89: 0 | V89: 0
S90: =IF(OR(E90="Trees - Clearing",E90="Logs and Down Timber - Clearing"),(F90*$BB$17)+(G90*$BC$17)+(H90*$BD$17)+(I90*$BE$17)+(J90*$BF$17)+(K90*$BG$17)+(L90*$BH$17)+(M90*$BI$17)+(N90*$BJ$17)+(O90*$BK$17)+(P90*$BL$17)+(Q90*$BM$17)+(R90*$BN$17),IF(OR(E90="Trees - Grubbing",E90="Stumps - Grubbing"),(F90*$BB$18)+(G90*$BC$18)+(H90*$BD$18)+(I90*$BE$18)+(J90*$BF$18)+(K90*$BG$18)+(L90*$BH$18)+(M90*$BI$18)+(N90*$BJ$18)+(O90*$BK$18)+(P90*$BL$18)+(Q90*$BM$18)+(R90*$BN$18),IF(E90="Trees - Clearing and Grubbing",(F90*$BB$19)+(G90*$BC$19)+(H90*$BD$19)+(I90*$BE$19)+(J90*$BF$19)+(K90*$BG$19)+(L90*$BH$19)+(M90*$BI$19)+(N90*$BJ$19)+(O90*$BK$19)+(P90*$BL$19)+(Q90*$BM$19)+(R90*$NM$19),))) -> 0 | V90: =IF(E90="Brush - Clearing",(T90*U90)*0.8/100,IF(E90="Field Fence - Clearing",T90*6/100,IF(E90="Growing Corn - Clearing",(T90*U90)*0.2/100,IF(E90="Hedge Rows - Clearing",T90*30/100,)))) -> 0
S91: 0 | V91: 0
S92: 0 | V92: 0
S93: 0 | V93: 0
S94: 0 | V94: 0
S95: 0 | V95: 0
S96: 0 | V96: 0
S97: 0 | V97: 0
S98: 0 | V98: 0
S99: 0 | V99: 0
S100: 0 | V100: 0
S101: 0 | V101: 0
S102: 0 | V102: 0
S103: 0 | V103: 0
S104: 0 | V104: 0
S105: 0 | V105: 0
S106: 0 | V106: 0
S107: 0 | V107: 0
S108: 0 | V108: 0
S109: 0 | V109: 0
S110: 0 | V110: 0
S111: 0 | V111: 0
S112: 0 | V112: 0
S113: 0 | V113: 0
S114: 0 | V114: 0
S115: 0 | V115: 0
S116: 0 | V116: 0
S117: 0 | V117: 0
S118: 0 | V118: 0
S119: 0 | V119: 0
S120: 0 | V120: 0
S121: 0 | V121: 0
S122: 0 | V122: 0
S123: 0 | V123: 0
S124: 0 | V124: 0
S125: 0 | V125: 0
S126: 0 | V126: 0
S127: 0 | V127: 0
S128: 0 | V128: 0
S129: 0 | V129: 0
S130: 0 | V130: 0
S131: 0 | V131: 0
S132: 0 | V132: 0
S133: 0 | V133: 0
S134: 0 | V134: 0
S135: 0 | V135: 0
S136: 0 | V136: 0
S137: 0 | V137: 0
S138: 0 | V138: 0
S139: 0 | V139: 0
S140: 0 | V140: 0
S141: 0 | V141: 0
S142: 0 | V142: 0
S143: 0 | V143: 0
S144: 0 | V144: 0
S145: 0 | V145: 0
S146: 0 | V146: 0
S147: 0 | V147: 0
S148: 0 | V148: 0
S149: 0 | V149: 0
S150: 0 | V150: 0
S151: 0 | V151: 0
S152: 0 | V152: 0
S153: 0 | V153: 0
S154: =IF(OR(E154="Trees - Clearing",E154="Logs and Down Timber - Clearing"),(F154*$BB$17)+(G154*$BC$17)+(H154*$BD$17)+(I154*$BE$17)+(J154*$BF$17)+(K154*$BG$17)+(L154*$BH$17)+(M154*$BI$17)+(N154*$BJ$17)+(O154*$BK$17)+(P154*$BL$17)+(Q154*$BM$17)+(R154*$BN$17),IF(OR(E154="Trees - Grubbing",E154="Stumps - Grubbing"),(F154*$BB$18)+(G154*$BC$18)+(H154*$BD$18)+(I154*$BE$18)+(J154*$BF$18)+(K154*$BG$18)+(L154*$BH$18)+(M154*$BI$18)+(N154*$BJ$18)+(O154*$BK$18)+(P154*$BL$18)+(Q154*$BM$18)+(R154*$BN$18),IF(E154="Trees - Clearing and Grubbing",(F154*$BB$19)+(G154*$BC$19)+(H154*$BD$19)+(I154*$BE$19)+(J154*$BF$19)+(K154*$BG$19)+(L154*$BH$19)+(M154*$BI$19)+(N154*$BJ$19)+(O154*$BK$19)+(P154*$BL$19)+(Q154*$BM$19)+(R154*$NM$19),))) -> 0 | V154: =IF(E154="Brush - Clearing",(T154*U154)*0.8/100,IF(E154="Field Fence - Clearing",T154*6/100,IF(E154="Growing Corn - Clearing",(T154*U154)*0.2/100,IF(E154="Hedge Rows - Clearing",T154*30/100,)))) -> 0
S155: 0 | V155: 0
S156: 0 | V156: 0
S157: 0 | V157: 0
S158: 0 | V158: 0
S159: 0 | V159: 0
S160: 0 | V160: 0
S161: 0 | V161: 0
S162: 0 | V162: 0
S163: 0 | V163: 0
S164: 0 | V164: 0
S165: 0 | V165: 0
S166: 0 | V166: 0
S167: 0 | V167: 0
S168: 0 | V168: 0
S169: 0 | V169: 0
S170: 0 | V170: 0
S171: 0 | V171: 0
S172: 0 | V172: 0
S173: 0 | V173: 0
S174: 0 | V174: 0
S175: 0 | V175: 0
S176: 0 | V176: 0
S177: 0 | V177: 0
S178: 0 | V178: 0
S179: 0 | V179: 0
S180: 0 | V180: 0
S181: 0 | V181: 0
S182: 0 | V182: 0
S183: 0 | V183: 0
S184: 0 | V184: 0
S185: 0 | V185: 0
S186: 0 | V186: 0
S187: 0 | V187: 0
S188: 0 | V188: 0
S189: 0 | V189: 0
S190: 0 | V190: 0
S191: 0 | V191: 0
S192: 0 | V192: 0
S193: 0 | V193: 0
S194: 0 | V194: 0
S195: 0 | V195: 0
S196: 0 | V196: 0
S197: 0 | V197: 0
S198: 0 | V198: 0
S199: 0 | V199: 0
S200: 0 | V200: 0
... 1800 more rows

Sheet DE111_25
A1: TabTitle | B1: =C15 -> INDEX OF TABULATIONS
A2: Number of Tab Columns | B2: 3
A3: DE Starter Row Number | B3: 20
A4: TabSheet Starter Row Number | B4: 7
A5: TabSheet Header Row Count | B5: 6
A6: Top Header Cell | B6: G15
A7: Bottom Header Cell | B7: I20
A8: DESheet Row Count | B8: 0
A9: Fixed Empty Rows | B9: 2
A10: Usable Empty Rows | B10: 0
A11: Total Rows Placed | B11: 2 | C11: xlLeft(1) | D11: xlLeft(1) | E11: xlLeft(1) | G11: =C11 -> xlLeft(1) | H11: =D11 -> xlLeft(1) | I11: xlLeft(1)
A12: Total Rows Needed | B12: =SUM(B8:B10) -> 2 | C12: General | D12: General | E12: General | G12: =C12 -> General | H12: General | I12: General
A13: Last Tab DE Starter Row | B13: 20 | C13: =CELL("width",C13) -> 13 | D13: =CELL("width",D13) -> 128 | E13: =CELL("width",E13) -> 15 | G13: =CELL("width",G13) -> 0 | H13: =CELL("width",H13) -> 0 | I13: =CELL("width",I13) -> 0
A14: Last Tab TabSheet Starter Row | B14: 7 | C14: A | D14: B | E14: C | G14: =LOWER(C14) -> a | H14: =LOWER(D14) -> b | I14: =LOWER(E14) -> c
A15: Last Copy Starter Row | B15: 1 | C15: INDEX OF TABULATIONS | G15: 111-25
A16: Tab Loop Number | B16: 2 | G16: =B17 -> 2011-10-18
A17: Revision Date | B17: 2011-10-18 | C17: ="This Data Entry Sheet fills Tab "&G15&" effective "&TEXT(B17,"mm-dd-yy") -> This Data Entry Sheet fills Tab 111-25 effective 10-18-11 | G17: =C15 -> INDEX OF TABULATIONS
A18: Tabulation Width | B18: 2 | C18: Tabulation | D18: Tabulation Title | E18: Sheet No.
A19: Horizontal Grid Lines | B19: Yes | G19: =C18 -> Tabulation | H19: =D18 -> Tabulation Title | I19: =E18 -> Sheet No.

Sheet DE112_4
A1: TabTitle | B1: =C16 -> CURBS AND ISLANDS
A2: Number of Tab Columns | B2: 8
A3: DE Starter Row Number | B3: 24
A4: TabSheet Starter Row Number | B4: 10
A5: TabSheet Header Row Count | B5: 9
A6: Top Header Cell | B6: L15
A7: Bottom Header Cell | B7: S23
A8: DESheet Row Count | B8: 0
A9: Fixed Empty Rows | B9: 2
A10: Usable Empty Rows | B10: 0
A11: Total Rows Placed | B11: 2 | C11: xlLeft(1) | D11: xlRight(1) | E11: xlRight(1) | F11: xlRight(1) | G11: xlLeft(1) | H11: xlRight(1) | I11: xlRight(1) | J11: xlLeft(1) | L11: =C11 -> xlLeft(1) | M11: xlRight(1) | N11: xlRight(1) | O11: xlRight(1) | P11: xlLeft(1) | Q11: xlRight(1) | R11: xlRight(1) | S11: xlLeft(1)
A12: Total Rows Needed | B12: =SUM(B8:B10) -> 2 | C12: General | D12: #+00.00 | E12: General | F12: 0.0 | G12: General | H12: 0.0 | I12: 0.0 | J12: General | L12: General | M12: #+00.00 | N12: General | O12: 0.0 | P12: General | Q12: 0.0 | R12: 0.0 | S12: General
A13: Last Tab DE Starter Row | B13: 24 | C13: =CELL("width",C13) -> 12 | D13: 16 | E13: 12 | F13: 18 | G13: 30 | H13: 15 | I13: 14 | J13: 36 | L13: =CELL("width",L13) -> 0 | M13: 0 | N13: 0 | O13: 0 | P13: 0 | Q13: 0 | R13: 0 | S13: 0
A14: Last Tab Tabsheet Starter Row | B14: 10 | C14: A | D14: B | E14: C | F14: D | G14: E | H14: F | I14: G | J14: H | L14: =LOWER(C14) -> a | M14: b | N14: c | O14: d | P14: e | Q14: f | R14: g | S14: h
A15: Last Copy Starter Row | B15: 1 | E15: Totals: | F15: =SUBTOTAL(9,F23:F2000) -> 0 | L15: 112-4 | U15: =G22 -> Curb Type | V15: =H22 -> Gutter Width
A16: Tab Loop Number | B16: 2 | C16: CURBS AND ISLANDS | L16: =B17 -> 2013-10-15 | U16: 4" Sloped PCC | V16: 1.5
A17: Revision Date | B17: 2013-10-15 | L17: =C16 -> CURBS AND ISLANDS | U17: 6" Sloped PCC | V17: 2
A18: Tabulation Width | B18: 2 | C18: Refer to PV-20, PV-102, and 6000s Detail Series. | U18: 6" Standard PCC | V18: 2.5
A19: Horizontal Grid Lines | B19: Yes | C19: Bid Item | L19: =C18 -> Refer to PV-20, PV-102, and 6000s Detail Series. | U19: X" Driveway Drop PCC | V19: 3
C20: ="This Data Entry Sheet fills Tab "&L15&" effective "&TEXT(B17,"mm-dd-yy") -> This Data Entry Sheet fills Tab 112-4 effective 10-15-13 | L20: =C19 -> Bid Item | U20: X" Dowelled PCC | V20: 3.5
C21: Point No. | D21: Station | E21: Offset | F21: Island Interior Area | G21: Curb and Gutter | J21: Remarks | L21: =C21 -> Point No. | M21: =D21 -> Station | N21: =E21 -> Offset | O21: =F21 -> Island Interior Area | P21: =G21 -> Curb and Gutter | S21: =J21 -> Remarks | V21: 4
G22: Curb Type | H22: Gutter Width | I22: Length | P22: =G22 -> Curb Type | Q22: =H22 -> Gutter Width | R22: =I22 -> Length | V22: 4.5
F23: SY | H23: FT | I23: LF | O23: =F23 -> SY | Q23: =H23 -> FT | R23: =I23 -> LF | V23: 5
V24: 5.5
V25: X.X

Sheet DE112_6
A1: TabTitle | B1: =C16 -> BRIDGE APPROACH SECTION
A2: Number of Tab Columns | B2: 18
A3: DE Starter Row Number | B3: 28
A4: TabSheet Starter Row Number | B4: 14
A5: TabSheet Header Row Count | B5: 13
A6: Top Header Cell | B6: V15
A7: Bottom Header Cell | B7: AM27
A8: DESheet Row Count | B8: 0
A9: Fixed Empty Rows | B9: 2
A10: Usable Empty Rows | B10: 0
A11: Total Rows Placed | B11: 2 | C11: xlRight(1) | D11: xlRight(1) | E11: xlRight(1) | F11: xlRight(1) | G11: xlRight(1) | H11: xlRight(1) | I11: xlRight(1) | J11: xlRight(1) | K11: xlRight(1) | L11: xlCenter | M11: xlRight(1) | N11: xlRight(1) | O11: xlCenter | P11: xlRight(1) | Q11: xlRight(1) | R11: xlRight(1) | S11: xlRight(1) | T11: xlLeft(1) | V11: =C11 -> xlRight(1) | W11: xlRight(1) | X11: xlRight(1) | Y11: xlRight(1) | Z11: xlRight(1) | AA11: xlRight(1) | AB11: xlRight(1) | AC11: xlRight(1) | AD11: xlRight(1) | AE11: xlCenter | AF11: xlRight(1) | AG11: xlRight(1) | AH11: xlCenter | AI11: xlRight(1) | AJ11: xlRight(1) | AK11: xlRight(1) | AL11: =S11 -> xlRight(1) | AM11: xlLeft(1)
A12: Total Rows Needed | B12: =SUM(B8:B10) -> 2 | C12: #+00.00 | D12: General | E12: General | F12: General | G12: 0.0 | H12: 0.0 | I12: 0.0 | J12: 0.0 | K12: 0.0 | L12: General | M12: 0.0 | N12: #+00.00 | O12: General | P12: 0.0 | Q12: 0.0 | R12: 0.000 | S12: 0.0 | T12: General | V12: #+00.00 | W12: General | X12: General | Y12: General | Z12: 0.0 | AA12: 0.0 | AB12: 0.0 | AC12: 0.0 | AD12: 0.0 | AE12: General | AF12: 0.0 | AG12: #+00.00 | AH12: General | AI12: 0.0 | AJ12: 0.0 | AK12: 0.000 | AL12: 0.0 | AM12: General
A13: Last Tab DE Starter Row | B13: 28 | C13: =CELL("width",C13) -> 16 | D13: 6 | E13: 12 | F13: 12 | G13: 12 | H13: 8 | I13: 12 | J13: 11 | K13: 11 | L13: 11 | M13: 14 | N13: 16 | O13: 6 | P13: 11 | Q13: 15 | R13: 11 | S13: 10 | T13: 33 | V13: =CELL("width",V13) -> 0 | W13: 0 | X13: 0 | Y13: 0 | Z13: 0 | AA13: 0 | AB13: 0 | AC13: 0 | AD13: 0 | AE13: 0 | AF13: 0 | AG13: 0 | AH13: 0 | AI13: 0 | AJ13: 0 | AK13: 0 | AL13: 0 | AM13: 0
A14: Last Tab Tabsheet Starter Row | B14: 14 | C14: A | D14: B | E14: C | F14: D | G14: E | H14: F | I14: G | J14: H | K14: I | L14: J | M14: K | N14: L | O14: M | P14: N | Q14: O | R14: P | S14: Q | T14: R | V14: =LOWER(C14) -> a | W14: b | X14: c | Y14: d | Z14: e | AA14: f | AB14: g | AC14: h | AD14: i | AE14: j | AF14: k | AG14: l | AH14: m | AI14: n | AJ14: o | AK14: p | AL14: q | AM14: r
A15: Last Copy Starter Row | B15: 1 | H15: Totals: | I15: =SUBTOTAL(9,I28:I2000) -> 0 | J15: =SUBTOTAL(9,J28:J2000) -> 0 | K15: =SUBTOTAL(9,K28:K2000) -> 0 | V15: 112-6
A16: Tab Loop Number | B16: 2 | C16: BRIDGE APPROACH SECTION | V16: =B17 -> 2013-04-16
A17: Revision Date | B17: 2013-04-16 | V17: =C16 -> BRIDGE APPROACH SECTION
A18: Tabulation Width | B18: 3 | C18: Refer to the RK-Series.
A19: Horizontal Grid Lines | B19: Yes | C19: * Not a bid item | V19: =C18 -> Refer to the RK-Series.
C20: ="This Data Entry Sheet fills Tab "&V15&" effective "&TEXT(B17,"mm-dd-yy") -> This Data Entry Sheet fills Tab 112-6 effective 04-16-13 | V20: =C19 -> * Not a bid item
C21: Location | G21: Approach Pavement | L21: Fixed or Movable Abutment | M21: Subdrain | R21: * | S21: * | T21: Remarks | V21: =C21 -> Location | Z21: =G21 -> Approach Pavement | AE21: =L21 -> Fixed or Movable Abutment | AF21: =M21 -> Subdrain | AK21: =R21 -> * | AL21: =S21 -> * | AM21: =T21 -> Remarks
C22: Bridge Station | D22: End | E22: Skew Ahead | H22: Pay Length | I22: Non-Reinf. Pavement Area | J22: Single- Reinf. Pavement Area | K22: Double- Reinf. Pavement Area | M22: * | N22: * | P22: * | Q22: Class 'A'* | V22: =C22 -> Bridge Station | W22: =D22 -> End | X22: =E22 -> Skew Ahead | AA22: =H22 -> Pay Length | AB22: =I22 -> Non-Reinf. Pavement Area | AC22: =J22 -> Single- Reinf. Pavement Area | AD22: =K22 -> Double- Reinf. Pavement Area | AF22: =M22 -> * | AG22: =N22 -> * | AI22: =P22 -> * | AJ22: =Q22 -> Class 'A'*
M23: Perforated Subdrain 4" | N23: Subdrain Outlet | P23: Porous Backfill | Q23: Crushed Stone Backfill | R23: Modified Subbase | S23: Polymer Grid | AF23: =M23 -> Perforated Subdrain 4" | AG23: =N23 -> Subdrain Outlet | AI23: =P23 -> Porous Backfill | AJ23: =Q23 -> Crushed Stone Backfill | AK23: =R23 -> Modified Subbase | AL23: =S23 -> Polymer Grid
G24: Thickness | Z24: =G24 -> Thickness
E26: Degrees | X26: =E26 -> Degrees
E27: LEFT | F27: RIGHT | G27: Inches | H27: FT | I27: SY | J27: SY | K27: SY | L27: F or M | M27: LF | N27: STA | O27: Side | P27: CY | Q27: CY | R27: TON | S27: SY | X27: =E27 -> LEFT | Y27: =F27 -> RIGHT | Z27: Inches | AA27: FT | AB27: SY | AC27: SY | AD27: SY | AE27: F or M | AF27: LF | AG27: STA | AH27: Side | AI27: CY | AJ27: CY | AK27: TON | AL27: SY

Sheet DE112_8
A1: TabTitle | B1: =C16 -> MEDIAN CROSSOVERS | AI1: SRP | AJ1: Detour Pavement Sq. Yds. | AK1: Special Backfill Tons | AL1: Granular Shoulder Tons
A2: Number of Tab Columns | B2: 15
A3: DE Starter Row Number | B3: 27
A4: TabSheet Starter Row Number | B4: 13 | AI4: PV-500 | AJ4: 2695 | AK4: 1265 | AL4: 215
A5: TabSheet Header Row Count | B5: 12 | AI5: PV-501 | AJ5: 1140 | AK5: 555 | AL5: 185
A6: Top Header Cell | B6: S15 | AI6: PV-502 | AJ6: 1685 | AK6: 725 | AL6: 185
A7: Bottom Header Cell | B7: AG26 | AI7: PV-503 | AJ7: 3515 | AK7: 1700 | AL7: 340
A8: DESheet Row Count | B8: 0 | AI8: PV-504 | AJ8: 1320 | AK8: 645 | AL8: 225
A9: Fixed Empty Rows | B9: 2 | AI9: PV-505 | AJ9: 1970 | AK9: 845 | AL9: 220
A10: Usable Empty Rows | B10: 0 | AI10: PV-506 | AJ10: 3775 | AK10: 1810 | AL10: 350
A11: Total Rows Placed | B11: 2 | C11: xlLeft(1) | D11: xlRight(1) | E11: xlRight(1) | F11: xlRight(1) | G11: xlRight(1) | H11: xlRight(1) | I11: xlRight(1) | J11: xlRight(1) | K11: xlRight(1) | L11: xlRight(1) | M11: xlRight(1) | N11: xlRight(1) | O11: xlRight(1) | P11: xlRight(1) | Q11: xlLeft(1) | S11: =C11 -> xlLeft(1) | T11: xlRight(1) | U11: xlRight(1) | V11: xlRight(1) | W11: xlRight(1) | X11: xlRight(1) | Y11: xlRight(1) | Z11: xlRight(1) | AA11: xlRight(1) | AB11: xlRight(1) | AC11: xlRight(1) | AD11: xlRight(1) | AE11: xlRight(1) | AF11: xlRight(1) | AG11: xlLeft(1) | AI11: PV-507 | AJ11: 1370 | AK11: 670 | AL11: 240
A12: Total Rows Needed | B12: =SUM(B8:B10) -> 2 | C12: General | D12: #+00.00 | E12: General | F12: 0.0 | G12: 0.0 | H12: 0.0 | I12: 0.0 | J12: 0.0 | K12: 0.0 | L12: 0.0 | M12: 0.0 | N12: 0.0 | O12: 0.0 | P12: 0 | Q12: General | S12: General | T12: #+00.00 | U12: General | V12: 0.0 | W12: 0.0 | X12: 0.0 | Y12: 0.0 | Z12: 0.0 | AA12: 0.0 | AB12: 0.0 | AC12: 0.0 | AD12: 0.0 | AE12: 0.0 | AF12: 0 | AG12: General | AI12: PV-508 | AJ12: 2050 | AK12: 880 | AL12: 230
A13: Last Tab DE Starter Row | B13: 27 | C13: =CELL("width",C13) -> 18 | D13: 16 | E13: 11 | F13: 11 | G13: 11 | H13: 11 | I13: 12 | J13: 12 | K13: 12 | L13: 11 | M13: 10 | N13: 14 | O13: 10 | P13: 10 | Q13: 60 | S13: =CELL("width",S13) -> 0 | T13: 0 | U13: 0 | V13: 0 | W13: 0 | X13: 0 | Y13: 0 | Z13: 0 | AA13: 0 | AB13: 0 | AC13: 0 | AD13: 0 | AE13: 0 | AF13: 0 | AG13: 0 | AI13: PV-509 | AJ13: 4665 | AK13: 1860 | AL13: 380
A14: Last Tab Tabsheet Starter Row | B14: 13 | C14: A | D14: B | E14: C | F14: D | G14: E | H14: F | I14: G | J14: H | K14: I | L14: J | M14: K | N14: L | O14: M | P14: N | Q14: O | S14: =LOWER(C14) -> a | T14: b | U14: c | V14: d | W14: e | X14: f | Y14: g | Z14: h | AA14: i | AB14: j | AC14: k | AD14: l | AE14: m | AF14: n | AG14: o | AI14: PV-510 | AJ14: 1525 | AK14: 750 | AL14: 280
A15: Last Copy Starter Row | B15: 1 | E15: Totals: | F15: =SUBTOTAL(9,F27:F2000) -> 0 | G15: 0 | H15: 0 | I15: 0 | J15: 0 | K15: 0 | L15: 0 | M15: 0 | N15: 0 | O15: 0 | P15: 0 | S15: 112-8 | AI15: PV-511 | AJ15: 2305 | AK15: 985 | AL15: 270
A16: Tab Loop Number | B16: 2 | C16: MEDIAN CROSSOVERS | S16: =B17 -> 2014-04-15 | AI16: PV-512 | AJ16: 5915 | AK16: 2300 | AL16: 430
A17: Revision Date | B17: 2014-04-15 | S17: =C16 -> MEDIAN CROSSOVERS | AI17: PV-513 | AJ17: 1710 | AK17: 845 | AL17: 320
A18: Tabulation Width | B18: 3 | C18: Refer to PV-500 Series. | AI18: PV-514 | AJ18: 2610 | AK18: 1115 | AL18: 305
A19: Horizontal Grid Lines | B19: Yes | C19: * Not a bid item | S19: =C18 -> Refer to PV-500 Series.
C20: ="This Data Entry Sheet fills Tab "&S15&" effective "&TEXT(B17,"mm-dd-yy") -> This Data Entry Sheet fills Tab 112-8 effective 04-15-14 | S20: =C19 -> * Not a bid item
C21: Road Ident. | D21: Location Station | E21: Standard Road Plan | F21: Detour Pavement | G21: Special Backfill | H21: Granular Shoulder | I21: Embankment in Place | J21: Class 10 Excavation | K21: Class 13 Excavation | L21: Removal of Pavement | M21: Saw Cut* | N21: 18" Unclassified Roadway Pipe | O21: 36" CMP Slotted Drain/ 6" Grate | P21: Beveled Pipe and Guard | Q21: Remarks | S21: =C21 -> Road Ident. | T21: Location Station | U21: Standard Road Plan | V21: Detour Pavement | W21: Special Backfill | X21: Granular Shoulder | Y21: Embankment in Place | Z21: Class 10 Excavation | AA21: Class 13 Excavation | AB21: Removal of Pavement | AC21: Saw Cut* | AD21: 18" Unclassified Roadway Pipe | AE21: 36" CMP Slotted Drain/ 6" Grate | AF21: Beveled Pipe and Guard | AG21: Remarks
E26: No. | F26: SY | G26: TON | H26: TON | I26: CY | J26: CY | K26: CY | L26: SY | M26: LF | N26: LF | O26: LF | P26: No. | U26: =E26 -> No. | V26: SY | W26: TON | X26: TON | Y26: CY | Z26: CY | AA26: CY | AB26: SY | AC26: LF | AD26: LF | AE26: LF | AF26: No.
F27: =IF(E27<>"",INDEX($AJ$4:$AJ$18,MATCH(E27,$AI$4:$AI$18,0)),"") ->  | G27: =IF(E27<>"",INDEX($AK$4:$AK$18,MATCH(E27,$AI$4:$AI$18,0)),"") ->  | H27: =IF(E27<>"",INDEX($AL$4:$AL$18,MATCH(E27,$AI$4:$AI$18,0)),"") -> 
F91: =IF(E91<>"",INDEX($AJ$4:$AJ$18,MATCH(E91,$AI$4:$AI$18,0)),"") ->  | G91: =IF(E91<>"",INDEX($AK$4:$AK$18,MATCH(E91,$AI$4:$AI$18,0)),"") ->  | H91: =IF(E91<>"",INDEX($AL$4:$AL$18,MATCH(E91,$AI$4:$AI$18,0)),"") -> 
F155: =IF(E155<>"",INDEX($AJ$4:$AJ$18,MATCH(E155,$AI$4:$AI$18,0)),"") ->  | G155: =IF(E155<>"",INDEX($AK$4:$AK$18,MATCH(E155,$AI$4:$AI$18,0)),"") ->  | H155: =IF(E155<>"",INDEX($AL$4:$AL$18,MATCH(E155,$AI$4:$AI$18,0)),"") -> 
F219: =IF(E219<>"",INDEX($AJ$4:$AJ$18,MATCH(E219,$AI$4:$AI$18,0)),"") ->  | G219: =IF(E219<>"",INDEX($AK$4:$AK$18,MATCH(E219,$AI$4:$AI$18,0)),"") ->  | H219: =IF(E219<>"",INDEX($AL$4:$AL$18,MATCH(E219,$AI$4:$AI$18,0)),"") -> 
F283: =IF(E283<>"",INDEX($AJ$4:$AJ$18,MATCH(E283,$AI$4:$AI$18,0)),"") ->  | G283: =IF(E283<>"",INDEX($AK$4:$AK$18,MATCH(E283,$AI$4:$AI$18,0)),"") ->  | H283: =IF(E283<>"",INDEX($AL$4:$AL$18,MATCH(E283,$AI$4:$AI$18,0)),"") -> 
F347: =IF(E347<>"",INDEX($AJ$4:$AJ$18,MATCH(E347,$AI$4:$AI$18,0)),"") ->  | G347: =IF(E347<>"",INDEX($AK$4:$AK$18,MATCH(E347,$AI$4:$AI$18,0)),"") ->  | H347: =IF(E347<>"",INDEX($AL$4:$AL$18,MATCH(E347,$AI$4:$AI$18,0)),"") -> 
F411: =IF(E411<>"",INDEX($AJ$4:$AJ$18,MATCH(E411,$AI$4:$AI$18,0)),"") ->  | G411: =IF(E411<>"",INDEX($AK$4:$AK$18,MATCH(E411,$AI$4:$AI$18,0)),"") ->  | H411: =IF(E411<>"",INDEX($AL$4:$AL$18,MATCH(E411,$AI$4:$AI$18,0)),"") -> 
F475: =IF(E475<>"",INDEX($AJ$4:$AJ$18,MATCH(E475,$AI$4:$AI$18,0)),"") ->  | G475: =IF(E475<>"",INDEX($AK$4:$AK$18,MATCH(E475,$AI$4:$AI$18,0)),"") ->  | H475: =IF(E475<>"",INDEX($AL$4:$AL$18,MATCH(E475,$AI$4:$AI$18,0)),"") -> 
F539: =IF(E539<>"",INDEX($AJ$4:$AJ$18,MATCH(E539,$AI$4:$AI$18,0)),"") ->  | G539: =IF(E539<>"",INDEX($AK$4:$AK$18,MATCH(E539,$AI$4:$AI$18,0)),"") ->  | H539: =IF(E539<>"",INDEX($AL$4:$AL$18,MATCH(E539,$AI$4:$AI$18,0)),"") -> 
F603: =IF(E603<>"",INDEX($AJ$4:$AJ$18,MATCH(E603,$AI$4:$AI$18,0)),"") ->  | G603: =IF(E603<>"",INDEX($AK$4:$AK$18,MATCH(E603,$AI$4:$AI$18,0)),"") ->  | H603: =IF(E603<>"",INDEX($AL$4:$AL$18,MATCH(E603,$AI$4:$AI$18,0)),"") -> 
F667: =IF(E667<>"",INDEX($AJ$4:$AJ$18,MATCH(E667,$AI$4:$AI$18,0)),"") ->  | G667: =IF(E667<>"",INDEX($AK$4:$AK$18,MATCH(E667,$AI$4:$AI$18,0)),"") ->  | H667: =IF(E667<>"",INDEX($AL$4:$AL$18,MATCH(E667,$AI$4:$AI$18,0)),"") -> 
F731: =IF(E731<>"",INDEX($AJ$4:$AJ$18,MATCH(E731,$AI$4:$AI$18,0)),"") ->  | G731: =IF(E731<>"",INDEX($AK$4:$AK$18,MATCH(E731,$AI$4:$AI$18,0)),"") ->  | H731: =IF(E731<>"",INDEX($AL$4:$AL$18,MATCH(E731,$AI$4:$AI$18,0)),"") -> 
F795: =IF(E795<>"",INDEX($AJ$4:$AJ$18,MATCH(E795,$AI$4:$AI$18,0)),"") ->  | G795: =IF(E795<>"",INDEX($AK$4:$AK$18,MATCH(E795,$AI$4:$AI$18,0)),"") ->  | H795: =IF(E795<>"",INDEX($AL$4:$AL$18,MATCH(E795,$AI$4:$AI$18,0)),"") -> 
F859: =IF(E859<>"",INDEX($AJ$4:$AJ$18,MATCH(E859,$AI$4:$AI$18,0)),"") ->  | G859: =IF(E859<>"",INDEX($AK$4:$AK$18,MATCH(E859,$AI$4:$AI$18,0)),"") ->  | H859: =IF(E859<>"",INDEX($AL$4:$AL$18,MATCH(E859,$AI$4:$AI$18,0)),"") -> 
F923: =IF(E923<>"",INDEX($AJ$4:$AJ$18,MATCH(E923,$AI$4:$AI$18,0)),"") ->  | G923: =IF(E923<>"",INDEX($AK$4:$AK$18,MATCH(E923,$AI$4:$AI$18,0)),"") ->  | H923: =IF(E923<>"",INDEX($AL$4:$AL$18,MATCH(E923,$AI$4:$AI$18,0)),"") -> 
F987: =IF(E987<>"",INDEX($AJ$4:$AJ$18,MATCH(E987,$AI$4:$AI$18,0)),"") ->  | G987: =IF(E987<>"",INDEX($AK$4:$AK$18,MATCH(E987,$AI$4:$AI$18,0)),"") ->  | H987: =IF(E987<>"",INDEX($AL$4:$AL$18,MATCH(E987,$AI$4:$AI$18,0)),"") -> 
F1051: =IF(E1051<>"",INDEX($AJ$4:$AJ$18,MATCH(E1051,$AI$4:$AI$18,0)),"") ->  | G1051: =IF(E1051<>"",INDEX($AK$4:$AK$18,MATCH(E1051,$AI$4:$AI$18,0)),"") ->  | H1051: =IF(E1051<>"",INDEX($AL$4:$AL$18,MATCH(E1051,$AI$4:$AI$18,0)),"") -> 
F1115: =IF(E1115<>"",INDEX($AJ$4:$AJ$18,MATCH(E1115,$AI$4:$AI$18,0)),"") ->  | G1115: =IF(E1115<>"",INDEX($AK$4:$AK$18,MATCH(E1115,$AI$4:$AI$18,0)),"") ->  | H1115: =IF(E1115<>"",INDEX($AL$4:$AL$18,MATCH(E1115,$AI$4:$AI$18,0)),"") -> 
F1179: =IF(E1179<>"",INDEX($AJ$4:$AJ$18,MATCH(E1179,$AI$4:$AI$18,0)),"") ->  | G1179: =IF(E1179<>"",INDEX($AK$4:$AK$18,MATCH(E1179,$AI$4:$AI$18,0)),"") ->  | H1179: =IF(E1179<>"",INDEX($AL$4:$AL$18,MATCH(E1179,$AI$4:$AI$18,0)),"") -> 
F1243: =IF(E1243<>"",INDEX($AJ$4:$AJ$18,MATCH(E1243,$AI$4:$AI$18,0)),"") ->  | G1243: =IF(E1243<>"",INDEX($AK$4:$AK$18,MATCH(E1243,$AI$4:$AI$18,0)),"") ->  | H1243: =IF(E1243<>"",INDEX($AL$4:$AL$18,MATCH(E1243,$AI$4:$AI$18,0)),"") -> 
F1307: =IF(E1307<>"",INDEX($AJ$4:$AJ$18,MATCH(E1307,$AI$4:$AI$18,0)),"") ->  | G1307: =IF(E1307<>"",INDEX($AK$4:$AK$18,MATCH(E1307,$AI$4:$AI$18,0)),"") ->  | H1307: =IF(E1307<>"",INDEX($AL$4:$AL$18,MATCH(E1307,$AI$4:$AI$18,0)),"") -> 
F1371: =IF(E1371<>"",INDEX($AJ$4:$AJ$18,MATCH(E1371,$AI$4:$AI$18,0)),"") ->  | G1371: =IF(E1371<>"",INDEX($AK$4:$AK$18,MATCH(E1371,$AI$4:$AI$18,0)),"") ->  | H1371: =IF(E1371<>"",INDEX($AL$4:$AL$18,MATCH(E1371,$AI$4:$AI$18,0)),"") -> 
F1435: =IF(E1435<>"",INDEX($AJ$4:$AJ$18,MATCH(E1435,$AI$4:$AI$18,0)),"") ->  | G1435: =IF(E1435<>"",INDEX($AK$4:$AK$18,MATCH(E1435,$AI$4:$AI$18,0)),"") ->  | H1435: =IF(E1435<>"",INDEX($AL$4:$AL$18,MATCH(E1435,$AI$4:$AI$18,0)),"") -> 
F1499: =IF(E1499<>"",INDEX($AJ$4:$AJ$18,MATCH(E1499,$AI$4:$AI$18,0)),"") ->  | G1499: =IF(E1499<>"",INDEX($AK$4:$AK$18,MATCH(E1499,$AI$4:$AI$18,0)),"") ->  | H1499: =IF(E1499<>"",INDEX($AL$4:$AL$18,MATCH(E1499,$AI$4:$AI$18,0)),"") -> 
F1563: =IF(E1563<>"",INDEX($AJ$4:$AJ$18,MATCH(E1563,$AI$4:$AI$18,0)),"") ->  | G1563: =IF(E1563<>"",INDEX($AK$4:$AK$18,MATCH(E1563,$AI$4:$AI$18,0)),"") ->  | H1563: =IF(E1563<>"",INDEX($AL$4:$AL$18,MATCH(E1563,$AI$4:$AI$18,0)),"") -> 
F1627: =IF(E1627<>"",INDEX($AJ$4:$AJ$18,MATCH(E1627,$AI$4:$AI$18,0)),"") ->  | G1627: =IF(E1627<>"",INDEX($AK$4:$AK$18,MATCH(E1627,$AI$4:$AI$18,0)),"") ->  | H1627: =IF(E1627<>"",INDEX($AL$4:$AL$18,MATCH(E1627,$AI$4:$AI$18,0)),"") -> 
F1691: =IF(E1691<>"",INDEX($AJ$4:$AJ$18,MATCH(E1691,$AI$4:$AI$18,0)),"") ->  | G1691: =IF(E1691<>"",INDEX($AK$4:$AK$18,MATCH(E1691,$AI$4:$AI$18,0)),"") ->  | H1691: =IF(E1691<>"",INDEX($AL$4:$AL$18,MATCH(E1691,$AI$4:$AI$18,0)),"") -> 
F1755: =IF(E1755<>"",INDEX($AJ$4:$AJ$18,MATCH(E1755,$AI$4:$AI$18,0)),"") ->  | G1755: =IF(E1755<>"",INDEX($AK$4:$AK$18,MATCH(E1755,$AI$4:$AI$18,0)),"") ->  | H1755: =IF(E1755<>"",INDEX($AL$4:$AL$18,MATCH(E1755,$AI$4:$AI$18,0)),"") -> 
F1819: =IF(E1819<>"",INDEX($AJ$4:$AJ$18,MATCH(E1819,$AI$4:$AI$18,0)),"") ->  | G1819: =IF(E1819<>"",INDEX($AK$4:$AK$18,MATCH(E1819,$AI$4:$AI$18,0)),"") ->  | H1819: =IF(E1819<>"",INDEX($AL$4:$AL$18,MATCH(E1819,$AI$4:$AI$18,0)),"") -> 
F1883: =IF(E1883<>"",INDEX($AJ$4:$AJ$18,MATCH(E1883,$AI$4:$AI$18,0)),"") ->  | G1883: =IF(E1883<>"",INDEX($AK$4:$AK$18,MATCH(E1883,$AI$4:$AI$18,0)),"") ->  | H1883: =IF(E1883<>"",INDEX($AL$4:$AL$18,MATCH(E1883,$AI$4:$AI$18,0)),"") -> 
F1947: =IF(E1947<>"",INDEX($AJ$4:$AJ$18,MATCH(E1947,$AI$4:$AI$18,0)),"") ->  | G1947: =IF(E1947<>"",INDEX($AK$4:$AK$18,MATCH(E1947,$AI$4:$AI$18,0)),"") ->  | H1947: =IF(E1947<>"",INDEX($AL$4:$AL$18,MATCH(E1947,$AI$4:$AI$18,0)),"") -> 

Sheet DE112_9
A1: TabTitle | B1: =C16 -> SHOULDERS
A2: Number of Tab Columns | B2: 25
A3: DE Starter Row Number | B3: 32
A4: TabSheet Starter Row Number | B4: 18
A5: TabSheet Header Row Count | B5: 17
A6: Top Header Cell | B6: AM15
A7: Bottom Header Cell | B7: BK31
A8: DESheet Row Count | B8: 22
A9: Fixed Empty Rows | B9: 1
A10: Usable Empty Rows | B10: 0
A11: Total Rows Placed | B11: 2 | C11: xlLeft(1) | D11: xlCenter | E11: xlRight(1) | F11: xlRight(1) | G11: xlCenter | J11: xlRight(1) | M11: xlRight(1) | N11: xlRight(1) | O11: xlRight(1) | Q11: xlRight(1) | R11: xlRight(1) | S11: xlRight(1) | T11: xlRight(1) | U11: xlRight(1) | X11: xlRight(1) | Y11: xlRight(1) | Z11: xlRight(1) | AA11: xlRight(1) | AB11: xlRight(1) | AD11: xlRight(1) | AE11: xlRight(1) | AH11: xlRight(1) | AI11: xlRight(1) | AJ11: xlRight(1) | AK11: xlLeft(1) | AM11: =C11 -> xlLeft(1) | AN11: xlCenter | AO11: xlRight(1) | AP11: xlRight(1) | AQ11: xlCenter | AR11: =J11 -> xlRight(1) | AS11: =M11 -> xlRight(1) | AT11: xlRight(1) | AU11: xlRight(1) | AV11: =Q11 -> xlRight(1) | AW11: xlRight(1) | AX11: xlRight(1) | AY11: xlRight(1) | AZ11: xlRight(1) | BA11: =X11 -> xlRight(1) | BB11: xlRight(1) | BC11: xlRight(1) | BD11: xlRight(1) | BE11: xlRight(1) | BF11: =AD11 -> xlRight(1) | BG11: =AE11 -> xlRight(1) | BH11: =AH11 -> xlRight(1) | BI11: xlRight(1) | BJ11: xlRight(1) | BK11: xlLeft(1)
A12: Total Rows Needed | B12: =SUM(B8:B10) -> 23 | C12: general | D12: general | E12: #+00.00 | F12: #+00.00 | G12: general | J12: 0.0 | M12: 0.0 | N12: 0.0 | O12: 0.0 | Q12: 0.0 | R12: 0.0 | S12: 0.0 | T12: 0.0 | U12: 0.0 | X12: 0.0 | Y12: 0.0 | Z12: 0.0 | AA12: 0.0 | AB12: 0.0 | AD12: 0.0 | AE12: 0.0 | AH12: 0.0 | AI12: 0.0 | AJ12: 0.0 | AK12: general | AM12: general | AN12: general | AO12: #+00.00 | AP12: #+00.00 | AQ12: general | AR12: =J12 -> 0.0 | AS12: 0.0 | AT12: 0.0 | AU12: 0.0 | AV12: 0.0 | AW12: 0.0 | AX12: 0.0 | AY12: 0.0 | AZ12: 0.0 | BA12: 0.0 | BB12: 0.0 | BC12: 0.0 | BD12: 0.0 | BE12: 0.0 | BF12: =AD12 -> 0.0 | BG12: =AE12 -> 0.0 | BH12: 0.0 | BI12: 0.0 | BJ12: 0.0 | BK12: general
A13: Last Tab DE Starter Row | B13: 32 | C13: =CELL("width",C13) -> 20 | D13: =CELL("width",D13) -> 7 | E13: =CELL("width",E13) -> 16 | F13: =CELL("width",F13) -> 16 | G13: =CELL("width",G13) -> 6 | J13: =CELL("width",J13) -> 12 | M13: =CELL("width",M13) -> 12 | N13: =CELL("width",N13) -> 12 | O13: =CELL("width",O13) -> 16 | Q13: =CELL("width",Q13) -> 11 | R13: =CELL("width",R13) -> 11 | S13: =CELL("width",S13) -> 11 | T13: =CELL("width",T13) -> 11 | U13: =CELL("width",U13) -> 13 | X13: =CELL("width",X13) -> 11 | Y13: =CELL("width",Y13) -> 11 | Z13: =CELL("width",Z13) -> 11 | AA13: =CELL("width",AA13) -> 11 | AB13: =CELL("width",AB13) -> 11 | AD13: =CELL("width",AD13) -> 11 | AE13: =CELL("width",AE13) -> 11 | AH13: =CELL("width",AH13) -> 11 | AI13: =CELL("width",AI13) -> 10 | AJ13: =CELL("width",AJ13) -> 10 | AK13: =CELL("width",AK13) -> 25 | AM13: =CELL("width",AM13) -> 0 | AN13: 0 | AO13: 0 | AP13: 0 | AQ13: 0 | AR13: 0 | AS13: 0 | AT13: 0 | AU13: 0 | AV13: 0 | AW13: 0 | AX13: 0 | AY13: 0 | AZ13: 0 | BA13: 0 | BB13: 0 | BC13: 0 | BD13: 0 | BE13: 0 | BF13: 0 | BG13: 0 | BH13: 0 | BI13: 0 | BJ13: 0 | BK13: 0
A14: Last Tab Tabsheet Starter Row | B14: 18 | C14: A | D14: B | E14: C | F14: D | G14: E | J14: F | M14: G | N14: H | O14: I | Q14: J | R14: K | S14: L | T14: M | U14: N | X14: O | Y14: P | Z14: Q | AA14: R | AB14: S | AD14: T | AE14: U | AH14: V | AI14: W | AJ14: X | AK14: Y | AM14: =LOWER(C14) -> a | AN14: =LOWER(D14) -> b | AO14: =LOWER(E14) -> c | AP14: =LOWER(F14) -> d | AQ14: =LOWER(G14) -> e | AR14: =LOWER(J14) -> f | AS14: =LOWER(M14) -> g | AT14: =LOWER(N14) -> h | AU14: =LOWER(O14) -> i | AV14: =LOWER(Q14) -> j | AW14: =LOWER(R14) -> k | AX14: =LOWER(S14) -> l | AY14: =LOWER(T14) -> m | AZ14: =LOWER(U14) -> n | BA14: =LOWER(X14) -> o | BB14: =LOWER(X14) -> o | BC14: =LOWER(Y14) -> p | BD14: =LOWER(Z14) -> q | BE14: =LOWER(AA14) -> r | BF14: =LOWER(AD14) -> t | BG14: =LOWER(AE14) -> u | BH14: =LOWER(AH14) -> v | BI14: =LOWER(AI14) -> w | BJ14: =LOWER(AJ14) -> x | BK14: =LOWER(AK14) -> y
A15: Last Copy Starter Row | B15: 1 | N15: Totals: | O15: =SUBTOTAL(9,O32:O2006) -> 0 | T15: =SUBTOTAL(9,T32:T2006) -> 47420.57778 | U15: =SUBTOTAL(9,U32:U2006) -> 0 | Z15: =SUBTOTAL(9,Z32:Z2006) -> 0 | AB15: =SUBTOTAL(9,AB32:AB2006) -> 0 | AD15: =SUBTOTAL(9,AD32:AD2006) -> 34098.20423 | AJ15: =SUBTOTAL(9,AJ32:AJ2006) -> 0 | AM15: 112-9
A16: Tab Loop Number | B16: 2 | C16: SHOULDERS | AM16: =B17 -> 2013-10-15
A17: Revision Date | B17: 2013-10-15 | AM17: =C16 -> SHOULDERS
A18: Tabulation Width | B18: 4 | C18: Lane(s) to which the shoulder is adjacent.
A19: Horizontal Grid Lines | B19: Yes | C19: Bid Item | AM19: =C18 -> Lane(s) to which the shoulder is adjacent.
C20: Applies only for Paved Shoulders constructed on project with existing granular shoulders. | AM20: =C19 -> Bid Item
C21: Does not include shrink. | AM21: =C20 -> Applies only for Paved Shoulders constructed on project with existing granular shoulders.
AM22: =C21 -> Does not include shrink.
C23: Calculations assume a HMA unit weight (lbs/cf) of | G23: 0 | J23: , a Special Backfill unit weight (lbs/cf) of | N23: 140 | O23: , and a Granular Shoulder unit weight (lbs/cf) of | T23: 140 | U23: .
C24: ="This Data Entry Sheet fills Tab "&AM15&" effective "&TEXT(B17,"mm-dd-yy") -> This Data Entry Sheet fills Tab 112-9 effective 10-15-13 | AM24: =C23&G23&J23&N23&O23&T23&U23 -> Calculations assume a HMA unit weight (lbs/cf) of 0, a Special Backfill unit weight (lbs/cf) of 140, and a Granular Shoulder unit weight (lbs/cf) of 140.
C25: Location | O25: Quantities | AK25: Remarks | AM25: =C25 -> Location | AU25: =O25 -> Quantities | BK25: =AK25 -> Remarks
C26: Road Identification | D26: Direction Of Traffic | E26: Station to Station | G26: Side | O26: Class 13 Excavation | P26: HMA Cross Section Area | Q26: Hot Mix Asphalt | S26: Binder | T26: Paved Shoulder | U26: Reinforced Paved Shoulder | V26: Special Backfill Cross Section Area (HMA) | W26: Special Backfill Cross Section Area (PCC) | X26: Special Backfill | AB26: Modified Subbase | AC26: Granular Shoulder Cross Section Area | AD26: Granular Shoulder | AF26: Earth Shoulder Construction Cross Section Area (HMA) | AG26: Earth Shoulder Construction Cross Section Area (PCC) | AH26: Earth Shoulder Construction Alternates | AM26: =C26 -> Road Identification | AN26: =D26 -> Direction Of Traffic | AO26: =E26 -> Station to Station | AQ26: =G26 -> Side | AU26: =O26 -> Class 13 Excavation | AV26: =Q26 -> Hot Mix Asphalt | AX26: =S26 -> Binder | AY26: =T26 -> Paved Shoulder | AZ26: =U26 -> Reinforced Paved Shoulder | BA26: =X26 -> Special Backfill | BE26: =AB26 -> Modified Subbase | BF26: =AD26 -> Granular Shoulder | BH26: =AH26 -> Earth Shoulder Construction Alternates
H28: Start | I28: End | J28: Width | K28: Start | L28: End | M28: Width | N28: Length | AR28: =J28 -> Width | AS28: =M28 -> Width | AT28: =N28 -> Length
X29: HMA Alternate | Z29: PCC Alternate | AH29: STA | AI29: HMA | AJ29: PCC | BA29: =X29 -> HMA Alternate | BC29: =Z29 -> PCC Alternate | BH29: =AH29 -> STA | BI29: =AI29 -> HMA | BJ29: =AJ29 -> PCC
H30: FT | I30: FT | J30: FT | K30: FT | L30: FT | M30: FT | N30: FT | O30: CY | Q30: TON | R30: TON/STA | S30: TONS | T30: SY | U30: SY | X30: TON | Y30: TON/STA | Z30: TON | AA30: TON/STA | AB30: CY | AD30: TON | AE30: TON/STA | AI30: CY | AJ30: CY | AR30: =J30 -> FT | AS30: =M30 -> FT | AT30: =N30 -> FT | AU30: =O30 -> CY | AV30: =Q30 -> TON | AW30: =R30 -> TON/STA | AX30: =S30 -> TONS | AY30: =T30 -> SY | AZ30: =U30 -> SY | BA30: =X30 -> TON | BB30: =Y30 -> TON/STA | BC30: =Z30 -> TON | BD30: =AA30 -> TON/STA | BE30: =AB30 -> CY | BF30: =AD30 -> TON | BG30: =AE30 -> TON/STA | BI30: =AI30 -> CY | BJ30: =AJ30 -> CY
P31: SF | V31: SF | W31: SF | AC31: SF | AF31: SF | AG31: SF
C32: IA 13 | D32: SB | E32: 128300 | F32: 137352.35 | G32: O | H32: 4 | I32: 4 | J32: =IF(H32<>"",IF(H32=I32,(H32+I32)/2,H32&" to "&I32),"") -> 4 | K32: 4 | L32: 4 | M32: =IF(K32<>"",IF(K32=L32,(K32+L32)/2,K32&" to "&L32),"") -> 4 | N32: =IF(E32+F32=0,"",ABS(F32-E32)) -> 9052.35 | Q32: =IF(P32="","",P32*N32*$G$23/2000) ->  | R32: =IF(P32="","",P32*100*$G$23/2000) ->  | S32: =IF(Q32<>"",Q32*0.06,"") ->  | T32: =IF(H32<>"",((H32+I32)/2)*N32/9,"") -> 4023.266667 | V32: 2.9468 | X32: =IF(V32="","",V32*N32*$N$23/2000) -> 1867.282549 | Y32: =IF(V32="","",V32*100*$N$23/2000) -> 20.6276 | Z32: =IF(W32="","",W32*N32*$N$23/2000) ->  | AA32: =IF(W32="","",W32*100*$N$23/2000) ->  | AC32: 4.9045 | AD32: =IF(AC32="","",AC32*N32*$T$23/2000) -> 3107.80754 | AE32: =IF(AC32="","",AC32*100*$T$23/2000) -> 34.3315 | AH32: =IF(N32="","",N32/100) -> 90.5235 | AI32: =IF(AF32=0,"",(AF32*N32)/27) ->  | AJ32: =IF(AG32=0,"",(AG32*N32)/27) -> 
C33: IA 13 | D33: SB | E33: 137499.6 | F33: 147575 | G33: O | H33: 4 | I33: 4 | J33: 4 | K33: 4 | L33: 4 | M33: 4 | N33: 10075.4 | T33: 4477.955556 | V33: 2.9468 | X33: 2078.31321 | Y33: 20.6276 | AC33: 4.9045 | AD33: 3459.035951 | AE33: 34.3315 | AH33: 100.754
C34: IA 13 | D34: SB | E34: 147900 | F34: 156825 | G34: O | H34: 4 | I34: 4 | J34: 4 | K34: 4 | L34: 4 | M34: 4 | N34: 8925 | T34: 3966.666667 | V34: 2.9468 | X34: 1841.0133 | Y34: 20.6276 | AC34: 4.9045 | AD34: 3064.086375 | AE34: 34.3315 | AH34: 89.25
C37: IA 13 | D37: SB | E37: 128300 | F37: 131590 | G37: M | H37: 4 | I37: 4 | J37: 4 | K37: 2 | L37: 2 | M37: 2 | N37: 3290 | T37: 1462.222222 | V37: 1.8867 | X37: 434.50701 | Y37: 13.2069 | AC37: 3.4484 | AD37: 794.16652 | AE37: 24.1388 | AH37: 32.9
C38: IA 13 | D38: SB | E38: 131835 | F38: 132105 | G38: M | J38: =IF(H38<>"",IF(H38=I38,(H38+I38)/2,H38&" to "&I38),"") ->  | K38: 6 | L38: 6 | M38: =IF(K38<>"",IF(K38=L38,(K38+L38)/2,K38&" to "&L38),"") -> 6 | N38: =IF(E38+F38=0,"",ABS(F38-E38)) -> 270 | Q38: =IF(P38="","",P38*N38*$G$23/2000) ->  | R38: =IF(P38="","",P38*100*$G$23/2000) ->  | S38: =IF(Q38<>"",Q38*0.06,"") ->  | T38: =IF(H38<>"",((H38+I38)/2)*N38/9,"") ->  | X38: =IF(V38="","",V38*N38*$N$23/2000) ->  | Y38: =IF(V38="","",V38*100*$N$23/2000) ->  | Z38: =IF(W38="","",W38*N38*$N$23/2000) ->  | AA38: =IF(W38="","",W38*100*$N$23/2000) ->  | AC38: =3.2986+1.6309+1.8641 -> 6.7936 | AD38: =IF(AC38="","",AC38*N38*$T$23/2000) -> 128.39904 | AE38: =IF(AC38="","",AC38*100*$T$23/2000) -> 47.5552 | AH38: =IF(N38="","",N38/100) -> 2.7 | AI38: =IF(AF38=0,"",(AF38*N38)/27) ->  | AJ38: =IF(AG38=0,"",(AG38*N38)/27) -> 
C39: IA 13 | D39: SB | E39: 132105 | F39: 136950 | G39: M | H39: 4 | I39: 4 | J39: 4 | K39: 2 | L39: 2 | M39: 2 | N39: 4845 | T39: 2153.333333 | V39: 1.8867 | X39: 639.874305 | Y39: 13.2069 | AC39: 3.4484 | AD39: 1169.52486 | AE39: 24.1388 | AH39: 48.45
C40: IA 13 | D40: SB | E40: 137225 | F40: 137352.35 | G40: M | K40: 6 | L40: 6 | M40: 6 | N40: 127.35 | AC40: =3.2986+1.6309+1.8641 -> 6.7936 | AD40: 60.5615472 | AE40: 47.5552 | AH40: 1.2735
C41: IA 13 | D41: SB | E41: 137499.6 | F41: 142260 | G41: M | H41: 4 | I41: 4 | J41: 4 | K41: 2 | L41: 2 | M41: 2 | N41: 4760.4 | T41: 2115.733333 | V41: 1.8867 | X41: 628.7012676 | Y41: 13.2069 | AC41: 3.4484 | AD41: 1149.103435 | AE41: 24.1388 | AH41: 47.604
C42: IA 13 | D42: SB | E42: 142520 | F42: 142790 | G42: M | J42: =IF(H42<>"",IF(H42=I42,(H42+I42)/2,H42&" to "&I42),"") ->  | K42: 6 | L42: 6 | M42: =IF(K42<>"",IF(K42=L42,(K42+L42)/2,K42&" to "&L42),"") -> 6 | N42: =IF(E42+F42=0,"",ABS(F42-E42)) -> 270 | Q42: =IF(P42="","",P42*N42*$G$23/2000) ->  | R42: =IF(P42="","",P42*100*$G$23/2000) ->  | S42: =IF(Q42<>"",Q42*0.06,"") ->  | T42: =IF(H42<>"",((H42+I42)/2)*N42/9,"") ->  | X42: =IF(V42="","",V42*N42*$N$23/2000) ->  | Y42: =IF(V42="","",V42*100*$N$23/2000) ->  | Z42: =IF(W42="","",W42*N42*$N$23/2000) ->  | AA42: =IF(W42="","",W42*100*$N$23/2000) ->  | AC42: =3.2986+1.6309+1.8641 -> 6.7936 | AD42: =IF(AC42="","",AC42*N42*$T$23/2000) -> 128.39904 | AE42: =IF(AC42="","",AC42*100*$T$23/2000) -> 47.5552 | AH42: =IF(N42="","",N42/100) -> 2.7 | AI42: =IF(AF42=0,"",(AF42*N42)/27) ->  | AJ42: =IF(AG42=0,"",(AG42*N42)/27) -> 
C43: IA 13 | D43: SB | E43: 142790 | F43: 144925 | G43: M | H43: 4 | I43: 4 | J43: 4 | K43: 2 | L43: 2 | M43: 2 | N43: 2135 | T43: 948.8888889 | V43: 1.8867 | X43: 281.967315 | Y43: 13.2069 | AC43: 3.4484 | AD43: 515.36338 | AE43: 24.1388 | AH43: 21.35
C44: IA 13 | D44: SB | E44: 145190 | F44: 147600 | G44: M | H44: 4 | I44: 4 | J44: 4 | K44: 2 | L44: 2 | M44: 2 | N44: 2410 | T44: 1071.111111 | V44: 1.8867 | X44: 318.28629 | Y44: 13.2069 | AC44: 3.4484 | AD44: 581.74508 | AE44: 24.1388 | AH44: 24.1
C45: IA 13 | D45: SB | E45: 147875 | F45: 148145 | G45: M | K45: 6 | L45: 6 | M45: 6 | N45: 270 | AC45: =3.2986+1.6309+1.8641 -> 6.7936 | AD45: 128.39904 | AE45: 47.5552 | AH45: 2.7
C46: IA 13 | D46: SB | E46: 148145 | F46: 151550 | G46: M | H46: 4 | I46: 4 | J46: 4 | K46: 2 | L46: 2 | M46: 2 | N46: 3405 | T46: 1513.333333 | V46: 1.8867 | X46: 449.694945 | Y46: 13.2069 | AC46: 3.4484 | AD46: 821.92614 | AE46: 24.1388 | AH46: 34.05
C47: IA 13 | D47: SB | E47: 151830 | F47: 152100 | G47: M | J47: =IF(H47<>"",IF(H47=I47,(H47+I47)/2,H47&" to "&I47),"") ->  | K47: 6 | L47: 6 | M47: =IF(K47<>"",IF(K47=L47,(K47+L47)/2,K47&" to "&L47),"") -> 6 | N47: =IF(E47+F47=0,"",ABS(F47-E47)) -> 270 | Q47: =IF(P47="","",P47*N47*$G$23/2000) ->  | R47: =IF(P47="","",P47*100*$G$23/2000) ->  | S47: =IF(Q47<>"",Q47*0.06,"") ->  | T47: =IF(H47<>"",((H47+I47)/2)*N47/9,"") ->  | X47: =IF(V47="","",V47*N47*$N$23/2000) ->  | Y47: =IF(V47="","",V47*100*$N$23/2000) ->  | Z47: =IF(W47="","",W47*N47*$N$23/2000) ->  | AA47: =IF(W47="","",W47*100*$N$23/2000) ->  | AC47: =3.2986+1.6309+1.8641 -> 6.7936 | AD47: =IF(AC47="","",AC47*N47*$T$23/2000) -> 128.39904 | AE47: =IF(AC47="","",AC47*100*$T$23/2000) -> 47.5552 | AH47: =IF(N47="","",N47/100) -> 2.7 | AI47: =IF(AF47=0,"",(AF47*N47)/27) ->  | AJ47: =IF(AG47=0,"",(AG47*N47)/27) -> 
C48: IA 13 | D48: SB | E48: 152100 | F48: 152910 | G48: M | H48: 4 | I48: 4 | J48: 4 | K48: 2 | L48: 2 | M48: 2 | N48: 810 | T48: 360 | V48: 1.8867 | X48: 106.97589 | Y48: 13.2069 | AC48: 3.4484 | AD48: 195.52428 | AE48: 24.1388 | AH48: 8.1
C49: IA 13 | D49: SB | E49: 153185 | F49: 156825 | G49: M | H49: 4 | I49: 4 | J49: 4 | K49: 2 | L49: 2 | M49: 2 | N49: 3640 | T49: 1617.777778 | V49: 1.8867 | X49: 480.73116 | Y49: 13.2069 | AC49: 3.4484 | AD49: 878.65232 | AE49: 24.1388 | AH49: 36.4
C52: Burnett Station | E52: 6147200 | F52: 6147779.24 | G52: Lt | K52: 8 | L52: 8 | M52: 8 | N52: 579.24 | AC52: 9.1007 | AD52: 369.0042628 | AE52: 63.7049 | AH52: 5.7924
C53: Burnett Station | E53: 6147200 | F53: 6147779.24 | G53: Rt | J53: =IF(H53<>"",IF(H53=I53,(H53+I53)/2,H53&" to "&I53),"") ->  | K53: 8 | L53: 8 | M53: =IF(K53<>"",IF(K53=L53,(K53+L53)/2,K53&" to "&L53),"") -> 8 | N53: =IF(E53+F53=0,"",ABS(F53-E53)) -> 579.24 | Q53: =IF(P53="","",P53*N53*$G$23/2000) ->  | R53: =IF(P53="","",P53*100*$G$23/2000) ->  | S53: =IF(Q53<>"",Q53*0.06,"") ->  | T53: =IF(H53<>"",((H53+I53)/2)*N53/9,"") ->  | X53: =IF(V53="","",V53*N53*$N$23/2000) ->  | Y53: =IF(V53="","",V53*100*$N$23/2000) ->  | Z53: =IF(W53="","",W53*N53*$N$23/2000) ->  | AA53: =IF(W53="","",W53*100*$N$23/2000) ->  | AC53: 9.1007 | AD53: =IF(AC53="","",AC53*N53*$T$23/2000) -> 369.0042628 | AE53: =IF(AC53="","",AC53*100*$T$23/2000) -> 63.7049 | AH53: =IF(N53="","",N53/100) -> 5.7924 | AI53: =IF(AF53=0,"",(AF53*N53)/27) ->  | AJ53: =IF(AG53=0,"",(AG53*N53)/27) -> 
S57: TOTALS | T57: =SUM(T32:T55) -> 23710.28889 | X57: =SUM(X32:X55) -> 9127.347242 | AD57: =SUM(AD32:AD55) -> 17049.10211
J102: =IF(H102<>"",IF(H102=I102,(H102+I102)/2,H102&" to "&I102),"") ->  | M102: =IF(K102<>"",IF(K102=L102,(K102+L102)/2,K102&" to "&L102),"") ->  | N102: =IF(E102+F102=0,"",ABS(F102-E102)) ->  | Q102: =IF(P102="","",P102*N102*$G$23/2000) ->  | R102: =IF(P102="","",P102*100*$G$23/2000) ->  | S102: =IF(Q102<>"",Q102*0.06,"") ->  | T102: =IF(H102<>"",((H102+I102)/2)*N102/9,"") ->  | X102: =IF(V102="","",V102*N102*$N$23/2000) ->  | Y102: =IF(V102="","",V102*100*$N$23/2000) ->  | Z102: =IF(W102="","",W102*N102*$N$23/2000) ->  | AA102: =IF(W102="","",W102*100*$N$23/2000) ->  | AD102: =IF(AC102="","",AC102*N102*$T$23/2000) ->  | AE102: =IF(AC102="","",AC102*100*$T$23/2000) ->  | AH102: =IF(N102="","",N102/100) ->  | AI102: =IF(AF102=0,"",(AF102*N102)/27) ->  | AJ102: =IF(AG102=0,"",(AG102*N102)/27) -> 
J166: =IF(H166<>"",IF(H166=I166,(H166+I166)/2,H166&" to "&I166),"") ->  | M166: =IF(K166<>"",IF(K166=L166,(K166+L166)/2,K166&" to "&L166),"") ->  | N166: =IF(E166+F166=0,"",ABS(F166-E166)) ->  | Q166: =IF(P166="","",P166*N166*$G$23/2000) ->  | R166: =IF(P166="","",P166*100*$G$23/2000) ->  | S166: =IF(Q166<>"",Q166*0.06,"") ->  | T166: =IF(H166<>"",((H166+I166)/2)*N166/9,"") ->  | X166: =IF(V166="","",V166*N166*$N$23/2000) ->  | Y166: =IF(V166="","",V166*100*$N$23/2000) ->  | Z166: =IF(W166="","",W166*N166*$N$23/2000) ->  | AA166: =IF(W166="","",W166*100*$N$23/2000) ->  | AD166: =IF(AC166="","",AC166*N166*$T$23/2000) ->  | AE166: =IF(AC166="","",AC166*100*$T$23/2000) ->  | AH166: =IF(N166="","",N166/100) ->  | AI166: =IF(AF166=0,"",(AF166*N166)/27) ->  | AJ166: =IF(AG166=0,"",(AG166*N166)/27) -> 
J230: =IF(H230<>"",IF(H230=I230,(H230+I230)/2,H230&" to "&I230),"") ->  | M230: =IF(K230<>"",IF(K230=L230,(K230+L230)/2,K230&" to "&L230),"") ->  | N230: =IF(E230+F230=0,"",ABS(F230-E230)) ->  | Q230: =IF(P230="","",P230*N230*$G$23/2000) ->  | R230: =IF(P230="","",P230*100*$G$23/2000) ->  | S230: =IF(Q230<>"",Q230*0.06,"") ->  | T230: =IF(H230<>"",((H230+I230)/2)*N230/9,"") ->  | X230: =IF(V230="","",V230*N230*$N$23/2000) ->  | Y230: =IF(V230="","",V230*100*$N$23/2000) ->  | Z230: =IF(W230="","",W230*N230*$N$23/2000) ->  | AA230: =IF(W230="","",W230*100*$N$23/2000) ->  | AD230: =IF(AC230="","",AC230*N230*$T$23/2000) ->  | AE230: =IF(AC230="","",AC230*100*$T$23/2000) ->  | AH230: =IF(N230="","",N230/100) ->  | AI230: =IF(AF230=0,"",(AF230*N230)/27) ->  | AJ230: =IF(AG230=0,"",(AG230*N230)/27) -> 
J294: =IF(H294<>"",IF(H294=I294,(H294+I294)/2,H294&" to "&I294),"") ->  | M294: =IF(K294<>"",IF(K294=L294,(K294+L294)/2,K294&" to "&L294),"") ->  | N294: =IF(E294+F294=0,"",ABS(F294-E294)) ->  | Q294: =IF(P294="","",P294*N294*$G$23/2000) ->  | R294: =IF(P294="","",P294*100*$G$23/2000) ->  | S294: =IF(Q294<>"",Q294*0.06,"") ->  | T294: =IF(H294<>"",((H294+I294)/2)*N294/9,"") ->  | X294: =IF(V294="","",V294*N294*$N$23/2000) ->  | Y294: =IF(V294="","",V294*100*$N$23/2000) ->  | Z294: =IF(W294="","",W294*N294*$N$23/2000) ->  | AA294: =IF(W294="","",W294*100*$N$23/2000) ->  | AD294: =IF(AC294="","",AC294*N294*$T$23/2000) ->  | AE294: =IF(AC294="","",AC294*100*$T$23/2000) ->  | AH294: =IF(N294="","",N294/100) ->  | AI294: =IF(AF294=0,"",(AF294*N294)/27) ->  | AJ294: =IF(AG294=0,"",(AG294*N294)/27) -> 
J358: =IF(H358<>"",IF(H358=I358,(H358+I358)/2,H358&" to "&I358),"") ->  | M358: =IF(K358<>"",IF(K358=L358,(K358+L358)/2,K358&" to "&L358),"") ->  | N358: =IF(E358+F358=0,"",ABS(F358-E358)) ->  | Q358: =IF(P358="","",P358*N358*$G$23/2000) ->  | R358: =IF(P358="","",P358*100*$G$23/2000) ->  | S358: =IF(Q358<>"",Q358*0.06,"") ->  | T358: =IF(H358<>"",((H358+I358)/2)*N358/9,"") ->  | X358: =IF(V358="","",V358*N358*$N$23/2000) ->  | Y358: =IF(V358="","",V358*100*$N$23/2000) ->  | Z358: =IF(W358="","",W358*N358*$N$23/2000) ->  | AA358: =IF(W358="","",W358*100*$N$23/2000) ->  | AD358: =IF(AC358="","",AC358*N358*$T$23/2000) ->  | AE358: =IF(AC358="","",AC358*100*$T$23/2000) ->  | AH358: =IF(N358="","",N358/100) ->  | AI358: =IF(AF358=0,"",(AF358*N358)/27) ->  | AJ358: =IF(AG358=0,"",(AG358*N358)/27) -> 
J422: =IF(H422<>"",IF(H422=I422,(H422+I422)/2,H422&" to "&I422),"") ->  | M422: =IF(K422<>"",IF(K422=L422,(K422+L422)/2,K422&" to "&L422),"") ->  | N422: =IF(E422+F422=0,"",ABS(F422-E422)) ->  | Q422: =IF(P422="","",P422*N422*$G$23/2000) ->  | R422: =IF(P422="","",P422*100*$G$23/2000) ->  | S422: =IF(Q422<>"",Q422*0.06,"") ->  | T422: =IF(H422<>"",((H422+I422)/2)*N422/9,"") ->  | X422: =IF(V422="","",V422*N422*$N$23/2000) ->  | Y422: =IF(V422="","",V422*100*$N$23/2000) ->  | Z422: =IF(W422="","",W422*N422*$N$23/2000) ->  | AA422: =IF(W422="","",W422*100*$N$23/2000) ->  | AD422: =IF(AC422="","",AC422*N422*$T$23/2000) ->  | AE422: =IF(AC422="","",AC422*100*$T$23/2000) ->  | AH422: =IF(N422="","",N422/100) ->  | AI422: =IF(AF422=0,"",(AF422*N422)/27) ->  | AJ422: =IF(AG422=0,"",(AG422*N422)/27) -> 
J486: =IF(H486<>"",IF(H486=I486,(H486+I486)/2,H486&" to "&I486),"") ->  | M486: =IF(K486<>"",IF(K486=L486,(K486+L486)/2,K486&" to "&L486),"") ->  | N486: =IF(E486+F486=0,"",ABS(F486-E486)) ->  | Q486: =IF(P486="","",P486*N486*$G$23/2000) ->  | R486: =IF(P486="","",P486*100*$G$23/2000) ->  | S486: =IF(Q486<>"",Q486*0.06,"") ->  | T486: =IF(H486<>"",((H486+I486)/2)*N486/9,"") ->  | X486: =IF(V486="","",V486*N486*$N$23/2000) ->  | Y486: =IF(V486="","",V486*100*$N$23/2000) ->  | Z486: =IF(W486="","",W486*N486*$N$23/2000) ->  | AA486: =IF(W486="","",W486*100*$N$23/2000) ->  | AD486: =IF(AC486="","",AC486*N486*$T$23/2000) ->  | AE486: =IF(AC486="","",AC486*100*$T$23/2000) ->  | AH486: =IF(N486="","",N486/100) ->  | AI486: =IF(AF486=0,"",(AF486*N486)/27) ->  | AJ486: =IF(AG486=0,"",(AG486*N486)/27) -> 
J550: =IF(H550<>"",IF(H550=I550,(H550+I550)/2,H550&" to "&I550),"") ->  | M550: =IF(K550<>"",IF(K550=L550,(K550+L550)/2,K550&" to "&L550),"") ->  | N550: =IF(E550+F550=0,"",ABS(F550-E550)) ->  | Q550: =IF(P550="","",P550*N550*$G$23/2000) ->  | R550: =IF(P550="","",P550*100*$G$23/2000) ->  | S550: =IF(Q550<>"",Q550*0.06,"") ->  | T550: =IF(H550<>"",((H550+I550)/2)*N550/9,"") ->  | X550: =IF(V550="","",V550*N550*$N$23/2000) ->  | Y550: =IF(V550="","",V550*100*$N$23/2000) ->  | Z550: =IF(W550="","",W550*N550*$N$23/2000) ->  | AA550: =IF(W550="","",W550*100*$N$23/2000) ->  | AD550: =IF(AC550="","",AC550*N550*$T$23/2000) ->  | AE550: =IF(AC550="","",AC550*100*$T$23/2000) ->  | AH550: =IF(N550="","",N550/100) ->  | AI550: =IF(AF550=0,"",(AF550*N550)/27) ->  | AJ550: =IF(AG550=0,"",(AG550*N550)/27) -> 
J614: =IF(H614<>"",IF(H614=I614,(H614+I614)/2,H614&" to "&I614),"") ->  | M614: =IF(K614<>"",IF(K614=L614,(K614+L614)/2,K614&" to "&L614),"") ->  | N614: =IF(E614+F614=0,"",ABS(F614-E614)) ->  | Q614: =IF(P614="","",P614*N614*$G$23/2000) ->  | R614: =IF(P614="","",P614*100*$G$23/2000) ->  | S614: =IF(Q614<>"",Q614*0.06,"") ->  | T614: =IF(H614<>"",((H614+I614)/2)*N614/9,"") ->  | X614: =IF(V614="","",V614*N614*$N$23/2000) ->  | Y614: =IF(V614="","",V614*100*$N$23/2000) ->  | Z614: =IF(W614="","",W614*N614*$N$23/2000) ->  | AA614: =IF(W614="","",W614*100*$N$23/2000) ->  | AD614: =IF(AC614="","",AC614*N614*$T$23/2000) ->  | AE614: =IF(AC614="","",AC614*100*$T$23/2000) ->  | AH614: =IF(N614="","",N614/100) ->  | AI614: =IF(AF614=0,"",(AF614*N614)/27) ->  | AJ614: =IF(AG614=0,"",(AG614*N614)/27) -> 
J678: =IF(H678<>"",IF(H678=I678,(H678+I678)/2,H678&" to "&I678),"") ->  | M678: =IF(K678<>"",IF(K678=L678,(K678+L678)/2,K678&" to "&L678),"") ->  | N678: =IF(E678+F678=0,"",ABS(F678-E678)) ->  | Q678: =IF(P678="","",P678*N678*$G$23/2000) ->  | R678: =IF(P678="","",P678*100*$G$23/2000) ->  | S678: =IF(Q678<>"",Q678*0.06,"") ->  | T678: =IF(H678<>"",((H678+I678)/2)*N678/9,"") ->  | X678: =IF(V678="","",V678*N678*$N$23/2000) ->  | Y678: =IF(V678="","",V678*100*$N$23/2000) ->  | Z678: =IF(W678="","",W678*N678*$N$23/2000) ->  | AA678: =IF(W678="","",W678*100*$N$23/2000) ->  | AD678: =IF(AC678="","",AC678*N678*$T$23/2000) ->  | AE678: =IF(AC678="","",AC678*100*$T$23/2000) ->  | AH678: =IF(N678="","",N678/100) ->  | AI678: =IF(AF678=0,"",(AF678*N678)/27) ->  | AJ678: =IF(AG678=0,"",(AG678*N678)/27) -> 
J742: =IF(H742<>"",IF(H742=I742,(H742+I742)/2,H742&" to "&I742),"") ->  | M742: =IF(K742<>"",IF(K742=L742,(K742+L742)/2,K742&" to "&L742),"") ->  | N742: =IF(E742+F742=0,"",ABS(F742-E742)) ->  | Q742: =IF(P742="","",P742*N742*$G$23/2000) ->  | R742: =IF(P742="","",P742*100*$G$23/2000) ->  | S742: =IF(Q742<>"",Q742*0.06,"") ->  | T742: =IF(H742<>"",((H742+I742)/2)*N742/9,"") ->  | X742: =IF(V742="","",V742*N742*$N$23/2000) ->  | Y742: =IF(V742="","",V742*100*$N$23/2000) ->  | Z742: =IF(W742="","",W742*N742*$N$23/2000) ->  | AA742: =IF(W742="","",W742*100*$N$23/2000) ->  | AD742: =IF(AC742="","",AC742*N742*$T$23/2000) ->  | AE742: =IF(AC742="","",AC742*100*$T$23/2000) ->  | AH742: =IF(N742="","",N742/100) ->  | AI742: =IF(AF742=0,"",(AF742*N742)/27) ->  | AJ742: =IF(AG742=0,"",(AG742*N742)/27) -> 
J806: =IF(H806<>"",IF(H806=I806,(H806+I806)/2,H806&" to "&I806),"") ->  | M806: =IF(K806<>"",IF(K806=L806,(K806+L806)/2,K806&" to "&L806),"") ->  | N806: =IF(E806+F806=0,"",ABS(F806-E806)) ->  | Q806: =IF(P806="","",P806*N806*$G$23/2000) ->  | R806: =IF(P806="","",P806*100*$G$23/2000) ->  | S806: =IF(Q806<>"",Q806*0.06,"") ->  | T806: =IF(H806<>"",((H806+I806)/2)*N806/9,"") ->  | X806: =IF(V806="","",V806*N806*$N$23/2000) ->  | Y806: =IF(V806="","",V806*100*$N$23/2000) ->  | Z806: =IF(W806="","",W806*N806*$N$23/2000) ->  | AA806: =IF(W806="","",W806*100*$N$23/2000) ->  | AD806: =IF(AC806="","",AC806*N806*$T$23/2000) ->  | AE806: =IF(AC806="","",AC806*100*$T$23/2000) ->  | AH806: =IF(N806="","",N806/100) ->  | AI806: =IF(AF806=0,"",(AF806*N806)/27) ->  | AJ806: =IF(AG806=0,"",(AG806*N806)/27) -> 
J870: =IF(H870<>"",IF(H870=I870,(H870+I870)/2,H870&" to "&I870),"") ->  | M870: =IF(K870<>"",IF(K870=L870,(K870+L870)/2,K870&" to "&L870),"") ->  | N870: =IF(E870+F870=0,"",ABS(F870-E870)) ->  | Q870: =IF(P870="","",P870*N870*$G$23/2000) ->  | R870: =IF(P870="","",P870*100*$G$23/2000) ->  | S870: =IF(Q870<>"",Q870*0.06,"") ->  | T870: =IF(H870<>"",((H870+I870)/2)*N870/9,"") ->  | X870: =IF(V870="","",V870*N870*$N$23/2000) ->  | Y870: =IF(V870="","",V870*100*$N$23/2000) ->  | Z870: =IF(W870="","",W870*N870*$N$23/2000) ->  | AA870: =IF(W870="","",W870*100*$N$23/2000) ->  | AD870: =IF(AC870="","",AC870*N870*$T$23/2000) ->  | AE870: =IF(AC870="","",AC870*100*$T$23/2000) ->  | AH870: =IF(N870="","",N870/100) ->  | AI870: =IF(AF870=0,"",(AF870*N870)/27) ->  | AJ870: =IF(AG870=0,"",(AG870*N870)/27) -> 
J934: =IF(H934<>"",IF(H934=I934,(H934+I934)/2,H934&" to "&I934),"") ->  | M934: =IF(K934<>"",IF(K934=L934,(K934+L934)/2,K934&" to "&L934),"") ->  | N934: =IF(E934+F934=0,"",ABS(F934-E934)) ->  | Q934: =IF(P934="","",P934*N934*$G$23/2000) ->  | R934: =IF(P934="","",P934*100*$G$23/2000) ->  | S934: =IF(Q934<>"",Q934*0.06,"") ->  | T934: =IF(H934<>"",((H934+I934)/2)*N934/9,"") ->  | X934: =IF(V934="","",V934*N934*$N$23/2000) ->  | Y934: =IF(V934="","",V934*100*$N$23/2000) ->  | Z934: =IF(W934="","",W934*N934*$N$23/2000) ->  | AA934: =IF(W934="","",W934*100*$N$23/2000) ->  | AD934: =IF(AC934="","",AC934*N934*$T$23/2000) ->  | AE934: =IF(AC934="","",AC934*100*$T$23/2000) ->  | AH934: =IF(N934="","",N934/100) ->  | AI934: =IF(AF934=0,"",(AF934*N934)/27) ->  | AJ934: =IF(AG934=0,"",(AG934*N934)/27) -> 
J998: =IF(H998<>"",IF(H998=I998,(H998+I998)/2,H998&" to "&I998),"") ->  | M998: =IF(K998<>"",IF(K998=L998,(K998+L998)/2,K998&" to "&L998),"") ->  | N998: =IF(E998+F998=0,"",ABS(F998-E998)) ->  | Q998: =IF(P998="","",P998*N998*$G$23/2000) ->  | R998: =IF(P998="","",P998*100*$G$23/2000) ->  | S998: =IF(Q998<>"",Q998*0.06,"") ->  | T998: =IF(H998<>"",((H998+I998)/2)*N998/9,"") ->  | X998: =IF(V998="","",V998*N998*$N$23/2000) ->  | Y998: =IF(V998="","",V998*100*$N$23/2000) ->  | Z998: =IF(W998="","",W998*N998*$N$23/2000) ->  | AA998: =IF(W998="","",W998*100*$N$23/2000) ->  | AD998: =IF(AC998="","",AC998*N998*$T$23/2000) ->  | AE998: =IF(AC998="","",AC998*100*$T$23/2000) ->  | AH998: =IF(N998="","",N998/100) ->  | AI998: =IF(AF998=0,"",(AF998*N998)/27) ->  | AJ998: =IF(AG998=0,"",(AG998*N998)/27) -> 
J1062: =IF(H1062<>"",IF(H1062=I1062,(H1062+I1062)/2,H1062&" to "&I1062),"") ->  | M1062: =IF(K1062<>"",IF(K1062=L1062,(K1062+L1062)/2,K1062&" to "&L1062),"") ->  | N1062: =IF(E1062+F1062=0,"",ABS(F1062-E1062)) ->  | Q1062: =IF(P1062="","",P1062*N1062*$G$23/2000) ->  | R1062: =IF(P1062="","",P1062*100*$G$23/2000) ->  | S1062: =IF(Q1062<>"",Q1062*0.06,"") ->  | T1062: =IF(H1062<>"",((H1062+I1062)/2)*N1062/9,"") ->  | X1062: =IF(V1062="","",V1062*N1062*$N$23/2000) ->  | Y1062: =IF(V1062="","",V1062*100*$N$23/2000) ->  | Z1062: =IF(W1062="","",W1062*N1062*$N$23/2000) ->  | AA1062: =IF(W1062="","",W1062*100*$N$23/2000) ->  | AD1062: =IF(AC1062="","",AC1062*N1062*$T$23/2000) ->  | AE1062: =IF(AC1062="","",AC1062*100*$T$23/2000) ->  | AH1062: =IF(N1062="","",N1062/100) ->  | AI1062: =IF(AF1062=0,"",(AF1062*N1062)/27) ->  | AJ1062: =IF(AG1062=0,"",(AG1062*N1062)/27) -> 
J1126: =IF(H1126<>"",IF(H1126=I1126,(H1126+I1126)/2,H1126&" to "&I1126),"") ->  | M1126: =IF(K1126<>"",IF(K1126=L1126,(K1126+L1126)/2,K1126&" to "&L1126),"") ->  | N1126: =IF(E1126+F1126=0,"",ABS(F1126-E1126)) ->  | Q1126: =IF(P1126="","",P1126*N1126*$G$23/2000) ->  | R1126: =IF(P1126="","",P1126*100*$G$23/2000) ->  | S1126: =IF(Q1126<>"",Q1126*0.06,"") ->  | T1126: =IF(H1126<>"",((H1126+I1126)/2)*N1126/9,"") ->  | X1126: =IF(V1126="","",V1126*N1126*$N$23/2000) ->  | Y1126: =IF(V1126="","",V1126*100*$N$23/2000) ->  | Z1126: =IF(W1126="","",W1126*N1126*$N$23/2000) ->  | AA1126: =IF(W1126="","",W1126*100*$N$23/2000) ->  | AD1126: =IF(AC1126="","",AC1126*N1126*$T$23/2000) ->  | AE1126: =IF(AC1126="","",AC1126*100*$T$23/2000) ->  | AH1126: =IF(N1126="","",N1126/100) ->  | AI1126: =IF(AF1126=0,"",(AF1126*N1126)/27) ->  | AJ1126: =IF(AG1126=0,"",(AG1126*N1126)/27) -> 
J1190: =IF(H1190<>"",IF(H1190=I1190,(H1190+I1190)/2,H1190&" to "&I1190),"") ->  | M1190: =IF(K1190<>"",IF(K1190=L1190,(K1190+L1190)/2,K1190&" to "&L1190),"") ->  | N1190: =IF(E1190+F1190=0,"",ABS(F1190-E1190)) ->  | Q1190: =IF(P1190="","",P1190*N1190*$G$23/2000) ->  | R1190: =IF(P1190="","",P1190*100*$G$23/2000) ->  | S1190: =IF(Q1190<>"",Q1190*0.06,"") ->  | T1190: =IF(H1190<>"",((H1190+I1190)/2)*N1190/9,"") ->  | X1190: =IF(V1190="","",V1190*N1190*$N$23/2000) ->  | Y1190: =IF(V1190="","",V1190*100*$N$23/2000) ->  | Z1190: =IF(W1190="","",W1190*N1190*$N$23/2000) ->  | AA1190: =IF(W1190="","",W1190*100*$N$23/2000) ->  | AD1190: =IF(AC1190="","",AC1190*N1190*$T$23/2000) ->  | AE1190: =IF(AC1190="","",AC1190*100*$T$23/2000) ->  | AH1190: =IF(N1190="","",N1190/100) ->  | AI1190: =IF(AF1190=0,"",(AF1190*N1190)/27) ->  | AJ1190: =IF(AG1190=0,"",(AG1190*N1190)/27) -> 
J1254: =IF(H1254<>"",IF(H1254=I1254,(H1254+I1254)/2,H1254&" to "&I1254),"") ->  | M1254: =IF(K1254<>"",IF(K1254=L1254,(K1254+L1254)/2,K1254&" to "&L1254),"") ->  | N1254: =IF(E1254+F1254=0,"",ABS(F1254-E1254)) ->  | Q1254: =IF(P1254="","",P1254*N1254*$G$23/2000) ->  | R1254: =IF(P1254="","",P1254*100*$G$23/2000) ->  | S1254: =IF(Q1254<>"",Q1254*0.06,"") ->  | T1254: =IF(H1254<>"",((H1254+I1254)/2)*N1254/9,"") ->  | X1254: =IF(V1254="","",V1254*N1254*$N$23/2000) ->  | Y1254: =IF(V1254="","",V1254*100*$N$23/2000) ->  | Z1254: =IF(W1254="","",W1254*N1254*$N$23/2000) ->  | AA1254: =IF(W1254="","",W1254*100*$N$23/2000) ->  | AD1254: =IF(AC1254="","",AC1254*N1254*$T$23/2000) ->  | AE1254: =IF(AC1254="","",AC1254*100*$T$23/2000) ->  | AH1254: =IF(N1254="","",N1254/100) ->  | AI1254: =IF(AF1254=0,"",(AF1254*N1254)/27) ->  | AJ1254: =IF(AG1254=0,"",(AG1254*N1254)/27) -> 
J1318: =IF(H1318<>"",IF(H1318=I1318,(H1318+I1318)/2,H1318&" to "&I1318),"") ->  | M1318: =IF(K1318<>"",IF(K1318=L1318,(K1318+L1318)/2,K1318&" to "&L1318),"") ->  | N1318: =IF(E1318+F1318=0,"",ABS(F1318-E1318)) ->  | Q1318: =IF(P1318="","",P1318*N1318*$G$23/2000) ->  | R1318: =IF(P1318="","",P1318*100*$G$23/2000) ->  | S1318: =IF(Q1318<>"",Q1318*0.06,"") ->  | T1318: =IF(H1318<>"",((H1318+I1318)/2)*N1318/9,"") ->  | X1318: =IF(V1318="","",V1318*N1318*$N$23/2000) ->  | Y1318: =IF(V1318="","",V1318*100*$N$23/2000) ->  | Z1318: =IF(W1318="","",W1318*N1318*$N$23/2000) ->  | AA1318: =IF(W1318="","",W1318*100*$N$23/2000) ->  | AD1318: =IF(AC1318="","",AC1318*N1318*$T$23/2000) ->  | AE1318: =IF(AC1318="","",AC1318*100*$T$23/2000) ->  | AH1318: =IF(N1318="","",N1318/100) ->  | AI1318: =IF(AF1318=0,"",(AF1318*N1318)/27) ->  | AJ1318: =IF(AG1318=0,"",(AG1318*N1318)/27) -> 
J1382: =IF(H1382<>"",IF(H1382=I1382,(H1382+I1382)/2,H1382&" to "&I1382),"") ->  | M1382: =IF(K1382<>"",IF(K1382=L1382,(K1382+L1382)/2,K1382&" to "&L1382),"") ->  | N1382: =IF(E1382+F1382=0,"",ABS(F1382-E1382)) ->  | Q1382: =IF(P1382="","",P1382*N1382*$G$23/2000) ->  | R1382: =IF(P1382="","",P1382*100*$G$23/2000) ->  | S1382: =IF(Q1382<>"",Q1382*0.06,"") ->  | T1382: =IF(H1382<>"",((H1382+I1382)/2)*N1382/9,"") ->  | X1382: =IF(V1382="","",V1382*N1382*$N$23/2000) ->  | Y1382: =IF(V1382="","",V1382*100*$N$23/2000) ->  | Z1382: =IF(W1382="","",W1382*N1382*$N$23/2000) ->  | AA1382: =IF(W1382="","",W1382*100*$N$23/2000) ->  | AD1382: =IF(AC1382="","",AC1382*N1382*$T$23/2000) ->  | AE1382: =IF(AC1382="","",AC1382*100*$T$23/2000) ->  | AH1382: =IF(N1382="","",N1382/100) ->  | AI1382: =IF(AF1382=0,"",(AF1382*N1382)/27) ->  | AJ1382: =IF(AG1382=0,"",(AG1382*N1382)/27) -> 
J1446: =IF(H1446<>"",IF(H1446=I1446,(H1446+I1446)/2,H1446&" to "&I1446),"") ->  | M1446: =IF(K1446<>"",IF(K1446=L1446,(K1446+L1446)/2,K1446&" to "&L1446),"") ->  | N1446: =IF(E1446+F1446=0,"",ABS(F1446-E1446)) ->  | Q1446: =IF(P1446="","",P1446*N1446*$G$23/2000) ->  | R1446: =IF(P1446="","",P1446*100*$G$23/2000) ->  | S1446: =IF(Q1446<>"",Q1446*0.06,"") ->  | T1446: =IF(H1446<>"",((H1446+I1446)/2)*N1446/9,"") ->  | X1446: =IF(V1446="","",V1446*N1446*$N$23/2000) ->  | Y1446: =IF(V1446="","",V1446*100*$N$23/2000) ->  | Z1446: =IF(W1446="","",W1446*N1446*$N$23/2000) ->  | AA1446: =IF(W1446="","",W1446*100*$N$23/2000) ->  | AD1446: =IF(AC1446="","",AC1446*N1446*$T$23/2000) ->  | AE1446: =IF(AC1446="","",AC1446*100*$T$23/2000) ->  | AH1446: =IF(N1446="","",N1446/100) ->  | AI1446: =IF(AF1446=0,"",(AF1446*N1446)/27) ->  | AJ1446: =IF(AG1446=0,"",(AG1446*N1446)/27) -> 
J1510: =IF(H1510<>"",IF(H1510=I1510,(H1510+I1510)/2,H1510&" to "&I1510),"") ->  | M1510: =IF(K1510<>"",IF(K1510=L1510,(K1510+L1510)/2,K1510&" to "&L1510),"") ->  | N1510: =IF(E1510+F1510=0,"",ABS(F1510-E1510)) ->  | Q1510: =IF(P1510="","",P1510*N1510*$G$23/2000) ->  | R1510: =IF(P1510="","",P1510*100*$G$23/2000) ->  | S1510: =IF(Q1510<>"",Q1510*0.06,"") ->  | T1510: =IF(H1510<>"",((H1510+I1510)/2)*N1510/9,"") ->  | X1510: =IF(V1510="","",V1510*N1510*$N$23/2000) ->  | Y1510: =IF(V1510="","",V1510*100*$N$23/2000) ->  | Z1510: =IF(W1510="","",W1510*N1510*$N$23/2000) ->  | AA1510: =IF(W1510="","",W1510*100*$N$23/2000) ->  | AD1510: =IF(AC1510="","",AC1510*N1510*$T$23/2000) ->  | AE1510: =IF(AC1510="","",AC1510*100*$T$23/2000) ->  | AH1510: =IF(N1510="","",N1510/100) ->  | AI1510: =IF(AF1510=0,"",(AF1510*N1510)/27) ->  | AJ1510: =IF(AG1510=0,"",(AG1510*N1510)/27) -> 
J1574: =IF(H1574<>"",IF(H1574=I1574,(H1574+I1574)/2,H1574&" to "&I1574),"") ->  | M1574: =IF(K1574<>"",IF(K1574=L1574,(K1574+L1574)/2,K1574&" to "&L1574),"") ->  | N1574: =IF(E1574+F1574=0,"",ABS(F1574-E1574)) ->  | Q1574: =IF(P1574="","",P1574*N1574*$G$23/2000) ->  | R1574: =IF(P1574="","",P1574*100*$G$23/2000) ->  | S1574: =IF(Q1574<>"",Q1574*0.06,"") ->  | T1574: =IF(H1574<>"",((H1574+I1574)/2)*N1574/9,"") ->  | X1574: =IF(V1574="","",V1574*N1574*$N$23/2000) ->  | Y1574: =IF(V1574="","",V1574*100*$N$23/2000) ->  | Z1574: =IF(W1574="","",W1574*N1574*$N$23/2000) ->  | AA1574: =IF(W1574="","",W1574*100*$N$23/2000) ->  | AD1574: =IF(AC1574="","",AC1574*N1574*$T$23/2000) ->  | AE1574: =IF(AC1574="","",AC1574*100*$T$23/2000) ->  | AH1574: =IF(N1574="","",N1574/100) ->  | AI1574: =IF(AF1574=0,"",(AF1574*N1574)/27) ->  | AJ1574: =IF(AG1574=0,"",(AG1574*N1574)/27) -> 
J1638: =IF(H1638<>"",IF(H1638=I1638,(H1638+I1638)/2,H1638&" to "&I1638),"") ->  | M1638: =IF(K1638<>"",IF(K1638=L1638,(K1638+L1638)/2,K1638&" to "&L1638),"") ->  | N1638: =IF(E1638+F1638=0,"",ABS(F1638-E1638)) ->  | Q1638: =IF(P1638="","",P1638*N1638*$G$23/2000) ->  | R1638: =IF(P1638="","",P1638*100*$G$23/2000) ->  | S1638: =IF(Q1638<>"",Q1638*0.06,"") ->  | T1638: =IF(H1638<>"",((H1638+I1638)/2)*N1638/9,"") ->  | X1638: =IF(V1638="","",V1638*N1638*$N$23/2000) ->  | Y1638: =IF(V1638="","",V1638*100*$N$23/2000) ->  | Z1638: =IF(W1638="","",W1638*N1638*$N$23/2000) ->  | AA1638: =IF(W1638="","",W1638*100*$N$23/2000) ->  | AD1638: =IF(AC1638="","",AC1638*N1638*$T$23/2000) ->  | AE1638: =IF(AC1638="","",AC1638*100*$T$23/2000) ->  | AH1638: =IF(N1638="","",N1638/100) ->  | AI1638: =IF(AF1638=0,"",(AF1638*N1638)/27) ->  | AJ1638: =IF(AG1638=0,"",(AG1638*N1638)/27) -> 
J1702: =IF(H1702<>"",IF(H1702=I1702,(H1702+I1702)/2,H1702&" to "&I1702),"") ->  | M1702: =IF(K1702<>"",IF(K1702=L1702,(K1702+L1702)/2,K1702&" to "&L1702),"") ->  | N1702: =IF(E1702+F1702=0,"",ABS(F1702-E1702)) ->  | Q1702: =IF(P1702="","",P1702*N1702*$G$23/2000) ->  | R1702: =IF(P1702="","",P1702*100*$G$23/2000) ->  | S1702: =IF(Q1702<>"",Q1702*0.06,"") ->  | T1702: =IF(H1702<>"",((H1702+I1702)/2)*N1702/9,"") ->  | X1702: =IF(V1702="","",V1702*N1702*$N$23/2000) ->  | Y1702: =IF(V1702="","",V1702*100*$N$23/2000) ->  | Z1702: =IF(W1702="","",W1702*N1702*$N$23/2000) ->  | AA1702: =IF(W1702="","",W1702*100*$N$23/2000) ->  | AD1702: =IF(AC1702="","",AC1702*N1702*$T$23/2000) ->  | AE1702: =IF(AC1702="","",AC1702*100*$T$23/2000) ->  | AH1702: =IF(N1702="","",N1702/100) ->  | AI1702: =IF(AF1702=0,"",(AF1702*N1702)/27) ->  | AJ1702: =IF(AG1702=0,"",(AG1702*N1702)/27) -> 
J1766: =IF(H1766<>"",IF(H1766=I1766,(H1766+I1766)/2,H1766&" to "&I1766),"") ->  | M1766: =IF(K1766<>"",IF(K1766=L1766,(K1766+L1766)/2,K1766&" to "&L1766),"") ->  | N1766: =IF(E1766+F1766=0,"",ABS(F1766-E1766)) ->  | Q1766: =IF(P1766="","",P1766*N1766*$G$23/2000) ->  | R1766: =IF(P1766="","",P1766*100*$G$23/2000) ->  | S1766: =IF(Q1766<>"",Q1766*0.06,"") ->  | T1766: =IF(H1766<>"",((H1766+I1766)/2)*N1766/9,"") ->  | X1766: =IF(V1766="","",V1766*N1766*$N$23/2000) ->  | Y1766: =IF(V1766="","",V1766*100*$N$23/2000) ->  | Z1766: =IF(W1766="","",W1766*N1766*$N$23/2000) ->  | AA1766: =IF(W1766="","",W1766*100*$N$23/2000) ->  | AD1766: =IF(AC1766="","",AC1766*N1766*$T$23/2000) ->  | AE1766: =IF(AC1766="","",AC1766*100*$T$23/2000) ->  | AH1766: =IF(N1766="","",N1766/100) ->  | AI1766: =IF(AF1766=0,"",(AF1766*N1766)/27) ->  | AJ1766: =IF(AG1766=0,"",(AG1766*N1766)/27) -> 
J1830: =IF(H1830<>"",IF(H1830=I1830,(H1830+I1830)/2,H1830&" to "&I1830),"") ->  | M1830: =IF(K1830<>"",IF(K1830=L1830,(K1830+L1830)/2,K1830&" to "&L1830),"") ->  | N1830: =IF(E1830+F1830=0,"",ABS(F1830-E1830)) ->  | Q1830: =IF(P1830="","",P1830*N1830*$G$23/2000) ->  | R1830: =IF(P1830="","",P1830*100*$G$23/2000) ->  | S1830: =IF(Q1830<>"",Q1830*0.06,"") ->  | T1830: =IF(H1830<>"",((H1830+I1830)/2)*N1830/9,"") ->  | X1830: =IF(V1830="","",V1830*N1830*$N$23/2000) ->  | Y1830: =IF(V1830="","",V1830*100*$N$23/2000) ->  | Z1830: =IF(W1830="","",W1830*N1830*$N$23/2000) ->  | AA1830: =IF(W1830="","",W1830*100*$N$23/2000) ->  | AD1830: =IF(AC1830="","",AC1830*N1830*$T$23/2000) ->  | AE1830: =IF(AC1830="","",AC1830*100*$T$23/2000) ->  | AH1830: =IF(N1830="","",N1830/100) ->  | AI1830: =IF(AF1830=0,"",(AF1830*N1830)/27) ->  | AJ1830: =IF(AG1830=0,"",(AG1830*N1830)/27) -> 
J1894: =IF(H1894<>"",IF(H1894=I1894,(H1894+I1894)/2,H1894&" to "&I1894),"") ->  | M1894: =IF(K1894<>"",IF(K1894=L1894,(K1894+L1894)/2,K1894&" to "&L1894),"") ->  | N1894: =IF(E1894+F1894=0,"",ABS(F1894-E1894)) ->  | Q1894: =IF(P1894="","",P1894*N1894*$G$23/2000) ->  | R1894: =IF(P1894="","",P1894*100*$G$23/2000) ->  | S1894: =IF(Q1894<>"",Q1894*0.06,"") ->  | T1894: =IF(H1894<>"",((H1894+I1894)/2)*N1894/9,"") ->  | X1894: =IF(V1894="","",V1894*N1894*$N$23/2000) ->  | Y1894: =IF(V1894="","",V1894*100*$N$23/2000) ->  | Z1894: =IF(W1894="","",W1894*N1894*$N$23/2000) ->  | AA1894: =IF(W1894="","",W1894*100*$N$23/2000) ->  | AD1894: =IF(AC1894="","",AC1894*N1894*$T$23/2000) ->  | AE1894: =IF(AC1894="","",AC1894*100*$T$23/2000) ->  | AH1894: =IF(N1894="","",N1894/100) ->  | AI1894: =IF(AF1894=0,"",(AF1894*N1894)/27) ->  | AJ1894: =IF(AG1894=0,"",(AG1894*N1894)/27) -> 
J1958: =IF(H1958<>"",IF(H1958=I1958,(H1958+I1958)/2,H1958&" to "&I1958),"") ->  | M1958: =IF(K1958<>"",IF(K1958=L1958,(K1958+L1958)/2,K1958&" to "&L1958),"") ->  | N1958: =IF(E1958+F1958=0,"",ABS(F1958-E1958)) ->  | Q1958: =IF(P1958="","",P1958*N1958*$G$23/2000) ->  | R1958: =IF(P1958="","",P1958*100*$G$23/2000) ->  | S1958: =IF(Q1958<>"",Q1958*0.06,"") ->  | T1958: =IF(H1958<>"",((H1958+I1958)/2)*N1958/9,"") ->  | X1958: =IF(V1958="","",V1958*N1958*$N$23/2000) ->  | Y1958: =IF(V1958="","",V1958*100*$N$23/2000) ->  | Z1958: =IF(W1958="","",W1958*N1958*$N$23/2000) ->  | AA1958: =IF(W1958="","",W1958*100*$N$23/2000) ->  | AD1958: =IF(AC1958="","",AC1958*N1958*$T$23/2000) ->  | AE1958: =IF(AC1958="","",AC1958*100*$T$23/2000) ->  | AH1958: =IF(N1958="","",N1958/100) ->  | AI1958: =IF(AF1958=0,"",(AF1958*N1958)/27) ->  | AJ1958: =IF(AG1958=0,"",(AG1958*N1958)/27) -> 

Sheet DE112_10
A1: TabTitle | B1: =C16 -> MILLED RUMBLE STRIPS | AE1: Rumble Strip Type
A2: Number of Tab Columns | B2: 11 | AE2: Centerline
A3: DE Starter Row Number | B3: 26 | AE3: Left Shoulder
A4: TabSheet Starter Row Number | B4: 12 | AE4: Right Shoulder
A5: TabSheet Header Row Count | B5: 11
A6: Top Header Cell | B6: S15
A7: Bottom Header Cell | B7: AC25
A8: DESheet Row Count | B8: 0
A9: Fixed Empty Rows | B9: 2
A10: Usable Empty Rows | B10: 0
A11: Total Rows Placed | B11: 2 | C11: xlLeft(1) | D11: xlRight(1) | E11: xlRight(1) | H11: xlRight(1) | I11: xlRight(1) | J11: xlCenter | M11: xlRight(1) | N11: xlRight(1) | O11: xlRight(1) | P11: xlRight(1) | Q11: xlLeft(1) | S11: =C11 -> xlLeft(1) | T11: =D11 -> xlRight(1) | U11: xlRight(1) | V11: =H11 -> xlRight(1) | W11: =I11 -> xlRight(1) | X11: xlCenter | Y11: =M11 -> xlRight(1) | Z11: =N11 -> xlRight(1) | AA11: xlRight(1) | AB11: xlRight(1) | AC11: xlLeft(1)
A12: Total Rows Needed | B12: =SUM(B8:B10) -> 2 | C12: General | D12: #+00.00 | E12: #+00.00 | H12: 0.00 | I12: 0.00 | J12: General | M12: 0.0 | N12: 0.0 | O12: 0.0 | P12: 0.0 | Q12: General | S12: =C12 -> General | T12: #+00.00 | U12: #+00.00 | V12: =H12 -> 0.00 | W12: 0.00 | X12: General | Y12: =M12 -> 0.0 | Z12: 0.0 | AA12: 0.0 | AB12: 0.0 | AC12: General
A13: Last Tab DE Starter Row | B13: 26 | C13: =CELL("width",C13) -> 32 | D13: =CELL("width",D13) -> 18 | E13: =CELL("width",E13) -> 18 | H13: =CELL("width",H13) -> 12 | I13: =CELL("width",I13) -> 12 | J13: =CELL("width",J13) -> 26 | M13: =CELL("width",M13) -> 29 | N13: =CELL("width",N13) -> 16 | O13: =CELL("width",O13) -> 16 | P13: =CELL("width",P13) -> 16 | Q13: =CELL("width",Q13) -> 38 | S13: =CELL("width",S13) -> 0 | T13: 0 | U13: 0 | V13: 0 | W13: 0 | X13: 0 | Y13: 0 | Z13: 0 | AA13: 0 | AB13: 0 | AC13: 0
A14: Last Tab Tabsheet Starter Row | B14: 12 | C14: A | D14: B | E14: C | H14: D | I14: E | J14: F | M14: G | N14: H | O14: I | P14: J | Q14: K | S14: =LOWER(C14) -> a | T14: =LOWER(D14) -> b | U14: =LOWER(E14) -> c | V14: =LOWER(H14) -> d | W14: =LOWER(I14) -> e | X14: =LOWER(J14) -> f | Y14: =LOWER(M14) -> g | Z14: =LOWER(N14) -> h | AA14: =LOWER(O14) -> i | AB14: =LOWER(P14) -> j | AC14: =LOWER(Q14) -> k
A15: Last Copy Starter Row | B15: 1 | E15: Totals: | H15: =SUBTOTAL(9,H26:H2000) -> 570.5 | I15: =SUBTOTAL(9,I26:I2000) -> 0 | M15: =SUBTOTAL(9,M26:M2000) -> 0 | S15: 112-10
A16: Tab Loop Number | B16: 2 | C16: MILLED RUMBLE STRIPS | S16: =B17 -> 2011-04-19
A17: Revision Date | B17: 2011-04-19 | S17: =C16 -> MILLED RUMBLE STRIPS
A18: Tabulation Width | B18: 3 | C18: See PV-12 and PV-13.
A19: Horizontal Grid Lines | B19: Yes | C19: * Calculated at 18" width for Shoulder. | S19: =C18 -> See PV-12 and PV-13.
C20: ="This Data Entry Sheet fills Tab "&S15&" effective "&TEXT(B17,"mm-dd-yy") -> This Data Entry Sheet fills Tab 112-10 effective 04-19-11 | S20: =C19 -> * Calculated at 18" width for Shoulder.
C21: Location | J21: Type (Centerline, Rt or Lt Shoulder | K21: Area | L21: Area | M21: Fog Seal* (Milled Rumble Strip) | N21: Effective Shoulder Width | Q21: Remarks | S21: =C21 -> Location | Y21: =M21 -> Fog Seal* (Milled Rumble Strip) | Z21: =N21 -> Effective Shoulder Width | AC21: =Q21 -> Remarks
C22: Road Identification | D22: Station to Station | F22: Length | H22: Length | N22: PCC Paved | O22: HMA Paved | P22: Granular\ Earth | S22: =C22 -> Road Identification | T22: =D22 -> Station to Station | V22: =H22 -> Length | X22: =J21 -> Type (Centerline, Rt or Lt Shoulder | Z22: =N22 -> PCC Paved | AA22: =O22 -> HMA Paved | AB22: =P22 -> Granular\ Earth
H23: PCC | I23: HMA | V23: =H23 -> PCC | W23: =I23 -> HMA
M24: Shoulder | Y24: =M24 -> Shoulder
F25: FT | G25: STA | H25: STA | I25: STA | K25: SF | L25: SY | M25: GAL | N25: FT | O25: FT | P25: FT | V25: =H25 -> STA | W25: =I25 -> STA | Y25: =M25 -> GAL | Z25: =N25 -> FT | AA25: =O25 -> FT | AB25: =P25 -> FT
D26: 128300 | E26: 156825 | F26: =IF(D26<>"",ABS(D26-E26),"") -> 28525 | G26: =IF(F26<>"",F26/100,"") -> 285.25 | H26: =G26*2 -> 570.5 | K26: =IF(OR(J26="Left Shoulder",J26="Right Shoulder"),(H26+I26)*100*(18/12),"") ->  | L26: =IF(K26<>"",(K26/9),"") ->  | M26: =IF(AND(OR(J26="Left Shoulder",J26="Right Shoulder"),I26<>""),L26*0.5*0.13,IF(J26<>"","0.0","")) -> 
M27: =IF(AND(OR(J27="Left Shoulder",J27="Right Shoulder"),I27<>""),L27*0.5*0.13,IF(J27<>"","0.0","")) -> 
M28: =IF(AND(OR(J28="Left Shoulder",J28="Right Shoulder"),I28<>""),L28*0.5*0.13,IF(J28<>"","0.0","")) -> 
F90: =IF(D90<>"",ABS(D90-E90),"") ->  | G90: =IF(F90<>"",F90/100,"") ->  | K90: =IF(OR(J90="Left Shoulder",J90="Right Shoulder"),(H90+I90)*100*(18/12),"") ->  | L90: =IF(K90<>"",(K90/9),"") -> 
M92: =IF(AND(OR(J92="Left Shoulder",J92="Right Shoulder"),I92<>""),L92*0.5*0.13,IF(J92<>"","0.0","")) -> 
F154: =IF(D154<>"",ABS(D154-E154),"") ->  | G154: =IF(F154<>"",F154/100,"") ->  | K154: =IF(OR(J154="Left Shoulder",J154="Right Shoulder"),(H154+I154)*100*(18/12),"") ->  | L154: =IF(K154<>"",(K154/9),"") -> 
M156: =IF(AND(OR(J156="Left Shoulder",J156="Right Shoulder"),I156<>""),L156*0.5*0.13,IF(J156<>"","0.0","")) -> 
F218: =IF(D218<>"",ABS(D218-E218),"") ->  | G218: =IF(F218<>"",F218/100,"") ->  | K218: =IF(OR(J218="Left Shoulder",J218="Right Shoulder"),(H218+I218)*100*(18/12),"") ->  | L218: =IF(K218<>"",(K218/9),"") -> 
M220: =IF(AND(OR(J220="Left Shoulder",J220="Right Shoulder"),I220<>""),L220*0.5*0.13,IF(J220<>"","0.0","")) -> 
F282: =IF(D282<>"",ABS(D282-E282),"") ->  | G282: =IF(F282<>"",F282/100,"") ->  | K282: =IF(OR(J282="Left Shoulder",J282="Right Shoulder"),(H282+I282)*100*(18/12),"") ->  | L282: =IF(K282<>"",(K282/9),"") -> 
M284: =IF(AND(OR(J284="Left Shoulder",J284="Right Shoulder"),I284<>""),L284*0.5*0.13,IF(J284<>"","0.0","")) -> 
F346: =IF(D346<>"",ABS(D346-E346),"") ->  | G346: =IF(F346<>"",F346/100,"") ->  | K346: =IF(OR(J346="Left Shoulder",J346="Right Shoulder"),(H346+I346)*100*(18/12),"") ->  | L346: =IF(K346<>"",(K346/9),"") -> 
M348: =IF(AND(OR(J348="Left Shoulder",J348="Right Shoulder"),I348<>""),L348*0.5*0.13,IF(J348<>"","0.0","")) -> 
F410: =IF(D410<>"",ABS(D410-E410),"") ->  | G410: =IF(F410<>"",F410/100,"") ->  | K410: =IF(OR(J410="Left Shoulder",J410="Right Shoulder"),(H410+I410)*100*(18/12),"") ->  | L410: =IF(K410<>"",(K410/9),"") -> 
M412: =IF(AND(OR(J412="Left Shoulder",J412="Right Shoulder"),I412<>""),L412*0.5*0.13,IF(J412<>"","0.0","")) -> 
F474: =IF(D474<>"",ABS(D474-E474),"") ->  | G474: =IF(F474<>"",F474/100,"") ->  | K474: =IF(OR(J474="Left Shoulder",J474="Right Shoulder"),(H474+I474)*100*(18/12),"") ->  | L474: =IF(K474<>"",(K474/9),"") -> 
M476: =IF(AND(OR(J476="Left Shoulder",J476="Right Shoulder"),I476<>""),L476*0.5*0.13,IF(J476<>"","0.0","")) -> 
F538: =IF(D538<>"",ABS(D538-E538),"") ->  | G538: =IF(F538<>"",F538/100,"") ->  | K538: =IF(OR(J538="Left Shoulder",J538="Right Shoulder"),(H538+I538)*100*(18/12),"") ->  | L538: =IF(K538<>"",(K538/9),"") -> 
M540: =IF(AND(OR(J540="Left Shoulder",J540="Right Shoulder"),I540<>""),L540*0.5*0.13,IF(J540<>"","0.0","")) -> 
F602: =IF(D602<>"",ABS(D602-E602),"") ->  | G602: =IF(F602<>"",F602/100,"") ->  | K602: =IF(OR(J602="Left Shoulder",J602="Right Shoulder"),(H602+I602)*100*(18/12),"") ->  | L602: =IF(K602<>"",(K602/9),"") -> 
M604: =IF(AND(OR(J604="Left Shoulder",J604="Right Shoulder"),I604<>""),L604*0.5*0.13,IF(J604<>"","0.0","")) -> 
F666: =IF(D666<>"",ABS(D666-E666),"") ->  | G666: =IF(F666<>"",F666/100,"") ->  | K666: =IF(OR(J666="Left Shoulder",J666="Right Shoulder"),(H666+I666)*100*(18/12),"") ->  | L666: =IF(K666<>"",(K666/9),"") -> 
M668: =IF(AND(OR(J668="Left Shoulder",J668="Right Shoulder"),I668<>""),L668*0.5*0.13,IF(J668<>"","0.0","")) -> 
F730: =IF(D730<>"",ABS(D730-E730),"") ->  | G730: =IF(F730<>"",F730/100,"") ->  | K730: =IF(OR(J730="Left Shoulder",J730="Right Shoulder"),(H730+I730)*100*(18/12),"") ->  | L730: =IF(K730<>"",(K730/9),"") -> 
M732: =IF(AND(OR(J732="Left Shoulder",J732="Right Shoulder"),I732<>""),L732*0.5*0.13,IF(J732<>"","0.0","")) -> 
F794: =IF(D794<>"",ABS(D794-E794),"") ->  | G794: =IF(F794<>"",F794/100,"") ->  | K794: =IF(OR(J794="Left Shoulder",J794="Right Shoulder"),(H794+I794)*100*(18/12),"") ->  | L794: =IF(K794<>"",(K794/9),"") -> 
M796: =IF(AND(OR(J796="Left Shoulder",J796="Right Shoulder"),I796<>""),L796*0.5*0.13,IF(J796<>"","0.0","")) -> 
F858: =IF(D858<>"",ABS(D858-E858),"") ->  | G858: =IF(F858<>"",F858/100,"") ->  | K858: =IF(OR(J858="Left Shoulder",J858="Right Shoulder"),(H858+I858)*100*(18/12),"") ->  | L858: =IF(K858<>"",(K858/9),"") -> 
M860: =IF(AND(OR(J860="Left Shoulder",J860="Right Shoulder"),I860<>""),L860*0.5*0.13,IF(J860<>"","0.0","")) -> 
F922: =IF(D922<>"",ABS(D922-E922),"") ->  | G922: =IF(F922<>"",F922/100,"") ->  | K922: =IF(OR(J922="Left Shoulder",J922="Right Shoulder"),(H922+I922)*100*(18/12),"") ->  | L922: =IF(K922<>"",(K922/9),"") -> 
M924: =IF(AND(OR(J924="Left Shoulder",J924="Right Shoulder"),I924<>""),L924*0.5*0.13,IF(J924<>"","0.0","")) -> 
F986: =IF(D986<>"",ABS(D986-E986),"") ->  | G986: =IF(F986<>"",F986/100,"") ->  | K986: =IF(OR(J986="Left Shoulder",J986="Right Shoulder"),(H986+I986)*100*(18/12),"") ->  | L986: =IF(K986<>"",(K986/9),"") -> 
M988: =IF(AND(OR(J988="Left Shoulder",J988="Right Shoulder"),I988<>""),L988*0.5*0.13,IF(J988<>"","0.0","")) -> 
F1050: =IF(D1050<>"",ABS(D1050-E1050),"") ->  | G1050: =IF(F1050<>"",F1050/100,"") ->  | K1050: =IF(OR(J1050="Left Shoulder",J1050="Right Shoulder"),(H1050+I1050)*100*(18/12),"") ->  | L1050: =IF(K1050<>"",(K1050/9),"") -> 
M1052: =IF(AND(OR(J1052="Left Shoulder",J1052="Right Shoulder"),I1052<>""),L1052*0.5*0.13,IF(J1052<>"","0.0","")) -> 
F1114: =IF(D1114<>"",ABS(D1114-E1114),"") ->  | G1114: =IF(F1114<>"",F1114/100,"") ->  | K1114: =IF(OR(J1114="Left Shoulder",J1114="Right Shoulder"),(H1114+I1114)*100*(18/12),"") ->  | L1114: =IF(K1114<>"",(K1114/9),"") -> 
M1116: =IF(AND(OR(J1116="Left Shoulder",J1116="Right Shoulder"),I1116<>""),L1116*0.5*0.13,IF(J1116<>"","0.0","")) -> 
F1178: =IF(D1178<>"",ABS(D1178-E1178),"") ->  | G1178: =IF(F1178<>"",F1178/100,"") ->  | K1178: =IF(OR(J1178="Left Shoulder",J1178="Right Shoulder"),(H1178+I1178)*100*(18/12),"") ->  | L1178: =IF(K1178<>"",(K1178/9),"") -> 
M1180: =IF(AND(OR(J1180="Left Shoulder",J1180="Right Shoulder"),I1180<>""),L1180*0.5*0.13,IF(J1180<>"","0.0","")) -> 
F1242: =IF(D1242<>"",ABS(D1242-E1242),"") ->  | G1242: =IF(F1242<>"",F1242/100,"") ->  | K1242: =IF(OR(J1242="Left Shoulder",J1242="Right Shoulder"),(H1242+I1242)*100*(18/12),"") ->  | L1242: =IF(K1242<>"",(K1242/9),"") -> 
M1244: =IF(AND(OR(J1244="Left Shoulder",J1244="Right Shoulder"),I1244<>""),L1244*0.5*0.13,IF(J1244<>"","0.0","")) -> 
F1306: =IF(D1306<>"",ABS(D1306-E1306),"") ->  | G1306: =IF(F1306<>"",F1306/100,"") ->  | K1306: =IF(OR(J1306="Left Shoulder",J1306="Right Shoulder"),(H1306+I1306)*100*(18/12),"") ->  | L1306: =IF(K1306<>"",(K1306/9),"") -> 
M1308: =IF(AND(OR(J1308="Left Shoulder",J1308="Right Shoulder"),I1308<>""),L1308*0.5*0.13,IF(J1308<>"","0.0","")) -> 
F1370: =IF(D1370<>"",ABS(D1370-E1370),"") ->  | G1370: =IF(F1370<>"",F1370/100,"") ->  | K1370: =IF(OR(J1370="Left Shoulder",J1370="Right Shoulder"),(H1370+I1370)*100*(18/12),"") ->  | L1370: =IF(K1370<>"",(K1370/9),"") -> 
M1372: =IF(AND(OR(J1372="Left Shoulder",J1372="Right Shoulder"),I1372<>""),L1372*0.5*0.13,IF(J1372<>"","0.0","")) -> 
F1434: =IF(D1434<>"",ABS(D1434-E1434),"") ->  | G1434: =IF(F1434<>"",F1434/100,"") ->  | K1434: =IF(OR(J1434="Left Shoulder",J1434="Right Shoulder"),(H1434+I1434)*100*(18/12),"") ->  | L1434: =IF(K1434<>"",(K1434/9),"") -> 
M1436: =IF(AND(OR(J1436="Left Shoulder",J1436="Right Shoulder"),I1436<>""),L1436*0.5*0.13,IF(J1436<>"","0.0","")) -> 
F1498: =IF(D1498<>"",ABS(D1498-E1498),"") ->  | G1498: =IF(F1498<>"",F1498/100,"") ->  | K1498: =IF(OR(J1498="Left Shoulder",J1498="Right Shoulder"),(H1498+I1498)*100*(18/12),"") ->  | L1498: =IF(K1498<>"",(K1498/9),"") -> 
M1500: =IF(AND(OR(J1500="Left Shoulder",J1500="Right Shoulder"),I1500<>""),L1500*0.5*0.13,IF(J1500<>"","0.0","")) -> 
F1562: =IF(D1562<>"",ABS(D1562-E1562),"") ->  | G1562: =IF(F1562<>"",F1562/100,"") ->  | K1562: =IF(OR(J1562="Left Shoulder",J1562="Right Shoulder"),(H1562+I1562)*100*(18/12),"") ->  | L1562: =IF(K1562<>"",(K1562/9),"") -> 
M1564: =IF(AND(OR(J1564="Left Shoulder",J1564="Right Shoulder"),I1564<>""),L1564*0.5*0.13,IF(J1564<>"","0.0","")) -> 
F1626: =IF(D1626<>"",ABS(D1626-E1626),"") ->  | G1626: =IF(F1626<>"",F1626/100,"") ->  | K1626: =IF(OR(J1626="Left Shoulder",J1626="Right Shoulder"),(H1626+I1626)*100*(18/12),"") ->  | L1626: =IF(K1626<>"",(K1626/9),"") -> 
M1628: =IF(AND(OR(J1628="Left Shoulder",J1628="Right Shoulder"),I1628<>""),L1628*0.5*0.13,IF(J1628<>"","0.0","")) -> 
F1690: =IF(D1690<>"",ABS(D1690-E1690),"") ->  | G1690: =IF(F1690<>"",F1690/100,"") ->  | K1690: =IF(OR(J1690="Left Shoulder",J1690="Right Shoulder"),(H1690+I1690)*100*(18/12),"") ->  | L1690: =IF(K1690<>"",(K1690/9),"") -> 
M1692: =IF(AND(OR(J1692="Left Shoulder",J1692="Right Shoulder"),I1692<>""),L1692*0.5*0.13,IF(J1692<>"","0.0","")) -> 
F1754: =IF(D1754<>"",ABS(D1754-E1754),"") ->  | G1754: =IF(F1754<>"",F1754/100,"") ->  | K1754: =IF(OR(J1754="Left Shoulder",J1754="Right Shoulder"),(H1754+I1754)*100*(18/12),"") ->  | L1754: =IF(K1754<>"",(K1754/9),"") -> 
M1756: =IF(AND(OR(J1756="Left Shoulder",J1756="Right Shoulder"),I1756<>""),L1756*0.5*0.13,IF(J1756<>"","0.0","")) -> 
F1818: =IF(D1818<>"",ABS(D1818-E1818),"") ->  | G1818: =IF(F1818<>"",F1818/100,"") ->  | K1818: =IF(OR(J1818="Left Shoulder",J1818="Right Shoulder"),(H1818+I1818)*100*(18/12),"") ->  | L1818: =IF(K1818<>"",(K1818/9),"") -> 
M1820: =IF(AND(OR(J1820="Left Shoulder",J1820="Right Shoulder"),I1820<>""),L1820*0.5*0.13,IF(J1820<>"","0.0","")) -> 
F1882: =IF(D1882<>"",ABS(D1882-E1882),"") ->  | G1882: =IF(F1882<>"",F1882/100,"") ->  | K1882: =IF(OR(J1882="Left Shoulder",J1882="Right Shoulder"),(H1882+I1882)*100*(18/12),"") ->  | L1882: =IF(K1882<>"",(K1882/9),"") -> 
M1884: =IF(AND(OR(J1884="Left Shoulder",J1884="Right Shoulder"),I1884<>""),L1884*0.5*0.13,IF(J1884<>"","0.0","")) -> 
F1946: =IF(D1946<>"",ABS(D1946-E1946),"") ->  | G1946: =IF(F1946<>"",F1946/100,"") ->  | K1946: =IF(OR(J1946="Left Shoulder",J1946="Right Shoulder"),(H1946+I1946)*100*(18/12),"") ->  | L1946: =IF(K1946<>"",(K1946/9),"") -> 
M1948: =IF(AND(OR(J1948="Left Shoulder",J1948="Right Shoulder"),I1948<>""),L1948*0.5*0.13,IF(J1948<>"","0.0","")) -> 

Sheet DE281_1
A1: TabTitle | B1: =C15 -> SECTION 404 PERMIT AND CONDITIONS
A2: Number of Tab Columns | B2: 1
A3: DE Starter Row Number | B3: 18
A4: TabSheet Starter Row Number | B4: 5
A5: TabSheet Header Row Count | B5: 4
A6: Top Header Cell | B6: E15
A7: Bottom Header Cell | B7: E18
A8: DESheet Row Count | B8: 6
A9: Fixed Empty Rows | B9: 0
A10: Usable Empty Rows | B10: 0
A11: Total Rows Placed | B11: 6 | C11: xlLeft | E11: =C11 -> xlLeft
A12: Total Rows Needed | B12: =SUM(B8:B10) -> 6 | C12: General | E12: =C12 -> General
A13: Last Tab DE Starter Row | B13: 18 | C13: =CELL("width",C13) -> 78 | E13: =CELL("width",E13) -> 0
A14: Last Tab Tabsheet Starter Row | B14: 5 | C14: A | E14: a
A15: Last Copy Starter Row | B15: 1 | C15: SECTION 404 PERMIT AND CONDITIONS | E15: 281-1
A16: Tab Loop Number | B16: 2 | E16: =B17 -> 2013-10-15
A17: Revision Date | B17: 2013-10-15 | C17: ="This Data Entry Sheet fills Tab "&E15&" effective "&TEXT(B17,"mm-dd-yy") -> This Data Entry Sheet fills Tab 281-1 effective 10-15-13 | E17: =C15 -> SECTION 404 PERMIT AND CONDITIONS
A18: Tabulation Width | B18: 1 | C18: Construct this project according to the requirements of U.S. Army
A19: Horizontal Grid Lines | B19: No | C19: Corps of Engineers ________________, Permit No. _______________. A
C20: copy of this permit is available from the Iowa DOT website
C21: (http://envpermits.iowadot.gov/CMEPortalENV/Home.aspx). The U.S.
C22: Army Corps of Engineers reserves the right to visit the site
C23: without prior notice.

Sheet 100_1A

Sheet 100_1D

Sheet 100_4A

Sheet 100_7

Sheet 100_10

Sheet 100_14

Sheet 100_17

Sheet 100_18

Sheet 100_19

Sheet 100_24

Sheet 100_26

Sheet 100_27

Sheet 100_28

Sheet 102_3

Sheet 102_5

Sheet 103_4

Sheet 104_3

Sheet 104_8

Sheet 105_4

Sheet 107_23

Sheet 107_31

Sheet 108_8A

Sheet 108_13A

Sheet 108_22

Sheet 108_27

Sheet 108_29

Sheet 108_30

Sheet 108_33

Sheet 108_35

Sheet 110_1

Sheet 110_7A

Sheet 110_9

Sheet 110_12A

Sheet 110_13

Sheet 110_17

Sheet 111_25

Sheet 112_4

Sheet 112_6

Sheet 112_8

Sheet 112_9

Sheet 112_10

Sheet 281_1

Sheet PrintSheetTemplate (hidden)
P94: IOWA DOT | W94: DESIGN TEAM | CX94: COUNTY | DD94: PROJECT NUMBER | ET94: SHEET NUMBER | FJ94: =IF(FP94<>0,"REVISED","") ->  | FP94: 00:00:00

Sheet Index (hidden)
A1: 100-0A | B1: 1997-10-28 | C1: 4.4 | F1: Live English File Path | G1: W:\Highway\Design\RoadDesignDetails\ExcelTabs\ | I1: R.D. Skogerboe | J1: dskoger | K1: Road1 | L1: ROADWAY DESIGN | N1: 100_16(1) | O1: ='100_16'!$A$1:$E$90
A2: 100-1A | B2: 1997-07-15 | C2: 07/31/12 | F2: Live Metric File Path | G2: W:\Highway\Design\RoadDesignDetails\ExcelTabs\MetricTabs\ | I2: Jason R. Strum | J2: jstrum | K2: Road1 | L2: ROADWAY DESIGN | N2: 100_16(2) | O2: ='100_16'!$A$91:$E$136
A3: 100-1B | B3: --- | C3: C | F3: Index File Path | G3: W:\Highway\Design\RoadDesignDetails\PDFsandWebFiles\Indexes\ | I3: Robert A. Schoenrock | J3: rschoen | K3: Road1 | L3: ROADWAY DESIGN
A4: 100-1C | B4: 2012-04-17 | F4: Index File Name | G4: TNT_EnglishIndexes.xlsx | I4: Stacy M. Ryan | J4: sryan | K4: Road1 | L4: ROADWAY DESIGN
A5: 100-1D | B5: 2005-10-18 | F5: Last Revision English File Path | G5: W:\Highway\Design\RoadDesignDetails\Old_Details\ExcelTabs\ | I5: Yanxiao Jia | J5: yjia | K5: Road2 | L5: ROADWAY DESIGN
A6: 100-4A | B6: 2002-10-29 | F6: Last Revision Metric File Path | G6: W:\Highway\Design\RoadDesignDetails\Old_Details\ExcelTabs\MetricTabs\ | I6: Ryan R. Miller | J6: rmille3 | K6: Road2 | L6: ROADWAY DESIGN
A7: 100-7 | B7: 2012-10-16 | F7: Seed Path | G7: W:\Highway\Design\CADD\SpreadSheets\ExcelTabulations.xltm | I7: Jennifer L. Hoskins | J7: jhoskin | K7: Road2 | L7: ROADWAY DESIGN
A8: 100-10 | B8: 2011-10-18 | F8: VersionCheck Path | G8: W:\Highway\Design\CADD\SpreadSheets\ExcelTabulations.xlsm | I8: Paul W. Flattery | J8: pflatte | K8: Road3 | L8: ROADWAY DESIGN
A9: 100-11 | B9: 2008-08-01 | F9: Standard Road Plan Path | G9: W:\Highway\Design\StandardRoadPlans\PDFsAndWebFiles\Indexes\SRP_EnglishIndex.xls | I9: Kelly C. Bell | J9: kbell | K9: Road3 | L9: ROADWAY DESIGN
A10: 100-12 | B10: 2008-08-01 | F10: Last Revision Standard Road Plan Path | G10: W:\Highway\Design\StandardRoadPlans\PDFsAndWebFiles\Old_Indexes\SRP_EnglishIndex.xls | I10: James R. Schoenrock | J10: jschoen | K10: Road5 | L10: ROADWAY DESIGN
A11: 100-12A | B11: 2008-08-01 | F11: AddIn Path | G11: W:\Highway\Design\CADD\SpreadSheets\ET_Testing\ExcelTabulations.xlam | I11: Jason M. Holst | J11: jholst | K11: Road5 | L11: ROADWAY DESIGN
A12: 100-13 | B12: 2010-04-20 | I12: Donald G. Drake | J12: drake | K12: Road5 | L12: ROADWAY DESIGN
A13: 100-14 | B13: 2010-04-20 | I13: Robert L. Stanley | J13: rstanle | K13: Soils | L13: GEOTECHNICAL DESIGN
A14: 100-15 | B14: 2010-04-20 | I14: Stephen J. Megivern | J14: smegive | K14: Soils | L14: GEOTECHNICAL DESIGN
A15: 100-16 | B15: 2010-10-19 | I15: David R. Claman | J15: dclaman | K15: Bridge | L15: HYDRAULIC DESIGN
A16: 100-17 | B16: 2010-04-20
A17: 100-18 | B17: 2010-04-20
A18: 100-20 | B18: 2008-08-01
A19: 100-21 | B19: 2008-08-01
A20: 100-22 | B20: 2008-08-01
A21: 100-23 | B21: 2010-10-19
A22: 100-24 | B22: 2011-10-18
A23: 100-26 | B23: 2008-08-01
A24: 100-27 | B24: 2009-10-20
A25: 100-28 | B25: 2007-10-16
A26: 101-4 | B26: 2002-04-30
A27: 101-5 | B27: 2002-04-30
A28: 101-6 | B28: 2002-04-30
A29: 101-7 | B29: 2002-04-30
A30: 101-8 | B30: 2011-04-19
A31: 102-3 | B31: 2012-10-16
A32: 102-4 | B32: 2011-10-18
A33: 102-5 | B33: 2012-10-16
A34: 102-5A | B34: 2008-08-01
A35: 102-6C | B35: 2011-10-18
A36: 102-10 | B36: 2008-08-01
A37: 102-11 | B37: 2008-08-01
A38: 102-12 | B38: 2008-08-01
A39: 103-1 | B39: 2010-10-19
A40: 103-3 | B40: 2012-10-16
A41: 103-4 | B41: 2011-04-19
A42: 103-5 | B42: 2008-08-01
A43: 103-6 | B43: 2011-04-19
A44: 103-7 | B44: 2008-08-01
A45: 104-3 | B45: 2012-10-16
A46: 105-1 | B46: 1994-09-27
A47: 105-3 | B47: 2005-10-18
A48: 105-4 | B48: 2011-10-18
A49: 106-1 | B49: 2008-08-01
A50: 106-2 | B50: 2008-08-01
A51: 106-3 | B51: 2008-08-01
A52: 106-4 | B52: 2008-08-01
A53: 106-5 | B53: 2008-08-01
A54: 106-7 | B54: 2008-08-01
A55: 106-8 | B55: 2011-04-19
A56: 108-1 | B56: 2008-08-01
A57: 108-2 | B57: 2008-08-01
A58: 108-2A | B58: 2008-08-01
A59: 108-8A | B59: 2010-10-19
A60: 108-8B | B60: 2011-10-18
A61: 108-8C | B61: 2011-10-18
A62: 108-8D | B62: 2010-10-19
A63: 108-9A | B63: 2010-04-20
A64: 108-11A | B64: 2008-08-01
A65: 108-12 | B65: 2008-08-01
A66: 108-13A | B66: 2008-08-01
A67: 108-15 | B67: 2008-08-01
A68: 108-16 | B68: 2010-10-19
A69: 108-18 | B69: 2011-10-18
A70: 108-18B | B70: 2012-10-16
A71: 108-22 | B71: 2012-10-16
A72: 108-23A | B72: 2008-08-01
A73: 108-24 | B73: 2011-04-19
A74: 108-26A | B74: 2008-08-01
A75: 108-27 | B75: 2012-10-16
A76: 108-28 | B76: 2008-08-01
A77: 108-29 | B77: 2012-10-16
A78: 108-30 | B78: 2012-10-16
A79: 110-1 | B79: 2012-10-16
A80: 110-2 | B80: 2008-08-01
A81: 110-3 | B81: 2008-08-01
A82: 110-4 | B82: 2008-08-01
A83: 110-5 | B83: 2008-08-01
A84: 110-6 | B84: 2008-08-01
A85: 110-7A | B85: 2012-04-17
A86: 110-7B | B86: 2010-10-19
A87: 110-8 | B87: 2008-08-01
A88: 110-9 | B88: 2011-10-18
A89: 110-10 | B89: 2008-08-01
A90: 110-11 | B90: 2008-08-01
A91: 110-12A | B91: 2011-04-19
A92: 110-13 | B92: 2010-04-20
A93: 110-14 | B93: 2012-10-16
A94: 110-15 | B94: 2012-10-16
A95: 111-1 | B95: 2012-04-17
A96: 111-2 | B96: 1989-02-28
A97: 112-3 | B97: 2008-08-01
A98: 113-1 | B98: 2012-04-17
A99: 113-2 | B99: 2011-10-18
A100: 113-3 | B100: 2011-10-18
A101: 0 | B101: 00:00:00
A102: 0 | B102: 00:00:00
A103: 203-3 | B103: --
A104: 231-1 | B104: 2011-10-18
A105: 231-2 | B105: 2012-10-16
A106: 232-3A | B106: 2012-10-16
A107: 232-3B | B107: 2012-10-16
A108: 232-3C | B108: 2012-10-16
A109: 232-3D | B109: 2012-10-16
A110: 232-4 | B110: 2011-10-18
A111: 0 | B111: 00:00:00
A112: 232-6 | B112: 2011-10-18
A113: 232-7 | B113: 2012-10-16
A114: 232-8 | B114: --
A115: 232-9 | B115: 2011-10-18
A116: 232-10 | B116: --
A117: 232-11 | B117: 2012-10-16
A118: 0 | B118: 00:00:00
A119: 0 | B119: 00:00:00
A120: 0 | B120: 00:00:00
A121: 271-1 | B121: 2011-10-18
A122: 271-2 | B122: 1985-08-20
A123: 271-4 | B123: 2011-10-18
A124: 271-9 | B124: 1994-09-27
